Workbook

Sheet ProjectInformation
A1: CPN DATA
A2: INFORMATION ADDED BY DESIGNER
A3: Section Engineer | B3: WHKS & CO.
A4: Design Team
A6: County | B6: CLINTON
A7: Project Number | B7: STPN-136-1(73)--2J-23
A8: English or Metric | B8: English
A9: Revised
A10: Project Path
A11: Bridge Block
A12: File No.

Sheet DataInput
B1: Cut and Fill | T1: Topsoil Stripping | V1: Existing Pavement Cut | X1: Plowing and Shaping | AL1: ="Topsoil Placement"&CHAR(10)&"Undercut" -> Topsoil Placement Undercut | AO1: ="Subgrade Treatment"&CHAR(10)&"Undercut " -> Subgrade Treatment Undercut
B2: Column 1 | C2: Column 2 | D2: Column 3 | E2: Column 4 | F2: Column 5 | G2: Column 6 | H2: Column 7 | I2: Column 8 | J2: Column 9 | K2: Column 10 | L2: Column 11 | M2: Column 12 | N2: Column 13 | O2: Column 14 | P2: Column 15 | Q2: Column 16 | R2: Column 17 | S2: Column 18 | T2: Column 1 | U2: Column 2 | V2: Column 1 | W2: Column 2 | X2: Column 1 | Y2: Column 2 | Z2: Column 3 | AA2: Column 4 | AB2: Column 5 | AC2: Column 6 | AD2: Column 7 | AE2: Column 8 | AF2: Column 9 | AG2: Column 10 | AH2: Column 11 | AI2: Column 12 | AJ2: Column 13 | AK2: Column 14 | AL2: Column 1 | AM2: Column 2 | AN2: Column 3 | AO2: Column 1 | AP2: Column 2 | AQ2: Column 3
A3: ="Station" -> Station | B3: ="Total Cut"&CHAR(10)&"End Area" -> Total Cut End Area | C3: ="Template Cut"&CHAR(10)&"Volume" -> Template Cut Volume | D3: ="Template"&CHAR(10)&"Class 10"&CHAR(10)&"Volume" -> Template Class 10 Volume | E3: ="Template"&CHAR(10)&"Topsoil Cut"&CHAR(10)&"Volume" -> Template Topsoil Cut Volume | F3: ="Template"&CHAR(10)&"Unsuitable"&CHAR(10)&"Type A"&CHAR(10)&"Volume" -> Template Unsuitable Type A Volume | G3: ="Template"&CHAR(10)&"Unsuitable"&CHAR(10)&"Type B"&CHAR(10)&"Volume" -> Template Unsuitable Type B Volume | H3: ="Template"&CHAR(10)&"Unsuitable"&CHAR(10)&"Type C"&CHAR(10)&"Volume" -> Template Unsuitable Type C Volume | I3: ="Template"&CHAR(10)&"Pavement"&CHAR(10)&"Removal"&CHAR(10)&"Volume" -> Template Pavement Removal Volume | J3: ="Template"&CHAR(10)&"Select Loam"&CHAR(10)&"Volume" -> Template Select Loam Volume | K3: ="Template"&CHAR(10)&"Select Sand"&CHAR(10)&"Volume" -> Template Select Sand Volume | L3: ="Template"&CHAR(10)&"Rock"&CHAR(10)&"Volume" -> Template Rock Volume | M3: ="Template"&CHAR(10)&"B & W"&CHAR(10)&"Rock"&CHAR(10)&"Volume" -> Template B & W Rock Volume | N3: ="Template"&CHAR(10)&"Waste"&CHAR(10)&"Volume" -> Template Waste Volume | O3: ="Template"&CHAR(10)&"Shale"&CHAR(10)&"Volume" -> Template Shale Volume | P3: ="Template"&CHAR(10)&"Rock Undercut"&CHAR(10)&"Volume" -> Template Rock Undercut Volume | Q3: ="Template Fill"&CHAR(10)&"End Area" -> Template Fill End Area | R3: ="Total Fill"&CHAR(10)&"Unadjusted"&CHAR(10)&CHAR(10)&"Volume" -> Total Fill Unadjusted Volume | S3: ="Topsoil"&CHAR(10)&"Placement"&CHAR(10)&"Undercut"&CHAR(10)&"Volume" -> Topsoil Placement Undercut Volume | T3: ="Topsoil"&CHAR(10)&"Stripping Undercut" -> Topsoil Stripping Undercut | V3: ="Total Existing"&CHAR(10)&"Pavement Cut" -> Total Existing Pavement Cut | X3: ="Plowing &"&CHAR(10)&"Shaping"&CHAR(10)&"End Area" -> Plowing & Shaping End Area | Y3: ="Plowing &"&CHAR(10)&"Shaping"&CHAR(10)&"Undercut"&CHAR(10)&"(+ Fill)" -> Plowing & Shaping Undercut (+ Fill) | Z3: ="Plowing &"&CHAR(10)&"Shaping"&CHAR(10)&"Class 10"&CHAR(10)&"Volume" -> Plowing & Shaping Class 10 Volume | AA3: ="Template"&CHAR(10)&"Topsoil Cut"&CHAR(10)&"Volume" -> Template Topsoil Cut Volume | AB3: ="Plowing &"&CHAR(10)&"Shaping"&CHAR(10)&"Unsuitable"&CHAR(10)&"Type A"&CHAR(10)&"Volume" -> Plowing & Shaping Unsuitable Type A Volume | AC3: ="Plowing &"&CHAR(10)&"Shaping"&CHAR(10)&"Unsuitable"&CHAR(10)&"Type B"&CHAR(10)&"Volume" -> Plowing & Shaping Unsuitable Type B Volume | AD3: ="Plowing &"&CHAR(10)&"Shaping"&CHAR(10)&"Unsuitable"&CHAR(10)&"Type C"&CHAR(10)&"Volume" -> Plowing & Shaping Unsuitable Type C Volume | AE3: ="Plowing &"&CHAR(10)&"Shaping"&CHAR(10)&"Existing"&CHAR(10)&"Pavement"&CHAR(10)&"Volume" -> Plowing & Shaping Existing Pavement Volume | AF3: ="Plowing &"&CHAR(10)&"Shaping"&CHAR(10)&"Select Loam"&CHAR(10)&"Volume" -> Plowing & Shaping Select Loam Volume | AG3: ="Plowing &"&CHAR(10)&"Shaping"&CHAR(10)&"Select Sand"&CHAR(10)&"Volume" -> Plowing & Shaping Select Sand Volume | AH3: ="Plowing &"&CHAR(10)&"Shaping"&CHAR(10)&"Rock"&CHAR(10)&"Volume" -> Plowing & Shaping Rock Volume | AI3: ="Plowing &"&CHAR(10)&"Shaping"&CHAR(10)&"Broken &"&CHAR(10)&"Weathered"&CHAR(10)&"Rock"&CHAR(10)&"Volume" -> Plowing & Shaping Broken & Weathered Rock Volume | AJ3: ="Plowing &"&CHAR(10)&"Shaping"&CHAR(10)&"Waste"&CHAR(10)&"Volume" -> Plowing & Shaping Waste Volume | AK3: ="Plowing &"&CHAR(10)&"Shaping"&CHAR(10)&"Shale"&CHAR(10)&"Volume" -> Plowing & Shaping Shale Volume | AL3: ="Topsoil Placement"&CHAR(10)&"Undercut" -> Topsoil Placement Undercut | AO3: ="Subgrade Treatment"&CHAR(10)&"Undercut" -> Subgrade Treatment Undercut
AL9: End Area | AM9: ="+C"&CHAR(10)&"Volume" -> +C Volume | AN9: ="-F"&CHAR(10)&"Volume" -> -F Volume | AO9: End Area | AP9: ="+C"&CHAR(10)&"Volume" -> +C Volume | AQ9: ="-F"&CHAR(10)&"Volume" -> -F Volume
T10: ="End Area" -> End Area | U10: Volume | V10: ="End Area" -> End Area | W10: Volume
A11: Sta. 80+13
A12: 7978.13 | B12: 136 | C12: 89 | D12: 89 | E12: 0 | F12: 0 | G12: 0 | H12: 0 | I12: 0 | J12: 0 | K12: 0 | L12: 0 | M12: 0 | N12: 0 | O12: 0 | P12: 0 | Q12: 0 | R12: 1 | S12: 0 | T12: 17 | U12: 9
A13: 8000 | B13: 83 | C13: 65 | D13: 65 | E13: 0 | F13: 0 | G13: 0 | H13: 0 | I13: 0 | J13: 0 | K13: 0 | L13: 0 | M13: 0 | N13: 0 | O13: 0 | P13: 0 | Q13: 2 | R13: 2 | S13: 17 | T13: 5 | U13: 9 | AL13: 0 | AM13: 10 | AN13: 11
A14: 8013.55 | B14: 175 | C14: 67 | D14: 67 | E14: 0 | F14: 0 | G14: 0 | H14: 0 | I14: 0 | J14: 0 | K14: 0 | L14: 0 | M14: 0 | N14: 0 | O14: 0 | P14: 0 | Q14: 7 | R14: 4 | S14: 24 | T14: 31 | U14: 11
A15: 8025 | B15: 141 | C15: 109 | D15: 109 | E15: 0 | F15: 0 | G15: 0 | H15: 0 | I15: 0 | J15: 0 | K15: 0 | L15: 0 | M15: 0 | N15: 0 | O15: 0 | P15: 0 | Q15: 12 | R15: 11 | S15: 42 | T15: 23 | U15: 21 | AL15: 45 | AM15: 20 | AN15: 21
A16: 8050 | B16: 94 | C16: 71 | D16: 71 | E16: 0 | F16: 0 | G16: 0 | H16: 0 | I16: 0 | J16: 0 | K16: 0 | L16: 0 | M16: 0 | N16: 0 | O16: 0 | P16: 0 | Q16: 12 | R16: 12 | S16: 37 | T16: 23 | U16: 20 | AL16: 44 | AM16: 17 | AN16: 19
A17: 8075 | B17: 60 | C17: 38 | D17: 38 | E17: 0 | F17: 0 | G17: 0 | H17: 0 | I17: 0 | J17: 0 | K17: 0 | L17: 0 | M17: 0 | N17: 0 | O17: 0 | P17: 0 | Q17: 13 | R17: 9 | S17: 23 | T17: 19 | U17: 12 | AL17: 35 | AM17: 11 | AN17: 12
A18: 8100 | B18: 22 | Q18: 6 | T18: 8 | AL18: 13
A20: Sta. 96+34
A21: 9550 | B21: 9 | C21: 13 | D21: 13 | E21: 0 | F21: 0 | G21: 0 | H21: 0 | I21: 0 | J21: 0 | K21: 0 | L21: 0 | M21: 0 | N21: 0 | O21: 0 | P21: 0 | Q21: 12 | R21: 15 | S21: 22 | T21: 9 | U21: 11 | AL21: 18 | AM21: 6 | AN21: 15
A22: 9575 | B22: 19 | C22: 22 | D22: 22 | E22: 0 | F22: 0 | G22: 0 | H22: 0 | I22: 0 | J22: 0 | K22: 0 | L22: 0 | M22: 0 | N22: 0 | O22: 0 | P22: 0 | Q22: 20 | R22: 27 | S22: 32 | T22: 14 | U22: 16 | AL22: 28 | AM22: 9 | AN22: 23
A23: 9600 | B23: 28 | C23: 34 | D23: 34 | E23: 0 | F23: 0 | G23: 0 | H23: 0 | I23: 0 | J23: 0 | K23: 0 | L23: 0 | M23: 0 | N23: 0 | O23: 0 | P23: 0 | Q23: 39 | R23: 50 | S23: 40 | T23: 21 | U23: 20 | AL23: 41 | AM23: 12 | AN23: 28
A24: 9625 | B24: 46 | C24: 18 | D24: 18 | E24: 0 | F24: 0 | G24: 0 | H24: 0 | I24: 0 | J24: 0 | K24: 0 | L24: 0 | M24: 0 | N24: 0 | O24: 0 | P24: 0 | Q24: 68 | R24: 23 | S24: 17 | T24: 22 | U24: 8 | AL24: 45 | AM24: 5 | AN24: 11
A25: 9634 | B25: 62 | C25: 34 | D25: 34 | E25: 0 | F25: 0 | G25: 0 | H25: 0 | I25: 0 | J25: 0 | K25: 0 | L25: 0 | M25: 0 | N25: 0 | O25: 0 | P25: 0 | Q25: 72 | R25: 34 | S25: 29 | T25: 27 | U25: 14 | AL25: 56 | AM25: 10 | AN25: 20
A26: 9650 | B26: 52 | C26: 38 | D26: 38 | E26: 0 | F26: 0 | G26: 0 | H26: 0 | I26: 0 | J26: 0 | K26: 0 | L26: 0 | M26: 0 | N26: 0 | O26: 0 | P26: 0 | Q26: 43 | R26: 30 | S26: 37 | T26: 22 | U26: 19 | AL26: 43 | AM26: 12 | AN26: 25
A27: 9675 | B27: 30 | C27: 23 | D27: 23 | E27: 0 | F27: 0 | G27: 0 | H27: 0 | I27: 0 | J27: 0 | K27: 0 | L27: 0 | M27: 0 | N27: 0 | O27: 0 | P27: 0 | Q27: 22 | R27: 15 | S27: 30 | T27: 19 | U27: 15 | AL27: 37 | AM27: 10 | AN27: 20
A28: 9700 | B28: 19 | C28: 12 | D28: 12 | E28: 0 | F28: 0 | G28: 0 | H28: 0 | I28: 0 | J28: 0 | K28: 0 | L28: 0 | M28: 0 | N28: 0 | O28: 0 | P28: 0 | Q28: 9 | R28: 6 | S28: 19 | T28: 14 | U28: 9 | AL28: 28 | AM28: 6 | AN28: 12
A29: 9725 | B29: 7 | Q29: 4 | T29: 6 | AL29: 12
A31: Sta. 108+76
A32: 10800 | B32: 15 | C32: 24 | D32: 24 | E32: 0 | F32: 0 | G32: 0 | H32: 0 | I32: 0 | J32: 0 | K32: 0 | L32: 0 | M32: 0 | N32: 0 | O32: 0 | P32: 0 | Q32: 21 | R32: 28 | S32: 27 | T32: 12 | U32: 13 | AL32: 23 | AM32: 8 | AN32: 19
A33: 10825 | B33: 36 | C33: 53 | D33: 53 | E33: 0 | F33: 0 | G33: 0 | H33: 0 | I33: 0 | J33: 0 | K33: 0 | L33: 0 | M33: 0 | N33: 0 | O33: 0 | P33: 0 | Q33: 40 | R33: 46 | S33: 38 | T33: 17 | U33: 19 | AL33: 36 | AM33: 14 | AN33: 24
A34: 10850 | B34: 77 | C34: 95 | D34: 95 | E34: 0 | F34: 0 | G34: 0 | H34: 0 | I34: 0 | J34: 0 | K34: 0 | L34: 0 | M34: 0 | N34: 0 | O34: 0 | P34: 0 | Q34: 60 | R34: 46 | S34: 45 | T34: 23 | U34: 22 | AL34: 46 | AM34: 20 | AN34: 24
A35: 10875 | B35: 127 | C35: 5 | D35: 5 | E35: 0 | F35: 0 | G35: 0 | H35: 0 | I35: 0 | J35: 0 | K35: 0 | L35: 0 | M35: 0 | N35: 0 | O35: 0 | P35: 0 | Q35: 39 | R35: 1 | S35: 2 | T35: 25 | U35: 1 | AL35: 51 | AM35: 1 | AN35: 1
A36: 10876 | B36: 130 | C36: 117 | D36: 117 | E36: 0 | F36: 0 | G36: 0 | H36: 0 | I36: 0 | J36: 0 | K36: 0 | L36: 0 | M36: 0 | N36: 0 | O36: 0 | P36: 0 | Q36: 39 | R36: 26 | S36: 43 | T36: 26 | U36: 22 | AL36: 53 | AM36: 25 | AN36: 19
A37: 10900 | B37: 134 | C37: 89 | D37: 89 | E37: 0 | F37: 0 | G37: 0 | H37: 0 | I37: 0 | J37: 0 | K37: 0 | L37: 0 | M37: 0 | N37: 0 | O37: 0 | P37: 0 | Q37: 19 | R37: 10 | S37: 34 | T37: 22 | U37: 17 | AL37: 44 | AM37: 24 | AN37: 11
A38: 10925 | B38: 58 | C38: 38 | D38: 38 | E38: 0 | F38: 0 | G38: 0 | H38: 0 | I38: 0 | J38: 0 | K38: 0 | L38: 0 | M38: 0 | N38: 0 | O38: 0 | P38: 0 | Q38: 2 | R38: 1 | S38: 22 | T38: 15 | U38: 11 | AL38: 31 | AM38: 18 | AN38: 4
A39: 10950 | B39: 24 | Q39: 0 | T39: 9 | AL39: 18
A41: Sta. 383+30
A42: 38225 | B42: 22 | C42: 27 | D42: 27 | E42: 0 | F42: 0 | G42: 0 | H42: 0 | I42: 0 | J42: 0 | K42: 0 | L42: 0 | M42: 0 | N42: 0 | O42: 0 | P42: 0 | Q42: 0 | R42: 13 | S42: 25 | T42: 7 | U42: 13
A43: 38250 | B43: 37 | C43: 37 | D43: 37 | E43: 0 | F43: 0 | G43: 0 | H43: 0 | I43: 0 | J43: 0 | K43: 0 | L43: 0 | M43: 0 | N43: 0 | O43: 0 | P43: 0 | Q43: 27 | R43: 85 | S43: 45 | T43: 21 | U43: 22 | AL43: 41 | AM43: 16 | AN43: 29
A44: 38275 | B44: 42 | C44: 28 | D44: 28 | E44: 0 | F44: 0 | G44: 0 | H44: 0 | I44: 0 | J44: 0 | K44: 0 | L44: 0 | M44: 0 | N44: 0 | O44: 0 | P44: 0 | Q44: 156 | R44: 367 | S44: 38 | T44: 28 | U44: 28 | AL44: 56 | AM44: 10 | AN44: 28
A45: 38300 | B45: 19 | C45: 31 | D45: 31 | E45: 0 | F45: 0 | G45: 0 | H45: 0 | I45: 0 | J45: 0 | K45: 0 | L45: 0 | M45: 0 | N45: 0 | O45: 0 | P45: 0 | Q45: 638 | R45: 463 | S45: 41 | T45: 32 | U45: 22 | AL45: 26 | AM45: 9 | AN45: 32
A46: 38325 | B46: 49 | C46: 7 | D46: 7 | E46: 0 | F46: 0 | G46: 0 | H46: 0 | I46: 0 | J46: 0 | K46: 0 | L46: 0 | M46: 0 | N46: 0 | O46: 0 | P46: 0 | Q46: 362 | R46: 78 | S46: 12 | T46: 16 | U46: 21 | AL46: 62 | AM46: 2 | AN46: 10
A47: 38330.14 | B47: 25 | C47: 19 | D47: 19 | E47: 0 | F47: 0 | G47: 0 | H47: 0 | I47: 0 | J47: 0 | K47: 0 | L47: 0 | M47: 0 | N47: 0 | O47: 0 | P47: 0 | Q47: 457 | R47: 222 | S47: 45 | AL47: 66 | AM47: 7 | AN47: 38
A48: 38350 | B48: 28 | C48: 27 | D48: 27 | E48: 0 | F48: 0 | G48: 0 | H48: 0 | I48: 0 | J48: 0 | K48: 0 | L48: 0 | M48: 0 | N48: 0 | O48: 0 | P48: 0 | Q48: 147 | R48: 83 | S48: 44 | T48: 29 | U48: 22 | AL48: 57 | AM48: 11 | AN48: 34
A49: 38375 | B49: 30 | C49: 27 | D49: 27 | E49: 0 | F49: 0 | G49: 0 | H49: 0 | I49: 0 | J49: 0 | K49: 0 | L49: 0 | M49: 0 | N49: 0 | O49: 0 | P49: 0 | Q49: 33 | R49: 16 | S49: 27 | T49: 20 | U49: 14 | AL49: 39 | AM49: 12 | AN49: 15
A50: 38400 | B50: 28 | C50: 22 | D50: 22 | E50: 0 | F50: 0 | G50: 0 | H50: 0 | I50: 0 | J50: 0 | K50: 0 | L50: 0 | M50: 0 | N50: 0 | O50: 0 | P50: 0 | Q50: 1 | R50: 0 | S50: 16 | T50: 10 | U50: 8 | AL50: 19 | AM50: 12 | AN50: 4
A51: 38425 | B51: 19 | C51: 17 | D51: 17 | E51: 0 | F51: 0 | G51: 0 | H51: 0 | I51: 0 | J51: 0 | K51: 0 | L51: 0 | M51: 0 | N51: 0 | O51: 0 | P51: 0 | Q51: 0 | R51: 0 | S51: 12 | T51: 7 | U51: 6 | AL51: 15 | AM51: 11 | AN51: 1
A52: 38450 | B52: 17 | C52: 14 | D52: 14 | E52: 0 | F52: 0 | G52: 0 | H52: 0 | I52: 0 | J52: 0 | K52: 0 | L52: 0 | M52: 0 | N52: 0 | O52: 0 | P52: 0 | Q52: 0 | R52: 0 | S52: 9 | T52: 6 | U52: 5 | AL52: 11 | AM52: 9 | AN52: 0
A53: 38475 | B53: 13 | Q53: 0 | T53: 4 | AL53: 8
A55: Sta. 539+60
A56: 53875 | B56: 12 | C56: 15 | D56: 15 | E56: 0 | F56: 0 | G56: 0 | H56: 0 | I56: 0 | J56: 0 | K56: 0 | L56: 0 | M56: 0 | N56: 0 | O56: 0 | P56: 0 | Q56: 3 | R56: 13 | S56: 25 | T56: 9 | U56: 12 | AL56: 19 | AM56: 8 | AN56: 17
A57: 53900 | B57: 21 | C57: 32 | D57: 32 | E57: 0 | F57: 0 | G57: 0 | H57: 0 | I57: 0 | J57: 0 | K57: 0 | L57: 0 | M57: 0 | N57: 0 | O57: 0 | P57: 0 | Q57: 24 | R57: 53 | S57: 40 | T57: 17 | U57: 20 | AL57: 35 | AM57: 11 | AN57: 29
A58: 53925 | B58: 48 | C58: 43 | D58: 43 | E58: 0 | F58: 0 | G58: 0 | H58: 0 | I58: 0 | J58: 0 | K58: 0 | L58: 0 | M58: 0 | N58: 0 | O58: 0 | P58: 0 | Q58: 91 | R58: 115 | S58: 49 | T58: 26 | U58: 25 | AL58: 51 | AM58: 12 | AN58: 37
A59: 53950 | B59: 44 | C59: 17 | D59: 17 | E59: 0 | F59: 0 | G59: 0 | H59: 0 | I59: 0 | J59: 0 | K59: 0 | L59: 0 | M59: 0 | N59: 0 | O59: 0 | P59: 0 | Q59: 158 | R59: 59 | S59: 22 | T59: 28 | U59: 11 | AL59: 55 | AM59: 5 | AN59: 17
A60: 53960 | B60: 47 | C60: 25 | D60: 25 | E60: 0 | F60: 0 | G60: 0 | H60: 0 | I60: 0 | J60: 0 | K60: 0 | L60: 0 | M60: 0 | N60: 0 | O60: 0 | P60: 0 | Q60: 159 | R60: 73 | S60: 33 | T60: 32 | U60: 17 | AL60: 63 | AM60: 7 | AN60: 25
A61: 53975 | B61: 41 | C61: 23 | D61: 23 | E61: 0 | F61: 0 | G61: 0 | H61: 0 | I61: 0 | J61: 0 | K61: 0 | L61: 0 | M61: 0 | N61: 0 | O61: 0 | P61: 0 | Q61: 105 | R61: 74 | S61: 42 | T61: 28 | U61: 21 | AL61: 54 | AM61: 8 | AN61: 34
A62: 54000 | B62: 9 | C62: 8 | D62: 8 | E62: 0 | F62: 0 | G62: 0 | H62: 0 | I62: 0 | J62: 0 | K62: 0 | L62: 0 | M62: 0 | N62: 0 | O62: 0 | P62: 0 | Q62: 56 | R62: 30 | S62: 23 | T62: 18 | U62: 12 | AL62: 36 | AM62: 3 | AN62: 20
A63: 54025 | B63: 7 | Q63: 9 | T63: 7 | AL63: 14
A65: Sta. 553+83
A66: 55275 | B66: 7 | C66: 11 | D66: 11 | E66: 0 | F66: 0 | G66: 0 | H66: 0 | I66: 0 | J66: 0 | K66: 0 | L66: 0 | M66: 0 | N66: 0 | O66: 0 | P66: 0 | Q66: 0 | R66: 0 | S66: 8 | T66: 3 | U66: 4 | AL66: 5 | AM66: 6 | AN66: 3
A67: 55300 | B67: 16 | C67: 26 | D67: 26 | E67: 0 | F67: 0 | G67: 0 | H67: 0 | I67: 0 | J67: 0 | K67: 0 | L67: 0 | M67: 0 | N67: 0 | O67: 0 | P67: 0 | Q67: 0 | R67: 1 | S67: 17 | T67: 6 | U67: 9 | AL67: 12 | AM67: 11 | AN67: 6
A68: 55325 | B68: 40 | C68: 40 | D68: 40 | E68: 0 | F68: 0 | G68: 0 | H68: 0 | I68: 0 | J68: 0 | K68: 0 | L68: 0 | M68: 0 | N68: 0 | O68: 0 | P68: 0 | Q68: 2 | R68: 11 | S68: 29 | T68: 12 | U68: 15 | AL68: 24 | AM68: 15 | AN68: 13
A69: 55350 | B69: 46 | C69: 54 | D69: 54 | E69: 0 | F69: 0 | G69: 0 | H69: 0 | I69: 0 | J69: 0 | K69: 0 | L69: 0 | M69: 0 | N69: 0 | O69: 0 | P69: 0 | Q69: 22 | R69: 61 | S69: 43 | T69: 19 | U69: 22 | AL69: 37 | AM69: 18 | AN69: 25
A70: 55375 | B70: 70 | C70: 18 | D70: 18 | E70: 0 | F70: 0 | G70: 0 | H70: 0 | I70: 0 | J70: 0 | K70: 0 | L70: 0 | M70: 0 | N70: 0 | O70: 0 | P70: 0 | Q70: 109 | R70: 52 | S70: 16 | T70: 27 | U70: 6 | AL70: 55 | AM70: 5 | AN70: 11
A71: 55383.41 | B71: 43 | C71: 29 | D71: 29 | E71: 0 | F71: 0 | G71: 0 | H71: 0 | I71: 0 | J71: 0 | K71: 0 | L71: 0 | M71: 0 | N71: 0 | O71: 0 | P71: 0 | Q71: 223 | R71: 91 | S71: 31 | T71: 13 | U71: 12 | AL71: 50 | AM71: 8 | AN71: 23
A72: 55400 | B72: 51 | C72: 51 | D72: 51 | E72: 0 | F72: 0 | G72: 0 | H72: 0 | I72: 0 | J72: 0 | K72: 0 | L72: 0 | M72: 0 | N72: 0 | O72: 0 | P72: 0 | Q72: 72 | R72: 43 | S72: 47 | T72: 26 | U72: 24 | AL72: 52 | AM72: 16 | AN72: 32
A73: 55425 | B73: 60 | C73: 48 | D73: 48 | E73: 0 | F73: 0 | G73: 0 | H73: 0 | I73: 0 | J73: 0 | K73: 0 | L73: 0 | M73: 0 | N73: 0 | O73: 0 | P73: 0 | Q73: 20 | R73: 10 | S73: 36 | T73: 25 | U73: 18 | AL73: 50 | AM73: 18 | AN73: 18
A74: 55450 | B74: 43 | C74: 28 | D74: 28 | E74: 0 | F74: 0 | G74: 0 | H74: 0 | I74: 0 | J74: 0 | K74: 0 | L74: 0 | M74: 0 | N74: 0 | O74: 0 | P74: 0 | Q74: 1 | R74: 0 | S74: 18 | T74: 14 | U74: 9 | AL74: 28 | AM74: 14 | AN74: 4
A75: 55475 | B75: 16 | Q75: 0 | T75: 6 | AL75: 11
A77: Sta. 571+62
A78: 57000 | B78: 4 | C78: 5 | D78: 5 | E78: 0 | F78: 0 | G78: 0 | H78: 0 | I78: 0 | J78: 0 | K78: 0 | L78: 0 | M78: 0 | N78: 0 | O78: 0 | P78: 0 | Q78: 0 | R78: 0 | S78: 8 | T78: 2 | U78: 4
A79: 57025 | B79: 6 | C79: 4 | D79: 4 | E79: 0 | F79: 0 | G79: 0 | H79: 0 | I79: 0 | J79: 0 | K79: 0 | L79: 0 | M79: 0 | N79: 0 | O79: 0 | P79: 0 | Q79: 0 | R79: 4 | S79: 14 | T79: 7 | U79: 7
A80: 57050 | B80: 3 | C80: 3 | D80: 3 | E80: 0 | F80: 0 | G80: 0 | H80: 0 | I80: 0 | J80: 0 | K80: 0 | L80: 0 | M80: 0 | N80: 0 | O80: 0 | P80: 0 | Q80: 7 | R80: 11 | S80: 17 | T80: 9 | U80: 8
A81: 57075 | B81: 3 | C81: 3 | D81: 3 | E81: 0 | F81: 0 | G81: 0 | H81: 0 | I81: 0 | J81: 0 | K81: 0 | L81: 0 | M81: 0 | N81: 0 | O81: 0 | P81: 0 | Q81: 16 | R81: 21 | S81: 18 | T81: 9 | U81: 9
A82: 57100 | B82: 3 | C82: 1 | D82: 1 | E82: 0 | F82: 0 | G82: 0 | H82: 0 | I82: 0 | J82: 0 | K82: 0 | L82: 0 | M82: 0 | N82: 0 | O82: 0 | P82: 0 | Q82: 31 | R82: 10 | S82: 6 | T82: 11 | U82: 3
A83: 57106.77 | B83: 1 | C83: 13 | D83: 13 | E83: 0 | F83: 0 | G83: 0 | H83: 0 | I83: 0 | J83: 0 | K83: 0 | L83: 0 | M83: 0 | N83: 0 | O83: 0 | P83: 0 | Q83: 53 | R83: 48 | S83: 25 | T83: 13 | U83: 13
A84: 57125 | B84: 37 | C84: 49 | D84: 49 | E84: 0 | F84: 0 | G84: 0 | H84: 0 | I84: 0 | J84: 0 | K84: 0 | L84: 0 | M84: 0 | N84: 0 | O84: 0 | P84: 0 | Q84: 89 | R84: 97 | S84: 47 | T84: 24 | U84: 24 | AL84: 49 | AM84: 13 | AN84: 35
A85: 57150 | B85: 69 | C85: 18 | D85: 18 | E85: 0 | F85: 0 | G85: 0 | H85: 0 | I85: 0 | J85: 0 | K85: 0 | L85: 0 | M85: 0 | N85: 0 | O85: 0 | P85: 0 | Q85: 120 | R85: 27 | S85: 21 | T85: 28 | U85: 11 | AL85: 55 | AM85: 14 | AN85: 34
A86: 57162.2 | B86: 13 | C86: 13 | D86: 13 | E86: 0 | F86: 0 | G86: 0 | H86: 0 | I86: 0 | J86: 0 | K86: 0 | L86: 0 | M86: 0 | N86: 0 | O86: 0 | P86: 0 | Q86: 0 | R86: 30 | S86: 21 | T86: 22 | U86: 11
A87: 57175 | B87: 42 | C87: 30 | D87: 30 | E87: 0 | F87: 0 | G87: 0 | H87: 0 | I87: 0 | J87: 0 | K87: 0 | L87: 0 | M87: 0 | N87: 0 | O87: 0 | P87: 0 | Q87: 127 | R87: 66 | S87: 40 | T87: 25 | U87: 20 | AL87: 49 | AM87: 10 | AN87: 29
A88: 57200 | B88: 22 | C88: 10 | D88: 10 | E88: 0 | F88: 0 | G88: 0 | H88: 0 | I88: 0 | J88: 0 | K88: 0 | L88: 0 | M88: 0 | N88: 0 | O88: 0 | P88: 0 | Q88: 16 | R88: 6 | S88: 18 | T88: 19 | U88: 9 | AL88: 37 | AM88: 5 | AN88: 12
A89: 57216.54 | B89: 10 | C89: 2 | D89: 2 | E89: 0 | F89: 0 | G89: 0 | H89: 0 | I89: 0 | J89: 0 | K89: 0 | L89: 0 | M89: 0 | N89: 0 | O89: 0 | P89: 0 | Q89: 3 | R89: 2 | S89: 6 | T89: 10 | U89: 3 | AL89: 20 | AM89: 2 | AN89: 4
A90: 57225 | B90: 5 | C90: 4 | D90: 4 | E90: 0 | F90: 0 | G90: 0 | H90: 0 | I90: 0 | J90: 0 | K90: 0 | L90: 0 | M90: 0 | N90: 0 | O90: 0 | P90: 0 | Q90: 7 | R90: 5 | S90: 15 | T90: 9 | U90: 8 | AL90: 19 | AM90: 3 | AN90: 12
A91: 57250 | B91: 4 | C91: 4 | D91: 4 | E91: 0 | F91: 0 | G91: 0 | H91: 0 | I91: 0 | J91: 0 | K91: 0 | L91: 0 | M91: 0 | N91: 0 | O91: 0 | P91: 0 | Q91: 4 | R91: 2 | S91: 11 | T91: 7 | U91: 6 | AL91: 14 | AM91: 3 | AN91: 8
A92: 57275 | B92: 5 | C92: 5 | D92: 5 | E92: 0 | F92: 0 | G92: 0 | H92: 0 | I92: 0 | J92: 0 | K92: 0 | L92: 0 | M92: 0 | N92: 0 | O92: 0 | P92: 0 | Q92: 0 | R92: 0 | S92: 7 | T92: 5 | U92: 4 | AL92: 10 | AM92: 3 | AN92: 4
A93: 57300 | B93: 5 | C93: 4 | D93: 4 | E93: 0 | F93: 0 | G93: 0 | H93: 0 | I93: 0 | J93: 0 | K93: 0 | L93: 0 | M93: 0 | N93: 0 | O93: 0 | P93: 0 | Q93: 0 | R93: 0 | S93: 3 | T93: 3 | U93: 2 | AL93: 5
A94: 57325 | B94: 4 | Q94: 0 | T94: 1
A96: Sta. 581+05
A97: 58075 | B97: 12 | C97: 11 | D97: 11 | E97: 0 | F97: 0 | G97: 0 | H97: 0 | I97: 0 | J97: 0 | K97: 0 | L97: 0 | M97: 0 | N97: 0 | O97: 0 | P97: 0 | Q97: 5 | R97: 7 | S97: 11 | T97: 7 | U97: 6 | AL97: 12 | AM97: 5 | AN97: 6
A98: 58100 | B98: 11 | C98: 2 | D98: 2 | E98: 0 | F98: 0 | G98: 0 | H98: 0 | I98: 0 | J98: 0 | K98: 0 | L98: 0 | M98: 0 | N98: 0 | O98: 0 | P98: 0 | Q98: 11 | R98: 3 | S98: 2 | T98: 6 | U98: 6 | AL98: 12 | AM98: 1 | AN98: 1
A99: 58105.47 | B99: 11 | C99: 7 | D99: 7 | E99: 0 | F99: 0 | G99: 0 | H99: 0 | I99: 0 | J99: 0 | K99: 0 | L99: 0 | M99: 0 | N99: 0 | O99: 0 | P99: 0 | Q99: 20 | R99: 10 | S99: 9 | AL99: 12 | AM99: 3 | AN99: 5
A100: 58125 | B100: 10 | Q100: 9 | T100: 7 | AL100: 12
A102: Sta. 651+43
A103: 65050 | B103: 10 | C103: 15 | D103: 15 | E103: 0 | F103: 0 | G103: 0 | H103: 0 | I103: 0 | J103: 0 | K103: 0 | L103: 0 | M103: 0 | N103: 0 | O103: 0 | P103: 0 | Q103: 0 | R103: 3 | S103: 16 | T103: 6 | U103: 8 | AL103: 11 | AM103: 8 | AN103: 8
A104: 65075 | B104: 23 | C104: 33 | D104: 33 | E104: 0 | F104: 0 | G104: 0 | H104: 0 | I104: 0 | J104: 0 | K104: 0 | L104: 0 | M104: 0 | N104: 0 | O104: 0 | P104: 0 | Q104: 7 | R104: 13 | S104: 27 | T104: 12 | U104: 14 | AL104: 24 | AM104: 12 | AN104: 15
A105: 65100 | B105: 49 | C105: 83 | D105: 83 | E105: 0 | F105: 0 | G105: 0 | H105: 0 | I105: 0 | J105: 0 | K105: 0 | L105: 0 | M105: 0 | N105: 0 | O105: 0 | P105: 0 | Q105: 20 | R105: 19 | S105: 39 | T105: 18 | U105: 19 | AL105: 35 | AM105: 19 | AN105: 19
A106: 65125 | B106: 130 | C106: 93 | D106: 93 | E106: 0 | F106: 0 | G106: 0 | H106: 0 | I106: 0 | J106: 0 | K106: 0 | L106: 0 | M106: 0 | N106: 0 | O106: 0 | P106: 0 | Q106: 21 | R106: 31 | S106: 34 | T106: 24 | U106: 17 | AL106: 49 | AM106: 16 | AN106: 18
A107: 65142.85 | B107: 150 | C107: 41 | D107: 41 | E107: 0 | F107: 0 | G107: 0 | H107: 0 | I107: 0 | J107: 0 | K107: 0 | L107: 0 | M107: 0 | N107: 0 | O107: 0 | P107: 0 | Q107: 73 | R107: 12 | S107: 13 | T107: 27 | U107: 6 | AL107: 56 | AM107: 6 | AN107: 7
A108: 65150 | B108: 158 | C108: 124 | D108: 124 | E108: 0 | F108: 0 | G108: 0 | H108: 0 | I108: 0 | J108: 0 | K108: 0 | L108: 0 | M108: 0 | N108: 0 | O108: 0 | P108: 0 | Q108: 18 | R108: 18 | S108: 39 | T108: 22 | U108: 20 | AL108: 44 | AM108: 24 | AN108: 15
A109: 65175 | B109: 111 | C109: 86 | D109: 86 | E109: 0 | F109: 0 | G109: 0 | H109: 0 | I109: 0 | J109: 0 | K109: 0 | L109: 0 | M109: 0 | N109: 0 | O109: 0 | P109: 0 | Q109: 20 | R109: 15 | S109: 34 | T109: 20 | U109: 17 | AL109: 41 | AM109: 23 | AN109: 11
A110: 65200 | B110: 75 | C110: 51 | D110: 51 | E110: 0 | F110: 0 | G110: 0 | H110: 0 | I110: 0 | J110: 0 | K110: 0 | L110: 0 | M110: 0 | N110: 0 | O110: 0 | P110: 0 | Q110: 12 | R110: 7 | S110: 26 | T110: 16 | U110: 13 | AL110: 32 | AM110: 17 | AN110: 8
A111: 65225 | B111: 35 | Q111: 4 | T111: 12 | AL111: 23
A113: Sta. 704+70
A114: 70469.66 | B114: 105 | C114: 11 | D114: 11 | E114: 0 | F114: 0 | G114: 0 | H114: 0 | I114: 0 | J114: 0 | K114: 0 | L114: 0 | M114: 0 | N114: 0 | O114: 0 | P114: 0 | Q114: 111 | R114: 23 | S114: 6 | T114: 18 | U114: 3 | AL114: 37 | AM114: 19 | AN114: 34
A115: 70475 | B115: 2 | C115: 2 | D115: 2 | E115: 0 | F115: 0 | G115: 0 | H115: 0 | I115: 0 | J115: 0 | K115: 0 | L115: 0 | M115: 0 | N115: 0 | O115: 0 | P115: 0 | Q115: 121 | R115: 78 | S115: 20 | T115: 13 | U115: 11
A116: 70500 | B116: 2 | C116: 3 | D116: 3 | E116: 0 | F116: 0 | G116: 0 | H116: 0 | I116: 0 | J116: 0 | K116: 0 | L116: 0 | M116: 0 | N116: 0 | O116: 0 | P116: 0 | Q116: 47 | R116: 30 | S116: 16 | T116: 10 | U116: 8
A117: 70525 | B117: 5 | C117: 3 | D117: 3 | E117: 0 | F117: 0 | G117: 0 | H117: 0 | I117: 0 | J117: 0 | K117: 0 | L117: 0 | M117: 0 | N117: 0 | O117: 0 | P117: 0 | Q117: 17 | R117: 10 | S117: 12 | T117: 8 | U117: 6 | AL117: 15
A118: 70550 | B118: 3 | C118: 3 | D118: 3 | E118: 0 | F118: 0 | G118: 0 | H118: 0 | I118: 0 | J118: 0 | K118: 0 | L118: 0 | M118: 0 | N118: 0 | O118: 0 | P118: 0 | Q118: 4 | R118: 2 | S118: 6 | T118: 5 | U118: 3
A119: 70575 | B119: 4 | Q119: 0 | T119: 1
A121: Sta. 743+25
A122: 74225 | B122: 2 | C122: 9 | D122: 9 | E122: 0 | F122: 0 | G122: 0 | H122: 0 | I122: 0 | J122: 0 | K122: 0 | L122: 0 | M122: 0 | N122: 0 | O122: 0 | P122: 0 | Q122: 0 | R122: 2 | S122: 11 | T122: 4 | U122: 6
A123: 74250 | B123: 17 | C123: 35 | D123: 35 | E123: 0 | F123: 0 | G123: 0 | H123: 0 | I123: 0 | J123: 0 | K123: 0 | L123: 0 | M123: 0 | N123: 0 | O123: 0 | P123: 0 | Q123: 5 | R123: 9 | S123: 29 | T123: 8 | U123: 15 | AL123: 17 | AM123: 16 | AN123: 12
A124: 74275 | B124: 59 | C124: 54 | D124: 54 | E124: 0 | F124: 0 | G124: 0 | H124: 0 | I124: 0 | J124: 0 | K124: 0 | L124: 0 | M124: 0 | N124: 0 | O124: 0 | P124: 0 | Q124: 14 | R124: 18 | S124: 45 | T124: 24 | U124: 23 | AL124: 45 | AM124: 24 | AN124: 21
A125: 74300 | B125: 58 | C125: 47 | D125: 47 | E125: 0 | F125: 0 | G125: 0 | H125: 0 | I125: 0 | J125: 0 | K125: 0 | L125: 0 | M125: 0 | N125: 0 | O125: 0 | P125: 0 | Q125: 23 | R125: 115 | S125: 55 | T125: 27 | U125: 28 | AL125: 53 | AM125: 23 | AN125: 32
A126: 74325.2 | B126: 42 | C126: 49 | D126: 49 | E126: 0 | F126: 0 | G126: 0 | H126: 0 | I126: 0 | J126: 0 | K126: 0 | L126: 0 | M126: 0 | N126: 0 | O126: 0 | P126: 0 | Q126: 222 | R126: 114 | S126: 49 | T126: 33 | U126: 25 | AL126: 66 | AM126: 20 | AN126: 29
A127: 74350 | B127: 64 | C127: 48 | D127: 48 | E127: 0 | F127: 0 | G127: 0 | H127: 0 | I127: 0 | J127: 0 | K127: 0 | L127: 0 | M127: 0 | N127: 0 | O127: 0 | P127: 0 | Q127: 25 | R127: 17 | S127: 34 | T127: 21 | U127: 17 | AL127: 41 | AM127: 15 | AN127: 19
A128: 74375 | B128: 41 | C128: 29 | D128: 29 | E128: 0 | F128: 0 | G128: 0 | H128: 0 | I128: 0 | J128: 0 | K128: 0 | L128: 0 | M128: 0 | N128: 0 | O128: 0 | P128: 0 | Q128: 12 | R128: 6 | S128: 22 | T128: 16 | U128: 11 | AL128: 31 | AM128: 12 | AN128: 10
A129: 74400 | B129: 22 | C129: 15 | D129: 15 | E129: 0 | F129: 0 | G129: 0 | H129: 0 | I129: 0 | J129: 0 | K129: 0 | L129: 0 | M129: 0 | N129: 0 | O129: 0 | P129: 0 | Q129: 0 | R129: 0 | S129: 11 | T129: 8 | U129: 6 | AL129: 16 | AM129: 9 | AN129: 2
A130: 74425 | B130: 10 | Q130: 0 | T130: 4 | AL130: 9
A132: Sta. 766+09
A133: 76525 | B133: 2 | C133: 37 | D133: 37 | E133: 0 | F133: 0 | G133: 0 | H133: 0 | I133: 0 | J133: 0 | K133: 0 | L133: 0 | M133: 0 | N133: 0 | O133: 0 | P133: 0 | Q133: 2 | R133: 29 | S133: 28 | T133: 9 | U133: 15
A134: 76550 | B134: 78 | C134: 120 | D134: 120 | E134: 0 | F134: 0 | G134: 0 | H134: 0 | I134: 0 | J134: 0 | K134: 0 | L134: 0 | M134: 0 | N134: 0 | O134: 0 | P134: 0 | Q134: 60 | R134: 73 | S134: 48 | T134: 23 | U134: 24 | AL134: 44 | AM134: 19 | AN134: 29
A135: 76575 | B135: 181 | C135: 186 | D135: 186 | E135: 0 | F135: 0 | G135: 0 | H135: 0 | I135: 0 | J135: 0 | K135: 0 | L135: 0 | M135: 0 | N135: 0 | O135: 0 | P135: 0 | Q135: 99 | R135: 108 | S135: 58 | T135: 30 | U135: 30 | AL135: 59 | AM135: 26 | AN135: 32
A136: 76600 | B136: 220 | C136: 77 | D136: 77 | E136: 0 | F136: 0 | G136: 0 | H136: 0 | I136: 0 | J136: 0 | K136: 0 | L136: 0 | M136: 0 | N136: 0 | O136: 0 | P136: 0 | Q136: 134 | R136: 46 | S136: 22 | T136: 34 | U136: 11 | AL136: 66 | AM136: 10 | AN136: 12
A137: 76609 | B137: 240 | C137: 122 | D137: 122 | E137: 0 | F137: 0 | G137: 0 | H137: 0 | I137: 0 | J137: 0 | K137: 0 | L137: 0 | M137: 0 | N137: 0 | O137: 0 | P137: 0 | Q137: 140 | R137: 90 | S137: 39 | T137: 34 | U137: 20 | AL137: 67 | AM137: 16 | AN137: 22
A138: 76625 | B138: 173 | C138: 134 | D138: 134 | E138: 0 | F138: 0 | G138: 0 | H138: 0 | I138: 0 | J138: 0 | K138: 0 | L138: 0 | M138: 0 | N138: 0 | O138: 0 | P138: 0 | Q138: 163 | R138: 117 | S138: 56 | T138: 33 | U138: 29 | AL138: 64 | AM138: 22 | AN138: 34
A139: 76650 | B139: 117 | C139: 58 | D139: 58 | E139: 0 | F139: 0 | G139: 0 | H139: 0 | I139: 0 | J139: 0 | K139: 0 | L139: 0 | M139: 0 | N139: 0 | O139: 0 | P139: 0 | Q139: 91 | R139: 57 | S139: 43 | T139: 30 | U139: 22 | AL139: 57 | AM139: 13 | AN139: 30
A140: 76675 | B140: 8 | Q140: 34 | T140: 18 | AL140: 35
A142: Sta. 788+20
A143: 78725 | B143: 37 | C143: 54 | D143: 54 | E143: 0 | F143: 0 | G143: 0 | H143: 0 | I143: 0 | J143: 0 | K143: 0 | L143: 0 | M143: 0 | N143: 0 | O143: 0 | P143: 0 | Q143: 0 | R143: 0 | S143: 19 | T143: 7 | U143: 10 | AL143: 14 | AM143: 17 | AN143: 3
A144: 78750 | B144: 79 | C144: 89 | D144: 89 | E144: 0 | F144: 0 | G144: 0 | H144: 0 | I144: 0 | J144: 0 | K144: 0 | L144: 0 | M144: 0 | N144: 0 | O144: 0 | P144: 0 | Q144: 0 | R144: 2 | S144: 29 | T144: 14 | U144: 15 | AL144: 27 | AM144: 21 | AN144: 8
A145: 78775 | B145: 112 | C145: 121 | D145: 121 | E145: 0 | F145: 0 | G145: 0 | H145: 0 | I145: 0 | J145: 0 | K145: 0 | L145: 0 | M145: 0 | N145: 0 | O145: 0 | P145: 0 | Q145: 3 | R145: 5 | S145: 36 | T145: 18 | U145: 18 | AL145: 37 | AM145: 42 | AN145: 43
A146: 78800 | B146: 148 | C146: 149 | D146: 149 | E146: 0 | F146: 0 | G146: 0 | H146: 0 | I146: 0 | J146: 0 | K146: 0 | L146: 0 | M146: 0 | N146: 0 | O146: 0 | P146: 0 | Q146: 8 | R146: 27 | S146: 45 | T146: 21 | U146: 23
A147: 78825 | B147: 174 | C147: 133 | D147: 133 | E147: 0 | F147: 0 | G147: 0 | H147: 0 | I147: 0 | J147: 0 | K147: 0 | L147: 0 | M147: 0 | N147: 0 | O147: 0 | P147: 0 | Q147: 50 | R147: 27 | S147: 43 | T147: 28 | U147: 22 | AL147: 55 | AM147: 21 | AN147: 22
A148: 78850 | B148: 112 | C148: 60 | D148: 60 | E148: 0 | F148: 0 | G148: 0 | H148: 0 | I148: 0 | J148: 0 | K148: 0 | L148: 0 | M148: 0 | N148: 0 | O148: 0 | P148: 0 | Q148: 9 | R148: 4 | S148: 24 | T148: 19 | U148: 12 | AL148: 37 | AM148: 16 | AN148: 7
A149: 78875 | B149: 18 | C149: 9 | D149: 9 | E149: 0 | F149: 0 | G149: 0 | H149: 0 | I149: 0 | J149: 0 | K149: 0 | L149: 0 | M149: 0 | N149: 0 | O149: 0 | P149: 0 | Q149: 0 | R149: 0 | S149: 6 | T149: 7 | U149: 9 | AL149: 14 | AM149: 16 | AN149: 2
A150: 78900 | B150: 2 | C150: 4 | D150: 4 | E150: 0 | F150: 0 | G150: 0 | H150: 0 | I150: 0 | J150: 0 | K150: 0 | L150: 0 | M150: 0 | N150: 0 | O150: 0 | P150: 0 | Q150: 0 | R150: 0 | S150: 3
A151: 78925 | B151: 8 | Q151: 0 | T151: 3 | AL151: 6
A153: Sta. 800+82
A154: 80025 | B154: 23 | C154: 88 | D154: 88 | E154: 0 | F154: 0 | G154: 0 | H154: 0 | I154: 0 | J154: 0 | K154: 0 | L154: 0 | M154: 0 | N154: 0 | O154: 0 | P154: 0 | Q154: 0 | R154: 8 | S154: 28 | T154: 7 | U154: 14 | AL154: 14 | AM154: 18 | AN154: 9
A155: 80050 | B155: 167 | C155: 149 | D155: 149 | E155: 0 | F155: 0 | G155: 0 | H155: 0 | I155: 0 | J155: 0 | K155: 0 | L155: 0 | M155: 0 | N155: 0 | O155: 0 | P155: 0 | Q155: 17 | R155: 19 | S155: 40 | T155: 23 | U155: 20 | AL155: 46 | AM155: 22 | AN155: 19
A156: 80075 | B156: 153 | C156: 54 | D156: 54 | E156: 0 | F156: 0 | G156: 0 | H156: 0 | I156: 0 | J156: 0 | K156: 0 | L156: 0 | M156: 0 | N156: 0 | O156: 0 | P156: 0 | Q156: 25 | R156: 8 | S156: 13 | T156: 21 | U156: 6 | AL156: 42 | AM156: 7 | AN156: 6
A157: 80082 | B157: 263 | C157: 136 | D157: 136 | E157: 0 | F157: 0 | G157: 0 | H157: 0 | I157: 0 | J157: 0 | K157: 0 | L157: 0 | M157: 0 | N157: 0 | O157: 0 | P157: 0 | Q157: 39 | R157: 18 | S157: 32 | T157: 28 | U157: 16 | AL157: 56 | AM157: 18 | AN157: 14
A158: 80100 | B158: 145 | C158: 87 | D158: 87 | E158: 0 | F158: 0 | G158: 0 | H158: 0 | I158: 0 | J158: 0 | K158: 0 | L158: 0 | M158: 0 | N158: 0 | O158: 0 | P158: 0 | Q158: 15 | R158: 30 | S158: 37 | T158: 20 | U158: 19 | AL158: 39 | AM158: 19 | AN158: 18
A159: 80125 | B159: 43 | C159: 21 | D159: 21 | E159: 0 | F159: 0 | G159: 0 | H159: 0 | I159: 0 | J159: 0 | K159: 0 | L159: 0 | M159: 0 | N159: 0 | O159: 0 | P159: 0 | Q159: 50 | R159: 28 | S159: 26 | T159: 21 | U159: 13 | AL159: 40
A160: 80150 | B160: 3 | C160: 3 | D160: 3 | E160: 0 | F160: 0 | G160: 0 | H160: 0 | I160: 0 | J160: 0 | K160: 0 | L160: 0 | M160: 0 | N160: 0 | O160: 0 | P160: 0 | Q160: 11 | R160: 6 | S160: 13 | T160: 8 | U160: 7
A161: 80175 | B161: 3 | Q161: 2 | T161: 7
A163: Sta. 808+67
A164: 80775 | B164: 8 | C164: 10 | D164: 10 | E164: 0 | F164: 0 | G164: 0 | H164: 0 | I164: 0 | J164: 0 | K164: 0 | L164: 0 | M164: 0 | N164: 0 | O164: 0 | P164: 0 | Q164: 0 | R164: 6 | S164: 15 | T164: 3 | U164: 37 | AL164: 6 | AM164: 6 | AN164: 9
A165: 80800 | B165: 12 | C165: 48 | D165: 48 | E165: 0 | F165: 0 | G165: 0 | H165: 0 | I165: 0 | J165: 0 | K165: 0 | L165: 0 | M165: 0 | N165: 0 | O165: 0 | P165: 0 | Q165: 12 | R165: 22 | S165: 35 | AL165: 27 | AM165: 13 | AN165: 22
A166: 80825 | B166: 92 | C166: 115 | D166: 115 | E166: 0 | F166: 0 | G166: 0 | H166: 0 | I166: 0 | J166: 0 | K166: 0 | L166: 0 | M166: 0 | N166: 0 | O166: 0 | P166: 0 | Q166: 36 | R166: 70 | S166: 50 | T166: 37 | U166: 31 | AL166: 48 | AM166: 19 | AN166: 31
A167: 80850 | B167: 156 | C167: 95 | D167: 95 | E167: 0 | F167: 0 | G167: 0 | H167: 0 | I167: 0 | J167: 0 | K167: 0 | L167: 0 | M167: 0 | N167: 0 | O167: 0 | P167: 0 | Q167: 115 | R167: 102 | S167: 43 | T167: 29 | U167: 21 | AL167: 59 | AM167: 16 | AN167: 27
A168: 80867.85 | B168: 131 | C168: 24 | D168: 24 | E168: 0 | F168: 0 | G168: 0 | H168: 0 | I168: 0 | J168: 0 | K168: 0 | L168: 0 | M168: 0 | N168: 0 | O168: 0 | P168: 0 | Q168: 193 | R168: 57 | S168: 15 | T168: 35 | U168: 8 | AL168: 70 | AM168: 4 | AN168: 11
A169: 80875 | B169: 49 | C169: 24 | D169: 24 | E169: 0 | F169: 0 | G169: 0 | H169: 0 | I169: 0 | J169: 0 | K169: 0 | L169: 0 | M169: 0 | N169: 0 | O169: 0 | P169: 0 | Q169: 237 | R169: 179 | S169: 39 | T169: 22 | U169: 19 | AL169: 44 | AM169: 1 | AN169: 37
A170: 80900 | B170: 4 | C170: 5 | D170: 5 | E170: 0 | F170: 0 | G170: 0 | H170: 0 | I170: 0 | J170: 0 | K170: 0 | L170: 0 | M170: 0 | N170: 0 | O170: 0 | P170: 0 | Q170: 149 | R170: 69 | S170: 25 | T170: 20 | U170: 13 | AL170: 40 | AM170: 3 | AN170: 23
A171: 80925 | B171: 7 | C171: 15 | D171: 15 | E171: 0 | F171: 0 | G171: 0 | H171: 0 | I171: 0 | J171: 0 | K171: 0 | L171: 0 | M171: 0 | N171: 0 | O171: 0 | P171: 0 | Q171: 1 | R171: 0 | S171: 13 | T171: 8 | U171: 7 | AL171: 16 | AM171: 8 | AN171: 5
A172: 80950 | B172: 24 | Q172: 0 | T172: 7 | AL172: 13
A174: Sta. 817+91
A175: 81675 | B175: 6 | C175: 6 | D175: 6 | E175: 0 | F175: 0 | G175: 0 | H175: 0 | I175: 0 | J175: 0 | K175: 0 | L175: 0 | M175: 0 | N175: 0 | O175: 0 | P175: 0 | Q175: 0 | R175: 0 | S175: 6 | T175: 2 | U175: 3 | AL175: 4 | AM175: 12 | AN175: 16
A176: 81700 | B176: 8 | C176: 12 | D176: 12 | E176: 0 | F176: 0 | G176: 0 | H176: 0 | I176: 0 | J176: 0 | K176: 0 | L176: 0 | M176: 0 | N176: 0 | O176: 0 | P176: 0 | Q176: 0 | R176: 2 | S176: 17 | T176: 5 | U176: 8
A177: 81725 | B177: 18 | C177: 36 | D177: 36 | E177: 0 | F177: 0 | G177: 0 | H177: 0 | I177: 0 | J177: 0 | K177: 0 | L177: 0 | M177: 0 | N177: 0 | O177: 0 | P177: 0 | Q177: 3 | R177: 17 | S177: 29 | T177: 13 | U177: 15 | AL177: 26 | AM177: 11 | AN177: 19
A178: 81750 | B178: 59 | C178: 84 | D178: 84 | E178: 0 | F178: 0 | G178: 0 | H178: 0 | I178: 0 | J178: 0 | K178: 0 | L178: 0 | M178: 0 | N178: 0 | O178: 0 | P178: 0 | Q178: 33 | R178: 73 | S178: 38 | T178: 19 | U178: 15 | AL178: 38 | AM178: 14 | AN178: 24
A179: 81775 | B179: 122 | C179: 62 | D179: 62 | E179: 0 | F179: 0 | G179: 0 | H179: 0 | I179: 0 | J179: 0 | K179: 0 | L179: 0 | M179: 0 | N179: 0 | O179: 0 | P179: 0 | Q179: 125 | R179: 37 | S179: 31 | T179: 14 | U179: 14 | AL179: 46 | AM179: 16 | AN179: 15
A180: 81791 | B180: 87 | C180: 34 | D180: 34 | E180: 0 | F180: 0 | G180: 0 | H180: 0 | I180: 0 | J180: 0 | K180: 0 | L180: 0 | M180: 0 | N180: 0 | O180: 0 | P180: 0 | Q180: 0 | R180: 6 | S180: 17 | T180: 34 | U180: 9 | AL180: 58 | AM180: 9 | AN180: 8
A181: 81800 | B181: 119 | C181: 93 | D181: 93 | E181: 0 | F181: 0 | G181: 0 | H181: 0 | I181: 0 | J181: 0 | K181: 0 | L181: 0 | M181: 0 | N181: 0 | O181: 0 | P181: 0 | Q181: 34 | R181: 20 | S181: 36 | T181: 20 | U181: 18 | AL181: 41 | AM181: 17 | AN181: 20
A182: 81825 | B182: 82 | C182: 63 | D182: 63 | E182: 0 | F182: 0 | G182: 0 | H182: 0 | I182: 0 | J182: 0 | K182: 0 | L182: 0 | M182: 0 | N182: 0 | O182: 0 | P182: 0 | Q182: 9 | R182: 6 | S182: 30 | T182: 18 | U182: 15 | AL182: 37 | AM182: 17 | AN182: 13
A183: 81850 | B183: 54 | C183: 31 | D183: 31 | E183: 0 | F183: 0 | G183: 0 | H183: 0 | I183: 0 | J183: 0 | K183: 0 | L183: 0 | M183: 0 | N183: 0 | O183: 0 | P183: 0 | Q183: 3 | R183: 1 | S183: 18 | T183: 14 | U183: 9 | AL183: 29 | AM183: 11 | AN183: 7
A184: 81875 | B184: 13 | Q184: 0 | T184: 5 | AL184: 10
A186: Sta. 830+53
A187: 82975 | B187: 37 | C187: 45 | D187: 45 | E187: 0 | F187: 0 | G187: 0 | H187: 0 | I187: 0 | J187: 0 | K187: 0 | L187: 0 | M187: 0 | N187: 0 | O187: 0 | P187: 0 | Q187: 0 | R187: 4 | S187: 20 | T187: 8 | U187: 10 | AL187: 16 | AM187: 13 | AN187: 7
A188: 83000 | B188: 61 | C188: 62 | D188: 62 | E188: 0 | F188: 0 | G188: 0 | H188: 0 | I188: 0 | J188: 0 | K188: 0 | L188: 0 | M188: 0 | N188: 0 | O188: 0 | P188: 0 | Q188: 8 | R188: 28 | S188: 34 | T188: 15 | U188: 17 | AL188: 28 | AM188: 14 | AN188: 20
A189: 83025 | B189: 72 | C189: 64 | D189: 64 | E189: 0 | F189: 0 | G189: 0 | H189: 0 | I189: 0 | J189: 0 | K189: 0 | L189: 0 | M189: 0 | N189: 0 | O189: 0 | P189: 0 | Q189: 53 | R189: 63 | S189: 43 | T189: 23 | U189: 22 | AL189: 45 | AM189: 15 | AN189: 28
A190: 83050 | B190: 67 | C190: 8 | D190: 8 | E190: 0 | F190: 0 | G190: 0 | H190: 0 | I190: 0 | J190: 0 | K190: 0 | L190: 0 | M190: 0 | N190: 0 | O190: 0 | P190: 0 | Q190: 83 | R190: 13 | S190: 6 | T190: 25 | U190: 3 | AL190: 48 | AM190: 2 | AN190: 4
A191: 83053.29 | B191: 70 | C191: 49 | D191: 49 | E191: 0 | F191: 0 | G191: 0 | H191: 0 | I191: 0 | J191: 0 | K191: 0 | L191: 0 | M191: 0 | N191: 0 | O191: 0 | P191: 0 | Q191: 123 | R191: 85 | S191: 39 | T191: 27 | U191: 20 | AL191: 52 | AM191: 12 | AN191: 28
A192: 83075 | B192: 53 | C192: 37 | D192: 37 | E192: 0 | F192: 0 | G192: 0 | H192: 0 | I192: 0 | J192: 0 | K192: 0 | L192: 0 | M192: 0 | N192: 0 | O192: 0 | P192: 0 | Q192: 89 | R192: 66 | S192: 38 | T192: 24 | U192: 19 | AL192: 46 | AM192: 11 | AN192: 27
A193: 83100 | B193: 26 | C193: 16 | D193: 16 | E193: 0 | F193: 0 | G193: 0 | H193: 0 | I193: 0 | J193: 0 | K193: 0 | L193: 0 | M193: 0 | N193: 0 | O193: 0 | P193: 0 | Q193: 54 | R193: 30 | S193: 26 | T193: 18 | U193: 13 | AL193: 36 | AM193: 7 | AN193: 18
A194: 83125 | B194: 8 | Q194: 11 | T194: 10 | AL194: 20
A196: Sta. 838+23
A197: 83750 | B197: 81 | C197: 96 | D197: 96 | E197: 0 | F197: 0 | G197: 0 | H197: 0 | I197: 0 | J197: 0 | K197: 0 | L197: 0 | M197: 0 | N197: 0 | O197: 0 | P197: 0 | Q197: 1 | R197: 1 | S197: 30 | T197: 13 | U197: 15 | AL197: 26 | AM197: 21 | AN197: 9
A198: 83775 | B198: 125 | C198: 97 | D198: 97 | E198: 0 | F198: 0 | G198: 0 | H198: 0 | I198: 0 | J198: 0 | K198: 0 | L198: 0 | M198: 0 | N198: 0 | O198: 0 | P198: 0 | Q198: 1 | R198: 6 | S198: 42 | T198: 19 | U198: 21 | AL198: 38 | AM198: 24 | AN198: 18
A199: 83800 | B199: 85 | C199: 75 | D199: 75 | E199: 0 | F199: 0 | G199: 0 | H199: 0 | I199: 0 | J199: 0 | K199: 0 | L199: 0 | M199: 0 | N199: 0 | O199: 0 | P199: 0 | Q199: 11 | R199: 26 | S199: 53 | T199: 26 | U199: 22 | AL199: 52 | AM199: 25 | AN199: 28
A200: 83823 | B200: 92 | C200: 5 | D200: 5 | E200: 0 | F200: 0 | G200: 0 | H200: 0 | I200: 0 | J200: 0 | K200: 0 | L200: 0 | M200: 0 | N200: 0 | O200: 0 | P200: 0 | Q200: 50 | R200: 7 | S200: 5 | T200: 25 | U200: 2 | AL200: 72 | AM200: 2 | AN200: 3
A201: 83825 | B201: 42 | C201: 72 | D201: 72 | E201: 0 | F201: 0 | G201: 0 | H201: 0 | I201: 0 | J201: 0 | K201: 0 | L201: 0 | M201: 0 | N201: 0 | O201: 0 | P201: 0 | Q201: 149 | R201: 88 | S201: 51 | T201: 26 | U201: 25 | AL201: 53 | AM201: 16 | AN201: 35
A202: 83850 | B202: 114 | C202: 69 | D202: 69 | E202: 0 | F202: 0 | G202: 0 | H202: 0 | I202: 0 | J202: 0 | K202: 0 | L202: 0 | M202: 0 | N202: 0 | O202: 0 | P202: 0 | Q202: 41 | R202: 19 | S202: 42 | T202: 28 | U202: 21 | AL202: 56 | AM202: 20 | AN202: 22
A203: 83875 | B203: 34 | C203: 19 | D203: 19 | E203: 0 | F203: 0 | G203: 0 | H203: 0 | I203: 0 | J203: 0 | K203: 0 | L203: 0 | M203: 0 | N203: 0 | O203: 0 | P203: 0 | Q203: 1 | R203: 1 | S203: 22 | T203: 17 | U203: 11 | AL203: 34 | AM203: 20 | AN203: 17
A204: 83900 | B204: 6 | C204: 6 | D204: 6 | E204: 0 | F204: 0 | G204: 0 | H204: 0 | I204: 0 | J204: 0 | K204: 0 | L204: 0 | M204: 0 | N204: 0 | O204: 0 | P204: 0 | Q204: 0 | R204: 0 | S204: 9 | T204: 7 | U204: 5
A205: 83925 | B205: 7 | Q205: 0 | T205: 3 | AL205: 6
A207: Sta. 844+27
A208: 84325 | B208: 31 | C208: 35 | D208: 35 | E208: 0 | F208: 0 | G208: 0 | H208: 0 | I208: 0 | J208: 0 | K208: 0 | L208: 0 | M208: 0 | N208: 0 | O208: 0 | P208: 0 | Q208: 1 | R208: 15 | S208: 24 | T208: 12 | U208: 12 | AL208: 23 | AM208: 12 | AN208: 12
A209: 84350 | B209: 45 | C209: 97 | D209: 97 | E209: 0 | F209: 0 | G209: 0 | H209: 0 | I209: 0 | J209: 0 | K209: 0 | L209: 0 | M209: 0 | N209: 0 | O209: 0 | P209: 0 | Q209: 32 | R209: 34 | S209: 30 | T209: 14 | U209: 15 | AL209: 29 | AM209: 15 | AN209: 15
A210: 84375 | B210: 165 | C210: 163 | D210: 163 | E210: 0 | F210: 0 | G210: 0 | H210: 0 | I210: 0 | J210: 0 | K210: 0 | L210: 0 | M210: 0 | N210: 0 | O210: 0 | P210: 0 | Q210: 41 | R210: 38 | S210: 36 | T210: 19 | U210: 18 | AL210: 37 | AM210: 22 | AN210: 15
A211: 84400 | B211: 187 | C211: 166 | D211: 166 | E211: 0 | F211: 0 | G211: 0 | H211: 0 | I211: 0 | J211: 0 | K211: 0 | L211: 0 | M211: 0 | N211: 0 | O211: 0 | P211: 0 | Q211: 41 | R211: 48 | S211: 37 | T211: 21 | U211: 18 | AL211: 41 | AM211: 22 | AN211: 15
A212: 84425 | B212: 171 | C212: 13 | D212: 13 | E212: 0 | F212: 0 | G212: 0 | H212: 0 | I212: 0 | J212: 0 | K212: 0 | L212: 0 | M212: 0 | N212: 0 | O212: 0 | P212: 0 | Q212: 63 | R212: 5 | S212: 4 | T212: 19 | U212: 1 | AL212: 39 | AM212: 2 | AN212: 1
A213: 84426.62 | B213: 270 | C213: 183 | D213: 183 | E213: 0 | F213: 0 | G213: 0 | H213: 0 | I213: 0 | J213: 0 | K213: 0 | L213: 0 | M213: 0 | N213: 0 | O213: 0 | P213: 0 | Q213: 96 | R213: 42 | S213: 51 | T213: 2 | U213: 9 | AL213: 81 | AM213: 35 | AN213: 16
A214: 84450 | B214: 153 | C214: 108 | D214: 108 | E214: 0 | F214: 0 | G214: 0 | H214: 0 | I214: 0 | J214: 0 | K214: 0 | L214: 0 | M214: 0 | N214: 0 | O214: 0 | P214: 0 | Q214: 1 | R214: 0 | S214: 29 | T214: 18 | U214: 15 | AL214: 37 | AM214: 25 | AN214: 4
A215: 84475 | B215: 80 | C215: 45 | D215: 45 | E215: 0 | F215: 0 | G215: 0 | H215: 0 | I215: 0 | J215: 0 | K215: 0 | L215: 0 | M215: 0 | N215: 0 | O215: 0 | P215: 0 | Q215: 0 | R215: 0 | S215: 18 | T215: 13 | U215: 9 | AL215: 26 | AM215: 15 | AN215: 2
A216: 84500 | B216: 16 | Q216: 0 | T216: 6 | AL216: 12
A218: Sta. 855+00
A219: 85425 | B219: 3 | C219: 19 | D219: 19 | E219: 0 | F219: 0 | G219: 0 | H219: 0 | I219: 0 | J219: 0 | K219: 0 | L219: 0 | M219: 0 | N219: 0 | O219: 0 | P219: 0 | Q219: 0 | R219: 6 | S219: 14 | T219: 1 | U219: 7
A220: 85450 | B220: 38 | C220: 41 | D220: 41 | E220: 0 | F220: 0 | G220: 0 | H220: 0 | I220: 0 | J220: 0 | K220: 0 | L220: 0 | M220: 0 | N220: 0 | O220: 0 | P220: 0 | Q220: 13 | R220: 95 | S220: 46 | T220: 14 | U220: 23 | AL220: 29 | AM220: 18 | AN220: 28
A221: 85475 | B221: 50 | C221: 77 | D221: 77 | E221: 0 | F221: 0 | G221: 0 | H221: 0 | I221: 0 | J221: 0 | K221: 0 | L221: 0 | M221: 0 | N221: 0 | O221: 0 | P221: 0 | Q221: 192 | R221: 185 | S221: 72 | T221: 35 | U221: 36 | AL221: 71 | AM221: 26 | AN221: 46
A222: 85500 | B222: 115 | C222: 69 | D222: 69 | E222: 0 | F222: 0 | G222: 0 | H222: 0 | I222: 0 | J222: 0 | K222: 0 | L222: 0 | M222: 0 | N222: 0 | O222: 0 | P222: 0 | Q222: 208 | R222: 184 | S222: 71 | T222: 42 | U222: 35 | AL222: 84 | AM222: 24 | AN222: 46
A223: 85525 | B223: 33 | C223: 26 | D223: 26 | E223: 0 | F223: 0 | G223: 0 | H223: 0 | I223: 0 | J223: 0 | K223: 0 | L223: 0 | M223: 0 | N223: 0 | O223: 0 | P223: 0 | Q223: 190 | R223: 94 | S223: 45 | T223: 34 | U223: 22 | AL223: 68 | AM223: 14 | AN223: 31
A224: 85550 | B224: 24 | C224: 25 | D224: 25 | E224: 0 | F224: 0 | G224: 0 | H224: 0 | I224: 0 | J224: 0 | K224: 0 | L224: 0 | M224: 0 | N224: 0 | O224: 0 | P224: 0 | Q224: 14 | R224: 7 | S224: 22 | T224: 15 | U224: 11 | AL224: 29 | AM224: 15 | AN224: 7
... 9 more rows

Sheet DataInformation
B1: Total Cut and Fill Adjustment | Z1: Unsuitable Placement Check | AE1: Topsoil
B2: Unadjusted Total Cut | P2: Add Quantity | Q2: Combined Material to be Placed as Fill | R2: Unadjusted Total Fill | V2: Add Quantity | X2: Weighted Average Shrink Factor | Z2: Refer to Standard Road Plan EW-102 | AE2: Typical thickness is 12" | AF2: Typical Thickness is 8" | AG2: Topsoil Replacement Shrink Factor
C4: Shrink Factor | D4: Shrink Factor | E4: Shrink Factor | F4: Shrink Factor | G4: Shrink Factor | I4: Shrink Factor | J4: Shrink Factor | K4: Swell Factor | O4: Swell Factor | P4: Shrink Factor
C5: 1.3 | D5: 1.4 | E5: 1.3 | F5: 1.3 | G5: 1.3 | I5: 1.3 | J5: 1.2 | K5: 1.1 | O5: 0 | P5: 1.3 | X5: =IF(ISERROR(ROUNDUP(SUM((C6*C5),(E6*E5),(F6*F5),(G6*G5),(I6*I5),(J6*J5),(K6*(-K5)),(O6*(-O5)),(P6*P5))/SUM(C6,E6,F6,G6,I6,J6,K6,O6,P6),2)),"",ROUNDUP(SUM((C6*C5),(E6*E5),(F6*F5),(G6*G5),(I6*I5),(J6*J5),(K6*(-K5)),(O6*O5),(P6*P5))/SUM(C6,E6,F6,G6,I6,J6,K6,O6,P6),2)) -> 1.3 | AG5: 1.4
B6: =SUM(B11:B234) -> 9515 | C6: 7304 | D6: 2211 | E6: 0 | F6: 0 | G6: 0 | H6: 0 | I6: 0 | J6: 0 | K6: 0 | L6: 0 | M6: 0 | N6: 0 | O6: 0 | P6: 1629 | Q6: 8933 | R6: 5892 | S6: 0 | T6: 2211 | U6: 0 | V6: 12 | W6: 8115 | X6: 10549.5 | Y6: -1616.4 | Z6: ="5' Minimum"&CHAR(10)&"Class 10"&CHAR(10)&"End Area"&CHAR(10)&"Sq. Ft." -> 5' Minimum Class 10 End Area Sq. Ft. | AA6: ="20' Maximum"&CHAR(10)&"End Area"&CHAR(10)&CHAR(10)&"Sq. Ft." -> 20' Maximum End Area Sq. Ft. | AB6: =SUM(AB11:AB234) -> 0 | AC6: ="3' Minimum"&CHAR(10)&"Class 10"&CHAR(10)&"End Area"&CHAR(10)&"Sq. Ft." -> 3' Minimum Class 10 End Area Sq. Ft. | AD6: =SUM(AD11:AD234) -> 0 | AE6: =SUM(AE11:AE234) -> 2211 | AF6: =SUM(AF11:AF234) -> 4389 | AG6: =SUM(AG11:AG234) -> 6144.6 | AH6: =SUM(AH11:AH234) -> -3933.6
A7: Station | B7: ="Total Cut Unadjusted"&CHAR(10)&CHAR(10)&"Volume" -> Total Cut Unadjusted Volume | C7: Total Class 10 Unadjusted Volume | D7: Topsoil Cut Volume | E7: =DataInput!F3 -> Template Unsuitable Type A Volume | F7: =DataInput!G3 -> Template Unsuitable Type B Volume | G7: =DataInput!H3 -> Template Unsuitable Type C Volume | H7: =DataInput!I3 -> Template Pavement Removal Volume | I7: =DataInput!J3 -> Template Select Loam Volume | J7: =DataInput!K3 -> Template Select Sand Volume | K7: =DataInput!L3 -> Template Rock Volume | L7: =DataInput!M3 -> Template B & W Rock Volume | M7: =DataInput!N3 -> Template Waste Volume | N7: =DataInput!O3 -> Template Shale Volume | O7: =DataInput!P3 -> Template Rock Undercut Volume | P7: ="Manually"&CHAR(10)&"Calculated Cut"&CHAR(10)&"Adjustments"&CHAR(10)&"(+/- Cut)" -> Manually Calculated Cut Adjustments (+/- Cut) | Q7: ="Total"&CHAR(10)&"Cut"&CHAR(10)&"Adjusted" -> Total Cut Adjusted | R7: =DataInput!R3 -> Total Fill Unadjusted Volume | S7: =DataInput!Y3 -> Plowing & Shaping Undercut (+ Fill) | T7: ="Existing Topsoil"&CHAR(10)&"Stripping"&CHAR(10)&"Undercut"&CHAR(10)&"(+ Fill)" -> Existing Topsoil Stripping Undercut (+ Fill) | U7: ="Existing"&CHAR(10)&"Pavement"&CHAR(10)&"Undercut"&CHAR(10)&"(+Fill)" -> Existing Pavement Undercut (+Fill) | V7: ="Manual"&CHAR(10)&"Calculated Fill"&CHAR(10)&"Adjustments"&CHAR(10)&"(+/- Fill)" -> Manual Calculated Fill Adjustments (+/- Fill) | W7: ="Total"&CHAR(10)&"Fill"&CHAR(10)&"Adjusted" -> Total Fill Adjusted | X7: ="Total Fill"&CHAR(10)&" Adjusted w/"&CHAR(10)&"Weighted Average"&CHAR(10)&X5&" Shrink Factor" -> Total Fill Adjusted w/ Weighted Average 1.3 Shrink Factor | Y7: ="Total Cut Adjusted"&CHAR(10)&"Minus Fill w/ Shrink" -> Total Cut Adjusted Minus Fill w/ Shrink | AB7: ="Approx. Fill Vol."&CHAR(10)&"Below 5' & Above"&CHAR(10)&"20' w/ Shrink" -> Approx. Fill Vol. Below 5' & Above 20' w/ Shrink | AD7: ="Approx. Fill"&CHAR(10)&"Volume Below 3'"&CHAR(10)&"w/ Shrink" -> Approx. Fill Volume Below 3' w/ Shrink | AE7: =DataInput!T3&CHAR(10)&"Volume" -> Topsoil Stripping Undercut Volume | AF7: =DataInput!S3 -> Topsoil Placement Undercut Volume | AG7: ="Topsoil Placement"&CHAR(10)&"With "&$AG$5&" Shrink"&CHAR(10)&"Factor" -> Topsoil Placement With 1.4 Shrink Factor | AH7: ="Topsoil Stripping"&CHAR(10)&"Minus Topsoil"&CHAR(10)&"Placement"&CHAR(10)&"w/Shrink" -> Topsoil Stripping Minus Topsoil Placement w/Shrink
A11: =IF(DataInput!A11<>"",DataInput!A11,"") -> Sta. 80+13
A12: =IF(DataInput!A12<>"",DataInput!A12,"") -> 7978.13 | B12: =SUM(DataInput!C12,DataInput!Y12)+(DataInput!U12-DataInput!E12) -> 98 | C12: =SUM(DataInput!D12,DataInput!Z12) -> 89 | D12: =DataInput!U12 -> 9 | E12: =SUM(DataInput!F12,DataInput!AB12) -> 0 | F12: =SUM(DataInput!G12,DataInput!AC12) -> 0 | G12: =SUM(DataInput!H12,DataInput!AD12) -> 0 | H12: =DataInput!I12 -> 0 | I12: =SUM(DataInput!J12,DataInput!AF12) -> 0 | J12: =SUM(DataInput!K12,DataInput!AG12) -> 0 | K12: =SUM(DataInput!L12,DataInput!AH12) -> 0 | L12: =SUM(DataInput!M12,DataInput!AI12) -> 0 | M12: =SUM(DataInput!N12,DataInput!AJ12) -> 0 | N12: =SUM(DataInput!O12,DataInput!AK12) -> 0 | O12: =DataInput!P12 -> 0 | Q12: =SUM(C12,E12:G12,I12:L12,N12:P12) -> 89 | R12: =DataInput!R12 -> 1 | S12: =DataInput!Y12 -> 0 | T12: =IF(DataInput!U12-DataInput!E12>0,DataInput!U12-DataInput!E12,"") -> 9 | U12: =IF(DataInput!W12-DataInput!I12>0,DataInput!W12-DataInput!I12,"") ->  | W12: =SUM(R12:V12) -> 10 | X12: =ROUNDUP(($W12*$X$5),1) -> 13 | Y12: =ROUNDUP(SUM(Q12-X12),1) -> 76 | AB12: =ROUNDDOWN((IF(AA13>0,IFERROR(IF(AVERAGE(DataInput!Q12:Q13)>AVERAGE(AA13,AA12),ROUNDDOWN(((((AA12-Z12)+(AA13-Z13))/2)*(A13-A12))/27+S12+T12,0),IF(((((DataInput!Q13-Z13)+(DataInput!Q12-Z12))/2)*(A13-A12))/27+S12+T12>0,ROUNDDOWN(((((DataInput!Q13-Z12)+(DataInput!Q12-Z12))/2)*(A13-A12))/27+S12+T12,0),0)),0),0)*$X$5),1) -> 0 | AD12: =ROUNDDOWN((IF(AC13>0,IFERROR(IF(((((DataInput!Q12-AC12)+(DataInput!Q13-AC13))/2)*(A13-A12))/27+S12+T12>0,ROUNDDOWN(((((DataInput!Q12-AC12)+(DataInput!Q13-AC13))/2)*(A13-A12))/27+S12+T12,0),0),0),0)*$X$5),1) -> 0 | AE12: =DataInput!U12 -> 9 | AF12: =DataInput!S12 -> 0 | AG12: =ROUNDUP((AF12*$AG$5),1) -> 0 | AH12: =ROUNDUP((AE12-AG12),1) -> 9
A13: =IF(DataInput!A13<>"",DataInput!A13,"") -> 8000 | B13: =SUM(DataInput!C13,DataInput!Y13)+(DataInput!U13-DataInput!E13) -> 74 | C13: =SUM(DataInput!D13,DataInput!Z13) -> 65 | D13: =DataInput!U13 -> 9 | E13: =SUM(DataInput!F13,DataInput!AB13) -> 0 | F13: =SUM(DataInput!G13,DataInput!AC13) -> 0 | G13: =SUM(DataInput!H13,DataInput!AD13) -> 0 | H13: =DataInput!I13 -> 0 | I13: =SUM(DataInput!J13,DataInput!AF13) -> 0 | J13: =SUM(DataInput!K13,DataInput!AG13) -> 0 | K13: =SUM(DataInput!L13,DataInput!AH13) -> 0 | L13: =SUM(DataInput!M13,DataInput!AI13) -> 0 | M13: =SUM(DataInput!N13,DataInput!AJ13) -> 0 | N13: =SUM(DataInput!O13,DataInput!AK13) -> 0 | O13: =DataInput!P13 -> 0 | Q13: =SUM(C13,E13:G13,I13:L13,N13:P13) -> 65 | R13: =DataInput!R13 -> 2 | S13: =DataInput!Y13 -> 0 | T13: =IF(DataInput!U13-DataInput!E13>0,DataInput!U13-DataInput!E13,"") -> 9 | U13: =IF(DataInput!W13-DataInput!I13>0,DataInput!W13-DataInput!I13,"") ->  | W13: =SUM(R13:V13) -> 11 | X13: =ROUNDUP(($W13*$X$5),1) -> 14.3 | Y13: =ROUNDUP(SUM(Q13-X13),1) -> 50.7 | Z13: =Z12 -> 0 | AA13: =AA12 -> 0 | AB13: =ROUNDDOWN((IF(AA14>0,IFERROR(IF(AVERAGE(DataInput!Q13:Q14)>AVERAGE(AA14,AA13),ROUNDDOWN(((((AA13-Z13)+(AA14-Z14))/2)*(A14-A13))/27+S13+T13,0),IF(((((DataInput!Q14-Z14)+(DataInput!Q13-Z13))/2)*(A14-A13))/27+S13+T13>0,ROUNDDOWN(((((DataInput!Q14-Z13)+(DataInput!Q13-Z13))/2)*(A14-A13))/27+S13+T13,0),0)),0),0)*$X$5),1) -> 0 | AC13: =AC12 -> 0 | AD13: =ROUNDDOWN((IF(AC14>0,IFERROR(IF(((((DataInput!Q13-AC13)+(DataInput!Q14-AC14))/2)*(A14-A13))/27+S13+T13>0,ROUNDDOWN(((((DataInput!Q13-AC13)+(DataInput!Q14-AC14))/2)*(A14-A13))/27+S13+T13,0),0),0),0)*$X$5),1) -> 0 | AE13: =DataInput!U13 -> 9 | AF13: =DataInput!S13 -> 17 | AG13: =ROUNDUP((AF13*$AG$5),1) -> 23.8 | AH13: =ROUNDUP((AE13-AG13),1) -> -14.8
A14: =IF(DataInput!A14<>"",DataInput!A14,"") -> 8013.55 | B14: =SUM(DataInput!C14,DataInput!Y14)+(DataInput!U14-DataInput!E14) -> 78 | C14: =SUM(DataInput!D14,DataInput!Z14) -> 67 | D14: =DataInput!U14 -> 11 | E14: =SUM(DataInput!F14,DataInput!AB14) -> 0 | F14: =SUM(DataInput!G14,DataInput!AC14) -> 0 | G14: =SUM(DataInput!H14,DataInput!AD14) -> 0 | H14: =DataInput!I14 -> 0 | I14: =SUM(DataInput!J14,DataInput!AF14) -> 0 | J14: =SUM(DataInput!K14,DataInput!AG14) -> 0 | K14: =SUM(DataInput!L14,DataInput!AH14) -> 0 | L14: =SUM(DataInput!M14,DataInput!AI14) -> 0 | M14: =SUM(DataInput!N14,DataInput!AJ14) -> 0 | N14: =SUM(DataInput!O14,DataInput!AK14) -> 0 | O14: =DataInput!P14 -> 0 | P14: 280 | Q14: 347 | R14: =DataInput!R14 -> 4 | S14: =DataInput!Y14 -> 0 | T14: =IF(DataInput!U14-DataInput!E14>0,DataInput!U14-DataInput!E14,"") -> 11 | U14: =IF(DataInput!W14-DataInput!I14>0,DataInput!W14-DataInput!I14,"") ->  | V14: 12 | W14: 27 | X14: 35.1 | Y14: 311.9 | Z14: =Z13 -> 0 | AA14: =AA13 -> 0 | AB14: =ROUNDDOWN((IF(AA15>0,IFERROR(IF(AVERAGE(DataInput!Q14:Q15)>AVERAGE(AA15,AA14),ROUNDDOWN(((((AA14-Z14)+(AA15-Z15))/2)*(A15-A14))/27+S14+T14,0),IF(((((DataInput!Q15-Z15)+(DataInput!Q14-Z14))/2)*(A15-A14))/27+S14+T14>0,ROUNDDOWN(((((DataInput!Q15-Z14)+(DataInput!Q14-Z14))/2)*(A15-A14))/27+S14+T14,0),0)),0),0)*$X$5),1) -> 0 | AC14: =AC13 -> 0 | AD14: =ROUNDDOWN((IF(AC15>0,IFERROR(IF(((((DataInput!Q14-AC14)+(DataInput!Q15-AC15))/2)*(A15-A14))/27+S14+T14>0,ROUNDDOWN(((((DataInput!Q14-AC14)+(DataInput!Q15-AC15))/2)*(A15-A14))/27+S14+T14,0),0),0),0)*$X$5),1) -> 0 | AE14: =DataInput!U14 -> 11 | AF14: =DataInput!S14 -> 24 | AG14: 33.6 | AH14: -22.6
A15: =IF(DataInput!A15<>"",DataInput!A15,"") -> 8025 | B15: =SUM(DataInput!C15,DataInput!Y15)+(DataInput!U15-DataInput!E15) -> 130 | C15: =SUM(DataInput!D15,DataInput!Z15) -> 109 | D15: =DataInput!U15 -> 21 | E15: =SUM(DataInput!F15,DataInput!AB15) -> 0 | F15: =SUM(DataInput!G15,DataInput!AC15) -> 0 | G15: =SUM(DataInput!H15,DataInput!AD15) -> 0 | H15: =DataInput!I15 -> 0 | I15: =SUM(DataInput!J15,DataInput!AF15) -> 0 | J15: =SUM(DataInput!K15,DataInput!AG15) -> 0 | K15: =SUM(DataInput!L15,DataInput!AH15) -> 0 | L15: =SUM(DataInput!M15,DataInput!AI15) -> 0 | M15: =SUM(DataInput!N15,DataInput!AJ15) -> 0 | N15: =SUM(DataInput!O15,DataInput!AK15) -> 0 | O15: =DataInput!P15 -> 0 | Q15: 109 | R15: =DataInput!R15 -> 11 | S15: =DataInput!Y15 -> 0 | T15: =IF(DataInput!U15-DataInput!E15>0,DataInput!U15-DataInput!E15,"") -> 21 | U15: =IF(DataInput!W15-DataInput!I15>0,DataInput!W15-DataInput!I15,"") ->  | W15: 32 | X15: 41.6 | Y15: 67.4 | Z15: 0 | AA15: 0 | AB15: =ROUNDDOWN((IF(AA16>0,IFERROR(IF(AVERAGE(DataInput!Q15:Q16)>AVERAGE(AA16,AA15),ROUNDDOWN(((((AA15-Z15)+(AA16-Z16))/2)*(A16-A15))/27+S15+T15,0),IF(((((DataInput!Q16-Z16)+(DataInput!Q15-Z15))/2)*(A16-A15))/27+S15+T15>0,ROUNDDOWN(((((DataInput!Q16-Z15)+(DataInput!Q15-Z15))/2)*(A16-A15))/27+S15+T15,0),0)),0),0)*$X$5),1) -> 0 | AC15: 0 | AD15: =ROUNDDOWN((IF(AC16>0,IFERROR(IF(((((DataInput!Q15-AC15)+(DataInput!Q16-AC16))/2)*(A16-A15))/27+S15+T15>0,ROUNDDOWN(((((DataInput!Q15-AC15)+(DataInput!Q16-AC16))/2)*(A16-A15))/27+S15+T15,0),0),0),0)*$X$5),1) -> 0 | AE15: =DataInput!U15 -> 21 | AF15: =DataInput!S15 -> 42 | AG15: 58.8 | AH15: -37.8
A16: =IF(DataInput!A16<>"",DataInput!A16,"") -> 8050 | B16: =SUM(DataInput!C16,DataInput!Y16)+(DataInput!U16-DataInput!E16) -> 91 | C16: =SUM(DataInput!D16,DataInput!Z16) -> 71 | D16: =DataInput!U16 -> 20 | E16: =SUM(DataInput!F16,DataInput!AB16) -> 0 | F16: =SUM(DataInput!G16,DataInput!AC16) -> 0 | G16: =SUM(DataInput!H16,DataInput!AD16) -> 0 | H16: =DataInput!I16 -> 0 | I16: =SUM(DataInput!J16,DataInput!AF16) -> 0 | J16: =SUM(DataInput!K16,DataInput!AG16) -> 0 | K16: =SUM(DataInput!L16,DataInput!AH16) -> 0 | L16: =SUM(DataInput!M16,DataInput!AI16) -> 0 | M16: =SUM(DataInput!N16,DataInput!AJ16) -> 0 | N16: =SUM(DataInput!O16,DataInput!AK16) -> 0 | O16: =DataInput!P16 -> 0 | Q16: 71 | R16: =DataInput!R16 -> 12 | S16: =DataInput!Y16 -> 0 | T16: =IF(DataInput!U16-DataInput!E16>0,DataInput!U16-DataInput!E16,"") -> 20 | U16: =IF(DataInput!W16-DataInput!I16>0,DataInput!W16-DataInput!I16,"") ->  | W16: 32 | X16: 41.6 | Y16: 29.4 | Z16: 0 | AA16: 0 | AB16: =ROUNDDOWN((IF(AA17>0,IFERROR(IF(AVERAGE(DataInput!Q16:Q17)>AVERAGE(AA17,AA16),ROUNDDOWN(((((AA16-Z16)+(AA17-Z17))/2)*(A17-A16))/27+S16+T16,0),IF(((((DataInput!Q17-Z17)+(DataInput!Q16-Z16))/2)*(A17-A16))/27+S16+T16>0,ROUNDDOWN(((((DataInput!Q17-Z16)+(DataInput!Q16-Z16))/2)*(A17-A16))/27+S16+T16,0),0)),0),0)*$X$5),1) -> 0 | AC16: 0 | AD16: =ROUNDDOWN((IF(AC17>0,IFERROR(IF(((((DataInput!Q16-AC16)+(DataInput!Q17-AC17))/2)*(A17-A16))/27+S16+T16>0,ROUNDDOWN(((((DataInput!Q16-AC16)+(DataInput!Q17-AC17))/2)*(A17-A16))/27+S16+T16,0),0),0),0)*$X$5),1) -> 0 | AE16: =DataInput!U16 -> 20 | AF16: =DataInput!S16 -> 37 | AG16: 51.8 | AH16: -31.8
A17: =IF(DataInput!A17<>"",DataInput!A17,"") -> 8075 | B17: =SUM(DataInput!C17,DataInput!Y17)+(DataInput!U17-DataInput!E17) -> 50 | C17: =SUM(DataInput!D17,DataInput!Z17) -> 38 | D17: =DataInput!U17 -> 12 | E17: =SUM(DataInput!F17,DataInput!AB17) -> 0 | F17: =SUM(DataInput!G17,DataInput!AC17) -> 0 | G17: =SUM(DataInput!H17,DataInput!AD17) -> 0 | H17: =DataInput!I17 -> 0 | I17: =SUM(DataInput!J17,DataInput!AF17) -> 0 | J17: =SUM(DataInput!K17,DataInput!AG17) -> 0 | K17: =SUM(DataInput!L17,DataInput!AH17) -> 0 | L17: =SUM(DataInput!M17,DataInput!AI17) -> 0 | M17: =SUM(DataInput!N17,DataInput!AJ17) -> 0 | N17: =SUM(DataInput!O17,DataInput!AK17) -> 0 | O17: =DataInput!P17 -> 0 | Q17: 38 | R17: =DataInput!R17 -> 9 | S17: =DataInput!Y17 -> 0 | T17: =IF(DataInput!U17-DataInput!E17>0,DataInput!U17-DataInput!E17,"") -> 12 | U17: =IF(DataInput!W17-DataInput!I17>0,DataInput!W17-DataInput!I17,"") ->  | W17: 21 | X17: 27.3 | Y17: 10.7 | Z17: 0 | AA17: 0 | AB17: =ROUNDDOWN((IF(AA18>0,IFERROR(IF(AVERAGE(DataInput!Q17:Q18)>AVERAGE(AA18,AA17),ROUNDDOWN(((((AA17-Z17)+(AA18-Z18))/2)*(A18-A17))/27+S17+T17,0),IF(((((DataInput!Q18-Z18)+(DataInput!Q17-Z17))/2)*(A18-A17))/27+S17+T17>0,ROUNDDOWN(((((DataInput!Q18-Z17)+(DataInput!Q17-Z17))/2)*(A18-A17))/27+S17+T17,0),0)),0),0)*$X$5),1) -> 0 | AC17: 0 | AD17: =ROUNDDOWN((IF(AC18>0,IFERROR(IF(((((DataInput!Q17-AC17)+(DataInput!Q18-AC18))/2)*(A18-A17))/27+S17+T17>0,ROUNDDOWN(((((DataInput!Q17-AC17)+(DataInput!Q18-AC18))/2)*(A18-A17))/27+S17+T17,0),0),0),0)*$X$5),1) -> 0 | AE17: =DataInput!U17 -> 12 | AF17: =DataInput!S17 -> 23 | AG17: 32.2 | AH17: -20.2
A18: =IF(DataInput!A18<>"",DataInput!A18,"") -> 8100
A20: =IF(DataInput!A20<>"",DataInput!A20,"") -> Sta. 96+34
A21: =IF(DataInput!A21<>"",DataInput!A21,"") -> 9550 | B21: =SUM(DataInput!C21,DataInput!Y21)+(DataInput!U21-DataInput!E21) -> 24 | C21: =SUM(DataInput!D21,DataInput!Z21) -> 13 | D21: =DataInput!U21 -> 11 | E21: =SUM(DataInput!F21,DataInput!AB21) -> 0 | F21: =SUM(DataInput!G21,DataInput!AC21) -> 0 | G21: =SUM(DataInput!H21,DataInput!AD21) -> 0 | H21: =DataInput!I21 -> 0 | I21: =SUM(DataInput!J21,DataInput!AF21) -> 0 | J21: =SUM(DataInput!K21,DataInput!AG21) -> 0 | K21: =SUM(DataInput!L21,DataInput!AH21) -> 0 | L21: =SUM(DataInput!M21,DataInput!AI21) -> 0 | M21: =SUM(DataInput!N21,DataInput!AJ21) -> 0 | N21: =SUM(DataInput!O21,DataInput!AK21) -> 0 | O21: =DataInput!P21 -> 0 | Q21: =SUM(C21,E21:G21,I21:L21,N21:P21) -> 13 | R21: =DataInput!R21 -> 15 | S21: =DataInput!Y21 -> 0 | T21: =IF(DataInput!U21-DataInput!E21>0,DataInput!U21-DataInput!E21,"") -> 11 | U21: =IF(DataInput!W21-DataInput!I21>0,DataInput!W21-DataInput!I21,"") ->  | W21: =SUM(R21:V21) -> 26 | X21: =ROUNDUP(($W21*$X$5),1) -> 33.8 | Y21: =ROUNDUP(SUM(Q21-X21),1) -> -20.8 | AB21: =ROUNDDOWN((IF(AA22>0,IFERROR(IF(AVERAGE(DataInput!Q21:Q22)>AVERAGE(AA22,AA21),ROUNDDOWN(((((AA21-Z21)+(AA22-Z22))/2)*(A22-A21))/27+S12+T12,0),IF(((((DataInput!Q22-Z22)+(DataInput!Q21-Z21))/2)*(A22-A21))/27+S12+T12>0,ROUNDDOWN(((((DataInput!Q22-Z21)+(DataInput!Q21-Z21))/2)*(A22-A21))/27+S12+T12,0),0)),0),0)*$X$5),1) -> 0 | AD21: =ROUNDDOWN((IF(AC22>0,IFERROR(IF(((((DataInput!Q21-AC21)+(DataInput!Q22-AC22))/2)*(A22-A21))/27+S12+T12>0,ROUNDDOWN(((((DataInput!Q21-AC21)+(DataInput!Q22-AC22))/2)*(A22-A21))/27+S12+T12,0),0),0),0)*$X$5),1) -> 0 | AE21: =DataInput!U21 -> 11 | AF21: =DataInput!S21 -> 22 | AG21: =ROUNDUP((AF21*$AG$5),1) -> 30.8 | AH21: =ROUNDUP((AE21-AG21),1) -> -19.8
A22: =IF(DataInput!A22<>"",DataInput!A22,"") -> 9575 | B22: =SUM(DataInput!C22,DataInput!Y22)+(DataInput!U22-DataInput!E22) -> 38 | C22: =SUM(DataInput!D22,DataInput!Z22) -> 22 | D22: =DataInput!U22 -> 16 | E22: =SUM(DataInput!F22,DataInput!AB22) -> 0 | F22: =SUM(DataInput!G22,DataInput!AC22) -> 0 | G22: =SUM(DataInput!H22,DataInput!AD22) -> 0 | H22: =DataInput!I22 -> 0 | I22: =SUM(DataInput!J22,DataInput!AF22) -> 0 | J22: =SUM(DataInput!K22,DataInput!AG22) -> 0 | K22: =SUM(DataInput!L22,DataInput!AH22) -> 0 | L22: =SUM(DataInput!M22,DataInput!AI22) -> 0 | M22: =SUM(DataInput!N22,DataInput!AJ22) -> 0 | N22: =SUM(DataInput!O22,DataInput!AK22) -> 0 | O22: =DataInput!P22 -> 0 | Q22: =SUM(C22,E22:G22,I22:L22,N22:P22) -> 22 | R22: =DataInput!R22 -> 27 | S22: =DataInput!Y22 -> 0 | T22: =IF(DataInput!U22-DataInput!E22>0,DataInput!U22-DataInput!E22,"") -> 16 | U22: =IF(DataInput!W22-DataInput!I22>0,DataInput!W22-DataInput!I22,"") ->  | W22: =SUM(R22:V22) -> 43 | X22: =ROUNDUP(($W22*$X$5),1) -> 55.9 | Y22: =ROUNDUP(SUM(Q22-X22),1) -> -33.9 | Z22: =Z21 -> 0 | AA22: =AA21 -> 0 | AB22: =ROUNDDOWN((IF(AA23>0,IFERROR(IF(AVERAGE(DataInput!Q22:Q23)>AVERAGE(AA23,AA22),ROUNDDOWN(((((AA22-Z22)+(AA23-Z23))/2)*(A23-A22))/27+S13+T13,0),IF(((((DataInput!Q23-Z23)+(DataInput!Q22-Z22))/2)*(A23-A22))/27+S13+T13>0,ROUNDDOWN(((((DataInput!Q23-Z22)+(DataInput!Q22-Z22))/2)*(A23-A22))/27+S13+T13,0),0)),0),0)*$X$5),1) -> 0 | AC22: =AC21 -> 0 | AD22: =ROUNDDOWN((IF(AC23>0,IFERROR(IF(((((DataInput!Q22-AC22)+(DataInput!Q23-AC23))/2)*(A23-A22))/27+S13+T13>0,ROUNDDOWN(((((DataInput!Q22-AC22)+(DataInput!Q23-AC23))/2)*(A23-A22))/27+S13+T13,0),0),0),0)*$X$5),1) -> 0 | AE22: =DataInput!U22 -> 16 | AF22: =DataInput!S22 -> 32 | AG22: =ROUNDUP((AF22*$AG$5),1) -> 44.8 | AH22: =ROUNDUP((AE22-AG22),1) -> -28.8
A23: =IF(DataInput!A23<>"",DataInput!A23,"") -> 9600 | B23: =SUM(DataInput!C23,DataInput!Y23)+(DataInput!U23-DataInput!E23) -> 54 | C23: =SUM(DataInput!D23,DataInput!Z23) -> 34 | D23: =DataInput!U23 -> 20 | E23: =SUM(DataInput!F23,DataInput!AB23) -> 0 | F23: =SUM(DataInput!G23,DataInput!AC23) -> 0 | G23: =SUM(DataInput!H23,DataInput!AD23) -> 0 | H23: =DataInput!I23 -> 0 | I23: =SUM(DataInput!J23,DataInput!AF23) -> 0 | J23: =SUM(DataInput!K23,DataInput!AG23) -> 0 | K23: =SUM(DataInput!L23,DataInput!AH23) -> 0 | L23: =SUM(DataInput!M23,DataInput!AI23) -> 0 | M23: =SUM(DataInput!N23,DataInput!AJ23) -> 0 | N23: =SUM(DataInput!O23,DataInput!AK23) -> 0 | O23: =DataInput!P23 -> 0 | Q23: 34 | R23: =DataInput!R23 -> 50 | S23: =DataInput!Y23 -> 0 | T23: =IF(DataInput!U23-DataInput!E23>0,DataInput!U23-DataInput!E23,"") -> 20 | U23: =IF(DataInput!W23-DataInput!I23>0,DataInput!W23-DataInput!I23,"") ->  | W23: 70 | X23: 91 | Y23: -57 | Z23: =Z22 -> 0 | AA23: =AA22 -> 0 | AB23: =ROUNDDOWN((IF(AA24>0,IFERROR(IF(AVERAGE(DataInput!Q23:Q24)>AVERAGE(AA24,AA23),ROUNDDOWN(((((AA23-Z23)+(AA24-Z24))/2)*(A24-A23))/27+S14+T14,0),IF(((((DataInput!Q24-Z24)+(DataInput!Q23-Z23))/2)*(A24-A23))/27+S14+T14>0,ROUNDDOWN(((((DataInput!Q24-Z23)+(DataInput!Q23-Z23))/2)*(A24-A23))/27+S14+T14,0),0)),0),0)*$X$5),1) -> 0 | AC23: =AC22 -> 0 | AD23: =ROUNDDOWN((IF(AC24>0,IFERROR(IF(((((DataInput!Q23-AC23)+(DataInput!Q24-AC24))/2)*(A24-A23))/27+S14+T14>0,ROUNDDOWN(((((DataInput!Q23-AC23)+(DataInput!Q24-AC24))/2)*(A24-A23))/27+S14+T14,0),0),0),0)*$X$5),1) -> 0 | AE23: =DataInput!U23 -> 20 | AF23: =DataInput!S23 -> 40 | AG23: 56 | AH23: -36
A24: =IF(DataInput!A24<>"",DataInput!A24,"") -> 9625 | B24: =SUM(DataInput!C24,DataInput!Y24)+(DataInput!U24-DataInput!E24) -> 26 | C24: =SUM(DataInput!D24,DataInput!Z24) -> 18 | D24: =DataInput!U24 -> 8 | E24: =SUM(DataInput!F24,DataInput!AB24) -> 0 | F24: =SUM(DataInput!G24,DataInput!AC24) -> 0 | G24: =SUM(DataInput!H24,DataInput!AD24) -> 0 | H24: =DataInput!I24 -> 0 | I24: =SUM(DataInput!J24,DataInput!AF24) -> 0 | J24: =SUM(DataInput!K24,DataInput!AG24) -> 0 | K24: =SUM(DataInput!L24,DataInput!AH24) -> 0 | L24: =SUM(DataInput!M24,DataInput!AI24) -> 0 | M24: =SUM(DataInput!N24,DataInput!AJ24) -> 0 | N24: =SUM(DataInput!O24,DataInput!AK24) -> 0 | O24: =DataInput!P24 -> 0 | Q24: 18 | R24: =DataInput!R24 -> 23 | S24: =DataInput!Y24 -> 0 | T24: =IF(DataInput!U24-DataInput!E24>0,DataInput!U24-DataInput!E24,"") -> 8 | U24: =IF(DataInput!W24-DataInput!I24>0,DataInput!W24-DataInput!I24,"") ->  | W24: 31 | X24: 40.3 | Y24: -22.3 | Z24: 0 | AA24: 0 | AB24: =ROUNDDOWN((IF(AA25>0,IFERROR(IF(AVERAGE(DataInput!Q24:Q25)>AVERAGE(AA25,AA24),ROUNDDOWN(((((AA24-Z24)+(AA25-Z25))/2)*(A25-A24))/27+S15+T15,0),IF(((((DataInput!Q25-Z25)+(DataInput!Q24-Z24))/2)*(A25-A24))/27+S15+T15>0,ROUNDDOWN(((((DataInput!Q25-Z24)+(DataInput!Q24-Z24))/2)*(A25-A24))/27+S15+T15,0),0)),0),0)*$X$5),1) -> 0 | AC24: 0 | AD24: =ROUNDDOWN((IF(AC25>0,IFERROR(IF(((((DataInput!Q24-AC24)+(DataInput!Q25-AC25))/2)*(A25-A24))/27+S15+T15>0,ROUNDDOWN(((((DataInput!Q24-AC24)+(DataInput!Q25-AC25))/2)*(A25-A24))/27+S15+T15,0),0),0),0)*$X$5),1) -> 0 | AE24: =DataInput!U24 -> 8 | AF24: =DataInput!S24 -> 17 | AG24: 23.8 | AH24: -15.8
A25: =IF(DataInput!A25<>"",DataInput!A25,"") -> 9634 | B25: =SUM(DataInput!C25,DataInput!Y25)+(DataInput!U25-DataInput!E25) -> 48 | C25: =SUM(DataInput!D25,DataInput!Z25) -> 34 | D25: =DataInput!U25 -> 14 | E25: =SUM(DataInput!F25,DataInput!AB25) -> 0 | F25: =SUM(DataInput!G25,DataInput!AC25) -> 0 | G25: =SUM(DataInput!H25,DataInput!AD25) -> 0 | H25: =DataInput!I25 -> 0 | I25: =SUM(DataInput!J25,DataInput!AF25) -> 0 | J25: =SUM(DataInput!K25,DataInput!AG25) -> 0 | K25: =SUM(DataInput!L25,DataInput!AH25) -> 0 | L25: =SUM(DataInput!M25,DataInput!AI25) -> 0 | M25: =SUM(DataInput!N25,DataInput!AJ25) -> 0 | N25: =SUM(DataInput!O25,DataInput!AK25) -> 0 | O25: =DataInput!P25 -> 0 | Q25: 34 | R25: =DataInput!R25 -> 34 | S25: =DataInput!Y25 -> 0 | T25: =IF(DataInput!U25-DataInput!E25>0,DataInput!U25-DataInput!E25,"") -> 14 | U25: =IF(DataInput!W25-DataInput!I25>0,DataInput!W25-DataInput!I25,"") ->  | W25: 48 | X25: 62.4 | Y25: -28.4 | Z25: 0 | AA25: 0 | AB25: =ROUNDDOWN((IF(AA26>0,IFERROR(IF(AVERAGE(DataInput!Q25:Q26)>AVERAGE(AA26,AA25),ROUNDDOWN(((((AA25-Z25)+(AA26-Z26))/2)*(A26-A25))/27+S16+T16,0),IF(((((DataInput!Q26-Z26)+(DataInput!Q25-Z25))/2)*(A26-A25))/27+S16+T16>0,ROUNDDOWN(((((DataInput!Q26-Z25)+(DataInput!Q25-Z25))/2)*(A26-A25))/27+S16+T16,0),0)),0),0)*$X$5),1) -> 0 | AC25: 0 | AD25: =ROUNDDOWN((IF(AC26>0,IFERROR(IF(((((DataInput!Q25-AC25)+(DataInput!Q26-AC26))/2)*(A26-A25))/27+S16+T16>0,ROUNDDOWN(((((DataInput!Q25-AC25)+(DataInput!Q26-AC26))/2)*(A26-A25))/27+S16+T16,0),0),0),0)*$X$5),1) -> 0 | AE25: =DataInput!U25 -> 14 | AF25: =DataInput!S25 -> 29 | AG25: 40.6 | AH25: -26.6
A26: =IF(DataInput!A26<>"",DataInput!A26,"") -> 9650 | B26: =SUM(DataInput!C26,DataInput!Y26)+(DataInput!U26-DataInput!E26) -> 57 | C26: =SUM(DataInput!D26,DataInput!Z26) -> 38 | D26: =DataInput!U26 -> 19 | E26: =SUM(DataInput!F26,DataInput!AB26) -> 0 | F26: =SUM(DataInput!G26,DataInput!AC26) -> 0 | G26: =SUM(DataInput!H26,DataInput!AD26) -> 0 | H26: =DataInput!I26 -> 0 | I26: =SUM(DataInput!J26,DataInput!AF26) -> 0 | J26: =SUM(DataInput!K26,DataInput!AG26) -> 0 | K26: =SUM(DataInput!L26,DataInput!AH26) -> 0 | L26: =SUM(DataInput!M26,DataInput!AI26) -> 0 | M26: =SUM(DataInput!N26,DataInput!AJ26) -> 0 | N26: =SUM(DataInput!O26,DataInput!AK26) -> 0 | O26: =DataInput!P26 -> 0 | Q26: 38 | R26: =DataInput!R26 -> 30 | S26: =DataInput!Y26 -> 0 | T26: =IF(DataInput!U26-DataInput!E26>0,DataInput!U26-DataInput!E26,"") -> 19 | U26: =IF(DataInput!W26-DataInput!I26>0,DataInput!W26-DataInput!I26,"") ->  | W26: 49 | X26: 63.7 | Y26: -25.7 | Z26: 0 | AA26: 0 | AB26: =ROUNDDOWN((IF(AA27>0,IFERROR(IF(AVERAGE(DataInput!Q26:Q27)>AVERAGE(AA27,AA26),ROUNDDOWN(((((AA26-Z26)+(AA27-Z27))/2)*(A27-A26))/27+S17+T17,0),IF(((((DataInput!Q27-Z27)+(DataInput!Q26-Z26))/2)*(A27-A26))/27+S17+T17>0,ROUNDDOWN(((((DataInput!Q27-Z26)+(DataInput!Q26-Z26))/2)*(A27-A26))/27+S17+T17,0),0)),0),0)*$X$5),1) -> 0 | AC26: 0 | AD26: =ROUNDDOWN((IF(AC27>0,IFERROR(IF(((((DataInput!Q26-AC26)+(DataInput!Q27-AC27))/2)*(A27-A26))/27+S17+T17>0,ROUNDDOWN(((((DataInput!Q26-AC26)+(DataInput!Q27-AC27))/2)*(A27-A26))/27+S17+T17,0),0),0),0)*$X$5),1) -> 0 | AE26: =DataInput!U26 -> 19 | AF26: =DataInput!S26 -> 37 | AG26: 51.8 | AH26: -32.8
A27: =IF(DataInput!A27<>"",DataInput!A27,"") -> 9675 | B27: =SUM(DataInput!C27,DataInput!Y27)+(DataInput!U27-DataInput!E27) -> 38 | C27: =SUM(DataInput!D27,DataInput!Z27) -> 23 | D27: =DataInput!U27 -> 15 | E27: =SUM(DataInput!F27,DataInput!AB27) -> 0 | F27: =SUM(DataInput!G27,DataInput!AC27) -> 0 | G27: =SUM(DataInput!H27,DataInput!AD27) -> 0 | H27: =DataInput!I27 -> 0 | I27: =SUM(DataInput!J27,DataInput!AF27) -> 0 | J27: =SUM(DataInput!K27,DataInput!AG27) -> 0 | K27: =SUM(DataInput!L27,DataInput!AH27) -> 0 | L27: =SUM(DataInput!M27,DataInput!AI27) -> 0 | M27: =SUM(DataInput!N27,DataInput!AJ27) -> 0 | N27: =SUM(DataInput!O27,DataInput!AK27) -> 0 | O27: =DataInput!P27 -> 0 | Q27: 23 | R27: =DataInput!R27 -> 15 | S27: =DataInput!Y27 -> 0 | T27: =IF(DataInput!U27-DataInput!E27>0,DataInput!U27-DataInput!E27,"") -> 15 | U27: =IF(DataInput!W27-DataInput!I27>0,DataInput!W27-DataInput!I27,"") ->  | W27: 30 | X27: 39 | Y27: -16 | Z27: 0 | AA27: 0 | AB27: =ROUNDDOWN((IF(AA28>0,IFERROR(IF(AVERAGE(DataInput!Q27:Q28)>AVERAGE(AA28,AA27),ROUNDDOWN(((((AA27-Z27)+(AA28-Z28))/2)*(A28-A27))/27+S18+T18,0),IF(((((DataInput!Q28-Z28)+(DataInput!Q27-Z27))/2)*(A28-A27))/27+S18+T18>0,ROUNDDOWN(((((DataInput!Q28-Z27)+(DataInput!Q27-Z27))/2)*(A28-A27))/27+S18+T18,0),0)),0),0)*$X$5),1) -> 0 | AC27: 0 | AD27: =ROUNDDOWN((IF(AC28>0,IFERROR(IF(((((DataInput!Q27-AC27)+(DataInput!Q28-AC28))/2)*(A28-A27))/27+S18+T18>0,ROUNDDOWN(((((DataInput!Q27-AC27)+(DataInput!Q28-AC28))/2)*(A28-A27))/27+S18+T18,0),0),0),0)*$X$5),1) -> 0 | AE27: =DataInput!U27 -> 15 | AF27: =DataInput!S27 -> 30 | AG27: 42 | AH27: -27
A28: =IF(DataInput!A28<>"",DataInput!A28,"") -> 9700 | B28: =SUM(DataInput!C28,DataInput!Y28)+(DataInput!U28-DataInput!E28) -> 21 | C28: =SUM(DataInput!D28,DataInput!Z28) -> 12 | D28: =DataInput!U28 -> 9 | E28: =SUM(DataInput!F28,DataInput!AB28) -> 0 | F28: =SUM(DataInput!G28,DataInput!AC28) -> 0 | G28: =SUM(DataInput!H28,DataInput!AD28) -> 0 | H28: =DataInput!I28 -> 0 | I28: =SUM(DataInput!J28,DataInput!AF28) -> 0 | J28: =SUM(DataInput!K28,DataInput!AG28) -> 0 | K28: =SUM(DataInput!L28,DataInput!AH28) -> 0 | L28: =SUM(DataInput!M28,DataInput!AI28) -> 0 | M28: =SUM(DataInput!N28,DataInput!AJ28) -> 0 | N28: =SUM(DataInput!O28,DataInput!AK28) -> 0 | O28: =DataInput!P28 -> 0 | Q28: 12 | R28: =DataInput!R28 -> 6 | S28: =DataInput!Y28 -> 0 | T28: =IF(DataInput!U28-DataInput!E28>0,DataInput!U28-DataInput!E28,"") -> 9 | U28: =IF(DataInput!W28-DataInput!I28>0,DataInput!W28-DataInput!I28,"") ->  | W28: 15 | X28: 19.5 | Y28: -7.5 | Z28: 0 | AA28: 0 | AB28: =ROUNDDOWN((IF(AA29>0,IFERROR(IF(AVERAGE(DataInput!Q28:Q29)>AVERAGE(AA29,AA28),ROUNDDOWN(((((AA28-Z28)+(AA29-Z29))/2)*(A29-A28))/27+S19+T19,0),IF(((((DataInput!Q29-Z29)+(DataInput!Q28-Z28))/2)*(A29-A28))/27+S19+T19>0,ROUNDDOWN(((((DataInput!Q29-Z28)+(DataInput!Q28-Z28))/2)*(A29-A28))/27+S19+T19,0),0)),0),0)*$X$5),1) -> 0 | AC28: 0 | AD28: =ROUNDDOWN((IF(AC29>0,IFERROR(IF(((((DataInput!Q28-AC28)+(DataInput!Q29-AC29))/2)*(A29-A28))/27+S19+T19>0,ROUNDDOWN(((((DataInput!Q28-AC28)+(DataInput!Q29-AC29))/2)*(A29-A28))/27+S19+T19,0),0),0),0)*$X$5),1) -> 0 | AE28: =DataInput!U28 -> 9 | AF28: =DataInput!S28 -> 19 | AG28: 26.6 | AH28: -17.6
A29: =IF(DataInput!A29<>"",DataInput!A29,"") -> 9725
A31: =IF(DataInput!A31<>"",DataInput!A31,"") -> Sta. 108+76
A32: =IF(DataInput!A32<>"",DataInput!A32,"") -> 10800 | B32: =SUM(DataInput!C32,DataInput!Y32)+(DataInput!U32-DataInput!E32) -> 37 | C32: =SUM(DataInput!D32,DataInput!Z32) -> 24 | D32: =DataInput!U32 -> 13 | E32: =SUM(DataInput!F32,DataInput!AB32) -> 0 | F32: =SUM(DataInput!G32,DataInput!AC32) -> 0 | G32: =SUM(DataInput!H32,DataInput!AD32) -> 0 | H32: =DataInput!I32 -> 0 | I32: =SUM(DataInput!J32,DataInput!AF32) -> 0 | J32: =SUM(DataInput!K32,DataInput!AG32) -> 0 | K32: =SUM(DataInput!L32,DataInput!AH32) -> 0 | L32: =SUM(DataInput!M32,DataInput!AI32) -> 0 | M32: =SUM(DataInput!N32,DataInput!AJ32) -> 0 | N32: =SUM(DataInput!O32,DataInput!AK32) -> 0 | O32: =DataInput!P32 -> 0 | Q32: =SUM(C32,E32:G32,I32:L32,N32:P32) -> 24 | R32: =DataInput!R32 -> 28 | S32: =DataInput!Y32 -> 0 | T32: =IF(DataInput!U32-DataInput!E32>0,DataInput!U32-DataInput!E32,"") -> 13 | U32: =IF(DataInput!W32-DataInput!I32>0,DataInput!W32-DataInput!I32,"") ->  | W32: =SUM(R32:V32) -> 41 | X32: =ROUNDUP(($W32*$X$5),1) -> 53.3 | Y32: =ROUNDUP(SUM(Q32-X32),1) -> -29.3 | AB32: =ROUNDDOWN((IF(AA33>0,IFERROR(IF(AVERAGE(DataInput!Q32:Q33)>AVERAGE(AA33,AA32),ROUNDDOWN(((((AA32-Z32)+(AA33-Z33))/2)*(A33-A32))/27+S12+T12,0),IF(((((DataInput!Q33-Z33)+(DataInput!Q32-Z32))/2)*(A33-A32))/27+S12+T12>0,ROUNDDOWN(((((DataInput!Q33-Z32)+(DataInput!Q32-Z32))/2)*(A33-A32))/27+S12+T12,0),0)),0),0)*$X$5),1) -> 0 | AD32: =ROUNDDOWN((IF(AC33>0,IFERROR(IF(((((DataInput!Q32-AC32)+(DataInput!Q33-AC33))/2)*(A33-A32))/27+S12+T12>0,ROUNDDOWN(((((DataInput!Q32-AC32)+(DataInput!Q33-AC33))/2)*(A33-A32))/27+S12+T12,0),0),0),0)*$X$5),1) -> 0 | AE32: =DataInput!U32 -> 13 | AF32: =DataInput!S32 -> 27 | AG32: =ROUNDUP((AF32*$AG$5),1) -> 37.8 | AH32: =ROUNDUP((AE32-AG32),1) -> -24.8
A33: =IF(DataInput!A33<>"",DataInput!A33,"") -> 10825 | B33: =SUM(DataInput!C33,DataInput!Y33)+(DataInput!U33-DataInput!E33) -> 72 | C33: =SUM(DataInput!D33,DataInput!Z33) -> 53 | D33: =DataInput!U33 -> 19 | E33: =SUM(DataInput!F33,DataInput!AB33) -> 0 | F33: =SUM(DataInput!G33,DataInput!AC33) -> 0 | G33: =SUM(DataInput!H33,DataInput!AD33) -> 0 | H33: =DataInput!I33 -> 0 | I33: =SUM(DataInput!J33,DataInput!AF33) -> 0 | J33: =SUM(DataInput!K33,DataInput!AG33) -> 0 | K33: =SUM(DataInput!L33,DataInput!AH33) -> 0 | L33: =SUM(DataInput!M33,DataInput!AI33) -> 0 | M33: =SUM(DataInput!N33,DataInput!AJ33) -> 0 | N33: =SUM(DataInput!O33,DataInput!AK33) -> 0 | O33: =DataInput!P33 -> 0 | Q33: =SUM(C33,E33:G33,I33:L33,N33:P33) -> 53 | R33: =DataInput!R33 -> 46 | S33: =DataInput!Y33 -> 0 | T33: =IF(DataInput!U33-DataInput!E33>0,DataInput!U33-DataInput!E33,"") -> 19 | U33: =IF(DataInput!W33-DataInput!I33>0,DataInput!W33-DataInput!I33,"") ->  | W33: =SUM(R33:V33) -> 65 | X33: =ROUNDUP(($W33*$X$5),1) -> 84.5 | Y33: =ROUNDUP(SUM(Q33-X33),1) -> -31.5 | Z33: =Z32 -> 0 | AA33: =AA32 -> 0 | AB33: =ROUNDDOWN((IF(AA34>0,IFERROR(IF(AVERAGE(DataInput!Q33:Q34)>AVERAGE(AA34,AA33),ROUNDDOWN(((((AA33-Z33)+(AA34-Z34))/2)*(A34-A33))/27+S13+T13,0),IF(((((DataInput!Q34-Z34)+(DataInput!Q33-Z33))/2)*(A34-A33))/27+S13+T13>0,ROUNDDOWN(((((DataInput!Q34-Z33)+(DataInput!Q33-Z33))/2)*(A34-A33))/27+S13+T13,0),0)),0),0)*$X$5),1) -> 0 | AC33: =AC32 -> 0 | AD33: =ROUNDDOWN((IF(AC34>0,IFERROR(IF(((((DataInput!Q33-AC33)+(DataInput!Q34-AC34))/2)*(A34-A33))/27+S13+T13>0,ROUNDDOWN(((((DataInput!Q33-AC33)+(DataInput!Q34-AC34))/2)*(A34-A33))/27+S13+T13,0),0),0),0)*$X$5),1) -> 0 | AE33: =DataInput!U33 -> 19 | AF33: =DataInput!S33 -> 38 | AG33: =ROUNDUP((AF33*$AG$5),1) -> 53.2 | AH33: =ROUNDUP((AE33-AG33),1) -> -34.2
A34: =IF(DataInput!A34<>"",DataInput!A34,"") -> 10850 | B34: =SUM(DataInput!C34,DataInput!Y34)+(DataInput!U34-DataInput!E34) -> 117 | C34: =SUM(DataInput!D34,DataInput!Z34) -> 95 | D34: =DataInput!U34 -> 22 | E34: =SUM(DataInput!F34,DataInput!AB34) -> 0 | F34: =SUM(DataInput!G34,DataInput!AC34) -> 0 | G34: =SUM(DataInput!H34,DataInput!AD34) -> 0 | H34: =DataInput!I34 -> 0 | I34: =SUM(DataInput!J34,DataInput!AF34) -> 0 | J34: =SUM(DataInput!K34,DataInput!AG34) -> 0 | K34: =SUM(DataInput!L34,DataInput!AH34) -> 0 | L34: =SUM(DataInput!M34,DataInput!AI34) -> 0 | M34: =SUM(DataInput!N34,DataInput!AJ34) -> 0 | N34: =SUM(DataInput!O34,DataInput!AK34) -> 0 | O34: =DataInput!P34 -> 0 | Q34: 95 | R34: =DataInput!R34 -> 46 | S34: =DataInput!Y34 -> 0 | T34: =IF(DataInput!U34-DataInput!E34>0,DataInput!U34-DataInput!E34,"") -> 22 | U34: =IF(DataInput!W34-DataInput!I34>0,DataInput!W34-DataInput!I34,"") ->  | W34: 68 | X34: 88.4 | Y34: 6.6 | Z34: =Z33 -> 0 | AA34: =AA33 -> 0 | AB34: =ROUNDDOWN((IF(AA35>0,IFERROR(IF(AVERAGE(DataInput!Q34:Q35)>AVERAGE(AA35,AA34),ROUNDDOWN(((((AA34-Z34)+(AA35-Z35))/2)*(A35-A34))/27+S14+T14,0),IF(((((DataInput!Q35-Z35)+(DataInput!Q34-Z34))/2)*(A35-A34))/27+S14+T14>0,ROUNDDOWN(((((DataInput!Q35-Z34)+(DataInput!Q34-Z34))/2)*(A35-A34))/27+S14+T14,0),0)),0),0)*$X$5),1) -> 0 | AC34: =AC33 -> 0 | AD34: =ROUNDDOWN((IF(AC35>0,IFERROR(IF(((((DataInput!Q34-AC34)+(DataInput!Q35-AC35))/2)*(A35-A34))/27+S14+T14>0,ROUNDDOWN(((((DataInput!Q34-AC34)+(DataInput!Q35-AC35))/2)*(A35-A34))/27+S14+T14,0),0),0),0)*$X$5),1) -> 0 | AE34: =DataInput!U34 -> 22 | AF34: =DataInput!S34 -> 45 | AG34: 63 | AH34: -41
A35: =IF(DataInput!A35<>"",DataInput!A35,"") -> 10875 | B35: =SUM(DataInput!C35,DataInput!Y35)+(DataInput!U35-DataInput!E35) -> 6 | C35: =SUM(DataInput!D35,DataInput!Z35) -> 5 | D35: =DataInput!U35 -> 1 | E35: =SUM(DataInput!F35,DataInput!AB35) -> 0 | F35: =SUM(DataInput!G35,DataInput!AC35) -> 0 | G35: =SUM(DataInput!H35,DataInput!AD35) -> 0 | H35: =DataInput!I35 -> 0 | I35: =SUM(DataInput!J35,DataInput!AF35) -> 0 | J35: =SUM(DataInput!K35,DataInput!AG35) -> 0 | K35: =SUM(DataInput!L35,DataInput!AH35) -> 0 | L35: =SUM(DataInput!M35,DataInput!AI35) -> 0 | M35: =SUM(DataInput!N35,DataInput!AJ35) -> 0 | N35: =SUM(DataInput!O35,DataInput!AK35) -> 0 | O35: =DataInput!P35 -> 0 | Q35: 5 | R35: =DataInput!R35 -> 1 | S35: =DataInput!Y35 -> 0 | T35: =IF(DataInput!U35-DataInput!E35>0,DataInput!U35-DataInput!E35,"") -> 1 | U35: =IF(DataInput!W35-DataInput!I35>0,DataInput!W35-DataInput!I35,"") ->  | W35: 2 | X35: 2.6 | Y35: 2.4 | Z35: 0 | AA35: 0 | AB35: =ROUNDDOWN((IF(AA36>0,IFERROR(IF(AVERAGE(DataInput!Q35:Q36)>AVERAGE(AA36,AA35),ROUNDDOWN(((((AA35-Z35)+(AA36-Z36))/2)*(A36-A35))/27+S15+T15,0),IF(((((DataInput!Q36-Z36)+(DataInput!Q35-Z35))/2)*(A36-A35))/27+S15+T15>0,ROUNDDOWN(((((DataInput!Q36-Z35)+(DataInput!Q35-Z35))/2)*(A36-A35))/27+S15+T15,0),0)),0),0)*$X$5),1) -> 0 | AC35: 0 | AD35: =ROUNDDOWN((IF(AC36>0,IFERROR(IF(((((DataInput!Q35-AC35)+(DataInput!Q36-AC36))/2)*(A36-A35))/27+S15+T15>0,ROUNDDOWN(((((DataInput!Q35-AC35)+(DataInput!Q36-AC36))/2)*(A36-A35))/27+S15+T15,0),0),0),0)*$X$5),1) -> 0 | AE35: =DataInput!U35 -> 1 | AF35: =DataInput!S35 -> 2 | AG35: 2.8 | AH35: -1.8
A36: =IF(DataInput!A36<>"",DataInput!A36,"") -> 10876 | B36: =SUM(DataInput!C36,DataInput!Y36)+(DataInput!U36-DataInput!E36) -> 139 | C36: =SUM(DataInput!D36,DataInput!Z36) -> 117 | D36: =DataInput!U36 -> 22 | E36: =SUM(DataInput!F36,DataInput!AB36) -> 0 | F36: =SUM(DataInput!G36,DataInput!AC36) -> 0 | G36: =SUM(DataInput!H36,DataInput!AD36) -> 0 | H36: =DataInput!I36 -> 0 | I36: =SUM(DataInput!J36,DataInput!AF36) -> 0 | J36: =SUM(DataInput!K36,DataInput!AG36) -> 0 | K36: =SUM(DataInput!L36,DataInput!AH36) -> 0 | L36: =SUM(DataInput!M36,DataInput!AI36) -> 0 | M36: =SUM(DataInput!N36,DataInput!AJ36) -> 0 | N36: =SUM(DataInput!O36,DataInput!AK36) -> 0 | O36: =DataInput!P36 -> 0 | Q36: 117 | R36: =DataInput!R36 -> 26 | S36: =DataInput!Y36 -> 0 | T36: =IF(DataInput!U36-DataInput!E36>0,DataInput!U36-DataInput!E36,"") -> 22 | U36: =IF(DataInput!W36-DataInput!I36>0,DataInput!W36-DataInput!I36,"") ->  | W36: 48 | X36: 62.4 | Y36: 54.6 | Z36: 0 | AA36: 0 | AB36: =ROUNDDOWN((IF(AA37>0,IFERROR(IF(AVERAGE(DataInput!Q36:Q37)>AVERAGE(AA37,AA36),ROUNDDOWN(((((AA36-Z36)+(AA37-Z37))/2)*(A37-A36))/27+S16+T16,0),IF(((((DataInput!Q37-Z37)+(DataInput!Q36-Z36))/2)*(A37-A36))/27+S16+T16>0,ROUNDDOWN(((((DataInput!Q37-Z36)+(DataInput!Q36-Z36))/2)*(A37-A36))/27+S16+T16,0),0)),0),0)*$X$5),1) -> 0 | AC36: 0 | AD36: =ROUNDDOWN((IF(AC37>0,IFERROR(IF(((((DataInput!Q36-AC36)+(DataInput!Q37-AC37))/2)*(A37-A36))/27+S16+T16>0,ROUNDDOWN(((((DataInput!Q36-AC36)+(DataInput!Q37-AC37))/2)*(A37-A36))/27+S16+T16,0),0),0),0)*$X$5),1) -> 0 | AE36: =DataInput!U36 -> 22 | AF36: =DataInput!S36 -> 43 | AG36: 60.2 | AH36: -38.2
A37: =IF(DataInput!A37<>"",DataInput!A37,"") -> 10900 | B37: =SUM(DataInput!C37,DataInput!Y37)+(DataInput!U37-DataInput!E37) -> 106 | C37: =SUM(DataInput!D37,DataInput!Z37) -> 89 | D37: =DataInput!U37 -> 17 | E37: =SUM(DataInput!F37,DataInput!AB37) -> 0 | F37: =SUM(DataInput!G37,DataInput!AC37) -> 0 | G37: =SUM(DataInput!H37,DataInput!AD37) -> 0 | H37: =DataInput!I37 -> 0 | I37: =SUM(DataInput!J37,DataInput!AF37) -> 0 | J37: =SUM(DataInput!K37,DataInput!AG37) -> 0 | K37: =SUM(DataInput!L37,DataInput!AH37) -> 0 | L37: =SUM(DataInput!M37,DataInput!AI37) -> 0 | M37: =SUM(DataInput!N37,DataInput!AJ37) -> 0 | N37: =SUM(DataInput!O37,DataInput!AK37) -> 0 | O37: =DataInput!P37 -> 0 | Q37: 89 | R37: =DataInput!R37 -> 10 | S37: =DataInput!Y37 -> 0 | T37: =IF(DataInput!U37-DataInput!E37>0,DataInput!U37-DataInput!E37,"") -> 17 | U37: =IF(DataInput!W37-DataInput!I37>0,DataInput!W37-DataInput!I37,"") ->  | W37: 27 | X37: 35.1 | Y37: 53.9 | Z37: 0 | AA37: 0 | AB37: =ROUNDDOWN((IF(AA38>0,IFERROR(IF(AVERAGE(DataInput!Q37:Q38)>AVERAGE(AA38,AA37),ROUNDDOWN(((((AA37-Z37)+(AA38-Z38))/2)*(A38-A37))/27+S17+T17,0),IF(((((DataInput!Q38-Z38)+(DataInput!Q37-Z37))/2)*(A38-A37))/27+S17+T17>0,ROUNDDOWN(((((DataInput!Q38-Z37)+(DataInput!Q37-Z37))/2)*(A38-A37))/27+S17+T17,0),0)),0),0)*$X$5),1) -> 0 | AC37: 0 | AD37: =ROUNDDOWN((IF(AC38>0,IFERROR(IF(((((DataInput!Q37-AC37)+(DataInput!Q38-AC38))/2)*(A38-A37))/27+S17+T17>0,ROUNDDOWN(((((DataInput!Q37-AC37)+(DataInput!Q38-AC38))/2)*(A38-A37))/27+S17+T17,0),0),0),0)*$X$5),1) -> 0 | AE37: =DataInput!U37 -> 17 | AF37: =DataInput!S37 -> 34 | AG37: 47.6 | AH37: -30.6
A38: =IF(DataInput!A38<>"",DataInput!A38,"") -> 10925 | B38: =SUM(DataInput!C38,DataInput!Y38)+(DataInput!U38-DataInput!E38) -> 49 | C38: =SUM(DataInput!D38,DataInput!Z38) -> 38 | D38: =DataInput!U38 -> 11 | E38: =SUM(DataInput!F38,DataInput!AB38) -> 0 | F38: =SUM(DataInput!G38,DataInput!AC38) -> 0 | G38: =SUM(DataInput!H38,DataInput!AD38) -> 0 | H38: =DataInput!I38 -> 0 | I38: =SUM(DataInput!J38,DataInput!AF38) -> 0 | J38: =SUM(DataInput!K38,DataInput!AG38) -> 0 | K38: =SUM(DataInput!L38,DataInput!AH38) -> 0 | L38: =SUM(DataInput!M38,DataInput!AI38) -> 0 | M38: =SUM(DataInput!N38,DataInput!AJ38) -> 0 | N38: =SUM(DataInput!O38,DataInput!AK38) -> 0 | O38: =DataInput!P38 -> 0 | Q38: 38 | R38: =DataInput!R38 -> 1 | S38: =DataInput!Y38 -> 0 | T38: =IF(DataInput!U38-DataInput!E38>0,DataInput!U38-DataInput!E38,"") -> 11 | U38: =IF(DataInput!W38-DataInput!I38>0,DataInput!W38-DataInput!I38,"") ->  | W38: 12 | X38: 15.6 | Y38: 22.4 | Z38: 0 | AA38: 0 | AB38: =ROUNDDOWN((IF(AA39>0,IFERROR(IF(AVERAGE(DataInput!Q38:Q39)>AVERAGE(AA39,AA38),ROUNDDOWN(((((AA38-Z38)+(AA39-Z39))/2)*(A39-A38))/27+S18+T18,0),IF(((((DataInput!Q39-Z39)+(DataInput!Q38-Z38))/2)*(A39-A38))/27+S18+T18>0,ROUNDDOWN(((((DataInput!Q39-Z38)+(DataInput!Q38-Z38))/2)*(A39-A38))/27+S18+T18,0),0)),0),0)*$X$5),1) -> 0 | AC38: 0 | AD38: =ROUNDDOWN((IF(AC39>0,IFERROR(IF(((((DataInput!Q38-AC38)+(DataInput!Q39-AC39))/2)*(A39-A38))/27+S18+T18>0,ROUNDDOWN(((((DataInput!Q38-AC38)+(DataInput!Q39-AC39))/2)*(A39-A38))/27+S18+T18,0),0),0),0)*$X$5),1) -> 0 | AE38: =DataInput!U38 -> 11 | AF38: =DataInput!S38 -> 22 | AG38: 30.8 | AH38: -19.8
A39: =IF(DataInput!A39<>"",DataInput!A39,"") -> 10950
A41: =IF(DataInput!A41<>"",DataInput!A41,"") -> Sta. 383+30
A42: =IF(DataInput!A42<>"",DataInput!A42,"") -> 38225 | B42: =SUM(DataInput!C42,DataInput!Y42)+(DataInput!U42-DataInput!E42) -> 40 | C42: =SUM(DataInput!D42,DataInput!Z42) -> 27 | D42: =DataInput!U42 -> 13 | E42: =SUM(DataInput!F42,DataInput!AB42) -> 0 | F42: =SUM(DataInput!G42,DataInput!AC42) -> 0 | G42: =SUM(DataInput!H42,DataInput!AD42) -> 0 | H42: =DataInput!I42 -> 0 | I42: =SUM(DataInput!J42,DataInput!AF42) -> 0 | J42: =SUM(DataInput!K42,DataInput!AG42) -> 0 | K42: =SUM(DataInput!L42,DataInput!AH42) -> 0 | L42: =SUM(DataInput!M42,DataInput!AI42) -> 0 | M42: =SUM(DataInput!N42,DataInput!AJ42) -> 0 | N42: =SUM(DataInput!O42,DataInput!AK42) -> 0 | O42: =DataInput!P42 -> 0 | Q42: =SUM(C42,E42:G42,I42:L42,N42:P42) -> 27 | R42: =DataInput!R42 -> 13 | S42: =DataInput!Y42 -> 0 | T42: =IF(DataInput!U42-DataInput!E42>0,DataInput!U42-DataInput!E42,"") -> 13 | U42: =IF(DataInput!W42-DataInput!I42>0,DataInput!W42-DataInput!I42,"") ->  | W42: =SUM(R42:V42) -> 26 | X42: =ROUNDUP(($W42*$X$5),1) -> 33.8 | Y42: =ROUNDUP(SUM(Q42-X42),1) -> -6.8 | AB42: =ROUNDDOWN((IF(AA43>0,IFERROR(IF(AVERAGE(DataInput!Q42:Q43)>AVERAGE(AA43,AA42),ROUNDDOWN(((((AA42-Z42)+(AA43-Z43))/2)*(A43-A42))/27+S12+T12,0),IF(((((DataInput!Q43-Z43)+(DataInput!Q42-Z42))/2)*(A43-A42))/27+S12+T12>0,ROUNDDOWN(((((DataInput!Q43-Z42)+(DataInput!Q42-Z42))/2)*(A43-A42))/27+S12+T12,0),0)),0),0)*$X$5),1) -> 0 | AD42: =ROUNDDOWN((IF(AC43>0,IFERROR(IF(((((DataInput!Q42-AC42)+(DataInput!Q43-AC43))/2)*(A43-A42))/27+S12+T12>0,ROUNDDOWN(((((DataInput!Q42-AC42)+(DataInput!Q43-AC43))/2)*(A43-A42))/27+S12+T12,0),0),0),0)*$X$5),1) -> 0 | AE42: =DataInput!U42 -> 13 | AF42: =DataInput!S42 -> 25 | AG42: =ROUNDUP((AF42*$AG$5),1) -> 35 | AH42: =ROUNDUP((AE42-AG42),1) -> -22
A43: =IF(DataInput!A43<>"",DataInput!A43,"") -> 38250 | B43: =SUM(DataInput!C43,DataInput!Y43)+(DataInput!U43-DataInput!E43) -> 59 | C43: =SUM(DataInput!D43,DataInput!Z43) -> 37 | D43: =DataInput!U43 -> 22 | E43: =SUM(DataInput!F43,DataInput!AB43) -> 0 | F43: =SUM(DataInput!G43,DataInput!AC43) -> 0 | G43: =SUM(DataInput!H43,DataInput!AD43) -> 0 | H43: =DataInput!I43 -> 0 | I43: =SUM(DataInput!J43,DataInput!AF43) -> 0 | J43: =SUM(DataInput!K43,DataInput!AG43) -> 0 | K43: =SUM(DataInput!L43,DataInput!AH43) -> 0 | L43: =SUM(DataInput!M43,DataInput!AI43) -> 0 | M43: =SUM(DataInput!N43,DataInput!AJ43) -> 0 | N43: =SUM(DataInput!O43,DataInput!AK43) -> 0 | O43: =DataInput!P43 -> 0 | Q43: =SUM(C43,E43:G43,I43:L43,N43:P43) -> 37 | R43: =DataInput!R43 -> 85 | S43: =DataInput!Y43 -> 0 | T43: =IF(DataInput!U43-DataInput!E43>0,DataInput!U43-DataInput!E43,"") -> 22 | U43: =IF(DataInput!W43-DataInput!I43>0,DataInput!W43-DataInput!I43,"") ->  | W43: =SUM(R43:V43) -> 107 | X43: =ROUNDUP(($W43*$X$5),1) -> 139.1 | Y43: =ROUNDUP(SUM(Q43-X43),1) -> -102.1 | Z43: =Z42 -> 0 | AA43: =AA42 -> 0 | AB43: =ROUNDDOWN((IF(AA44>0,IFERROR(IF(AVERAGE(DataInput!Q43:Q44)>AVERAGE(AA44,AA43),ROUNDDOWN(((((AA43-Z43)+(AA44-Z44))/2)*(A44-A43))/27+S13+T13,0),IF(((((DataInput!Q44-Z44)+(DataInput!Q43-Z43))/2)*(A44-A43))/27+S13+T13>0,ROUNDDOWN(((((DataInput!Q44-Z43)+(DataInput!Q43-Z43))/2)*(A44-A43))/27+S13+T13,0),0)),0),0)*$X$5),1) -> 0 | AC43: =AC42 -> 0 | AD43: =ROUNDDOWN((IF(AC44>0,IFERROR(IF(((((DataInput!Q43-AC43)+(DataInput!Q44-AC44))/2)*(A44-A43))/27+S13+T13>0,ROUNDDOWN(((((DataInput!Q43-AC43)+(DataInput!Q44-AC44))/2)*(A44-A43))/27+S13+T13,0),0),0),0)*$X$5),1) -> 0 | AE43: =DataInput!U43 -> 22 | AF43: =DataInput!S43 -> 45 | AG43: =ROUNDUP((AF43*$AG$5),1) -> 63 | AH43: =ROUNDUP((AE43-AG43),1) -> -41
A44: =IF(DataInput!A44<>"",DataInput!A44,"") -> 38275 | B44: =SUM(DataInput!C44,DataInput!Y44)+(DataInput!U44-DataInput!E44) -> 56 | C44: =SUM(DataInput!D44,DataInput!Z44) -> 28 | D44: =DataInput!U44 -> 28 | E44: =SUM(DataInput!F44,DataInput!AB44) -> 0 | F44: =SUM(DataInput!G44,DataInput!AC44) -> 0 | G44: =SUM(DataInput!H44,DataInput!AD44) -> 0 | H44: =DataInput!I44 -> 0 | I44: =SUM(DataInput!J44,DataInput!AF44) -> 0 | J44: =SUM(DataInput!K44,DataInput!AG44) -> 0 | K44: =SUM(DataInput!L44,DataInput!AH44) -> 0 | L44: =SUM(DataInput!M44,DataInput!AI44) -> 0 | M44: =SUM(DataInput!N44,DataInput!AJ44) -> 0 | N44: =SUM(DataInput!O44,DataInput!AK44) -> 0 | O44: =DataInput!P44 -> 0 | Q44: 28 | R44: =DataInput!R44 -> 367 | S44: =DataInput!Y44 -> 0 | T44: =IF(DataInput!U44-DataInput!E44>0,DataInput!U44-DataInput!E44,"") -> 28 | U44: =IF(DataInput!W44-DataInput!I44>0,DataInput!W44-DataInput!I44,"") ->  | W44: 395 | X44: 513.5 | Y44: -485.5 | Z44: =Z43 -> 0 | AA44: =AA43 -> 0 | AB44: =ROUNDDOWN((IF(AA45>0,IFERROR(IF(AVERAGE(DataInput!Q44:Q45)>AVERAGE(AA45,AA44),ROUNDDOWN(((((AA44-Z44)+(AA45-Z45))/2)*(A45-A44))/27+S14+T14,0),IF(((((DataInput!Q45-Z45)+(DataInput!Q44-Z44))/2)*(A45-A44))/27+S14+T14>0,ROUNDDOWN(((((DataInput!Q45-Z44)+(DataInput!Q44-Z44))/2)*(A45-A44))/27+S14+T14,0),0)),0),0)*$X$5),1) -> 0 | AC44: =AC43 -> 0 | AD44: =ROUNDDOWN((IF(AC45>0,IFERROR(IF(((((DataInput!Q44-AC44)+(DataInput!Q45-AC45))/2)*(A45-A44))/27+S14+T14>0,ROUNDDOWN(((((DataInput!Q44-AC44)+(DataInput!Q45-AC45))/2)*(A45-A44))/27+S14+T14,0),0),0),0)*$X$5),1) -> 0 | AE44: =DataInput!U44 -> 28 | AF44: =DataInput!S44 -> 38 | AG44: 53.2 | AH44: -25.2
A45: =IF(DataInput!A45<>"",DataInput!A45,"") -> 38300 | B45: =SUM(DataInput!C45,DataInput!Y45)+(DataInput!U45-DataInput!E45) -> 53 | C45: =SUM(DataInput!D45,DataInput!Z45) -> 31 | D45: =DataInput!U45 -> 22 | E45: =SUM(DataInput!F45,DataInput!AB45) -> 0 | F45: =SUM(DataInput!G45,DataInput!AC45) -> 0 | G45: =SUM(DataInput!H45,DataInput!AD45) -> 0 | H45: =DataInput!I45 -> 0 | I45: =SUM(DataInput!J45,DataInput!AF45) -> 0 | J45: =SUM(DataInput!K45,DataInput!AG45) -> 0 | K45: =SUM(DataInput!L45,DataInput!AH45) -> 0 | L45: =SUM(DataInput!M45,DataInput!AI45) -> 0 | M45: =SUM(DataInput!N45,DataInput!AJ45) -> 0 | N45: =SUM(DataInput!O45,DataInput!AK45) -> 0 | O45: =DataInput!P45 -> 0 | Q45: 31 | R45: =DataInput!R45 -> 463 | S45: =DataInput!Y45 -> 0 | T45: =IF(DataInput!U45-DataInput!E45>0,DataInput!U45-DataInput!E45,"") -> 22 | U45: =IF(DataInput!W45-DataInput!I45>0,DataInput!W45-DataInput!I45,"") ->  | W45: 485 | X45: 630.5 | Y45: -599.5 | Z45: 0 | AA45: 0 | AB45: =ROUNDDOWN((IF(AA46>0,IFERROR(IF(AVERAGE(DataInput!Q45:Q46)>AVERAGE(AA46,AA45),ROUNDDOWN(((((AA45-Z45)+(AA46-Z46))/2)*(A46-A45))/27+S15+T15,0),IF(((((DataInput!Q46-Z46)+(DataInput!Q45-Z45))/2)*(A46-A45))/27+S15+T15>0,ROUNDDOWN(((((DataInput!Q46-Z45)+(DataInput!Q45-Z45))/2)*(A46-A45))/27+S15+T15,0),0)),0),0)*$X$5),1) -> 0 | AC45: 0 | AD45: =ROUNDDOWN((IF(AC46>0,IFERROR(IF(((((DataInput!Q45-AC45)+(DataInput!Q46-AC46))/2)*(A46-A45))/27+S15+T15>0,ROUNDDOWN(((((DataInput!Q45-AC45)+(DataInput!Q46-AC46))/2)*(A46-A45))/27+S15+T15,0),0),0),0)*$X$5),1) -> 0 | AE45: =DataInput!U45 -> 22 | AF45: =DataInput!S45 -> 41 | AG45: 57.4 | AH45: -35.4
A46: =IF(DataInput!A46<>"",DataInput!A46,"") -> 38325 | B46: =SUM(DataInput!C46,DataInput!Y46)+(DataInput!U46-DataInput!E46) -> 28 | C46: =SUM(DataInput!D46,DataInput!Z46) -> 7 | D46: =DataInput!U46 -> 21 | E46: =SUM(DataInput!F46,DataInput!AB46) -> 0 | F46: =SUM(DataInput!G46,DataInput!AC46) -> 0 | G46: =SUM(DataInput!H46,DataInput!AD46) -> 0 | H46: =DataInput!I46 -> 0 | I46: =SUM(DataInput!J46,DataInput!AF46) -> 0 | J46: =SUM(DataInput!K46,DataInput!AG46) -> 0 | K46: =SUM(DataInput!L46,DataInput!AH46) -> 0 | L46: =SUM(DataInput!M46,DataInput!AI46) -> 0 | M46: =SUM(DataInput!N46,DataInput!AJ46) -> 0 | N46: =SUM(DataInput!O46,DataInput!AK46) -> 0 | O46: =DataInput!P46 -> 0 | Q46: 7 | R46: =DataInput!R46 -> 78 | S46: =DataInput!Y46 -> 0 | T46: =IF(DataInput!U46-DataInput!E46>0,DataInput!U46-DataInput!E46,"") -> 21 | U46: =IF(DataInput!W46-DataInput!I46>0,DataInput!W46-DataInput!I46,"") ->  | W46: 99 | X46: 128.7 | Y46: -121.7 | Z46: 0 | AA46: 0 | AB46: =ROUNDDOWN((IF(AA47>0,IFERROR(IF(AVERAGE(DataInput!Q46:Q47)>AVERAGE(AA47,AA46),ROUNDDOWN(((((AA46-Z46)+(AA47-Z47))/2)*(A47-A46))/27+S16+T16,0),IF(((((DataInput!Q47-Z47)+(DataInput!Q46-Z46))/2)*(A47-A46))/27+S16+T16>0,ROUNDDOWN(((((DataInput!Q47-Z46)+(DataInput!Q46-Z46))/2)*(A47-A46))/27+S16+T16,0),0)),0),0)*$X$5),1) -> 0 | AC46: 0 | AD46: =ROUNDDOWN((IF(AC47>0,IFERROR(IF(((((DataInput!Q46-AC46)+(DataInput!Q47-AC47))/2)*(A47-A46))/27+S16+T16>0,ROUNDDOWN(((((DataInput!Q46-AC46)+(DataInput!Q47-AC47))/2)*(A47-A46))/27+S16+T16,0),0),0),0)*$X$5),1) -> 0 | AE46: =DataInput!U46 -> 21 | AF46: =DataInput!S46 -> 12 | AG46: 16.8 | AH46: 4.2
A47: =IF(DataInput!A47<>"",DataInput!A47,"") -> 38330.14 | B47: =SUM(DataInput!C47,DataInput!Y47)+(DataInput!U47-DataInput!E47) -> 19 | C47: =SUM(DataInput!D47,DataInput!Z47) -> 19 | D47: =DataInput!U47 -> 0 | E47: =SUM(DataInput!F47,DataInput!AB47) -> 0 | F47: =SUM(DataInput!G47,DataInput!AC47) -> 0 | G47: =SUM(DataInput!H47,DataInput!AD47) -> 0 | H47: =DataInput!I47 -> 0 | I47: =SUM(DataInput!J47,DataInput!AF47) -> 0 | J47: =SUM(DataInput!K47,DataInput!AG47) -> 0 | K47: =SUM(DataInput!L47,DataInput!AH47) -> 0 | L47: =SUM(DataInput!M47,DataInput!AI47) -> 0 | M47: =SUM(DataInput!N47,DataInput!AJ47) -> 0 | N47: =SUM(DataInput!O47,DataInput!AK47) -> 0 | O47: =DataInput!P47 -> 0 | Q47: 19 | R47: =DataInput!R47 -> 222 | S47: =DataInput!Y47 -> 0 | T47: =IF(DataInput!U47-DataInput!E47>0,DataInput!U47-DataInput!E47,"") ->  | U47: =IF(DataInput!W47-DataInput!I47>0,DataInput!W47-DataInput!I47,"") ->  | W47: 222 | X47: 288.6 | Y47: -269.6 | Z47: 0 | AA47: 0 | AB47: =ROUNDDOWN((IF(AA48>0,IFERROR(IF(AVERAGE(DataInput!Q47:Q48)>AVERAGE(AA48,AA47),ROUNDDOWN(((((AA47-Z47)+(AA48-Z48))/2)*(A48-A47))/27+S17+T17,0),IF(((((DataInput!Q48-Z48)+(DataInput!Q47-Z47))/2)*(A48-A47))/27+S17+T17>0,ROUNDDOWN(((((DataInput!Q48-Z47)+(DataInput!Q47-Z47))/2)*(A48-A47))/27+S17+T17,0),0)),0),0)*$X$5),1) -> 0 | AC47: 0 | AD47: =ROUNDDOWN((IF(AC48>0,IFERROR(IF(((((DataInput!Q47-AC47)+(DataInput!Q48-AC48))/2)*(A48-A47))/27+S17+T17>0,ROUNDDOWN(((((DataInput!Q47-AC47)+(DataInput!Q48-AC48))/2)*(A48-A47))/27+S17+T17,0),0),0),0)*$X$5),1) -> 0 | AE47: =DataInput!U47 -> 0 | AF47: =DataInput!S47 -> 45 | AG47: 63 | AH47: -63
A48: =IF(DataInput!A48<>"",DataInput!A48,"") -> 38350 | B48: =SUM(DataInput!C48,DataInput!Y48)+(DataInput!U48-DataInput!E48) -> 49 | C48: =SUM(DataInput!D48,DataInput!Z48) -> 27 | D48: =DataInput!U48 -> 22 | E48: =SUM(DataInput!F48,DataInput!AB48) -> 0 | F48: =SUM(DataInput!G48,DataInput!AC48) -> 0 | G48: =SUM(DataInput!H48,DataInput!AD48) -> 0 | H48: =DataInput!I48 -> 0 | I48: =SUM(DataInput!J48,DataInput!AF48) -> 0 | J48: =SUM(DataInput!K48,DataInput!AG48) -> 0 | K48: =SUM(DataInput!L48,DataInput!AH48) -> 0 | L48: =SUM(DataInput!M48,DataInput!AI48) -> 0 | M48: =SUM(DataInput!N48,DataInput!AJ48) -> 0 | N48: =SUM(DataInput!O48,DataInput!AK48) -> 0 | O48: =DataInput!P48 -> 0 | Q48: 27 | R48: =DataInput!R48 -> 83 | S48: =DataInput!Y48 -> 0 | T48: =IF(DataInput!U48-DataInput!E48>0,DataInput!U48-DataInput!E48,"") -> 22 | U48: =IF(DataInput!W48-DataInput!I48>0,DataInput!W48-DataInput!I48,"") ->  | W48: 105 | X48: 136.5 | Y48: -109.5 | Z48: 0 | AA48: 0 | AB48: =ROUNDDOWN((IF(AA49>0,IFERROR(IF(AVERAGE(DataInput!Q48:Q49)>AVERAGE(AA49,AA48),ROUNDDOWN(((((AA48-Z48)+(AA49-Z49))/2)*(A49-A48))/27+S18+T18,0),IF(((((DataInput!Q49-Z49)+(DataInput!Q48-Z48))/2)*(A49-A48))/27+S18+T18>0,ROUNDDOWN(((((DataInput!Q49-Z48)+(DataInput!Q48-Z48))/2)*(A49-A48))/27+S18+T18,0),0)),0),0)*$X$5),1) -> 0 | AC48: 0 | AD48: =ROUNDDOWN((IF(AC49>0,IFERROR(IF(((((DataInput!Q48-AC48)+(DataInput!Q49-AC49))/2)*(A49-A48))/27+S18+T18>0,ROUNDDOWN(((((DataInput!Q48-AC48)+(DataInput!Q49-AC49))/2)*(A49-A48))/27+S18+T18,0),0),0),0)*$X$5),1) -> 0 | AE48: =DataInput!U48 -> 22 | AF48: =DataInput!S48 -> 44 | AG48: 61.6 | AH48: -39.6
A49: =IF(DataInput!A49<>"",DataInput!A49,"") -> 38375 | B49: =SUM(DataInput!C49,DataInput!Y49)+(DataInput!U49-DataInput!E49) -> 41 | C49: =SUM(DataInput!D49,DataInput!Z49) -> 27 | D49: =DataInput!U49 -> 14 | E49: =SUM(DataInput!F49,DataInput!AB49) -> 0 | F49: =SUM(DataInput!G49,DataInput!AC49) -> 0 | G49: =SUM(DataInput!H49,DataInput!AD49) -> 0 | H49: =DataInput!I49 -> 0 | I49: =SUM(DataInput!J49,DataInput!AF49) -> 0 | J49: =SUM(DataInput!K49,DataInput!AG49) -> 0 | K49: =SUM(DataInput!L49,DataInput!AH49) -> 0 | L49: =SUM(DataInput!M49,DataInput!AI49) -> 0 | M49: =SUM(DataInput!N49,DataInput!AJ49) -> 0 | N49: =SUM(DataInput!O49,DataInput!AK49) -> 0 | O49: =DataInput!P49 -> 0 | Q49: 27 | R49: =DataInput!R49 -> 16 | S49: =DataInput!Y49 -> 0 | T49: =IF(DataInput!U49-DataInput!E49>0,DataInput!U49-DataInput!E49,"") -> 14 | U49: =IF(DataInput!W49-DataInput!I49>0,DataInput!W49-DataInput!I49,"") ->  | W49: 30 | X49: 39 | Y49: -12 | Z49: 0 | AA49: 0 | AB49: =ROUNDDOWN((IF(AA50>0,IFERROR(IF(AVERAGE(DataInput!Q49:Q50)>AVERAGE(AA50,AA49),ROUNDDOWN(((((AA49-Z49)+(AA50-Z50))/2)*(A50-A49))/27+S19+T19,0),IF(((((DataInput!Q50-Z50)+(DataInput!Q49-Z49))/2)*(A50-A49))/27+S19+T19>0,ROUNDDOWN(((((DataInput!Q50-Z49)+(DataInput!Q49-Z49))/2)*(A50-A49))/27+S19+T19,0),0)),0),0)*$X$5),1) -> 0 | AC49: 0 | AD49: =ROUNDDOWN((IF(AC50>0,IFERROR(IF(((((DataInput!Q49-AC49)+(DataInput!Q50-AC50))/2)*(A50-A49))/27+S19+T19>0,ROUNDDOWN(((((DataInput!Q49-AC49)+(DataInput!Q50-AC50))/2)*(A50-A49))/27+S19+T19,0),0),0),0)*$X$5),1) -> 0 | AE49: =DataInput!U49 -> 14 | AF49: =DataInput!S49 -> 27 | AG49: 37.8 | AH49: -23.8
A50: =IF(DataInput!A50<>"",DataInput!A50,"") -> 38400 | B50: =SUM(DataInput!C50,DataInput!Y50)+(DataInput!U50-DataInput!E50) -> 30 | C50: =SUM(DataInput!D50,DataInput!Z50) -> 22 | D50: =DataInput!U50 -> 8 | E50: =SUM(DataInput!F50,DataInput!AB50) -> 0 | F50: =SUM(DataInput!G50,DataInput!AC50) -> 0 | G50: =SUM(DataInput!H50,DataInput!AD50) -> 0 | H50: =DataInput!I50 -> 0 | I50: =SUM(DataInput!J50,DataInput!AF50) -> 0 | J50: =SUM(DataInput!K50,DataInput!AG50) -> 0 | K50: =SUM(DataInput!L50,DataInput!AH50) -> 0 | L50: =SUM(DataInput!M50,DataInput!AI50) -> 0 | M50: =SUM(DataInput!N50,DataInput!AJ50) -> 0 | N50: =SUM(DataInput!O50,DataInput!AK50) -> 0 | O50: =DataInput!P50 -> 0 | Q50: 22 | R50: =DataInput!R50 -> 0 | S50: =DataInput!Y50 -> 0 | T50: =IF(DataInput!U50-DataInput!E50>0,DataInput!U50-DataInput!E50,"") -> 8 | U50: =IF(DataInput!W50-DataInput!I50>0,DataInput!W50-DataInput!I50,"") ->  | W50: 8 | X50: 10.4 | Y50: 11.6 | Z50: 0 | AA50: 0 | AB50: =ROUNDDOWN((IF(AA51>0,IFERROR(IF(AVERAGE(DataInput!Q50:Q51)>AVERAGE(AA51,AA50),ROUNDDOWN(((((AA50-Z50)+(AA51-Z51))/2)*(A51-A50))/27+S20+T20,0),IF(((((DataInput!Q51-Z51)+(DataInput!Q50-Z50))/2)*(A51-A50))/27+S20+T20>0,ROUNDDOWN(((((DataInput!Q51-Z50)+(DataInput!Q50-Z50))/2)*(A51-A50))/27+S20+T20,0),0)),0),0)*$X$5),1) -> 0 | AC50: 0 | AD50: =ROUNDDOWN((IF(AC51>0,IFERROR(IF(((((DataInput!Q50-AC50)+(DataInput!Q51-AC51))/2)*(A51-A50))/27+S20+T20>0,ROUNDDOWN(((((DataInput!Q50-AC50)+(DataInput!Q51-AC51))/2)*(A51-A50))/27+S20+T20,0),0),0),0)*$X$5),1) -> 0 | AE50: =DataInput!U50 -> 8 | AF50: =DataInput!S50 -> 16 | AG50: 22.4 | AH50: -14.4
A51: =IF(DataInput!A51<>"",DataInput!A51,"") -> 38425 | B51: =SUM(DataInput!C51,DataInput!Y51)+(DataInput!U51-DataInput!E51) -> 23 | C51: =SUM(DataInput!D51,DataInput!Z51) -> 17 | D51: =DataInput!U51 -> 6 | E51: =SUM(DataInput!F51,DataInput!AB51) -> 0 | F51: =SUM(DataInput!G51,DataInput!AC51) -> 0 | G51: =SUM(DataInput!H51,DataInput!AD51) -> 0 | H51: =DataInput!I51 -> 0 | I51: =SUM(DataInput!J51,DataInput!AF51) -> 0 | J51: =SUM(DataInput!K51,DataInput!AG51) -> 0 | K51: =SUM(DataInput!L51,DataInput!AH51) -> 0 | L51: =SUM(DataInput!M51,DataInput!AI51) -> 0 | M51: =SUM(DataInput!N51,DataInput!AJ51) -> 0 | N51: =SUM(DataInput!O51,DataInput!AK51) -> 0 | O51: =DataInput!P51 -> 0 | Q51: 17 | R51: =DataInput!R51 -> 0 | S51: =DataInput!Y51 -> 0 | T51: =IF(DataInput!U51-DataInput!E51>0,DataInput!U51-DataInput!E51,"") -> 6 | U51: =IF(DataInput!W51-DataInput!I51>0,DataInput!W51-DataInput!I51,"") ->  | W51: 6 | X51: 7.8 | Y51: 9.2 | Z51: 0 | AA51: 0 | AB51: =ROUNDDOWN((IF(AA52>0,IFERROR(IF(AVERAGE(DataInput!Q51:Q52)>AVERAGE(AA52,AA51),ROUNDDOWN(((((AA51-Z51)+(AA52-Z52))/2)*(A52-A51))/27+S21+T21,0),IF(((((DataInput!Q52-Z52)+(DataInput!Q51-Z51))/2)*(A52-A51))/27+S21+T21>0,ROUNDDOWN(((((DataInput!Q52-Z51)+(DataInput!Q51-Z51))/2)*(A52-A51))/27+S21+T21,0),0)),0),0)*$X$5),1) -> 0 | AC51: 0 | AD51: =ROUNDDOWN((IF(AC52>0,IFERROR(IF(((((DataInput!Q51-AC51)+(DataInput!Q52-AC52))/2)*(A52-A51))/27+S21+T21>0,ROUNDDOWN(((((DataInput!Q51-AC51)+(DataInput!Q52-AC52))/2)*(A52-A51))/27+S21+T21,0),0),0),0)*$X$5),1) -> 0 | AE51: =DataInput!U51 -> 6 | AF51: =DataInput!S51 -> 12 | AG51: 16.8 | AH51: -10.8
A52: =IF(DataInput!A52<>"",DataInput!A52,"") -> 38450 | B52: =SUM(DataInput!C52,DataInput!Y52)+(DataInput!U52-DataInput!E52) -> 19 | C52: =SUM(DataInput!D52,DataInput!Z52) -> 14 | D52: =DataInput!U52 -> 5 | E52: =SUM(DataInput!F52,DataInput!AB52) -> 0 | F52: =SUM(DataInput!G52,DataInput!AC52) -> 0 | G52: =SUM(DataInput!H52,DataInput!AD52) -> 0 | H52: =DataInput!I52 -> 0 | I52: =SUM(DataInput!J52,DataInput!AF52) -> 0 | J52: =SUM(DataInput!K52,DataInput!AG52) -> 0 | K52: =SUM(DataInput!L52,DataInput!AH52) -> 0 | L52: =SUM(DataInput!M52,DataInput!AI52) -> 0 | M52: =SUM(DataInput!N52,DataInput!AJ52) -> 0 | N52: =SUM(DataInput!O52,DataInput!AK52) -> 0 | O52: =DataInput!P52 -> 0 | Q52: 14 | R52: =DataInput!R52 -> 0 | S52: =DataInput!Y52 -> 0 | T52: =IF(DataInput!U52-DataInput!E52>0,DataInput!U52-DataInput!E52,"") -> 5 | U52: =IF(DataInput!W52-DataInput!I52>0,DataInput!W52-DataInput!I52,"") ->  | W52: 5 | X52: 6.5 | Y52: 7.5 | Z52: 0 | AA52: 0 | AB52: =ROUNDDOWN((IF(AA53>0,IFERROR(IF(AVERAGE(DataInput!Q52:Q53)>AVERAGE(AA53,AA52),ROUNDDOWN(((((AA52-Z52)+(AA53-Z53))/2)*(A53-A52))/27+S22+T22,0),IF(((((DataInput!Q53-Z53)+(DataInput!Q52-Z52))/2)*(A53-A52))/27+S22+T22>0,ROUNDDOWN(((((DataInput!Q53-Z52)+(DataInput!Q52-Z52))/2)*(A53-A52))/27+S22+T22,0),0)),0),0)*$X$5),1) -> 0 | AC52: 0 | AD52: =ROUNDDOWN((IF(AC53>0,IFERROR(IF(((((DataInput!Q52-AC52)+(DataInput!Q53-AC53))/2)*(A53-A52))/27+S22+T22>0,ROUNDDOWN(((((DataInput!Q52-AC52)+(DataInput!Q53-AC53))/2)*(A53-A52))/27+S22+T22,0),0),0),0)*$X$5),1) -> 0 | AE52: =DataInput!U52 -> 5 | AF52: =DataInput!S52 -> 9 | AG52: 12.6 | AH52: -7.6
A53: =IF(DataInput!A53<>"",DataInput!A53,"") -> 38475
A55: =IF(DataInput!A55<>"",DataInput!A55,"") -> Sta. 539+60
A56: =IF(DataInput!A56<>"",DataInput!A56,"") -> 53875 | B56: =SUM(DataInput!C56,DataInput!Y56)+(DataInput!U56-DataInput!E56) -> 27 | C56: =SUM(DataInput!D56,DataInput!Z56) -> 15 | D56: =DataInput!U56 -> 12 | E56: =SUM(DataInput!F56,DataInput!AB56) -> 0 | F56: =SUM(DataInput!G56,DataInput!AC56) -> 0 | G56: =SUM(DataInput!H56,DataInput!AD56) -> 0 | H56: =DataInput!I56 -> 0 | I56: =SUM(DataInput!J56,DataInput!AF56) -> 0 | J56: =SUM(DataInput!K56,DataInput!AG56) -> 0 | K56: =SUM(DataInput!L56,DataInput!AH56) -> 0 | L56: =SUM(DataInput!M56,DataInput!AI56) -> 0 | M56: =SUM(DataInput!N56,DataInput!AJ56) -> 0 | N56: =SUM(DataInput!O56,DataInput!AK56) -> 0 | O56: =DataInput!P56 -> 0 | Q56: =SUM(C56,E56:G56,I56:L56,N56:P56) -> 15 | R56: =DataInput!R56 -> 13 | S56: =DataInput!Y56 -> 0 | T56: =IF(DataInput!U56-DataInput!E56>0,DataInput!U56-DataInput!E56,"") -> 12 | U56: =IF(DataInput!W56-DataInput!I56>0,DataInput!W56-DataInput!I56,"") ->  | W56: =SUM(R56:V56) -> 25 | X56: =ROUNDUP(($W56*$X$5),1) -> 32.5 | Y56: =ROUNDUP(SUM(Q56-X56),1) -> -17.5 | AB56: =ROUNDDOWN((IF(AA57>0,IFERROR(IF(AVERAGE(DataInput!Q56:Q57)>AVERAGE(AA57,AA56),ROUNDDOWN(((((AA56-Z56)+(AA57-Z57))/2)*(A57-A56))/27+S12+T12,0),IF(((((DataInput!Q57-Z57)+(DataInput!Q56-Z56))/2)*(A57-A56))/27+S12+T12>0,ROUNDDOWN(((((DataInput!Q57-Z56)+(DataInput!Q56-Z56))/2)*(A57-A56))/27+S12+T12,0),0)),0),0)*$X$5),1) -> 0 | AD56: =ROUNDDOWN((IF(AC57>0,IFERROR(IF(((((DataInput!Q56-AC56)+(DataInput!Q57-AC57))/2)*(A57-A56))/27+S12+T12>0,ROUNDDOWN(((((DataInput!Q56-AC56)+(DataInput!Q57-AC57))/2)*(A57-A56))/27+S12+T12,0),0),0),0)*$X$5),1) -> 0 | AE56: =DataInput!U56 -> 12 | AF56: =DataInput!S56 -> 25 | AG56: =ROUNDUP((AF56*$AG$5),1) -> 35 | AH56: =ROUNDUP((AE56-AG56),1) -> -23
A57: =IF(DataInput!A57<>"",DataInput!A57,"") -> 53900 | B57: =SUM(DataInput!C57,DataInput!Y57)+(DataInput!U57-DataInput!E57) -> 52 | C57: =SUM(DataInput!D57,DataInput!Z57) -> 32 | D57: =DataInput!U57 -> 20 | E57: =SUM(DataInput!F57,DataInput!AB57) -> 0 | F57: =SUM(DataInput!G57,DataInput!AC57) -> 0 | G57: =SUM(DataInput!H57,DataInput!AD57) -> 0 | H57: =DataInput!I57 -> 0 | I57: =SUM(DataInput!J57,DataInput!AF57) -> 0 | J57: =SUM(DataInput!K57,DataInput!AG57) -> 0 | K57: =SUM(DataInput!L57,DataInput!AH57) -> 0 | L57: =SUM(DataInput!M57,DataInput!AI57) -> 0 | M57: =SUM(DataInput!N57,DataInput!AJ57) -> 0 | N57: =SUM(DataInput!O57,DataInput!AK57) -> 0 | O57: =DataInput!P57 -> 0 | Q57: =SUM(C57,E57:G57,I57:L57,N57:P57) -> 32 | R57: =DataInput!R57 -> 53 | S57: =DataInput!Y57 -> 0 | T57: =IF(DataInput!U57-DataInput!E57>0,DataInput!U57-DataInput!E57,"") -> 20 | U57: =IF(DataInput!W57-DataInput!I57>0,DataInput!W57-DataInput!I57,"") ->  | W57: =SUM(R57:V57) -> 73 | X57: =ROUNDUP(($W57*$X$5),1) -> 94.9 | Y57: =ROUNDUP(SUM(Q57-X57),1) -> -62.9 | Z57: =Z56 -> 0 | AA57: =AA56 -> 0 | AB57: =ROUNDDOWN((IF(AA58>0,IFERROR(IF(AVERAGE(DataInput!Q57:Q58)>AVERAGE(AA58,AA57),ROUNDDOWN(((((AA57-Z57)+(AA58-Z58))/2)*(A58-A57))/27+S13+T13,0),IF(((((DataInput!Q58-Z58)+(DataInput!Q57-Z57))/2)*(A58-A57))/27+S13+T13>0,ROUNDDOWN(((((DataInput!Q58-Z57)+(DataInput!Q57-Z57))/2)*(A58-A57))/27+S13+T13,0),0)),0),0)*$X$5),1) -> 0 | AC57: =AC56 -> 0 | AD57: =ROUNDDOWN((IF(AC58>0,IFERROR(IF(((((DataInput!Q57-AC57)+(DataInput!Q58-AC58))/2)*(A58-A57))/27+S13+T13>0,ROUNDDOWN(((((DataInput!Q57-AC57)+(DataInput!Q58-AC58))/2)*(A58-A57))/27+S13+T13,0),0),0),0)*$X$5),1) -> 0 | AE57: =DataInput!U57 -> 20 | AF57: =DataInput!S57 -> 40 | AG57: =ROUNDUP((AF57*$AG$5),1) -> 56 | AH57: =ROUNDUP((AE57-AG57),1) -> -36
A58: =IF(DataInput!A58<>"",DataInput!A58,"") -> 53925 | B58: =SUM(DataInput!C58,DataInput!Y58)+(DataInput!U58-DataInput!E58) -> 68 | C58: =SUM(DataInput!D58,DataInput!Z58) -> 43 | D58: =DataInput!U58 -> 25 | E58: =SUM(DataInput!F58,DataInput!AB58) -> 0 | F58: =SUM(DataInput!G58,DataInput!AC58) -> 0 | G58: =SUM(DataInput!H58,DataInput!AD58) -> 0 | H58: =DataInput!I58 -> 0 | I58: =SUM(DataInput!J58,DataInput!AF58) -> 0 | J58: =SUM(DataInput!K58,DataInput!AG58) -> 0 | K58: =SUM(DataInput!L58,DataInput!AH58) -> 0 | L58: =SUM(DataInput!M58,DataInput!AI58) -> 0 | M58: =SUM(DataInput!N58,DataInput!AJ58) -> 0 | N58: =SUM(DataInput!O58,DataInput!AK58) -> 0 | O58: =DataInput!P58 -> 0 | Q58: 43 | R58: =DataInput!R58 -> 115 | S58: =DataInput!Y58 -> 0 | T58: =IF(DataInput!U58-DataInput!E58>0,DataInput!U58-DataInput!E58,"") -> 25 | U58: =IF(DataInput!W58-DataInput!I58>0,DataInput!W58-DataInput!I58,"") ->  | W58: 140 | X58: 182 | Y58: -139 | Z58: =Z57 -> 0 | AA58: =AA57 -> 0 | AB58: =ROUNDDOWN((IF(AA59>0,IFERROR(IF(AVERAGE(DataInput!Q58:Q59)>AVERAGE(AA59,AA58),ROUNDDOWN(((((AA58-Z58)+(AA59-Z59))/2)*(A59-A58))/27+S14+T14,0),IF(((((DataInput!Q59-Z59)+(DataInput!Q58-Z58))/2)*(A59-A58))/27+S14+T14>0,ROUNDDOWN(((((DataInput!Q59-Z58)+(DataInput!Q58-Z58))/2)*(A59-A58))/27+S14+T14,0),0)),0),0)*$X$5),1) -> 0 | AC58: =AC57 -> 0 | AD58: =ROUNDDOWN((IF(AC59>0,IFERROR(IF(((((DataInput!Q58-AC58)+(DataInput!Q59-AC59))/2)*(A59-A58))/27+S14+T14>0,ROUNDDOWN(((((DataInput!Q58-AC58)+(DataInput!Q59-AC59))/2)*(A59-A58))/27+S14+T14,0),0),0),0)*$X$5),1) -> 0 | AE58: =DataInput!U58 -> 25 | AF58: =DataInput!S58 -> 49 | AG58: 68.6 | AH58: -43.6
A59: =IF(DataInput!A59<>"",DataInput!A59,"") -> 53950 | B59: =SUM(DataInput!C59,DataInput!Y59)+(DataInput!U59-DataInput!E59) -> 28 | C59: =SUM(DataInput!D59,DataInput!Z59) -> 17 | D59: =DataInput!U59 -> 11 | E59: =SUM(DataInput!F59,DataInput!AB59) -> 0 | F59: =SUM(DataInput!G59,DataInput!AC59) -> 0 | G59: =SUM(DataInput!H59,DataInput!AD59) -> 0 | H59: =DataInput!I59 -> 0 | I59: =SUM(DataInput!J59,DataInput!AF59) -> 0 | J59: =SUM(DataInput!K59,DataInput!AG59) -> 0 | K59: =SUM(DataInput!L59,DataInput!AH59) -> 0 | L59: =SUM(DataInput!M59,DataInput!AI59) -> 0 | M59: =SUM(DataInput!N59,DataInput!AJ59) -> 0 | N59: =SUM(DataInput!O59,DataInput!AK59) -> 0 | O59: =DataInput!P59 -> 0 | Q59: 17 | R59: =DataInput!R59 -> 59 | S59: =DataInput!Y59 -> 0 | T59: =IF(DataInput!U59-DataInput!E59>0,DataInput!U59-DataInput!E59,"") -> 11 | U59: =IF(DataInput!W59-DataInput!I59>0,DataInput!W59-DataInput!I59,"") ->  | W59: 70 | X59: 91 | Y59: -74 | Z59: 0 | AA59: 0 | AB59: =ROUNDDOWN((IF(AA60>0,IFERROR(IF(AVERAGE(DataInput!Q59:Q60)>AVERAGE(AA60,AA59),ROUNDDOWN(((((AA59-Z59)+(AA60-Z60))/2)*(A60-A59))/27+S15+T15,0),IF(((((DataInput!Q60-Z60)+(DataInput!Q59-Z59))/2)*(A60-A59))/27+S15+T15>0,ROUNDDOWN(((((DataInput!Q60-Z59)+(DataInput!Q59-Z59))/2)*(A60-A59))/27+S15+T15,0),0)),0),0)*$X$5),1) -> 0 | AC59: 0 | AD59: =ROUNDDOWN((IF(AC60>0,IFERROR(IF(((((DataInput!Q59-AC59)+(DataInput!Q60-AC60))/2)*(A60-A59))/27+S15+T15>0,ROUNDDOWN(((((DataInput!Q59-AC59)+(DataInput!Q60-AC60))/2)*(A60-A59))/27+S15+T15,0),0),0),0)*$X$5),1) -> 0 | AE59: =DataInput!U59 -> 11 | AF59: =DataInput!S59 -> 22 | AG59: 30.8 | AH59: -19.8
A60: =IF(DataInput!A60<>"",DataInput!A60,"") -> 53960 | B60: =SUM(DataInput!C60,DataInput!Y60)+(DataInput!U60-DataInput!E60) -> 42 | C60: =SUM(DataInput!D60,DataInput!Z60) -> 25 | D60: =DataInput!U60 -> 17 | E60: =SUM(DataInput!F60,DataInput!AB60) -> 0 | F60: =SUM(DataInput!G60,DataInput!AC60) -> 0 | G60: =SUM(DataInput!H60,DataInput!AD60) -> 0 | H60: =DataInput!I60 -> 0 | I60: =SUM(DataInput!J60,DataInput!AF60) -> 0 | J60: =SUM(DataInput!K60,DataInput!AG60) -> 0 | K60: =SUM(DataInput!L60,DataInput!AH60) -> 0 | L60: =SUM(DataInput!M60,DataInput!AI60) -> 0 | M60: =SUM(DataInput!N60,DataInput!AJ60) -> 0 | N60: =SUM(DataInput!O60,DataInput!AK60) -> 0 | O60: =DataInput!P60 -> 0 | Q60: 25 | R60: =DataInput!R60 -> 73 | S60: =DataInput!Y60 -> 0 | T60: =IF(DataInput!U60-DataInput!E60>0,DataInput!U60-DataInput!E60,"") -> 17 | U60: =IF(DataInput!W60-DataInput!I60>0,DataInput!W60-DataInput!I60,"") ->  | W60: 90 | X60: 117 | Y60: -92 | Z60: 0 | AA60: 0 | AB60: =ROUNDDOWN((IF(AA61>0,IFERROR(IF(AVERAGE(DataInput!Q60:Q61)>AVERAGE(AA61,AA60),ROUNDDOWN(((((AA60-Z60)+(AA61-Z61))/2)*(A61-A60))/27+S16+T16,0),IF(((((DataInput!Q61-Z61)+(DataInput!Q60-Z60))/2)*(A61-A60))/27+S16+T16>0,ROUNDDOWN(((((DataInput!Q61-Z60)+(DataInput!Q60-Z60))/2)*(A61-A60))/27+S16+T16,0),0)),0),0)*$X$5),1) -> 0 | AC60: 0 | AD60: =ROUNDDOWN((IF(AC61>0,IFERROR(IF(((((DataInput!Q60-AC60)+(DataInput!Q61-AC61))/2)*(A61-A60))/27+S16+T16>0,ROUNDDOWN(((((DataInput!Q60-AC60)+(DataInput!Q61-AC61))/2)*(A61-A60))/27+S16+T16,0),0),0),0)*$X$5),1) -> 0 | AE60: =DataInput!U60 -> 17 | AF60: =DataInput!S60 -> 33 | AG60: 46.2 | AH60: -29.2
A61: =IF(DataInput!A61<>"",DataInput!A61,"") -> 53975 | B61: =SUM(DataInput!C61,DataInput!Y61)+(DataInput!U61-DataInput!E61) -> 44 | C61: =SUM(DataInput!D61,DataInput!Z61) -> 23 | D61: =DataInput!U61 -> 21 | E61: =SUM(DataInput!F61,DataInput!AB61) -> 0 | F61: =SUM(DataInput!G61,DataInput!AC61) -> 0 | G61: =SUM(DataInput!H61,DataInput!AD61) -> 0 | H61: =DataInput!I61 -> 0 | I61: =SUM(DataInput!J61,DataInput!AF61) -> 0 | J61: =SUM(DataInput!K61,DataInput!AG61) -> 0 | K61: =SUM(DataInput!L61,DataInput!AH61) -> 0 | L61: =SUM(DataInput!M61,DataInput!AI61) -> 0 | M61: =SUM(DataInput!N61,DataInput!AJ61) -> 0 | N61: =SUM(DataInput!O61,DataInput!AK61) -> 0 | O61: =DataInput!P61 -> 0 | Q61: 23 | R61: =DataInput!R61 -> 74 | S61: =DataInput!Y61 -> 0 | T61: =IF(DataInput!U61-DataInput!E61>0,DataInput!U61-DataInput!E61,"") -> 21 | U61: =IF(DataInput!W61-DataInput!I61>0,DataInput!W61-DataInput!I61,"") ->  | W61: 95 | X61: 123.5 | Y61: -100.5 | Z61: 0 | AA61: 0 | AB61: =ROUNDDOWN((IF(AA62>0,IFERROR(IF(AVERAGE(DataInput!Q61:Q62)>AVERAGE(AA62,AA61),ROUNDDOWN(((((AA61-Z61)+(AA62-Z62))/2)*(A62-A61))/27+S17+T17,0),IF(((((DataInput!Q62-Z62)+(DataInput!Q61-Z61))/2)*(A62-A61))/27+S17+T17>0,ROUNDDOWN(((((DataInput!Q62-Z61)+(DataInput!Q61-Z61))/2)*(A62-A61))/27+S17+T17,0),0)),0),0)*$X$5),1) -> 0 | AC61: 0 | AD61: =ROUNDDOWN((IF(AC62>0,IFERROR(IF(((((DataInput!Q61-AC61)+(DataInput!Q62-AC62))/2)*(A62-A61))/27+S17+T17>0,ROUNDDOWN(((((DataInput!Q61-AC61)+(DataInput!Q62-AC62))/2)*(A62-A61))/27+S17+T17,0),0),0),0)*$X$5),1) -> 0 | AE61: =DataInput!U61 -> 21 | AF61: =DataInput!S61 -> 42 | AG61: 58.8 | AH61: -37.8
A62: =IF(DataInput!A62<>"",DataInput!A62,"") -> 54000 | B62: =SUM(DataInput!C62,DataInput!Y62)+(DataInput!U62-DataInput!E62) -> 20 | C62: =SUM(DataInput!D62,DataInput!Z62) -> 8 | D62: =DataInput!U62 -> 12 | E62: =SUM(DataInput!F62,DataInput!AB62) -> 0 | F62: =SUM(DataInput!G62,DataInput!AC62) -> 0 | G62: =SUM(DataInput!H62,DataInput!AD62) -> 0 | H62: =DataInput!I62 -> 0 | I62: =SUM(DataInput!J62,DataInput!AF62) -> 0 | J62: =SUM(DataInput!K62,DataInput!AG62) -> 0 | K62: =SUM(DataInput!L62,DataInput!AH62) -> 0 | L62: =SUM(DataInput!M62,DataInput!AI62) -> 0 | M62: =SUM(DataInput!N62,DataInput!AJ62) -> 0 | N62: =SUM(DataInput!O62,DataInput!AK62) -> 0 | O62: =DataInput!P62 -> 0 | Q62: 8 | R62: =DataInput!R62 -> 30 | S62: =DataInput!Y62 -> 0 | T62: =IF(DataInput!U62-DataInput!E62>0,DataInput!U62-DataInput!E62,"") -> 12 | U62: =IF(DataInput!W62-DataInput!I62>0,DataInput!W62-DataInput!I62,"") ->  | W62: 42 | X62: 54.6 | Y62: -46.6 | Z62: 0 | AA62: 0 | AB62: =ROUNDDOWN((IF(AA63>0,IFERROR(IF(AVERAGE(DataInput!Q62:Q63)>AVERAGE(AA63,AA62),ROUNDDOWN(((((AA62-Z62)+(AA63-Z63))/2)*(A63-A62))/27+S18+T18,0),IF(((((DataInput!Q63-Z63)+(DataInput!Q62-Z62))/2)*(A63-A62))/27+S18+T18>0,ROUNDDOWN(((((DataInput!Q63-Z62)+(DataInput!Q62-Z62))/2)*(A63-A62))/27+S18+T18,0),0)),0),0)*$X$5),1) -> 0 | AC62: 0 | AD62: =ROUNDDOWN((IF(AC63>0,IFERROR(IF(((((DataInput!Q62-AC62)+(DataInput!Q63-AC63))/2)*(A63-A62))/27+S18+T18>0,ROUNDDOWN(((((DataInput!Q62-AC62)+(DataInput!Q63-AC63))/2)*(A63-A62))/27+S18+T18,0),0),0),0)*$X$5),1) -> 0 | AE62: =DataInput!U62 -> 12 | AF62: =DataInput!S62 -> 23 | AG62: 32.2 | AH62: -20.2
A63: =IF(DataInput!A63<>"",DataInput!A63,"") -> 54025
A65: =IF(DataInput!A65<>"",DataInput!A65,"") -> Sta. 553+83
A66: =IF(DataInput!A66<>"",DataInput!A66,"") -> 55275 | B66: =SUM(DataInput!C66,DataInput!Y66)+(DataInput!U66-DataInput!E66) -> 15 | C66: =SUM(DataInput!D66,DataInput!Z66) -> 11 | D66: =DataInput!U66 -> 4 | E66: =SUM(DataInput!F66,DataInput!AB66) -> 0 | F66: =SUM(DataInput!G66,DataInput!AC66) -> 0 | G66: =SUM(DataInput!H66,DataInput!AD66) -> 0 | H66: =DataInput!I66 -> 0 | I66: =SUM(DataInput!J66,DataInput!AF66) -> 0 | J66: =SUM(DataInput!K66,DataInput!AG66) -> 0 | K66: =SUM(DataInput!L66,DataInput!AH66) -> 0 | L66: =SUM(DataInput!M66,DataInput!AI66) -> 0 | M66: =SUM(DataInput!N66,DataInput!AJ66) -> 0 | N66: =SUM(DataInput!O66,DataInput!AK66) -> 0 | O66: =DataInput!P66 -> 0 | Q66: =SUM(C66,E66:G66,I66:L66,N66:P66) -> 11 | R66: =DataInput!R66 -> 0 | S66: =DataInput!Y66 -> 0 | T66: =IF(DataInput!U66-DataInput!E66>0,DataInput!U66-DataInput!E66,"") -> 4 | U66: =IF(DataInput!W66-DataInput!I66>0,DataInput!W66-DataInput!I66,"") ->  | W66: =SUM(R66:V66) -> 4 | X66: =ROUNDUP(($W66*$X$5),1) -> 5.2 | Y66: =ROUNDUP(SUM(Q66-X66),1) -> 5.8 | AB66: =ROUNDDOWN((IF(AA67>0,IFERROR(IF(AVERAGE(DataInput!Q66:Q67)>AVERAGE(AA67,AA66),ROUNDDOWN(((((AA66-Z66)+(AA67-Z67))/2)*(A67-A66))/27+S12+T12,0),IF(((((DataInput!Q67-Z67)+(DataInput!Q66-Z66))/2)*(A67-A66))/27+S12+T12>0,ROUNDDOWN(((((DataInput!Q67-Z66)+(DataInput!Q66-Z66))/2)*(A67-A66))/27+S12+T12,0),0)),0),0)*$X$5),1) -> 0 | AD66: =ROUNDDOWN((IF(AC67>0,IFERROR(IF(((((DataInput!Q66-AC66)+(DataInput!Q67-AC67))/2)*(A67-A66))/27+S12+T12>0,ROUNDDOWN(((((DataInput!Q66-AC66)+(DataInput!Q67-AC67))/2)*(A67-A66))/27+S12+T12,0),0),0),0)*$X$5),1) -> 0 | AE66: =DataInput!U66 -> 4 | AF66: =DataInput!S66 -> 8 | AG66: =ROUNDUP((AF66*$AG$5),1) -> 11.2 | AH66: =ROUNDUP((AE66-AG66),1) -> -7.2
A67: =IF(DataInput!A67<>"",DataInput!A67,"") -> 55300 | B67: =SUM(DataInput!C67,DataInput!Y67)+(DataInput!U67-DataInput!E67) -> 35 | C67: =SUM(DataInput!D67,DataInput!Z67) -> 26 | D67: =DataInput!U67 -> 9 | E67: =SUM(DataInput!F67,DataInput!AB67) -> 0 | F67: =SUM(DataInput!G67,DataInput!AC67) -> 0 | G67: =SUM(DataInput!H67,DataInput!AD67) -> 0 | H67: =DataInput!I67 -> 0 | I67: =SUM(DataInput!J67,DataInput!AF67) -> 0 | J67: =SUM(DataInput!K67,DataInput!AG67) -> 0 | K67: =SUM(DataInput!L67,DataInput!AH67) -> 0 | L67: =SUM(DataInput!M67,DataInput!AI67) -> 0 | M67: =SUM(DataInput!N67,DataInput!AJ67) -> 0 | N67: =SUM(DataInput!O67,DataInput!AK67) -> 0 | O67: =DataInput!P67 -> 0 | Q67: =SUM(C67,E67:G67,I67:L67,N67:P67) -> 26 | R67: =DataInput!R67 -> 1 | S67: =DataInput!Y67 -> 0 | T67: =IF(DataInput!U67-DataInput!E67>0,DataInput!U67-DataInput!E67,"") -> 9 | U67: =IF(DataInput!W67-DataInput!I67>0,DataInput!W67-DataInput!I67,"") ->  | W67: =SUM(R67:V67) -> 10 | X67: =ROUNDUP(($W67*$X$5),1) -> 13 | Y67: =ROUNDUP(SUM(Q67-X67),1) -> 13 | Z67: =Z66 -> 0 | AA67: =AA66 -> 0 | AB67: =ROUNDDOWN((IF(AA68>0,IFERROR(IF(AVERAGE(DataInput!Q67:Q68)>AVERAGE(AA68,AA67),ROUNDDOWN(((((AA67-Z67)+(AA68-Z68))/2)*(A68-A67))/27+S13+T13,0),IF(((((DataInput!Q68-Z68)+(DataInput!Q67-Z67))/2)*(A68-A67))/27+S13+T13>0,ROUNDDOWN(((((DataInput!Q68-Z67)+(DataInput!Q67-Z67))/2)*(A68-A67))/27+S13+T13,0),0)),0),0)*$X$5),1) -> 0 | AC67: =AC66 -> 0 | AD67: =ROUNDDOWN((IF(AC68>0,IFERROR(IF(((((DataInput!Q67-AC67)+(DataInput!Q68-AC68))/2)*(A68-A67))/27+S13+T13>0,ROUNDDOWN(((((DataInput!Q67-AC67)+(DataInput!Q68-AC68))/2)*(A68-A67))/27+S13+T13,0),0),0),0)*$X$5),1) -> 0 | AE67: =DataInput!U67 -> 9 | AF67: =DataInput!S67 -> 17 | AG67: =ROUNDUP((AF67*$AG$5),1) -> 23.8 | AH67: =ROUNDUP((AE67-AG67),1) -> -14.8
A68: =IF(DataInput!A68<>"",DataInput!A68,"") -> 55325 | B68: =SUM(DataInput!C68,DataInput!Y68)+(DataInput!U68-DataInput!E68) -> 55 | C68: =SUM(DataInput!D68,DataInput!Z68) -> 40 | D68: =DataInput!U68 -> 15 | E68: =SUM(DataInput!F68,DataInput!AB68) -> 0 | F68: =SUM(DataInput!G68,DataInput!AC68) -> 0 | G68: =SUM(DataInput!H68,DataInput!AD68) -> 0 | H68: =DataInput!I68 -> 0 | I68: =SUM(DataInput!J68,DataInput!AF68) -> 0 | J68: =SUM(DataInput!K68,DataInput!AG68) -> 0 | K68: =SUM(DataInput!L68,DataInput!AH68) -> 0 | L68: =SUM(DataInput!M68,DataInput!AI68) -> 0 | M68: =SUM(DataInput!N68,DataInput!AJ68) -> 0 | N68: =SUM(DataInput!O68,DataInput!AK68) -> 0 | O68: =DataInput!P68 -> 0 | Q68: 40 | R68: =DataInput!R68 -> 11 | S68: =DataInput!Y68 -> 0 | T68: =IF(DataInput!U68-DataInput!E68>0,DataInput!U68-DataInput!E68,"") -> 15 | U68: =IF(DataInput!W68-DataInput!I68>0,DataInput!W68-DataInput!I68,"") ->  | W68: 26 | X68: 33.8 | Y68: 6.2 | Z68: =Z67 -> 0 | AA68: =AA67 -> 0 | AB68: =ROUNDDOWN((IF(AA69>0,IFERROR(IF(AVERAGE(DataInput!Q68:Q69)>AVERAGE(AA69,AA68),ROUNDDOWN(((((AA68-Z68)+(AA69-Z69))/2)*(A69-A68))/27+S14+T14,0),IF(((((DataInput!Q69-Z69)+(DataInput!Q68-Z68))/2)*(A69-A68))/27+S14+T14>0,ROUNDDOWN(((((DataInput!Q69-Z68)+(DataInput!Q68-Z68))/2)*(A69-A68))/27+S14+T14,0),0)),0),0)*$X$5),1) -> 0 | AC68: =AC67 -> 0 | AD68: =ROUNDDOWN((IF(AC69>0,IFERROR(IF(((((DataInput!Q68-AC68)+(DataInput!Q69-AC69))/2)*(A69-A68))/27+S14+T14>0,ROUNDDOWN(((((DataInput!Q68-AC68)+(DataInput!Q69-AC69))/2)*(A69-A68))/27+S14+T14,0),0),0),0)*$X$5),1) -> 0 | AE68: =DataInput!U68 -> 15 | AF68: =DataInput!S68 -> 29 | AG68: 40.6 | AH68: -25.6
A69: =IF(DataInput!A69<>"",DataInput!A69,"") -> 55350 | B69: =SUM(DataInput!C69,DataInput!Y69)+(DataInput!U69-DataInput!E69) -> 76 | C69: =SUM(DataInput!D69,DataInput!Z69) -> 54 | D69: =DataInput!U69 -> 22 | E69: =SUM(DataInput!F69,DataInput!AB69) -> 0 | F69: =SUM(DataInput!G69,DataInput!AC69) -> 0 | G69: =SUM(DataInput!H69,DataInput!AD69) -> 0 | H69: =DataInput!I69 -> 0 | I69: =SUM(DataInput!J69,DataInput!AF69) -> 0 | J69: =SUM(DataInput!K69,DataInput!AG69) -> 0 | K69: =SUM(DataInput!L69,DataInput!AH69) -> 0 | L69: =SUM(DataInput!M69,DataInput!AI69) -> 0 | M69: =SUM(DataInput!N69,DataInput!AJ69) -> 0 | N69: =SUM(DataInput!O69,DataInput!AK69) -> 0 | O69: =DataInput!P69 -> 0 | Q69: 54 | R69: =DataInput!R69 -> 61 | S69: =DataInput!Y69 -> 0 | T69: =IF(DataInput!U69-DataInput!E69>0,DataInput!U69-DataInput!E69,"") -> 22 | U69: =IF(DataInput!W69-DataInput!I69>0,DataInput!W69-DataInput!I69,"") ->  | W69: 83 | X69: 107.9 | Y69: -53.9 | Z69: 0 | AA69: 0 | AB69: =ROUNDDOWN((IF(AA70>0,IFERROR(IF(AVERAGE(DataInput!Q69:Q70)>AVERAGE(AA70,AA69),ROUNDDOWN(((((AA69-Z69)+(AA70-Z70))/2)*(A70-A69))/27+S15+T15,0),IF(((((DataInput!Q70-Z70)+(DataInput!Q69-Z69))/2)*(A70-A69))/27+S15+T15>0,ROUNDDOWN(((((DataInput!Q70-Z69)+(DataInput!Q69-Z69))/2)*(A70-A69))/27+S15+T15,0),0)),0),0)*$X$5),1) -> 0 | AC69: 0 | AD69: =ROUNDDOWN((IF(AC70>0,IFERROR(IF(((((DataInput!Q69-AC69)+(DataInput!Q70-AC70))/2)*(A70-A69))/27+S15+T15>0,ROUNDDOWN(((((DataInput!Q69-AC69)+(DataInput!Q70-AC70))/2)*(A70-A69))/27+S15+T15,0),0),0),0)*$X$5),1) -> 0 | AE69: =DataInput!U69 -> 22 | AF69: =DataInput!S69 -> 43 | AG69: 60.2 | AH69: -38.2
A70: =IF(DataInput!A70<>"",DataInput!A70,"") -> 55375 | B70: =SUM(DataInput!C70,DataInput!Y70)+(DataInput!U70-DataInput!E70) -> 24 | C70: =SUM(DataInput!D70,DataInput!Z70) -> 18 | D70: =DataInput!U70 -> 6 | E70: =SUM(DataInput!F70,DataInput!AB70) -> 0 | F70: =SUM(DataInput!G70,DataInput!AC70) -> 0 | G70: =SUM(DataInput!H70,DataInput!AD70) -> 0 | H70: =DataInput!I70 -> 0 | I70: =SUM(DataInput!J70,DataInput!AF70) -> 0 | J70: =SUM(DataInput!K70,DataInput!AG70) -> 0 | K70: =SUM(DataInput!L70,DataInput!AH70) -> 0 | L70: =SUM(DataInput!M70,DataInput!AI70) -> 0 | M70: =SUM(DataInput!N70,DataInput!AJ70) -> 0 | N70: =SUM(DataInput!O70,DataInput!AK70) -> 0 | O70: =DataInput!P70 -> 0 | Q70: 18 | R70: =DataInput!R70 -> 52 | S70: =DataInput!Y70 -> 0 | T70: =IF(DataInput!U70-DataInput!E70>0,DataInput!U70-DataInput!E70,"") -> 6 | U70: =IF(DataInput!W70-DataInput!I70>0,DataInput!W70-DataInput!I70,"") ->  | W70: 58 | X70: 75.4 | Y70: -57.4 | Z70: 0 | AA70: 0 | AB70: =ROUNDDOWN((IF(AA71>0,IFERROR(IF(AVERAGE(DataInput!Q70:Q71)>AVERAGE(AA71,AA70),ROUNDDOWN(((((AA70-Z70)+(AA71-Z71))/2)*(A71-A70))/27+S16+T16,0),IF(((((DataInput!Q71-Z71)+(DataInput!Q70-Z70))/2)*(A71-A70))/27+S16+T16>0,ROUNDDOWN(((((DataInput!Q71-Z70)+(DataInput!Q70-Z70))/2)*(A71-A70))/27+S16+T16,0),0)),0),0)*$X$5),1) -> 0 | AC70: 0 | AD70: =ROUNDDOWN((IF(AC71>0,IFERROR(IF(((((DataInput!Q70-AC70)+(DataInput!Q71-AC71))/2)*(A71-A70))/27+S16+T16>0,ROUNDDOWN(((((DataInput!Q70-AC70)+(DataInput!Q71-AC71))/2)*(A71-A70))/27+S16+T16,0),0),0),0)*$X$5),1) -> 0 | AE70: =DataInput!U70 -> 6 | AF70: =DataInput!S70 -> 16 | AG70: 22.4 | AH70: -16.4
A71: =IF(DataInput!A71<>"",DataInput!A71,"") -> 55383.41 | B71: =SUM(DataInput!C71,DataInput!Y71)+(DataInput!U71-DataInput!E71) -> 41 | C71: =SUM(DataInput!D71,DataInput!Z71) -> 29 | D71: =DataInput!U71 -> 12 | E71: =SUM(DataInput!F71,DataInput!AB71) -> 0 | F71: =SUM(DataInput!G71,DataInput!AC71) -> 0 | G71: =SUM(DataInput!H71,DataInput!AD71) -> 0 | H71: =DataInput!I71 -> 0 | I71: =SUM(DataInput!J71,DataInput!AF71) -> 0 | J71: =SUM(DataInput!K71,DataInput!AG71) -> 0 | K71: =SUM(DataInput!L71,DataInput!AH71) -> 0 | L71: =SUM(DataInput!M71,DataInput!AI71) -> 0 | M71: =SUM(DataInput!N71,DataInput!AJ71) -> 0 | N71: =SUM(DataInput!O71,DataInput!AK71) -> 0 | O71: =DataInput!P71 -> 0 | Q71: 29 | R71: =DataInput!R71 -> 91 | S71: =DataInput!Y71 -> 0 | T71: =IF(DataInput!U71-DataInput!E71>0,DataInput!U71-DataInput!E71,"") -> 12 | U71: =IF(DataInput!W71-DataInput!I71>0,DataInput!W71-DataInput!I71,"") ->  | W71: 103 | X71: 133.9 | Y71: -104.9 | Z71: 0 | AA71: 0 | AB71: =ROUNDDOWN((IF(AA72>0,IFERROR(IF(AVERAGE(DataInput!Q71:Q72)>AVERAGE(AA72,AA71),ROUNDDOWN(((((AA71-Z71)+(AA72-Z72))/2)*(A72-A71))/27+S17+T17,0),IF(((((DataInput!Q72-Z72)+(DataInput!Q71-Z71))/2)*(A72-A71))/27+S17+T17>0,ROUNDDOWN(((((DataInput!Q72-Z71)+(DataInput!Q71-Z71))/2)*(A72-A71))/27+S17+T17,0),0)),0),0)*$X$5),1) -> 0 | AC71: 0 | AD71: =ROUNDDOWN((IF(AC72>0,IFERROR(IF(((((DataInput!Q71-AC71)+(DataInput!Q72-AC72))/2)*(A72-A71))/27+S17+T17>0,ROUNDDOWN(((((DataInput!Q71-AC71)+(DataInput!Q72-AC72))/2)*(A72-A71))/27+S17+T17,0),0),0),0)*$X$5),1) -> 0 | AE71: =DataInput!U71 -> 12 | AF71: =DataInput!S71 -> 31 | AG71: 43.4 | AH71: -31.4
A72: =IF(DataInput!A72<>"",DataInput!A72,"") -> 55400 | B72: =SUM(DataInput!C72,DataInput!Y72)+(DataInput!U72-DataInput!E72) -> 75 | C72: =SUM(DataInput!D72,DataInput!Z72) -> 51 | D72: =DataInput!U72 -> 24 | E72: =SUM(DataInput!F72,DataInput!AB72) -> 0 | F72: =SUM(DataInput!G72,DataInput!AC72) -> 0 | G72: =SUM(DataInput!H72,DataInput!AD72) -> 0 | H72: =DataInput!I72 -> 0 | I72: =SUM(DataInput!J72,DataInput!AF72) -> 0 | J72: =SUM(DataInput!K72,DataInput!AG72) -> 0 | K72: =SUM(DataInput!L72,DataInput!AH72) -> 0 | L72: =SUM(DataInput!M72,DataInput!AI72) -> 0 | M72: =SUM(DataInput!N72,DataInput!AJ72) -> 0 | N72: =SUM(DataInput!O72,DataInput!AK72) -> 0 | O72: =DataInput!P72 -> 0 | Q72: 51 | R72: =DataInput!R72 -> 43 | S72: =DataInput!Y72 -> 0 | T72: =IF(DataInput!U72-DataInput!E72>0,DataInput!U72-DataInput!E72,"") -> 24 | U72: =IF(DataInput!W72-DataInput!I72>0,DataInput!W72-DataInput!I72,"") ->  | W72: 67 | X72: 87.1 | Y72: -36.1 | Z72: 0 | AA72: 0 | AB72: =ROUNDDOWN((IF(AA73>0,IFERROR(IF(AVERAGE(DataInput!Q72:Q73)>AVERAGE(AA73,AA72),ROUNDDOWN(((((AA72-Z72)+(AA73-Z73))/2)*(A73-A72))/27+S18+T18,0),IF(((((DataInput!Q73-Z73)+(DataInput!Q72-Z72))/2)*(A73-A72))/27+S18+T18>0,ROUNDDOWN(((((DataInput!Q73-Z72)+(DataInput!Q72-Z72))/2)*(A73-A72))/27+S18+T18,0),0)),0),0)*$X$5),1) -> 0 | AC72: 0 | AD72: =ROUNDDOWN((IF(AC73>0,IFERROR(IF(((((DataInput!Q72-AC72)+(DataInput!Q73-AC73))/2)*(A73-A72))/27+S18+T18>0,ROUNDDOWN(((((DataInput!Q72-AC72)+(DataInput!Q73-AC73))/2)*(A73-A72))/27+S18+T18,0),0),0),0)*$X$5),1) -> 0 | AE72: =DataInput!U72 -> 24 | AF72: =DataInput!S72 -> 47 | AG72: 65.8 | AH72: -41.8
A73: =IF(DataInput!A73<>"",DataInput!A73,"") -> 55425 | B73: =SUM(DataInput!C73,DataInput!Y73)+(DataInput!U73-DataInput!E73) -> 66 | C73: =SUM(DataInput!D73,DataInput!Z73) -> 48 | D73: =DataInput!U73 -> 18 | E73: =SUM(DataInput!F73,DataInput!AB73) -> 0 | F73: =SUM(DataInput!G73,DataInput!AC73) -> 0 | G73: =SUM(DataInput!H73,DataInput!AD73) -> 0 | H73: =DataInput!I73 -> 0 | I73: =SUM(DataInput!J73,DataInput!AF73) -> 0 | J73: =SUM(DataInput!K73,DataInput!AG73) -> 0 | K73: =SUM(DataInput!L73,DataInput!AH73) -> 0 | L73: =SUM(DataInput!M73,DataInput!AI73) -> 0 | M73: =SUM(DataInput!N73,DataInput!AJ73) -> 0 | N73: =SUM(DataInput!O73,DataInput!AK73) -> 0 | O73: =DataInput!P73 -> 0 | Q73: 48 | R73: =DataInput!R73 -> 10 | S73: =DataInput!Y73 -> 0 | T73: =IF(DataInput!U73-DataInput!E73>0,DataInput!U73-DataInput!E73,"") -> 18 | U73: =IF(DataInput!W73-DataInput!I73>0,DataInput!W73-DataInput!I73,"") ->  | W73: 28 | X73: 36.4 | Y73: 11.6 | Z73: 0 | AA73: 0 | AB73: =ROUNDDOWN((IF(AA74>0,IFERROR(IF(AVERAGE(DataInput!Q73:Q74)>AVERAGE(AA74,AA73),ROUNDDOWN(((((AA73-Z73)+(AA74-Z74))/2)*(A74-A73))/27+S19+T19,0),IF(((((DataInput!Q74-Z74)+(DataInput!Q73-Z73))/2)*(A74-A73))/27+S19+T19>0,ROUNDDOWN(((((DataInput!Q74-Z73)+(DataInput!Q73-Z73))/2)*(A74-A73))/27+S19+T19,0),0)),0),0)*$X$5),1) -> 0 | AC73: 0 | AD73: =ROUNDDOWN((IF(AC74>0,IFERROR(IF(((((DataInput!Q73-AC73)+(DataInput!Q74-AC74))/2)*(A74-A73))/27+S19+T19>0,ROUNDDOWN(((((DataInput!Q73-AC73)+(DataInput!Q74-AC74))/2)*(A74-A73))/27+S19+T19,0),0),0),0)*$X$5),1) -> 0 | AE73: =DataInput!U73 -> 18 | AF73: =DataInput!S73 -> 36 | AG73: 50.4 | AH73: -32.4
A74: =IF(DataInput!A74<>"",DataInput!A74,"") -> 55450 | B74: =SUM(DataInput!C74,DataInput!Y74)+(DataInput!U74-DataInput!E74) -> 37 | C74: =SUM(DataInput!D74,DataInput!Z74) -> 28 | D74: =DataInput!U74 -> 9 | E74: =SUM(DataInput!F74,DataInput!AB74) -> 0 | F74: =SUM(DataInput!G74,DataInput!AC74) -> 0 | G74: =SUM(DataInput!H74,DataInput!AD74) -> 0 | H74: =DataInput!I74 -> 0 | I74: =SUM(DataInput!J74,DataInput!AF74) -> 0 | J74: =SUM(DataInput!K74,DataInput!AG74) -> 0 | K74: =SUM(DataInput!L74,DataInput!AH74) -> 0 | L74: =SUM(DataInput!M74,DataInput!AI74) -> 0 | M74: =SUM(DataInput!N74,DataInput!AJ74) -> 0 | N74: =SUM(DataInput!O74,DataInput!AK74) -> 0 | O74: =DataInput!P74 -> 0 | Q74: 28 | R74: =DataInput!R74 -> 0 | S74: =DataInput!Y74 -> 0 | T74: =IF(DataInput!U74-DataInput!E74>0,DataInput!U74-DataInput!E74,"") -> 9 | U74: =IF(DataInput!W74-DataInput!I74>0,DataInput!W74-DataInput!I74,"") ->  | W74: 9 | X74: 11.7 | Y74: 16.3 | Z74: 0 | AA74: 0 | AB74: =ROUNDDOWN((IF(AA75>0,IFERROR(IF(AVERAGE(DataInput!Q74:Q75)>AVERAGE(AA75,AA74),ROUNDDOWN(((((AA74-Z74)+(AA75-Z75))/2)*(A75-A74))/27+S20+T20,0),IF(((((DataInput!Q75-Z75)+(DataInput!Q74-Z74))/2)*(A75-A74))/27+S20+T20>0,ROUNDDOWN(((((DataInput!Q75-Z74)+(DataInput!Q74-Z74))/2)*(A75-A74))/27+S20+T20,0),0)),0),0)*$X$5),1) -> 0 | AC74: 0 | AD74: =ROUNDDOWN((IF(AC75>0,IFERROR(IF(((((DataInput!Q74-AC74)+(DataInput!Q75-AC75))/2)*(A75-A74))/27+S20+T20>0,ROUNDDOWN(((((DataInput!Q74-AC74)+(DataInput!Q75-AC75))/2)*(A75-A74))/27+S20+T20,0),0),0),0)*$X$5),1) -> 0 | AE74: =DataInput!U74 -> 9 | AF74: =DataInput!S74 -> 18 | AG74: 25.2 | AH74: -16.2
A75: =IF(DataInput!A75<>"",DataInput!A75,"") -> 55475
A77: =IF(DataInput!A77<>"",DataInput!A77,"") -> Sta. 571+62
A78: =IF(DataInput!A78<>"",DataInput!A78,"") -> 57000 | B78: =SUM(DataInput!C78,DataInput!Y78)+(DataInput!U78-DataInput!E78) -> 9 | C78: =SUM(DataInput!D78,DataInput!Z78) -> 5 | D78: =DataInput!U78 -> 4 | E78: =SUM(DataInput!F78,DataInput!AB78) -> 0 | F78: =SUM(DataInput!G78,DataInput!AC78) -> 0 | G78: =SUM(DataInput!H78,DataInput!AD78) -> 0 | H78: =DataInput!I78 -> 0 | I78: =SUM(DataInput!J78,DataInput!AF78) -> 0 | J78: =SUM(DataInput!K78,DataInput!AG78) -> 0 | K78: =SUM(DataInput!L78,DataInput!AH78) -> 0 | L78: =SUM(DataInput!M78,DataInput!AI78) -> 0 | M78: =SUM(DataInput!N78,DataInput!AJ78) -> 0 | N78: =SUM(DataInput!O78,DataInput!AK78) -> 0 | O78: =DataInput!P78 -> 0 | Q78: =SUM(C78,E78:G78,I78:L78,N78:P78) -> 5 | R78: =DataInput!R78 -> 0 | S78: =DataInput!Y78 -> 0 | T78: =IF(DataInput!U78-DataInput!E78>0,DataInput!U78-DataInput!E78,"") -> 4 | U78: =IF(DataInput!W78-DataInput!I78>0,DataInput!W78-DataInput!I78,"") ->  | W78: =SUM(R78:V78) -> 4 | X78: =ROUNDUP(($W78*$X$5),1) -> 5.2 | Y78: =ROUNDUP(SUM(Q78-X78),1) -> -0.2 | AB78: =ROUNDDOWN((IF(AA79>0,IFERROR(IF(AVERAGE(DataInput!Q78:Q79)>AVERAGE(AA79,AA78),ROUNDDOWN(((((AA78-Z78)+(AA79-Z79))/2)*(A79-A78))/27+S12+T12,0),IF(((((DataInput!Q79-Z79)+(DataInput!Q78-Z78))/2)*(A79-A78))/27+S12+T12>0,ROUNDDOWN(((((DataInput!Q79-Z78)+(DataInput!Q78-Z78))/2)*(A79-A78))/27+S12+T12,0),0)),0),0)*$X$5),1) -> 0 | AD78: =ROUNDDOWN((IF(AC79>0,IFERROR(IF(((((DataInput!Q78-AC78)+(DataInput!Q79-AC79))/2)*(A79-A78))/27+S12+T12>0,ROUNDDOWN(((((DataInput!Q78-AC78)+(DataInput!Q79-AC79))/2)*(A79-A78))/27+S12+T12,0),0),0),0)*$X$5),1) -> 0 | AE78: =DataInput!U78 -> 4 | AF78: =DataInput!S78 -> 8 | AG78: =ROUNDUP((AF78*$AG$5),1) -> 11.2 | AH78: =ROUNDUP((AE78-AG78),1) -> -7.2
A79: =IF(DataInput!A79<>"",DataInput!A79,"") -> 57025 | B79: =SUM(DataInput!C79,DataInput!Y79)+(DataInput!U79-DataInput!E79) -> 11 | C79: =SUM(DataInput!D79,DataInput!Z79) -> 4 | D79: =DataInput!U79 -> 7 | E79: =SUM(DataInput!F79,DataInput!AB79) -> 0 | F79: =SUM(DataInput!G79,DataInput!AC79) -> 0 | G79: =SUM(DataInput!H79,DataInput!AD79) -> 0 | H79: =DataInput!I79 -> 0 | I79: =SUM(DataInput!J79,DataInput!AF79) -> 0 | J79: =SUM(DataInput!K79,DataInput!AG79) -> 0 | K79: =SUM(DataInput!L79,DataInput!AH79) -> 0 | L79: =SUM(DataInput!M79,DataInput!AI79) -> 0 | M79: =SUM(DataInput!N79,DataInput!AJ79) -> 0 | N79: =SUM(DataInput!O79,DataInput!AK79) -> 0 | O79: =DataInput!P79 -> 0 | Q79: =SUM(C79,E79:G79,I79:L79,N79:P79) -> 4 | R79: =DataInput!R79 -> 4 | S79: =DataInput!Y79 -> 0 | T79: =IF(DataInput!U79-DataInput!E79>0,DataInput!U79-DataInput!E79,"") -> 7 | U79: =IF(DataInput!W79-DataInput!I79>0,DataInput!W79-DataInput!I79,"") ->  | W79: =SUM(R79:V79) -> 11 | X79: =ROUNDUP(($W79*$X$5),1) -> 14.3 | Y79: =ROUNDUP(SUM(Q79-X79),1) -> -10.3 | Z79: =Z78 -> 0 | AA79: =AA78 -> 0 | AB79: =ROUNDDOWN((IF(AA80>0,IFERROR(IF(AVERAGE(DataInput!Q79:Q80)>AVERAGE(AA80,AA79),ROUNDDOWN(((((AA79-Z79)+(AA80-Z80))/2)*(A80-A79))/27+S13+T13,0),IF(((((DataInput!Q80-Z80)+(DataInput!Q79-Z79))/2)*(A80-A79))/27+S13+T13>0,ROUNDDOWN(((((DataInput!Q80-Z79)+(DataInput!Q79-Z79))/2)*(A80-A79))/27+S13+T13,0),0)),0),0)*$X$5),1) -> 0 | AC79: =AC78 -> 0 | AD79: =ROUNDDOWN((IF(AC80>0,IFERROR(IF(((((DataInput!Q79-AC79)+(DataInput!Q80-AC80))/2)*(A80-A79))/27+S13+T13>0,ROUNDDOWN(((((DataInput!Q79-AC79)+(DataInput!Q80-AC80))/2)*(A80-A79))/27+S13+T13,0),0),0),0)*$X$5),1) -> 0 | AE79: =DataInput!U79 -> 7 | AF79: =DataInput!S79 -> 14 | AG79: =ROUNDUP((AF79*$AG$5),1) -> 19.6 | AH79: =ROUNDUP((AE79-AG79),1) -> -12.6
A80: =IF(DataInput!A80<>"",DataInput!A80,"") -> 57050 | B80: =SUM(DataInput!C80,DataInput!Y80)+(DataInput!U80-DataInput!E80) -> 11 | C80: =SUM(DataInput!D80,DataInput!Z80) -> 3 | D80: =DataInput!U80 -> 8 | E80: =SUM(DataInput!F80,DataInput!AB80) -> 0 | F80: =SUM(DataInput!G80,DataInput!AC80) -> 0 | G80: =SUM(DataInput!H80,DataInput!AD80) -> 0 | H80: =DataInput!I80 -> 0 | I80: =SUM(DataInput!J80,DataInput!AF80) -> 0 | J80: =SUM(DataInput!K80,DataInput!AG80) -> 0 | K80: =SUM(DataInput!L80,DataInput!AH80) -> 0 | L80: =SUM(DataInput!M80,DataInput!AI80) -> 0 | M80: =SUM(DataInput!N80,DataInput!AJ80) -> 0 | N80: =SUM(DataInput!O80,DataInput!AK80) -> 0 | O80: =DataInput!P80 -> 0 | Q80: 3 | R80: =DataInput!R80 -> 11 | S80: =DataInput!Y80 -> 0 | T80: =IF(DataInput!U80-DataInput!E80>0,DataInput!U80-DataInput!E80,"") -> 8 | U80: =IF(DataInput!W80-DataInput!I80>0,DataInput!W80-DataInput!I80,"") ->  | W80: 19 | X80: 24.7 | Y80: -21.7 | Z80: =Z79 -> 0 | AA80: =AA79 -> 0 | AB80: =ROUNDDOWN((IF(AA81>0,IFERROR(IF(AVERAGE(DataInput!Q80:Q81)>AVERAGE(AA81,AA80),ROUNDDOWN(((((AA80-Z80)+(AA81-Z81))/2)*(A81-A80))/27+S14+T14,0),IF(((((DataInput!Q81-Z81)+(DataInput!Q80-Z80))/2)*(A81-A80))/27+S14+T14>0,ROUNDDOWN(((((DataInput!Q81-Z80)+(DataInput!Q80-Z80))/2)*(A81-A80))/27+S14+T14,0),0)),0),0)*$X$5),1) -> 0 | AC80: =AC79 -> 0 | AD80: =ROUNDDOWN((IF(AC81>0,IFERROR(IF(((((DataInput!Q80-AC80)+(DataInput!Q81-AC81))/2)*(A81-A80))/27+S14+T14>0,ROUNDDOWN(((((DataInput!Q80-AC80)+(DataInput!Q81-AC81))/2)*(A81-A80))/27+S14+T14,0),0),0),0)*$X$5),1) -> 0 | AE80: =DataInput!U80 -> 8 | AF80: =DataInput!S80 -> 17 | AG80: 23.8 | AH80: -15.8
A81: =IF(DataInput!A81<>"",DataInput!A81,"") -> 57075 | B81: =SUM(DataInput!C81,DataInput!Y81)+(DataInput!U81-DataInput!E81) -> 12 | C81: =SUM(DataInput!D81,DataInput!Z81) -> 3 | D81: =DataInput!U81 -> 9 | E81: =SUM(DataInput!F81,DataInput!AB81) -> 0 | F81: =SUM(DataInput!G81,DataInput!AC81) -> 0 | G81: =SUM(DataInput!H81,DataInput!AD81) -> 0 | H81: =DataInput!I81 -> 0 | I81: =SUM(DataInput!J81,DataInput!AF81) -> 0 | J81: =SUM(DataInput!K81,DataInput!AG81) -> 0 | K81: =SUM(DataInput!L81,DataInput!AH81) -> 0 | L81: =SUM(DataInput!M81,DataInput!AI81) -> 0 | M81: =SUM(DataInput!N81,DataInput!AJ81) -> 0 | N81: =SUM(DataInput!O81,DataInput!AK81) -> 0 | O81: =DataInput!P81 -> 0 | Q81: 3 | R81: =DataInput!R81 -> 21 | S81: =DataInput!Y81 -> 0 | T81: =IF(DataInput!U81-DataInput!E81>0,DataInput!U81-DataInput!E81,"") -> 9 | U81: =IF(DataInput!W81-DataInput!I81>0,DataInput!W81-DataInput!I81,"") ->  | W81: 30 | X81: 39 | Y81: -36 | Z81: 0 | AA81: 0 | AB81: =ROUNDDOWN((IF(AA82>0,IFERROR(IF(AVERAGE(DataInput!Q81:Q82)>AVERAGE(AA82,AA81),ROUNDDOWN(((((AA81-Z81)+(AA82-Z82))/2)*(A82-A81))/27+S15+T15,0),IF(((((DataInput!Q82-Z82)+(DataInput!Q81-Z81))/2)*(A82-A81))/27+S15+T15>0,ROUNDDOWN(((((DataInput!Q82-Z81)+(DataInput!Q81-Z81))/2)*(A82-A81))/27+S15+T15,0),0)),0),0)*$X$5),1) -> 0 | AC81: 0 | AD81: =ROUNDDOWN((IF(AC82>0,IFERROR(IF(((((DataInput!Q81-AC81)+(DataInput!Q82-AC82))/2)*(A82-A81))/27+S15+T15>0,ROUNDDOWN(((((DataInput!Q81-AC81)+(DataInput!Q82-AC82))/2)*(A82-A81))/27+S15+T15,0),0),0),0)*$X$5),1) -> 0 | AE81: =DataInput!U81 -> 9 | AF81: =DataInput!S81 -> 18 | AG81: 25.2 | AH81: -16.2
A82: =IF(DataInput!A82<>"",DataInput!A82,"") -> 57100 | B82: =SUM(DataInput!C82,DataInput!Y82)+(DataInput!U82-DataInput!E82) -> 4 | C82: =SUM(DataInput!D82,DataInput!Z82) -> 1 | D82: =DataInput!U82 -> 3 | E82: =SUM(DataInput!F82,DataInput!AB82) -> 0 | F82: =SUM(DataInput!G82,DataInput!AC82) -> 0 | G82: =SUM(DataInput!H82,DataInput!AD82) -> 0 | H82: =DataInput!I82 -> 0 | I82: =SUM(DataInput!J82,DataInput!AF82) -> 0 | J82: =SUM(DataInput!K82,DataInput!AG82) -> 0 | K82: =SUM(DataInput!L82,DataInput!AH82) -> 0 | L82: =SUM(DataInput!M82,DataInput!AI82) -> 0 | M82: =SUM(DataInput!N82,DataInput!AJ82) -> 0 | N82: =SUM(DataInput!O82,DataInput!AK82) -> 0 | O82: =DataInput!P82 -> 0 | Q82: 1 | R82: =DataInput!R82 -> 10 | S82: =DataInput!Y82 -> 0 | T82: =IF(DataInput!U82-DataInput!E82>0,DataInput!U82-DataInput!E82,"") -> 3 | U82: =IF(DataInput!W82-DataInput!I82>0,DataInput!W82-DataInput!I82,"") ->  | W82: 13 | X82: 16.9 | Y82: -15.9 | Z82: 0 | AA82: 0 | AB82: =ROUNDDOWN((IF(AA83>0,IFERROR(IF(AVERAGE(DataInput!Q82:Q83)>AVERAGE(AA83,AA82),ROUNDDOWN(((((AA82-Z82)+(AA83-Z83))/2)*(A83-A82))/27+S16+T16,0),IF(((((DataInput!Q83-Z83)+(DataInput!Q82-Z82))/2)*(A83-A82))/27+S16+T16>0,ROUNDDOWN(((((DataInput!Q83-Z82)+(DataInput!Q82-Z82))/2)*(A83-A82))/27+S16+T16,0),0)),0),0)*$X$5),1) -> 0 | AC82: 0 | AD82: =ROUNDDOWN((IF(AC83>0,IFERROR(IF(((((DataInput!Q82-AC82)+(DataInput!Q83-AC83))/2)*(A83-A82))/27+S16+T16>0,ROUNDDOWN(((((DataInput!Q82-AC82)+(DataInput!Q83-AC83))/2)*(A83-A82))/27+S16+T16,0),0),0),0)*$X$5),1) -> 0 | AE82: =DataInput!U82 -> 3 | AF82: =DataInput!S82 -> 6 | AG82: 8.4 | AH82: -5.4
A83: =IF(DataInput!A83<>"",DataInput!A83,"") -> 57106.77 | B83: =SUM(DataInput!C83,DataInput!Y83)+(DataInput!U83-DataInput!E83) -> 26 | C83: =SUM(DataInput!D83,DataInput!Z83) -> 13 | D83: =DataInput!U83 -> 13 | E83: =SUM(DataInput!F83,DataInput!AB83) -> 0 | F83: =SUM(DataInput!G83,DataInput!AC83) -> 0 | G83: =SUM(DataInput!H83,DataInput!AD83) -> 0 | H83: =DataInput!I83 -> 0 | I83: =SUM(DataInput!J83,DataInput!AF83) -> 0 | J83: =SUM(DataInput!K83,DataInput!AG83) -> 0 | K83: =SUM(DataInput!L83,DataInput!AH83) -> 0 | L83: =SUM(DataInput!M83,DataInput!AI83) -> 0 | M83: =SUM(DataInput!N83,DataInput!AJ83) -> 0 | N83: =SUM(DataInput!O83,DataInput!AK83) -> 0 | O83: =DataInput!P83 -> 0 | Q83: 13 | R83: =DataInput!R83 -> 48 | S83: =DataInput!Y83 -> 0 | T83: =IF(DataInput!U83-DataInput!E83>0,DataInput!U83-DataInput!E83,"") -> 13 | U83: =IF(DataInput!W83-DataInput!I83>0,DataInput!W83-DataInput!I83,"") ->  | W83: 61 | X83: 79.3 | Y83: -66.3 | Z83: 0 | AA83: 0 | AB83: =ROUNDDOWN((IF(AA84>0,IFERROR(IF(AVERAGE(DataInput!Q83:Q84)>AVERAGE(AA84,AA83),ROUNDDOWN(((((AA83-Z83)+(AA84-Z84))/2)*(A84-A83))/27+S17+T17,0),IF(((((DataInput!Q84-Z84)+(DataInput!Q83-Z83))/2)*(A84-A83))/27+S17+T17>0,ROUNDDOWN(((((DataInput!Q84-Z83)+(DataInput!Q83-Z83))/2)*(A84-A83))/27+S17+T17,0),0)),0),0)*$X$5),1) -> 0 | AC83: 0 | AD83: =ROUNDDOWN((IF(AC84>0,IFERROR(IF(((((DataInput!Q83-AC83)+(DataInput!Q84-AC84))/2)*(A84-A83))/27+S17+T17>0,ROUNDDOWN(((((DataInput!Q83-AC83)+(DataInput!Q84-AC84))/2)*(A84-A83))/27+S17+T17,0),0),0),0)*$X$5),1) -> 0 | AE83: =DataInput!U83 -> 13 | AF83: =DataInput!S83 -> 25 | AG83: 35 | AH83: -22
A84: =IF(DataInput!A84<>"",DataInput!A84,"") -> 57125 | B84: =SUM(DataInput!C84,DataInput!Y84)+(DataInput!U84-DataInput!E84) -> 73 | C84: =SUM(DataInput!D84,DataInput!Z84) -> 49 | D84: =DataInput!U84 -> 24 | E84: =SUM(DataInput!F84,DataInput!AB84) -> 0 | F84: =SUM(DataInput!G84,DataInput!AC84) -> 0 | G84: =SUM(DataInput!H84,DataInput!AD84) -> 0 | H84: =DataInput!I84 -> 0 | I84: =SUM(DataInput!J84,DataInput!AF84) -> 0 | J84: =SUM(DataInput!K84,DataInput!AG84) -> 0 | K84: =SUM(DataInput!L84,DataInput!AH84) -> 0 | L84: =SUM(DataInput!M84,DataInput!AI84) -> 0 | M84: =SUM(DataInput!N84,DataInput!AJ84) -> 0 | N84: =SUM(DataInput!O84,DataInput!AK84) -> 0 | O84: =DataInput!P84 -> 0 | Q84: 49 | R84: =DataInput!R84 -> 97 | S84: =DataInput!Y84 -> 0 | T84: =IF(DataInput!U84-DataInput!E84>0,DataInput!U84-DataInput!E84,"") -> 24 | U84: =IF(DataInput!W84-DataInput!I84>0,DataInput!W84-DataInput!I84,"") ->  | W84: 121 | X84: 157.3 | Y84: -108.3 | Z84: 0 | AA84: 0 | AB84: =ROUNDDOWN((IF(AA85>0,IFERROR(IF(AVERAGE(DataInput!Q84:Q85)>AVERAGE(AA85,AA84),ROUNDDOWN(((((AA84-Z84)+(AA85-Z85))/2)*(A85-A84))/27+S18+T18,0),IF(((((DataInput!Q85-Z85)+(DataInput!Q84-Z84))/2)*(A85-A84))/27+S18+T18>0,ROUNDDOWN(((((DataInput!Q85-Z84)+(DataInput!Q84-Z84))/2)*(A85-A84))/27+S18+T18,0),0)),0),0)*$X$5),1) -> 0 | AC84: 0 | AD84: =ROUNDDOWN((IF(AC85>0,IFERROR(IF(((((DataInput!Q84-AC84)+(DataInput!Q85-AC85))/2)*(A85-A84))/27+S18+T18>0,ROUNDDOWN(((((DataInput!Q84-AC84)+(DataInput!Q85-AC85))/2)*(A85-A84))/27+S18+T18,0),0),0),0)*$X$5),1) -> 0 | AE84: =DataInput!U84 -> 24 | AF84: =DataInput!S84 -> 47 | AG84: 65.8 | AH84: -41.8
A85: =IF(DataInput!A85<>"",DataInput!A85,"") -> 57150 | B85: =SUM(DataInput!C85,DataInput!Y85)+(DataInput!U85-DataInput!E85) -> 29 | C85: =SUM(DataInput!D85,DataInput!Z85) -> 18 | D85: =DataInput!U85 -> 11 | E85: =SUM(DataInput!F85,DataInput!AB85) -> 0 | F85: =SUM(DataInput!G85,DataInput!AC85) -> 0 | G85: =SUM(DataInput!H85,DataInput!AD85) -> 0 | H85: =DataInput!I85 -> 0 | I85: =SUM(DataInput!J85,DataInput!AF85) -> 0 | J85: =SUM(DataInput!K85,DataInput!AG85) -> 0 | K85: =SUM(DataInput!L85,DataInput!AH85) -> 0 | L85: =SUM(DataInput!M85,DataInput!AI85) -> 0 | M85: =SUM(DataInput!N85,DataInput!AJ85) -> 0 | N85: =SUM(DataInput!O85,DataInput!AK85) -> 0 | O85: =DataInput!P85 -> 0 | Q85: 18 | R85: =DataInput!R85 -> 27 | S85: =DataInput!Y85 -> 0 | T85: =IF(DataInput!U85-DataInput!E85>0,DataInput!U85-DataInput!E85,"") -> 11 | U85: =IF(DataInput!W85-DataInput!I85>0,DataInput!W85-DataInput!I85,"") ->  | W85: 38 | X85: 49.4 | Y85: -31.4 | Z85: 0 | AA85: 0 | AB85: =ROUNDDOWN((IF(AA86>0,IFERROR(IF(AVERAGE(DataInput!Q85:Q86)>AVERAGE(AA86,AA85),ROUNDDOWN(((((AA85-Z85)+(AA86-Z86))/2)*(A86-A85))/27+S19+T19,0),IF(((((DataInput!Q86-Z86)+(DataInput!Q85-Z85))/2)*(A86-A85))/27+S19+T19>0,ROUNDDOWN(((((DataInput!Q86-Z85)+(DataInput!Q85-Z85))/2)*(A86-A85))/27+S19+T19,0),0)),0),0)*$X$5),1) -> 0 | AC85: 0 | AD85: =ROUNDDOWN((IF(AC86>0,IFERROR(IF(((((DataInput!Q85-AC85)+(DataInput!Q86-AC86))/2)*(A86-A85))/27+S19+T19>0,ROUNDDOWN(((((DataInput!Q85-AC85)+(DataInput!Q86-AC86))/2)*(A86-A85))/27+S19+T19,0),0),0),0)*$X$5),1) -> 0 | AE85: =DataInput!U85 -> 11 | AF85: =DataInput!S85 -> 21 | AG85: 29.4 | AH85: -18.4
A86: =IF(DataInput!A86<>"",DataInput!A86,"") -> 57162.2 | B86: =SUM(DataInput!C86,DataInput!Y86)+(DataInput!U86-DataInput!E86) -> 24 | C86: =SUM(DataInput!D86,DataInput!Z86) -> 13 | D86: =DataInput!U86 -> 11 | E86: =SUM(DataInput!F86,DataInput!AB86) -> 0 | F86: =SUM(DataInput!G86,DataInput!AC86) -> 0 | G86: =SUM(DataInput!H86,DataInput!AD86) -> 0 | H86: =DataInput!I86 -> 0 | I86: =SUM(DataInput!J86,DataInput!AF86) -> 0 | J86: =SUM(DataInput!K86,DataInput!AG86) -> 0 | K86: =SUM(DataInput!L86,DataInput!AH86) -> 0 | L86: =SUM(DataInput!M86,DataInput!AI86) -> 0 | M86: =SUM(DataInput!N86,DataInput!AJ86) -> 0 | N86: =SUM(DataInput!O86,DataInput!AK86) -> 0 | O86: =DataInput!P86 -> 0 | Q86: 13 | R86: =DataInput!R86 -> 30 | S86: =DataInput!Y86 -> 0 | T86: =IF(DataInput!U86-DataInput!E86>0,DataInput!U86-DataInput!E86,"") -> 11 | U86: =IF(DataInput!W86-DataInput!I86>0,DataInput!W86-DataInput!I86,"") ->  | W86: 41 | X86: 53.3 | Y86: -40.3 | Z86: 0 | AA86: 0 | AB86: =ROUNDDOWN((IF(AA87>0,IFERROR(IF(AVERAGE(DataInput!Q86:Q87)>AVERAGE(AA87,AA86),ROUNDDOWN(((((AA86-Z86)+(AA87-Z87))/2)*(A87-A86))/27+S20+T20,0),IF(((((DataInput!Q87-Z87)+(DataInput!Q86-Z86))/2)*(A87-A86))/27+S20+T20>0,ROUNDDOWN(((((DataInput!Q87-Z86)+(DataInput!Q86-Z86))/2)*(A87-A86))/27+S20+T20,0),0)),0),0)*$X$5),1) -> 0 | AC86: 0 | AD86: =ROUNDDOWN((IF(AC87>0,IFERROR(IF(((((DataInput!Q86-AC86)+(DataInput!Q87-AC87))/2)*(A87-A86))/27+S20+T20>0,ROUNDDOWN(((((DataInput!Q86-AC86)+(DataInput!Q87-AC87))/2)*(A87-A86))/27+S20+T20,0),0),0),0)*$X$5),1) -> 0 | AE86: =DataInput!U86 -> 11 | AF86: =DataInput!S86 -> 21 | AG86: 29.4 | AH86: -18.4
A87: =IF(DataInput!A87<>"",DataInput!A87,"") -> 57175 | B87: =SUM(DataInput!C87,DataInput!Y87)+(DataInput!U87-DataInput!E87) -> 50 | C87: =SUM(DataInput!D87,DataInput!Z87) -> 30 | D87: =DataInput!U87 -> 20 | E87: =SUM(DataInput!F87,DataInput!AB87) -> 0 | F87: =SUM(DataInput!G87,DataInput!AC87) -> 0 | G87: =SUM(DataInput!H87,DataInput!AD87) -> 0 | H87: =DataInput!I87 -> 0 | I87: =SUM(DataInput!J87,DataInput!AF87) -> 0 | J87: =SUM(DataInput!K87,DataInput!AG87) -> 0 | K87: =SUM(DataInput!L87,DataInput!AH87) -> 0 | L87: =SUM(DataInput!M87,DataInput!AI87) -> 0 | M87: =SUM(DataInput!N87,DataInput!AJ87) -> 0 | N87: =SUM(DataInput!O87,DataInput!AK87) -> 0 | O87: =DataInput!P87 -> 0 | Q87: 30 | R87: =DataInput!R87 -> 66 | S87: =DataInput!Y87 -> 0 | T87: =IF(DataInput!U87-DataInput!E87>0,DataInput!U87-DataInput!E87,"") -> 20 | U87: =IF(DataInput!W87-DataInput!I87>0,DataInput!W87-DataInput!I87,"") ->  | W87: 86 | X87: 111.8 | Y87: -81.8 | Z87: 0 | AA87: 0 | AB87: =ROUNDDOWN((IF(AA88>0,IFERROR(IF(AVERAGE(DataInput!Q87:Q88)>AVERAGE(AA88,AA87),ROUNDDOWN(((((AA87-Z87)+(AA88-Z88))/2)*(A88-A87))/27+S21+T21,0),IF(((((DataInput!Q88-Z88)+(DataInput!Q87-Z87))/2)*(A88-A87))/27+S21+T21>0,ROUNDDOWN(((((DataInput!Q88-Z87)+(DataInput!Q87-Z87))/2)*(A88-A87))/27+S21+T21,0),0)),0),0)*$X$5),1) -> 0 | AC87: 0 | AD87: =ROUNDDOWN((IF(AC88>0,IFERROR(IF(((((DataInput!Q87-AC87)+(DataInput!Q88-AC88))/2)*(A88-A87))/27+S21+T21>0,ROUNDDOWN(((((DataInput!Q87-AC87)+(DataInput!Q88-AC88))/2)*(A88-A87))/27+S21+T21,0),0),0),0)*$X$5),1) -> 0 | AE87: =DataInput!U87 -> 20 | AF87: =DataInput!S87 -> 40 | AG87: 56 | AH87: -36
A88: =IF(DataInput!A88<>"",DataInput!A88,"") -> 57200 | B88: =SUM(DataInput!C88,DataInput!Y88)+(DataInput!U88-DataInput!E88) -> 19 | C88: =SUM(DataInput!D88,DataInput!Z88) -> 10 | D88: =DataInput!U88 -> 9 | E88: =SUM(DataInput!F88,DataInput!AB88) -> 0 | F88: =SUM(DataInput!G88,DataInput!AC88) -> 0 | G88: =SUM(DataInput!H88,DataInput!AD88) -> 0 | H88: =DataInput!I88 -> 0 | I88: =SUM(DataInput!J88,DataInput!AF88) -> 0 | J88: =SUM(DataInput!K88,DataInput!AG88) -> 0 | K88: =SUM(DataInput!L88,DataInput!AH88) -> 0 | L88: =SUM(DataInput!M88,DataInput!AI88) -> 0 | M88: =SUM(DataInput!N88,DataInput!AJ88) -> 0 | N88: =SUM(DataInput!O88,DataInput!AK88) -> 0 | O88: =DataInput!P88 -> 0 | Q88: 10 | R88: =DataInput!R88 -> 6 | S88: =DataInput!Y88 -> 0 | T88: =IF(DataInput!U88-DataInput!E88>0,DataInput!U88-DataInput!E88,"") -> 9 | U88: =IF(DataInput!W88-DataInput!I88>0,DataInput!W88-DataInput!I88,"") ->  | W88: 15 | X88: 19.5 | Y88: -9.5 | Z88: 0 | AA88: 0 | AB88: =ROUNDDOWN((IF(AA89>0,IFERROR(IF(AVERAGE(DataInput!Q88:Q89)>AVERAGE(AA89,AA88),ROUNDDOWN(((((AA88-Z88)+(AA89-Z89))/2)*(A89-A88))/27+S22+T22,0),IF(((((DataInput!Q89-Z89)+(DataInput!Q88-Z88))/2)*(A89-A88))/27+S22+T22>0,ROUNDDOWN(((((DataInput!Q89-Z88)+(DataInput!Q88-Z88))/2)*(A89-A88))/27+S22+T22,0),0)),0),0)*$X$5),1) -> 0 | AC88: 0 | AD88: =ROUNDDOWN((IF(AC89>0,IFERROR(IF(((((DataInput!Q88-AC88)+(DataInput!Q89-AC89))/2)*(A89-A88))/27+S22+T22>0,ROUNDDOWN(((((DataInput!Q88-AC88)+(DataInput!Q89-AC89))/2)*(A89-A88))/27+S22+T22,0),0),0),0)*$X$5),1) -> 0 | AE88: =DataInput!U88 -> 9 | AF88: =DataInput!S88 -> 18 | AG88: 25.2 | AH88: -16.2
A89: =IF(DataInput!A89<>"",DataInput!A89,"") -> 57216.54 | B89: =SUM(DataInput!C89,DataInput!Y89)+(DataInput!U89-DataInput!E89) -> 5 | C89: =SUM(DataInput!D89,DataInput!Z89) -> 2 | D89: =DataInput!U89 -> 3 | E89: =SUM(DataInput!F89,DataInput!AB89) -> 0 | F89: =SUM(DataInput!G89,DataInput!AC89) -> 0 | G89: =SUM(DataInput!H89,DataInput!AD89) -> 0 | H89: =DataInput!I89 -> 0 | I89: =SUM(DataInput!J89,DataInput!AF89) -> 0 | J89: =SUM(DataInput!K89,DataInput!AG89) -> 0 | K89: =SUM(DataInput!L89,DataInput!AH89) -> 0 | L89: =SUM(DataInput!M89,DataInput!AI89) -> 0 | M89: =SUM(DataInput!N89,DataInput!AJ89) -> 0 | N89: =SUM(DataInput!O89,DataInput!AK89) -> 0 | O89: =DataInput!P89 -> 0 | Q89: 2 | R89: =DataInput!R89 -> 2 | S89: =DataInput!Y89 -> 0 | T89: =IF(DataInput!U89-DataInput!E89>0,DataInput!U89-DataInput!E89,"") -> 3 | U89: =IF(DataInput!W89-DataInput!I89>0,DataInput!W89-DataInput!I89,"") ->  | W89: 5 | X89: 6.5 | Y89: -4.5 | Z89: 0 | AA89: 0 | AB89: =ROUNDDOWN((IF(AA90>0,IFERROR(IF(AVERAGE(DataInput!Q89:Q90)>AVERAGE(AA90,AA89),ROUNDDOWN(((((AA89-Z89)+(AA90-Z90))/2)*(A90-A89))/27+S23+T23,0),IF(((((DataInput!Q90-Z90)+(DataInput!Q89-Z89))/2)*(A90-A89))/27+S23+T23>0,ROUNDDOWN(((((DataInput!Q90-Z89)+(DataInput!Q89-Z89))/2)*(A90-A89))/27+S23+T23,0),0)),0),0)*$X$5),1) -> 0 | AC89: 0 | AD89: =ROUNDDOWN((IF(AC90>0,IFERROR(IF(((((DataInput!Q89-AC89)+(DataInput!Q90-AC90))/2)*(A90-A89))/27+S23+T23>0,ROUNDDOWN(((((DataInput!Q89-AC89)+(DataInput!Q90-AC90))/2)*(A90-A89))/27+S23+T23,0),0),0),0)*$X$5),1) -> 0 | AE89: =DataInput!U89 -> 3 | AF89: =DataInput!S89 -> 6 | AG89: 8.4 | AH89: -5.4
A90: =IF(DataInput!A90<>"",DataInput!A90,"") -> 57225 | B90: =SUM(DataInput!C90,DataInput!Y90)+(DataInput!U90-DataInput!E90) -> 12 | C90: =SUM(DataInput!D90,DataInput!Z90) -> 4 | D90: =DataInput!U90 -> 8 | E90: =SUM(DataInput!F90,DataInput!AB90) -> 0 | F90: =SUM(DataInput!G90,DataInput!AC90) -> 0 | G90: =SUM(DataInput!H90,DataInput!AD90) -> 0 | H90: =DataInput!I90 -> 0 | I90: =SUM(DataInput!J90,DataInput!AF90) -> 0 | J90: =SUM(DataInput!K90,DataInput!AG90) -> 0 | K90: =SUM(DataInput!L90,DataInput!AH90) -> 0 | L90: =SUM(DataInput!M90,DataInput!AI90) -> 0 | M90: =SUM(DataInput!N90,DataInput!AJ90) -> 0 | N90: =SUM(DataInput!O90,DataInput!AK90) -> 0 | O90: =DataInput!P90 -> 0 | Q90: 4 | R90: =DataInput!R90 -> 5 | S90: =DataInput!Y90 -> 0 | T90: =IF(DataInput!U90-DataInput!E90>0,DataInput!U90-DataInput!E90,"") -> 8 | U90: =IF(DataInput!W90-DataInput!I90>0,DataInput!W90-DataInput!I90,"") ->  | W90: 13 | X90: 16.9 | Y90: -12.9 | Z90: 0 | AA90: 0 | AB90: =ROUNDDOWN((IF(AA91>0,IFERROR(IF(AVERAGE(DataInput!Q90:Q91)>AVERAGE(AA91,AA90),ROUNDDOWN(((((AA90-Z90)+(AA91-Z91))/2)*(A91-A90))/27+S24+T24,0),IF(((((DataInput!Q91-Z91)+(DataInput!Q90-Z90))/2)*(A91-A90))/27+S24+T24>0,ROUNDDOWN(((((DataInput!Q91-Z90)+(DataInput!Q90-Z90))/2)*(A91-A90))/27+S24+T24,0),0)),0),0)*$X$5),1) -> 0 | AC90: 0 | AD90: =ROUNDDOWN((IF(AC91>0,IFERROR(IF(((((DataInput!Q90-AC90)+(DataInput!Q91-AC91))/2)*(A91-A90))/27+S24+T24>0,ROUNDDOWN(((((DataInput!Q90-AC90)+(DataInput!Q91-AC91))/2)*(A91-A90))/27+S24+T24,0),0),0),0)*$X$5),1) -> 0 | AE90: =DataInput!U90 -> 8 | AF90: =DataInput!S90 -> 15 | AG90: 21 | AH90: -13
A91: =IF(DataInput!A91<>"",DataInput!A91,"") -> 57250 | B91: =SUM(DataInput!C91,DataInput!Y91)+(DataInput!U91-DataInput!E91) -> 10 | C91: =SUM(DataInput!D91,DataInput!Z91) -> 4 | D91: =DataInput!U91 -> 6 | E91: =SUM(DataInput!F91,DataInput!AB91) -> 0 | F91: =SUM(DataInput!G91,DataInput!AC91) -> 0 | G91: =SUM(DataInput!H91,DataInput!AD91) -> 0 | H91: =DataInput!I91 -> 0 | I91: =SUM(DataInput!J91,DataInput!AF91) -> 0 | J91: =SUM(DataInput!K91,DataInput!AG91) -> 0 | K91: =SUM(DataInput!L91,DataInput!AH91) -> 0 | L91: =SUM(DataInput!M91,DataInput!AI91) -> 0 | M91: =SUM(DataInput!N91,DataInput!AJ91) -> 0 | N91: =SUM(DataInput!O91,DataInput!AK91) -> 0 | O91: =DataInput!P91 -> 0 | Q91: 4 | R91: =DataInput!R91 -> 2 | S91: =DataInput!Y91 -> 0 | T91: =IF(DataInput!U91-DataInput!E91>0,DataInput!U91-DataInput!E91,"") -> 6 | U91: =IF(DataInput!W91-DataInput!I91>0,DataInput!W91-DataInput!I91,"") ->  | W91: 8 | X91: 10.4 | Y91: -6.4 | Z91: 0 | AA91: 0 | AB91: =ROUNDDOWN((IF(AA92>0,IFERROR(IF(AVERAGE(DataInput!Q91:Q92)>AVERAGE(AA92,AA91),ROUNDDOWN(((((AA91-Z91)+(AA92-Z92))/2)*(A92-A91))/27+S25+T25,0),IF(((((DataInput!Q92-Z92)+(DataInput!Q91-Z91))/2)*(A92-A91))/27+S25+T25>0,ROUNDDOWN(((((DataInput!Q92-Z91)+(DataInput!Q91-Z91))/2)*(A92-A91))/27+S25+T25,0),0)),0),0)*$X$5),1) -> 0 | AC91: 0 | AD91: =ROUNDDOWN((IF(AC92>0,IFERROR(IF(((((DataInput!Q91-AC91)+(DataInput!Q92-AC92))/2)*(A92-A91))/27+S25+T25>0,ROUNDDOWN(((((DataInput!Q91-AC91)+(DataInput!Q92-AC92))/2)*(A92-A91))/27+S25+T25,0),0),0),0)*$X$5),1) -> 0 | AE91: =DataInput!U91 -> 6 | AF91: =DataInput!S91 -> 11 | AG91: 15.4 | AH91: -9.4
A92: =IF(DataInput!A92<>"",DataInput!A92,"") -> 57275 | B92: =SUM(DataInput!C92,DataInput!Y92)+(DataInput!U92-DataInput!E92) -> 9 | C92: =SUM(DataInput!D92,DataInput!Z92) -> 5 | D92: =DataInput!U92 -> 4 | E92: =SUM(DataInput!F92,DataInput!AB92) -> 0 | F92: =SUM(DataInput!G92,DataInput!AC92) -> 0 | G92: =SUM(DataInput!H92,DataInput!AD92) -> 0 | H92: =DataInput!I92 -> 0 | I92: =SUM(DataInput!J92,DataInput!AF92) -> 0 | J92: =SUM(DataInput!K92,DataInput!AG92) -> 0 | K92: =SUM(DataInput!L92,DataInput!AH92) -> 0 | L92: =SUM(DataInput!M92,DataInput!AI92) -> 0 | M92: =SUM(DataInput!N92,DataInput!AJ92) -> 0 | N92: =SUM(DataInput!O92,DataInput!AK92) -> 0 | O92: =DataInput!P92 -> 0 | Q92: 5 | R92: =DataInput!R92 -> 0 | S92: =DataInput!Y92 -> 0 | T92: =IF(DataInput!U92-DataInput!E92>0,DataInput!U92-DataInput!E92,"") -> 4 | U92: =IF(DataInput!W92-DataInput!I92>0,DataInput!W92-DataInput!I92,"") ->  | W92: 4 | X92: 5.2 | Y92: -0.2 | Z92: 0 | AA92: 0 | AB92: =ROUNDDOWN((IF(AA93>0,IFERROR(IF(AVERAGE(DataInput!Q92:Q93)>AVERAGE(AA93,AA92),ROUNDDOWN(((((AA92-Z92)+(AA93-Z93))/2)*(A93-A92))/27+S26+T26,0),IF(((((DataInput!Q93-Z93)+(DataInput!Q92-Z92))/2)*(A93-A92))/27+S26+T26>0,ROUNDDOWN(((((DataInput!Q93-Z92)+(DataInput!Q92-Z92))/2)*(A93-A92))/27+S26+T26,0),0)),0),0)*$X$5),1) -> 0 | AC92: 0 | AD92: =ROUNDDOWN((IF(AC93>0,IFERROR(IF(((((DataInput!Q92-AC92)+(DataInput!Q93-AC93))/2)*(A93-A92))/27+S26+T26>0,ROUNDDOWN(((((DataInput!Q92-AC92)+(DataInput!Q93-AC93))/2)*(A93-A92))/27+S26+T26,0),0),0),0)*$X$5),1) -> 0 | AE92: =DataInput!U92 -> 4 | AF92: =DataInput!S92 -> 7 | AG92: 9.8 | AH92: -5.8
A93: =IF(DataInput!A93<>"",DataInput!A93,"") -> 57300 | B93: =SUM(DataInput!C93,DataInput!Y93)+(DataInput!U93-DataInput!E93) -> 6 | C93: =SUM(DataInput!D93,DataInput!Z93) -> 4 | D93: =DataInput!U93 -> 2 | E93: =SUM(DataInput!F93,DataInput!AB93) -> 0 | F93: =SUM(DataInput!G93,DataInput!AC93) -> 0 | G93: =SUM(DataInput!H93,DataInput!AD93) -> 0 | H93: =DataInput!I93 -> 0 | I93: =SUM(DataInput!J93,DataInput!AF93) -> 0 | J93: =SUM(DataInput!K93,DataInput!AG93) -> 0 | K93: =SUM(DataInput!L93,DataInput!AH93) -> 0 | L93: =SUM(DataInput!M93,DataInput!AI93) -> 0 | M93: =SUM(DataInput!N93,DataInput!AJ93) -> 0 | N93: =SUM(DataInput!O93,DataInput!AK93) -> 0 | O93: =DataInput!P93 -> 0 | Q93: 4 | R93: =DataInput!R93 -> 0 | S93: =DataInput!Y93 -> 0 | T93: =IF(DataInput!U93-DataInput!E93>0,DataInput!U93-DataInput!E93,"") -> 2 | U93: =IF(DataInput!W93-DataInput!I93>0,DataInput!W93-DataInput!I93,"") ->  | W93: 2 | X93: 2.6 | Y93: 1.4 | Z93: 0 | AA93: 0 | AB93: =ROUNDDOWN((IF(AA94>0,IFERROR(IF(AVERAGE(DataInput!Q93:Q94)>AVERAGE(AA94,AA93),ROUNDDOWN(((((AA93-Z93)+(AA94-Z94))/2)*(A94-A93))/27+S27+T27,0),IF(((((DataInput!Q94-Z94)+(DataInput!Q93-Z93))/2)*(A94-A93))/27+S27+T27>0,ROUNDDOWN(((((DataInput!Q94-Z93)+(DataInput!Q93-Z93))/2)*(A94-A93))/27+S27+T27,0),0)),0),0)*$X$5),1) -> 0 | AC93: 0 | AD93: =ROUNDDOWN((IF(AC94>0,IFERROR(IF(((((DataInput!Q93-AC93)+(DataInput!Q94-AC94))/2)*(A94-A93))/27+S27+T27>0,ROUNDDOWN(((((DataInput!Q93-AC93)+(DataInput!Q94-AC94))/2)*(A94-A93))/27+S27+T27,0),0),0),0)*$X$5),1) -> 0 | AE93: =DataInput!U93 -> 2 | AF93: =DataInput!S93 -> 3 | AG93: 4.2 | AH93: -2.2
A94: =IF(DataInput!A94<>"",DataInput!A94,"") -> 57325
A96: =IF(DataInput!A96<>"",DataInput!A96,"") -> Sta. 581+05
A97: =IF(DataInput!A97<>"",DataInput!A97,"") -> 58075 | B97: =SUM(DataInput!C97,DataInput!Y97)+(DataInput!U97-DataInput!E97) -> 17 | C97: =SUM(DataInput!D97,DataInput!Z97) -> 11 | D97: =DataInput!U97 -> 6 | E97: =SUM(DataInput!F97,DataInput!AB97) -> 0 | F97: =SUM(DataInput!G97,DataInput!AC97) -> 0 | G97: =SUM(DataInput!H97,DataInput!AD97) -> 0 | H97: =DataInput!I97 -> 0 | I97: =SUM(DataInput!J97,DataInput!AF97) -> 0 | J97: =SUM(DataInput!K97,DataInput!AG97) -> 0 | K97: =SUM(DataInput!L97,DataInput!AH97) -> 0 | L97: =SUM(DataInput!M97,DataInput!AI97) -> 0 | M97: =SUM(DataInput!N97,DataInput!AJ97) -> 0 | N97: =SUM(DataInput!O97,DataInput!AK97) -> 0 | O97: =DataInput!P97 -> 0 | Q97: =SUM(C97,E97:G97,I97:L97,N97:P97) -> 11 | R97: =DataInput!R97 -> 7 | S97: =DataInput!Y97 -> 0 | T97: =IF(DataInput!U97-DataInput!E97>0,DataInput!U97-DataInput!E97,"") -> 6 | U97: =IF(DataInput!W97-DataInput!I97>0,DataInput!W97-DataInput!I97,"") ->  | W97: =SUM(R97:V97) -> 13 | X97: =ROUNDUP(($W97*$X$5),1) -> 16.9 | Y97: =ROUNDUP(SUM(Q97-X97),1) -> -5.9 | AB97: =ROUNDDOWN((IF(AA98>0,IFERROR(IF(AVERAGE(DataInput!Q97:Q98)>AVERAGE(AA98,AA97),ROUNDDOWN(((((AA97-Z97)+(AA98-Z98))/2)*(A98-A97))/27+S12+T12,0),IF(((((DataInput!Q98-Z98)+(DataInput!Q97-Z97))/2)*(A98-A97))/27+S12+T12>0,ROUNDDOWN(((((DataInput!Q98-Z97)+(DataInput!Q97-Z97))/2)*(A98-A97))/27+S12+T12,0),0)),0),0)*$X$5),1) -> 0 | AD97: =ROUNDDOWN((IF(AC98>0,IFERROR(IF(((((DataInput!Q97-AC97)+(DataInput!Q98-AC98))/2)*(A98-A97))/27+S12+T12>0,ROUNDDOWN(((((DataInput!Q97-AC97)+(DataInput!Q98-AC98))/2)*(A98-A97))/27+S12+T12,0),0),0),0)*$X$5),1) -> 0 | AE97: =DataInput!U97 -> 6 | AF97: =DataInput!S97 -> 11 | AG97: =ROUNDUP((AF97*$AG$5),1) -> 15.4 | AH97: =ROUNDUP((AE97-AG97),1) -> -9.4
A98: =IF(DataInput!A98<>"",DataInput!A98,"") -> 58100 | B98: =SUM(DataInput!C98,DataInput!Y98)+(DataInput!U98-DataInput!E98) -> 8 | C98: =SUM(DataInput!D98,DataInput!Z98) -> 2 | D98: =DataInput!U98 -> 6 | E98: =SUM(DataInput!F98,DataInput!AB98) -> 0 | F98: =SUM(DataInput!G98,DataInput!AC98) -> 0 | G98: =SUM(DataInput!H98,DataInput!AD98) -> 0 | H98: =DataInput!I98 -> 0 | I98: =SUM(DataInput!J98,DataInput!AF98) -> 0 | J98: =SUM(DataInput!K98,DataInput!AG98) -> 0 | K98: =SUM(DataInput!L98,DataInput!AH98) -> 0 | L98: =SUM(DataInput!M98,DataInput!AI98) -> 0 | M98: =SUM(DataInput!N98,DataInput!AJ98) -> 0 | N98: =SUM(DataInput!O98,DataInput!AK98) -> 0 | O98: =DataInput!P98 -> 0 | Q98: =SUM(C98,E98:G98,I98:L98,N98:P98) -> 2 | R98: =DataInput!R98 -> 3 | S98: =DataInput!Y98 -> 0 | T98: =IF(DataInput!U98-DataInput!E98>0,DataInput!U98-DataInput!E98,"") -> 6 | U98: =IF(DataInput!W98-DataInput!I98>0,DataInput!W98-DataInput!I98,"") ->  | W98: =SUM(R98:V98) -> 9 | X98: =ROUNDUP(($W98*$X$5),1) -> 11.7 | Y98: =ROUNDUP(SUM(Q98-X98),1) -> -9.7 | Z98: =Z97 -> 0 | AA98: =AA97 -> 0 | AB98: =ROUNDDOWN((IF(AA99>0,IFERROR(IF(AVERAGE(DataInput!Q98:Q99)>AVERAGE(AA99,AA98),ROUNDDOWN(((((AA98-Z98)+(AA99-Z99))/2)*(A99-A98))/27+S13+T13,0),IF(((((DataInput!Q99-Z99)+(DataInput!Q98-Z98))/2)*(A99-A98))/27+S13+T13>0,ROUNDDOWN(((((DataInput!Q99-Z98)+(DataInput!Q98-Z98))/2)*(A99-A98))/27+S13+T13,0),0)),0),0)*$X$5),1) -> 0 | AC98: =AC97 -> 0 | AD98: =ROUNDDOWN((IF(AC99>0,IFERROR(IF(((((DataInput!Q98-AC98)+(DataInput!Q99-AC99))/2)*(A99-A98))/27+S13+T13>0,ROUNDDOWN(((((DataInput!Q98-AC98)+(DataInput!Q99-AC99))/2)*(A99-A98))/27+S13+T13,0),0),0),0)*$X$5),1) -> 0 | AE98: =DataInput!U98 -> 6 | AF98: =DataInput!S98 -> 2 | AG98: =ROUNDUP((AF98*$AG$5),1) -> 2.8 | AH98: =ROUNDUP((AE98-AG98),1) -> 3.2
A99: =IF(DataInput!A99<>"",DataInput!A99,"") -> 58105.47 | B99: =SUM(DataInput!C99,DataInput!Y99)+(DataInput!U99-DataInput!E99) -> 7 | C99: =SUM(DataInput!D99,DataInput!Z99) -> 7 | D99: =DataInput!U99 -> 0 | E99: =SUM(DataInput!F99,DataInput!AB99) -> 0 | F99: =SUM(DataInput!G99,DataInput!AC99) -> 0 | G99: =SUM(DataInput!H99,DataInput!AD99) -> 0 | H99: =DataInput!I99 -> 0 | I99: =SUM(DataInput!J99,DataInput!AF99) -> 0 | J99: =SUM(DataInput!K99,DataInput!AG99) -> 0 | K99: =SUM(DataInput!L99,DataInput!AH99) -> 0 | L99: =SUM(DataInput!M99,DataInput!AI99) -> 0 | M99: =SUM(DataInput!N99,DataInput!AJ99) -> 0 | N99: =SUM(DataInput!O99,DataInput!AK99) -> 0 | O99: =DataInput!P99 -> 0 | Q99: 7 | R99: =DataInput!R99 -> 10 | S99: =DataInput!Y99 -> 0 | T99: =IF(DataInput!U99-DataInput!E99>0,DataInput!U99-DataInput!E99,"") ->  | U99: =IF(DataInput!W99-DataInput!I99>0,DataInput!W99-DataInput!I99,"") ->  | W99: 10 | X99: 13 | Y99: -6 | Z99: =Z98 -> 0 | AA99: =AA98 -> 0 | AB99: =ROUNDDOWN((IF(AA100>0,IFERROR(IF(AVERAGE(DataInput!Q99:Q100)>AVERAGE(AA100,AA99),ROUNDDOWN(((((AA99-Z99)+(AA100-Z100))/2)*(A100-A99))/27+S14+T14,0),IF(((((DataInput!Q100-Z100)+(DataInput!Q99-Z99))/2)*(A100-A99))/27+S14+T14>0,ROUNDDOWN(((((DataInput!Q100-Z99)+(DataInput!Q99-Z99))/2)*(A100-A99))/27+S14+T14,0),0)),0),0)*$X$5),1) -> 0 | AC99: =AC98 -> 0 | AD99: =ROUNDDOWN((IF(AC100>0,IFERROR(IF(((((DataInput!Q99-AC99)+(DataInput!Q100-AC100))/2)*(A100-A99))/27+S14+T14>0,ROUNDDOWN(((((DataInput!Q99-AC99)+(DataInput!Q100-AC100))/2)*(A100-A99))/27+S14+T14,0),0),0),0)*$X$5),1) -> 0 | AE99: =DataInput!U99 -> 0 | AF99: =DataInput!S99 -> 9 | AG99: 12.6 | AH99: -12.6
A100: =IF(DataInput!A100<>"",DataInput!A100,"") -> 58125
A102: =IF(DataInput!A102<>"",DataInput!A102,"") -> Sta. 651+43
A103: =IF(DataInput!A103<>"",DataInput!A103,"") -> 65050 | B103: =SUM(DataInput!C103,DataInput!Y103)+(DataInput!U103-DataInput!E103) -> 23 | C103: =SUM(DataInput!D103,DataInput!Z103) -> 15 | D103: =DataInput!U103 -> 8 | E103: =SUM(DataInput!F103,DataInput!AB103) -> 0 | F103: =SUM(DataInput!G103,DataInput!AC103) -> 0 | G103: =SUM(DataInput!H103,DataInput!AD103) -> 0 | H103: =DataInput!I103 -> 0 | I103: =SUM(DataInput!J103,DataInput!AF103) -> 0 | J103: =SUM(DataInput!K103,DataInput!AG103) -> 0 | K103: =SUM(DataInput!L103,DataInput!AH103) -> 0 | L103: =SUM(DataInput!M103,DataInput!AI103) -> 0 | M103: =SUM(DataInput!N103,DataInput!AJ103) -> 0 | N103: =SUM(DataInput!O103,DataInput!AK103) -> 0 | O103: =DataInput!P103 -> 0 | Q103: =SUM(C103,E103:G103,I103:L103,N103:P103) -> 15 | R103: =DataInput!R103 -> 3 | S103: =DataInput!Y103 -> 0 | T103: =IF(DataInput!U103-DataInput!E103>0,DataInput!U103-DataInput!E103,"") -> 8 | U103: =IF(DataInput!W103-DataInput!I103>0,DataInput!W103-DataInput!I103,"") ->  | W103: =SUM(R103:V103) -> 11 | X103: =ROUNDUP(($W103*$X$5),1) -> 14.3 | Y103: =ROUNDUP(SUM(Q103-X103),1) -> 0.7 | AB103: =ROUNDDOWN((IF(AA104>0,IFERROR(IF(AVERAGE(DataInput!Q103:Q104)>AVERAGE(AA104,AA103),ROUNDDOWN(((((AA103-Z103)+(AA104-Z104))/2)*(A104-A103))/27+S12+T12,0),IF(((((DataInput!Q104-Z104)+(DataInput!Q103-Z103))/2)*(A104-A103))/27+S12+T12>0,ROUNDDOWN(((((DataInput!Q104-Z103)+(DataInput!Q103-Z103))/2)*(A104-A103))/27+S12+T12,0),0)),0),0)*$X$5),1) -> 0 | AD103: =ROUNDDOWN((IF(AC104>0,IFERROR(IF(((((DataInput!Q103-AC103)+(DataInput!Q104-AC104))/2)*(A104-A103))/27+S12+T12>0,ROUNDDOWN(((((DataInput!Q103-AC103)+(DataInput!Q104-AC104))/2)*(A104-A103))/27+S12+T12,0),0),0),0)*$X$5),1) -> 0 | AE103: =DataInput!U103 -> 8 | AF103: =DataInput!S103 -> 16 | AG103: =ROUNDUP((AF103*$AG$5),1) -> 22.4 | AH103: =ROUNDUP((AE103-AG103),1) -> -14.4
A104: =IF(DataInput!A104<>"",DataInput!A104,"") -> 65075 | B104: =SUM(DataInput!C104,DataInput!Y104)+(DataInput!U104-DataInput!E104) -> 47 | C104: =SUM(DataInput!D104,DataInput!Z104) -> 33 | D104: =DataInput!U104 -> 14 | E104: =SUM(DataInput!F104,DataInput!AB104) -> 0 | F104: =SUM(DataInput!G104,DataInput!AC104) -> 0 | G104: =SUM(DataInput!H104,DataInput!AD104) -> 0 | H104: =DataInput!I104 -> 0 | I104: =SUM(DataInput!J104,DataInput!AF104) -> 0 | J104: =SUM(DataInput!K104,DataInput!AG104) -> 0 | K104: =SUM(DataInput!L104,DataInput!AH104) -> 0 | L104: =SUM(DataInput!M104,DataInput!AI104) -> 0 | M104: =SUM(DataInput!N104,DataInput!AJ104) -> 0 | N104: =SUM(DataInput!O104,DataInput!AK104) -> 0 | O104: =DataInput!P104 -> 0 | Q104: =SUM(C104,E104:G104,I104:L104,N104:P104) -> 33 | R104: =DataInput!R104 -> 13 | S104: =DataInput!Y104 -> 0 | T104: =IF(DataInput!U104-DataInput!E104>0,DataInput!U104-DataInput!E104,"") -> 14 | U104: =IF(DataInput!W104-DataInput!I104>0,DataInput!W104-DataInput!I104,"") ->  | W104: =SUM(R104:V104) -> 27 | X104: =ROUNDUP(($W104*$X$5),1) -> 35.1 | Y104: =ROUNDUP(SUM(Q104-X104),1) -> -2.1 | Z104: =Z103 -> 0 | AA104: =AA103 -> 0 | AB104: =ROUNDDOWN((IF(AA105>0,IFERROR(IF(AVERAGE(DataInput!Q104:Q105)>AVERAGE(AA105,AA104),ROUNDDOWN(((((AA104-Z104)+(AA105-Z105))/2)*(A105-A104))/27+S13+T13,0),IF(((((DataInput!Q105-Z105)+(DataInput!Q104-Z104))/2)*(A105-A104))/27+S13+T13>0,ROUNDDOWN(((((DataInput!Q105-Z104)+(DataInput!Q104-Z104))/2)*(A105-A104))/27+S13+T13,0),0)),0),0)*$X$5),1) -> 0 | AC104: =AC103 -> 0 | AD104: =ROUNDDOWN((IF(AC105>0,IFERROR(IF(((((DataInput!Q104-AC104)+(DataInput!Q105-AC105))/2)*(A105-A104))/27+S13+T13>0,ROUNDDOWN(((((DataInput!Q104-AC104)+(DataInput!Q105-AC105))/2)*(A105-A104))/27+S13+T13,0),0),0),0)*$X$5),1) -> 0 | AE104: =DataInput!U104 -> 14 | AF104: =DataInput!S104 -> 27 | AG104: =ROUNDUP((AF104*$AG$5),1) -> 37.8 | AH104: =ROUNDUP((AE104-AG104),1) -> -23.8
A105: =IF(DataInput!A105<>"",DataInput!A105,"") -> 65100 | B105: =SUM(DataInput!C105,DataInput!Y105)+(DataInput!U105-DataInput!E105) -> 102 | C105: =SUM(DataInput!D105,DataInput!Z105) -> 83 | D105: =DataInput!U105 -> 19 | E105: =SUM(DataInput!F105,DataInput!AB105) -> 0 | F105: =SUM(DataInput!G105,DataInput!AC105) -> 0 | G105: =SUM(DataInput!H105,DataInput!AD105) -> 0 | H105: =DataInput!I105 -> 0 | I105: =SUM(DataInput!J105,DataInput!AF105) -> 0 | J105: =SUM(DataInput!K105,DataInput!AG105) -> 0 | K105: =SUM(DataInput!L105,DataInput!AH105) -> 0 | L105: =SUM(DataInput!M105,DataInput!AI105) -> 0 | M105: =SUM(DataInput!N105,DataInput!AJ105) -> 0 | N105: =SUM(DataInput!O105,DataInput!AK105) -> 0 | O105: =DataInput!P105 -> 0 | Q105: 83 | R105: =DataInput!R105 -> 19 | S105: =DataInput!Y105 -> 0 | T105: =IF(DataInput!U105-DataInput!E105>0,DataInput!U105-DataInput!E105,"") -> 19 | U105: =IF(DataInput!W105-DataInput!I105>0,DataInput!W105-DataInput!I105,"") ->  | W105: 38 | X105: 49.4 | Y105: 33.6 | Z105: =Z104 -> 0 | AA105: =AA104 -> 0 | AB105: =ROUNDDOWN((IF(AA106>0,IFERROR(IF(AVERAGE(DataInput!Q105:Q106)>AVERAGE(AA106,AA105),ROUNDDOWN(((((AA105-Z105)+(AA106-Z106))/2)*(A106-A105))/27+S14+T14,0),IF(((((DataInput!Q106-Z106)+(DataInput!Q105-Z105))/2)*(A106-A105))/27+S14+T14>0,ROUNDDOWN(((((DataInput!Q106-Z105)+(DataInput!Q105-Z105))/2)*(A106-A105))/27+S14+T14,0),0)),0),0)*$X$5),1) -> 0 | AC105: =AC104 -> 0 | AD105: =ROUNDDOWN((IF(AC106>0,IFERROR(IF(((((DataInput!Q105-AC105)+(DataInput!Q106-AC106))/2)*(A106-A105))/27+S14+T14>0,ROUNDDOWN(((((DataInput!Q105-AC105)+(DataInput!Q106-AC106))/2)*(A106-A105))/27+S14+T14,0),0),0),0)*$X$5),1) -> 0 | AE105: =DataInput!U105 -> 19 | AF105: =DataInput!S105 -> 39 | AG105: 54.6 | AH105: -35.6
A106: =IF(DataInput!A106<>"",DataInput!A106,"") -> 65125 | B106: =SUM(DataInput!C106,DataInput!Y106)+(DataInput!U106-DataInput!E106) -> 110 | C106: =SUM(DataInput!D106,DataInput!Z106) -> 93 | D106: =DataInput!U106 -> 17 | E106: =SUM(DataInput!F106,DataInput!AB106) -> 0 | F106: =SUM(DataInput!G106,DataInput!AC106) -> 0 | G106: =SUM(DataInput!H106,DataInput!AD106) -> 0 | H106: =DataInput!I106 -> 0 | I106: =SUM(DataInput!J106,DataInput!AF106) -> 0 | J106: =SUM(DataInput!K106,DataInput!AG106) -> 0 | K106: =SUM(DataInput!L106,DataInput!AH106) -> 0 | L106: =SUM(DataInput!M106,DataInput!AI106) -> 0 | M106: =SUM(DataInput!N106,DataInput!AJ106) -> 0 | N106: =SUM(DataInput!O106,DataInput!AK106) -> 0 | O106: =DataInput!P106 -> 0 | Q106: 93 | R106: =DataInput!R106 -> 31 | S106: =DataInput!Y106 -> 0 | T106: =IF(DataInput!U106-DataInput!E106>0,DataInput!U106-DataInput!E106,"") -> 17 | U106: =IF(DataInput!W106-DataInput!I106>0,DataInput!W106-DataInput!I106,"") ->  | W106: 48 | X106: 62.4 | Y106: 30.6 | Z106: 0 | AA106: 0 | AB106: =ROUNDDOWN((IF(AA107>0,IFERROR(IF(AVERAGE(DataInput!Q106:Q107)>AVERAGE(AA107,AA106),ROUNDDOWN(((((AA106-Z106)+(AA107-Z107))/2)*(A107-A106))/27+S15+T15,0),IF(((((DataInput!Q107-Z107)+(DataInput!Q106-Z106))/2)*(A107-A106))/27+S15+T15>0,ROUNDDOWN(((((DataInput!Q107-Z106)+(DataInput!Q106-Z106))/2)*(A107-A106))/27+S15+T15,0),0)),0),0)*$X$5),1) -> 0 | AC106: 0 | AD106: =ROUNDDOWN((IF(AC107>0,IFERROR(IF(((((DataInput!Q106-AC106)+(DataInput!Q107-AC107))/2)*(A107-A106))/27+S15+T15>0,ROUNDDOWN(((((DataInput!Q106-AC106)+(DataInput!Q107-AC107))/2)*(A107-A106))/27+S15+T15,0),0),0),0)*$X$5),1) -> 0 | AE106: =DataInput!U106 -> 17 | AF106: =DataInput!S106 -> 34 | AG106: 47.6 | AH106: -30.6
A107: =IF(DataInput!A107<>"",DataInput!A107,"") -> 65142.85 | B107: =SUM(DataInput!C107,DataInput!Y107)+(DataInput!U107-DataInput!E107) -> 47 | C107: =SUM(DataInput!D107,DataInput!Z107) -> 41 | D107: =DataInput!U107 -> 6 | E107: =SUM(DataInput!F107,DataInput!AB107) -> 0 | F107: =SUM(DataInput!G107,DataInput!AC107) -> 0 | G107: =SUM(DataInput!H107,DataInput!AD107) -> 0 | H107: =DataInput!I107 -> 0 | I107: =SUM(DataInput!J107,DataInput!AF107) -> 0 | J107: =SUM(DataInput!K107,DataInput!AG107) -> 0 | K107: =SUM(DataInput!L107,DataInput!AH107) -> 0 | L107: =SUM(DataInput!M107,DataInput!AI107) -> 0 | M107: =SUM(DataInput!N107,DataInput!AJ107) -> 0 | N107: =SUM(DataInput!O107,DataInput!AK107) -> 0 | O107: =DataInput!P107 -> 0 | Q107: 41 | R107: =DataInput!R107 -> 12 | S107: =DataInput!Y107 -> 0 | T107: =IF(DataInput!U107-DataInput!E107>0,DataInput!U107-DataInput!E107,"") -> 6 | U107: =IF(DataInput!W107-DataInput!I107>0,DataInput!W107-DataInput!I107,"") ->  | W107: 18 | X107: 23.4 | Y107: 17.6 | Z107: 0 | AA107: 0 | AB107: =ROUNDDOWN((IF(AA108>0,IFERROR(IF(AVERAGE(DataInput!Q107:Q108)>AVERAGE(AA108,AA107),ROUNDDOWN(((((AA107-Z107)+(AA108-Z108))/2)*(A108-A107))/27+S16+T16,0),IF(((((DataInput!Q108-Z108)+(DataInput!Q107-Z107))/2)*(A108-A107))/27+S16+T16>0,ROUNDDOWN(((((DataInput!Q108-Z107)+(DataInput!Q107-Z107))/2)*(A108-A107))/27+S16+T16,0),0)),0),0)*$X$5),1) -> 0 | AC107: 0 | AD107: =ROUNDDOWN((IF(AC108>0,IFERROR(IF(((((DataInput!Q107-AC107)+(DataInput!Q108-AC108))/2)*(A108-A107))/27+S16+T16>0,ROUNDDOWN(((((DataInput!Q107-AC107)+(DataInput!Q108-AC108))/2)*(A108-A107))/27+S16+T16,0),0),0),0)*$X$5),1) -> 0 | AE107: =DataInput!U107 -> 6 | AF107: =DataInput!S107 -> 13 | AG107: 18.2 | AH107: -12.2
A108: =IF(DataInput!A108<>"",DataInput!A108,"") -> 65150 | B108: =SUM(DataInput!C108,DataInput!Y108)+(DataInput!U108-DataInput!E108) -> 144 | C108: =SUM(DataInput!D108,DataInput!Z108) -> 124 | D108: =DataInput!U108 -> 20 | E108: =SUM(DataInput!F108,DataInput!AB108) -> 0 | F108: =SUM(DataInput!G108,DataInput!AC108) -> 0 | G108: =SUM(DataInput!H108,DataInput!AD108) -> 0 | H108: =DataInput!I108 -> 0 | I108: =SUM(DataInput!J108,DataInput!AF108) -> 0 | J108: =SUM(DataInput!K108,DataInput!AG108) -> 0 | K108: =SUM(DataInput!L108,DataInput!AH108) -> 0 | L108: =SUM(DataInput!M108,DataInput!AI108) -> 0 | M108: =SUM(DataInput!N108,DataInput!AJ108) -> 0 | N108: =SUM(DataInput!O108,DataInput!AK108) -> 0 | O108: =DataInput!P108 -> 0 | Q108: 124 | R108: =DataInput!R108 -> 18 | S108: =DataInput!Y108 -> 0 | T108: =IF(DataInput!U108-DataInput!E108>0,DataInput!U108-DataInput!E108,"") -> 20 | U108: =IF(DataInput!W108-DataInput!I108>0,DataInput!W108-DataInput!I108,"") ->  | W108: 38 | X108: 49.4 | Y108: 74.6 | Z108: 0 | AA108: 0 | AB108: =ROUNDDOWN((IF(AA109>0,IFERROR(IF(AVERAGE(DataInput!Q108:Q109)>AVERAGE(AA109,AA108),ROUNDDOWN(((((AA108-Z108)+(AA109-Z109))/2)*(A109-A108))/27+S17+T17,0),IF(((((DataInput!Q109-Z109)+(DataInput!Q108-Z108))/2)*(A109-A108))/27+S17+T17>0,ROUNDDOWN(((((DataInput!Q109-Z108)+(DataInput!Q108-Z108))/2)*(A109-A108))/27+S17+T17,0),0)),0),0)*$X$5),1) -> 0 | AC108: 0 | AD108: =ROUNDDOWN((IF(AC109>0,IFERROR(IF(((((DataInput!Q108-AC108)+(DataInput!Q109-AC109))/2)*(A109-A108))/27+S17+T17>0,ROUNDDOWN(((((DataInput!Q108-AC108)+(DataInput!Q109-AC109))/2)*(A109-A108))/27+S17+T17,0),0),0),0)*$X$5),1) -> 0 | AE108: =DataInput!U108 -> 20 | AF108: =DataInput!S108 -> 39 | AG108: 54.6 | AH108: -34.6
A109: =IF(DataInput!A109<>"",DataInput!A109,"") -> 65175 | B109: =SUM(DataInput!C109,DataInput!Y109)+(DataInput!U109-DataInput!E109) -> 103 | C109: =SUM(DataInput!D109,DataInput!Z109) -> 86 | D109: =DataInput!U109 -> 17 | E109: =SUM(DataInput!F109,DataInput!AB109) -> 0 | F109: =SUM(DataInput!G109,DataInput!AC109) -> 0 | G109: =SUM(DataInput!H109,DataInput!AD109) -> 0 | H109: =DataInput!I109 -> 0 | I109: =SUM(DataInput!J109,DataInput!AF109) -> 0 | J109: =SUM(DataInput!K109,DataInput!AG109) -> 0 | K109: =SUM(DataInput!L109,DataInput!AH109) -> 0 | L109: =SUM(DataInput!M109,DataInput!AI109) -> 0 | M109: =SUM(DataInput!N109,DataInput!AJ109) -> 0 | N109: =SUM(DataInput!O109,DataInput!AK109) -> 0 | O109: =DataInput!P109 -> 0 | Q109: 86 | R109: =DataInput!R109 -> 15 | S109: =DataInput!Y109 -> 0 | T109: =IF(DataInput!U109-DataInput!E109>0,DataInput!U109-DataInput!E109,"") -> 17 | U109: =IF(DataInput!W109-DataInput!I109>0,DataInput!W109-DataInput!I109,"") ->  | W109: 32 | X109: 41.6 | Y109: 44.4 | Z109: 0 | AA109: 0 | AB109: =ROUNDDOWN((IF(AA110>0,IFERROR(IF(AVERAGE(DataInput!Q109:Q110)>AVERAGE(AA110,AA109),ROUNDDOWN(((((AA109-Z109)+(AA110-Z110))/2)*(A110-A109))/27+S18+T18,0),IF(((((DataInput!Q110-Z110)+(DataInput!Q109-Z109))/2)*(A110-A109))/27+S18+T18>0,ROUNDDOWN(((((DataInput!Q110-Z109)+(DataInput!Q109-Z109))/2)*(A110-A109))/27+S18+T18,0),0)),0),0)*$X$5),1) -> 0 | AC109: 0 | AD109: =ROUNDDOWN((IF(AC110>0,IFERROR(IF(((((DataInput!Q109-AC109)+(DataInput!Q110-AC110))/2)*(A110-A109))/27+S18+T18>0,ROUNDDOWN(((((DataInput!Q109-AC109)+(DataInput!Q110-AC110))/2)*(A110-A109))/27+S18+T18,0),0),0),0)*$X$5),1) -> 0 | AE109: =DataInput!U109 -> 17 | AF109: =DataInput!S109 -> 34 | AG109: 47.6 | AH109: -30.6
A110: =IF(DataInput!A110<>"",DataInput!A110,"") -> 65200 | B110: =SUM(DataInput!C110,DataInput!Y110)+(DataInput!U110-DataInput!E110) -> 64 | C110: =SUM(DataInput!D110,DataInput!Z110) -> 51 | D110: =DataInput!U110 -> 13 | E110: =SUM(DataInput!F110,DataInput!AB110) -> 0 | F110: =SUM(DataInput!G110,DataInput!AC110) -> 0 | G110: =SUM(DataInput!H110,DataInput!AD110) -> 0 | H110: =DataInput!I110 -> 0 | I110: =SUM(DataInput!J110,DataInput!AF110) -> 0 | J110: =SUM(DataInput!K110,DataInput!AG110) -> 0 | K110: =SUM(DataInput!L110,DataInput!AH110) -> 0 | L110: =SUM(DataInput!M110,DataInput!AI110) -> 0 | M110: =SUM(DataInput!N110,DataInput!AJ110) -> 0 | N110: =SUM(DataInput!O110,DataInput!AK110) -> 0 | O110: =DataInput!P110 -> 0 | Q110: 51 | R110: =DataInput!R110 -> 7 | S110: =DataInput!Y110 -> 0 | T110: =IF(DataInput!U110-DataInput!E110>0,DataInput!U110-DataInput!E110,"") -> 13 | U110: =IF(DataInput!W110-DataInput!I110>0,DataInput!W110-DataInput!I110,"") ->  | W110: 20 | X110: 26 | Y110: 25 | Z110: 0 | AA110: 0 | AB110: =ROUNDDOWN((IF(AA111>0,IFERROR(IF(AVERAGE(DataInput!Q110:Q111)>AVERAGE(AA111,AA110),ROUNDDOWN(((((AA110-Z110)+(AA111-Z111))/2)*(A111-A110))/27+S19+T19,0),IF(((((DataInput!Q111-Z111)+(DataInput!Q110-Z110))/2)*(A111-A110))/27+S19+T19>0,ROUNDDOWN(((((DataInput!Q111-Z110)+(DataInput!Q110-Z110))/2)*(A111-A110))/27+S19+T19,0),0)),0),0)*$X$5),1) -> 0 | AC110: 0 | AD110: =ROUNDDOWN((IF(AC111>0,IFERROR(IF(((((DataInput!Q110-AC110)+(DataInput!Q111-AC111))/2)*(A111-A110))/27+S19+T19>0,ROUNDDOWN(((((DataInput!Q110-AC110)+(DataInput!Q111-AC111))/2)*(A111-A110))/27+S19+T19,0),0),0),0)*$X$5),1) -> 0 | AE110: =DataInput!U110 -> 13 | AF110: =DataInput!S110 -> 26 | AG110: 36.4 | AH110: -23.4
A111: =IF(DataInput!A111<>"",DataInput!A111,"") -> 65225
A113: =IF(DataInput!A113<>"",DataInput!A113,"") -> Sta. 704+70
A114: =IF(DataInput!A114<>"",DataInput!A114,"") -> 70469.66 | B114: =SUM(DataInput!C114,DataInput!Y114)+(DataInput!U114-DataInput!E114) -> 14 | C114: =SUM(DataInput!D114,DataInput!Z114) -> 11 | D114: =DataInput!U114 -> 3 | E114: =SUM(DataInput!F114,DataInput!AB114) -> 0 | F114: =SUM(DataInput!G114,DataInput!AC114) -> 0 | G114: =SUM(DataInput!H114,DataInput!AD114) -> 0 | H114: =DataInput!I114 -> 0 | I114: =SUM(DataInput!J114,DataInput!AF114) -> 0 | J114: =SUM(DataInput!K114,DataInput!AG114) -> 0 | K114: =SUM(DataInput!L114,DataInput!AH114) -> 0 | L114: =SUM(DataInput!M114,DataInput!AI114) -> 0 | M114: =SUM(DataInput!N114,DataInput!AJ114) -> 0 | N114: =SUM(DataInput!O114,DataInput!AK114) -> 0 | O114: =DataInput!P114 -> 0 | Q114: =SUM(C114,E114:G114,I114:L114,N114:P114) -> 11 | R114: =DataInput!R114 -> 23 | S114: =DataInput!Y114 -> 0 | T114: =IF(DataInput!U114-DataInput!E114>0,DataInput!U114-DataInput!E114,"") -> 3 | U114: =IF(DataInput!W114-DataInput!I114>0,DataInput!W114-DataInput!I114,"") ->  | W114: =SUM(R114:V114) -> 26 | X114: =ROUNDUP(($W114*$X$5),1) -> 33.8 | Y114: =ROUNDUP(SUM(Q114-X114),1) -> -22.8 | AB114: =ROUNDDOWN((IF(AA115>0,IFERROR(IF(AVERAGE(DataInput!Q114:Q115)>AVERAGE(AA115,AA114),ROUNDDOWN(((((AA114-Z114)+(AA115-Z115))/2)*(A115-A114))/27+S12+T12,0),IF(((((DataInput!Q115-Z115)+(DataInput!Q114-Z114))/2)*(A115-A114))/27+S12+T12>0,ROUNDDOWN(((((DataInput!Q115-Z114)+(DataInput!Q114-Z114))/2)*(A115-A114))/27+S12+T12,0),0)),0),0)*$X$5),1) -> 0 | AD114: =ROUNDDOWN((IF(AC115>0,IFERROR(IF(((((DataInput!Q114-AC114)+(DataInput!Q115-AC115))/2)*(A115-A114))/27+S12+T12>0,ROUNDDOWN(((((DataInput!Q114-AC114)+(DataInput!Q115-AC115))/2)*(A115-A114))/27+S12+T12,0),0),0),0)*$X$5),1) -> 0 | AE114: =DataInput!U114 -> 3 | AF114: =DataInput!S114 -> 6 | AG114: =ROUNDUP((AF114*$AG$5),1) -> 8.4 | AH114: =ROUNDUP((AE114-AG114),1) -> -5.4
A115: =IF(DataInput!A115<>"",DataInput!A115,"") -> 70475 | B115: =SUM(DataInput!C115,DataInput!Y115)+(DataInput!U115-DataInput!E115) -> 13 | C115: =SUM(DataInput!D115,DataInput!Z115) -> 2 | D115: =DataInput!U115 -> 11 | E115: =SUM(DataInput!F115,DataInput!AB115) -> 0 | F115: =SUM(DataInput!G115,DataInput!AC115) -> 0 | G115: =SUM(DataInput!H115,DataInput!AD115) -> 0 | H115: =DataInput!I115 -> 0 | I115: =SUM(DataInput!J115,DataInput!AF115) -> 0 | J115: =SUM(DataInput!K115,DataInput!AG115) -> 0 | K115: =SUM(DataInput!L115,DataInput!AH115) -> 0 | L115: =SUM(DataInput!M115,DataInput!AI115) -> 0 | M115: =SUM(DataInput!N115,DataInput!AJ115) -> 0 | N115: =SUM(DataInput!O115,DataInput!AK115) -> 0 | O115: =DataInput!P115 -> 0 | Q115: =SUM(C115,E115:G115,I115:L115,N115:P115) -> 2 | R115: =DataInput!R115 -> 78 | S115: =DataInput!Y115 -> 0 | T115: =IF(DataInput!U115-DataInput!E115>0,DataInput!U115-DataInput!E115,"") -> 11 | U115: =IF(DataInput!W115-DataInput!I115>0,DataInput!W115-DataInput!I115,"") ->  | W115: =SUM(R115:V115) -> 89 | X115: =ROUNDUP(($W115*$X$5),1) -> 115.7 | Y115: =ROUNDUP(SUM(Q115-X115),1) -> -113.7 | Z115: =Z114 -> 0 | AA115: =AA114 -> 0 | AB115: =ROUNDDOWN((IF(AA116>0,IFERROR(IF(AVERAGE(DataInput!Q115:Q116)>AVERAGE(AA116,AA115),ROUNDDOWN(((((AA115-Z115)+(AA116-Z116))/2)*(A116-A115))/27+S13+T13,0),IF(((((DataInput!Q116-Z116)+(DataInput!Q115-Z115))/2)*(A116-A115))/27+S13+T13>0,ROUNDDOWN(((((DataInput!Q116-Z115)+(DataInput!Q115-Z115))/2)*(A116-A115))/27+S13+T13,0),0)),0),0)*$X$5),1) -> 0 | AC115: =AC114 -> 0 | AD115: =ROUNDDOWN((IF(AC116>0,IFERROR(IF(((((DataInput!Q115-AC115)+(DataInput!Q116-AC116))/2)*(A116-A115))/27+S13+T13>0,ROUNDDOWN(((((DataInput!Q115-AC115)+(DataInput!Q116-AC116))/2)*(A116-A115))/27+S13+T13,0),0),0),0)*$X$5),1) -> 0 | AE115: =DataInput!U115 -> 11 | AF115: =DataInput!S115 -> 20 | AG115: =ROUNDUP((AF115*$AG$5),1) -> 28 | AH115: =ROUNDUP((AE115-AG115),1) -> -17
A116: =IF(DataInput!A116<>"",DataInput!A116,"") -> 70500 | B116: =SUM(DataInput!C116,DataInput!Y116)+(DataInput!U116-DataInput!E116) -> 11 | C116: =SUM(DataInput!D116,DataInput!Z116) -> 3 | D116: =DataInput!U116 -> 8 | E116: =SUM(DataInput!F116,DataInput!AB116) -> 0 | F116: =SUM(DataInput!G116,DataInput!AC116) -> 0 | G116: =SUM(DataInput!H116,DataInput!AD116) -> 0 | H116: =DataInput!I116 -> 0 | I116: =SUM(DataInput!J116,DataInput!AF116) -> 0 | J116: =SUM(DataInput!K116,DataInput!AG116) -> 0 | K116: =SUM(DataInput!L116,DataInput!AH116) -> 0 | L116: =SUM(DataInput!M116,DataInput!AI116) -> 0 | M116: =SUM(DataInput!N116,DataInput!AJ116) -> 0 | N116: =SUM(DataInput!O116,DataInput!AK116) -> 0 | O116: =DataInput!P116 -> 0 | Q116: 3 | R116: =DataInput!R116 -> 30 | S116: =DataInput!Y116 -> 0 | T116: =IF(DataInput!U116-DataInput!E116>0,DataInput!U116-DataInput!E116,"") -> 8 | U116: =IF(DataInput!W116-DataInput!I116>0,DataInput!W116-DataInput!I116,"") ->  | W116: 38 | X116: 49.4 | Y116: -46.4 | Z116: =Z115 -> 0 | AA116: =AA115 -> 0 | AB116: =ROUNDDOWN((IF(AA117>0,IFERROR(IF(AVERAGE(DataInput!Q116:Q117)>AVERAGE(AA117,AA116),ROUNDDOWN(((((AA116-Z116)+(AA117-Z117))/2)*(A117-A116))/27+S14+T14,0),IF(((((DataInput!Q117-Z117)+(DataInput!Q116-Z116))/2)*(A117-A116))/27+S14+T14>0,ROUNDDOWN(((((DataInput!Q117-Z116)+(DataInput!Q116-Z116))/2)*(A117-A116))/27+S14+T14,0),0)),0),0)*$X$5),1) -> 0 | AC116: =AC115 -> 0 | AD116: =ROUNDDOWN((IF(AC117>0,IFERROR(IF(((((DataInput!Q116-AC116)+(DataInput!Q117-AC117))/2)*(A117-A116))/27+S14+T14>0,ROUNDDOWN(((((DataInput!Q116-AC116)+(DataInput!Q117-AC117))/2)*(A117-A116))/27+S14+T14,0),0),0),0)*$X$5),1) -> 0 | AE116: =DataInput!U116 -> 8 | AF116: =DataInput!S116 -> 16 | AG116: 22.4 | AH116: -14.4
A117: =IF(DataInput!A117<>"",DataInput!A117,"") -> 70525 | B117: =SUM(DataInput!C117,DataInput!Y117)+(DataInput!U117-DataInput!E117) -> 9 | C117: =SUM(DataInput!D117,DataInput!Z117) -> 3 | D117: =DataInput!U117 -> 6 | E117: =SUM(DataInput!F117,DataInput!AB117) -> 0 | F117: =SUM(DataInput!G117,DataInput!AC117) -> 0 | G117: =SUM(DataInput!H117,DataInput!AD117) -> 0 | H117: =DataInput!I117 -> 0 | I117: =SUM(DataInput!J117,DataInput!AF117) -> 0 | J117: =SUM(DataInput!K117,DataInput!AG117) -> 0 | K117: =SUM(DataInput!L117,DataInput!AH117) -> 0 | L117: =SUM(DataInput!M117,DataInput!AI117) -> 0 | M117: =SUM(DataInput!N117,DataInput!AJ117) -> 0 | N117: =SUM(DataInput!O117,DataInput!AK117) -> 0 | O117: =DataInput!P117 -> 0 | Q117: 3 | R117: =DataInput!R117 -> 10 | S117: =DataInput!Y117 -> 0 | T117: =IF(DataInput!U117-DataInput!E117>0,DataInput!U117-DataInput!E117,"") -> 6 | U117: =IF(DataInput!W117-DataInput!I117>0,DataInput!W117-DataInput!I117,"") ->  | W117: 16 | X117: 20.8 | Y117: -17.8 | Z117: 0 | AA117: 0 | AB117: =ROUNDDOWN((IF(AA118>0,IFERROR(IF(AVERAGE(DataInput!Q117:Q118)>AVERAGE(AA118,AA117),ROUNDDOWN(((((AA117-Z117)+(AA118-Z118))/2)*(A118-A117))/27+S15+T15,0),IF(((((DataInput!Q118-Z118)+(DataInput!Q117-Z117))/2)*(A118-A117))/27+S15+T15>0,ROUNDDOWN(((((DataInput!Q118-Z117)+(DataInput!Q117-Z117))/2)*(A118-A117))/27+S15+T15,0),0)),0),0)*$X$5),1) -> 0 | AC117: 0 | AD117: =ROUNDDOWN((IF(AC118>0,IFERROR(IF(((((DataInput!Q117-AC117)+(DataInput!Q118-AC118))/2)*(A118-A117))/27+S15+T15>0,ROUNDDOWN(((((DataInput!Q117-AC117)+(DataInput!Q118-AC118))/2)*(A118-A117))/27+S15+T15,0),0),0),0)*$X$5),1) -> 0 | AE117: =DataInput!U117 -> 6 | AF117: =DataInput!S117 -> 12 | AG117: 16.8 | AH117: -10.8
A118: =IF(DataInput!A118<>"",DataInput!A118,"") -> 70550 | B118: =SUM(DataInput!C118,DataInput!Y118)+(DataInput!U118-DataInput!E118) -> 6 | C118: =SUM(DataInput!D118,DataInput!Z118) -> 3 | D118: =DataInput!U118 -> 3 | E118: =SUM(DataInput!F118,DataInput!AB118) -> 0 | F118: =SUM(DataInput!G118,DataInput!AC118) -> 0 | G118: =SUM(DataInput!H118,DataInput!AD118) -> 0 | H118: =DataInput!I118 -> 0 | I118: =SUM(DataInput!J118,DataInput!AF118) -> 0 | J118: =SUM(DataInput!K118,DataInput!AG118) -> 0 | K118: =SUM(DataInput!L118,DataInput!AH118) -> 0 | L118: =SUM(DataInput!M118,DataInput!AI118) -> 0 | M118: =SUM(DataInput!N118,DataInput!AJ118) -> 0 | N118: =SUM(DataInput!O118,DataInput!AK118) -> 0 | O118: =DataInput!P118 -> 0 | Q118: 3 | R118: =DataInput!R118 -> 2 | S118: =DataInput!Y118 -> 0 | T118: =IF(DataInput!U118-DataInput!E118>0,DataInput!U118-DataInput!E118,"") -> 3 | U118: =IF(DataInput!W118-DataInput!I118>0,DataInput!W118-DataInput!I118,"") ->  | W118: 5 | X118: 6.5 | Y118: -3.5 | Z118: 0 | AA118: 0 | AB118: =ROUNDDOWN((IF(AA119>0,IFERROR(IF(AVERAGE(DataInput!Q118:Q119)>AVERAGE(AA119,AA118),ROUNDDOWN(((((AA118-Z118)+(AA119-Z119))/2)*(A119-A118))/27+S16+T16,0),IF(((((DataInput!Q119-Z119)+(DataInput!Q118-Z118))/2)*(A119-A118))/27+S16+T16>0,ROUNDDOWN(((((DataInput!Q119-Z118)+(DataInput!Q118-Z118))/2)*(A119-A118))/27+S16+T16,0),0)),0),0)*$X$5),1) -> 0 | AC118: 0 | AD118: =ROUNDDOWN((IF(AC119>0,IFERROR(IF(((((DataInput!Q118-AC118)+(DataInput!Q119-AC119))/2)*(A119-A118))/27+S16+T16>0,ROUNDDOWN(((((DataInput!Q118-AC118)+(DataInput!Q119-AC119))/2)*(A119-A118))/27+S16+T16,0),0),0),0)*$X$5),1) -> 0 | AE118: =DataInput!U118 -> 3 | AF118: =DataInput!S118 -> 6 | AG118: 8.4 | AH118: -5.4
A119: =IF(DataInput!A119<>"",DataInput!A119,"") -> 70575
A121: =IF(DataInput!A121<>"",DataInput!A121,"") -> Sta. 743+25
A122: =IF(DataInput!A122<>"",DataInput!A122,"") -> 74225 | B122: =SUM(DataInput!C122,DataInput!Y122)+(DataInput!U122-DataInput!E122) -> 15 | C122: =SUM(DataInput!D122,DataInput!Z122) -> 9 | D122: =DataInput!U122 -> 6 | E122: =SUM(DataInput!F122,DataInput!AB122) -> 0 | F122: =SUM(DataInput!G122,DataInput!AC122) -> 0 | G122: =SUM(DataInput!H122,DataInput!AD122) -> 0 | H122: =DataInput!I122 -> 0 | I122: =SUM(DataInput!J122,DataInput!AF122) -> 0 | J122: =SUM(DataInput!K122,DataInput!AG122) -> 0 | K122: =SUM(DataInput!L122,DataInput!AH122) -> 0 | L122: =SUM(DataInput!M122,DataInput!AI122) -> 0 | M122: =SUM(DataInput!N122,DataInput!AJ122) -> 0 | N122: =SUM(DataInput!O122,DataInput!AK122) -> 0 | O122: =DataInput!P122 -> 0 | Q122: =SUM(C122,E122:G122,I122:L122,N122:P122) -> 9 | R122: =DataInput!R122 -> 2 | S122: =DataInput!Y122 -> 0 | T122: =IF(DataInput!U122-DataInput!E122>0,DataInput!U122-DataInput!E122,"") -> 6 | U122: =IF(DataInput!W122-DataInput!I122>0,DataInput!W122-DataInput!I122,"") ->  | W122: =SUM(R122:V122) -> 8 | X122: =ROUNDUP(($W122*$X$5),1) -> 10.4 | Y122: =ROUNDUP(SUM(Q122-X122),1) -> -1.4 | AB122: =ROUNDDOWN((IF(AA123>0,IFERROR(IF(AVERAGE(DataInput!Q122:Q123)>AVERAGE(AA123,AA122),ROUNDDOWN(((((AA122-Z122)+(AA123-Z123))/2)*(A123-A122))/27+S12+T12,0),IF(((((DataInput!Q123-Z123)+(DataInput!Q122-Z122))/2)*(A123-A122))/27+S12+T12>0,ROUNDDOWN(((((DataInput!Q123-Z122)+(DataInput!Q122-Z122))/2)*(A123-A122))/27+S12+T12,0),0)),0),0)*$X$5),1) -> 0 | AD122: =ROUNDDOWN((IF(AC123>0,IFERROR(IF(((((DataInput!Q122-AC122)+(DataInput!Q123-AC123))/2)*(A123-A122))/27+S12+T12>0,ROUNDDOWN(((((DataInput!Q122-AC122)+(DataInput!Q123-AC123))/2)*(A123-A122))/27+S12+T12,0),0),0),0)*$X$5),1) -> 0 | AE122: =DataInput!U122 -> 6 | AF122: =DataInput!S122 -> 11 | AG122: =ROUNDUP((AF122*$AG$5),1) -> 15.4 | AH122: =ROUNDUP((AE122-AG122),1) -> -9.4
A123: =IF(DataInput!A123<>"",DataInput!A123,"") -> 74250 | B123: =SUM(DataInput!C123,DataInput!Y123)+(DataInput!U123-DataInput!E123) -> 50 | C123: =SUM(DataInput!D123,DataInput!Z123) -> 35 | D123: =DataInput!U123 -> 15 | E123: =SUM(DataInput!F123,DataInput!AB123) -> 0 | F123: =SUM(DataInput!G123,DataInput!AC123) -> 0 | G123: =SUM(DataInput!H123,DataInput!AD123) -> 0 | H123: =DataInput!I123 -> 0 | I123: =SUM(DataInput!J123,DataInput!AF123) -> 0 | J123: =SUM(DataInput!K123,DataInput!AG123) -> 0 | K123: =SUM(DataInput!L123,DataInput!AH123) -> 0 | L123: =SUM(DataInput!M123,DataInput!AI123) -> 0 | M123: =SUM(DataInput!N123,DataInput!AJ123) -> 0 | N123: =SUM(DataInput!O123,DataInput!AK123) -> 0 | O123: =DataInput!P123 -> 0 | Q123: =SUM(C123,E123:G123,I123:L123,N123:P123) -> 35 | R123: =DataInput!R123 -> 9 | S123: =DataInput!Y123 -> 0 | T123: =IF(DataInput!U123-DataInput!E123>0,DataInput!U123-DataInput!E123,"") -> 15 | U123: =IF(DataInput!W123-DataInput!I123>0,DataInput!W123-DataInput!I123,"") ->  | W123: =SUM(R123:V123) -> 24 | X123: =ROUNDUP(($W123*$X$5),1) -> 31.2 | Y123: =ROUNDUP(SUM(Q123-X123),1) -> 3.8 | Z123: =Z122 -> 0 | AA123: =AA122 -> 0 | AB123: =ROUNDDOWN((IF(AA124>0,IFERROR(IF(AVERAGE(DataInput!Q123:Q124)>AVERAGE(AA124,AA123),ROUNDDOWN(((((AA123-Z123)+(AA124-Z124))/2)*(A124-A123))/27+S13+T13,0),IF(((((DataInput!Q124-Z124)+(DataInput!Q123-Z123))/2)*(A124-A123))/27+S13+T13>0,ROUNDDOWN(((((DataInput!Q124-Z123)+(DataInput!Q123-Z123))/2)*(A124-A123))/27+S13+T13,0),0)),0),0)*$X$5),1) -> 0 | AC123: =AC122 -> 0 | AD123: =ROUNDDOWN((IF(AC124>0,IFERROR(IF(((((DataInput!Q123-AC123)+(DataInput!Q124-AC124))/2)*(A124-A123))/27+S13+T13>0,ROUNDDOWN(((((DataInput!Q123-AC123)+(DataInput!Q124-AC124))/2)*(A124-A123))/27+S13+T13,0),0),0),0)*$X$5),1) -> 0 | AE123: =DataInput!U123 -> 15 | AF123: =DataInput!S123 -> 29 | AG123: =ROUNDUP((AF123*$AG$5),1) -> 40.6 | AH123: =ROUNDUP((AE123-AG123),1) -> -25.6
A124: =IF(DataInput!A124<>"",DataInput!A124,"") -> 74275 | B124: =SUM(DataInput!C124,DataInput!Y124)+(DataInput!U124-DataInput!E124) -> 77 | C124: =SUM(DataInput!D124,DataInput!Z124) -> 54 | D124: =DataInput!U124 -> 23 | E124: =SUM(DataInput!F124,DataInput!AB124) -> 0 | F124: =SUM(DataInput!G124,DataInput!AC124) -> 0 | G124: =SUM(DataInput!H124,DataInput!AD124) -> 0 | H124: =DataInput!I124 -> 0 | I124: =SUM(DataInput!J124,DataInput!AF124) -> 0 | J124: =SUM(DataInput!K124,DataInput!AG124) -> 0 | K124: =SUM(DataInput!L124,DataInput!AH124) -> 0 | L124: =SUM(DataInput!M124,DataInput!AI124) -> 0 | M124: =SUM(DataInput!N124,DataInput!AJ124) -> 0 | N124: =SUM(DataInput!O124,DataInput!AK124) -> 0 | O124: =DataInput!P124 -> 0 | Q124: 54 | R124: =DataInput!R124 -> 18 | S124: =DataInput!Y124 -> 0 | T124: =IF(DataInput!U124-DataInput!E124>0,DataInput!U124-DataInput!E124,"") -> 23 | U124: =IF(DataInput!W124-DataInput!I124>0,DataInput!W124-DataInput!I124,"") ->  | W124: 41 | X124: 53.3 | Y124: 0.8 | Z124: =Z123 -> 0 | AA124: =AA123 -> 0 | AB124: =ROUNDDOWN((IF(AA125>0,IFERROR(IF(AVERAGE(DataInput!Q124:Q125)>AVERAGE(AA125,AA124),ROUNDDOWN(((((AA124-Z124)+(AA125-Z125))/2)*(A125-A124))/27+S14+T14,0),IF(((((DataInput!Q125-Z125)+(DataInput!Q124-Z124))/2)*(A125-A124))/27+S14+T14>0,ROUNDDOWN(((((DataInput!Q125-Z124)+(DataInput!Q124-Z124))/2)*(A125-A124))/27+S14+T14,0),0)),0),0)*$X$5),1) -> 0 | AC124: =AC123 -> 0 | AD124: =ROUNDDOWN((IF(AC125>0,IFERROR(IF(((((DataInput!Q124-AC124)+(DataInput!Q125-AC125))/2)*(A125-A124))/27+S14+T14>0,ROUNDDOWN(((((DataInput!Q124-AC124)+(DataInput!Q125-AC125))/2)*(A125-A124))/27+S14+T14,0),0),0),0)*$X$5),1) -> 0 | AE124: =DataInput!U124 -> 23 | AF124: =DataInput!S124 -> 45 | AG124: 63 | AH124: -40
A125: =IF(DataInput!A125<>"",DataInput!A125,"") -> 74300 | B125: =SUM(DataInput!C125,DataInput!Y125)+(DataInput!U125-DataInput!E125) -> 75 | C125: =SUM(DataInput!D125,DataInput!Z125) -> 47 | D125: =DataInput!U125 -> 28 | E125: =SUM(DataInput!F125,DataInput!AB125) -> 0 | F125: =SUM(DataInput!G125,DataInput!AC125) -> 0 | G125: =SUM(DataInput!H125,DataInput!AD125) -> 0 | H125: =DataInput!I125 -> 0 | I125: =SUM(DataInput!J125,DataInput!AF125) -> 0 | J125: =SUM(DataInput!K125,DataInput!AG125) -> 0 | K125: =SUM(DataInput!L125,DataInput!AH125) -> 0 | L125: =SUM(DataInput!M125,DataInput!AI125) -> 0 | M125: =SUM(DataInput!N125,DataInput!AJ125) -> 0 | N125: =SUM(DataInput!O125,DataInput!AK125) -> 0 | O125: =DataInput!P125 -> 0 | Q125: 47 | R125: =DataInput!R125 -> 115 | S125: =DataInput!Y125 -> 0 | T125: =IF(DataInput!U125-DataInput!E125>0,DataInput!U125-DataInput!E125,"") -> 28 | U125: =IF(DataInput!W125-DataInput!I125>0,DataInput!W125-DataInput!I125,"") ->  | W125: 143 | X125: 185.9 | Y125: -138.9 | Z125: 0 | AA125: 0 | AB125: =ROUNDDOWN((IF(AA126>0,IFERROR(IF(AVERAGE(DataInput!Q125:Q126)>AVERAGE(AA126,AA125),ROUNDDOWN(((((AA125-Z125)+(AA126-Z126))/2)*(A126-A125))/27+S15+T15,0),IF(((((DataInput!Q126-Z126)+(DataInput!Q125-Z125))/2)*(A126-A125))/27+S15+T15>0,ROUNDDOWN(((((DataInput!Q126-Z125)+(DataInput!Q125-Z125))/2)*(A126-A125))/27+S15+T15,0),0)),0),0)*$X$5),1) -> 0 | AC125: 0 | AD125: =ROUNDDOWN((IF(AC126>0,IFERROR(IF(((((DataInput!Q125-AC125)+(DataInput!Q126-AC126))/2)*(A126-A125))/27+S15+T15>0,ROUNDDOWN(((((DataInput!Q125-AC125)+(DataInput!Q126-AC126))/2)*(A126-A125))/27+S15+T15,0),0),0),0)*$X$5),1) -> 0 | AE125: =DataInput!U125 -> 28 | AF125: =DataInput!S125 -> 55 | AG125: 77 | AH125: -49
A126: =IF(DataInput!A126<>"",DataInput!A126,"") -> 74325.2 | B126: =SUM(DataInput!C126,DataInput!Y126)+(DataInput!U126-DataInput!E126) -> 74 | C126: =SUM(DataInput!D126,DataInput!Z126) -> 49 | D126: =DataInput!U126 -> 25 | E126: =SUM(DataInput!F126,DataInput!AB126) -> 0 | F126: =SUM(DataInput!G126,DataInput!AC126) -> 0 | G126: =SUM(DataInput!H126,DataInput!AD126) -> 0 | H126: =DataInput!I126 -> 0 | I126: =SUM(DataInput!J126,DataInput!AF126) -> 0 | J126: =SUM(DataInput!K126,DataInput!AG126) -> 0 | K126: =SUM(DataInput!L126,DataInput!AH126) -> 0 | L126: =SUM(DataInput!M126,DataInput!AI126) -> 0 | M126: =SUM(DataInput!N126,DataInput!AJ126) -> 0 | N126: =SUM(DataInput!O126,DataInput!AK126) -> 0 | O126: =DataInput!P126 -> 0 | Q126: 49 | R126: =DataInput!R126 -> 114 | S126: =DataInput!Y126 -> 0 | T126: =IF(DataInput!U126-DataInput!E126>0,DataInput!U126-DataInput!E126,"") -> 25 | U126: =IF(DataInput!W126-DataInput!I126>0,DataInput!W126-DataInput!I126,"") ->  | W126: 139 | X126: 180.7 | Y126: -131.7 | Z126: 0 | AA126: 0 | AB126: =ROUNDDOWN((IF(AA127>0,IFERROR(IF(AVERAGE(DataInput!Q126:Q127)>AVERAGE(AA127,AA126),ROUNDDOWN(((((AA126-Z126)+(AA127-Z127))/2)*(A127-A126))/27+S16+T16,0),IF(((((DataInput!Q127-Z127)+(DataInput!Q126-Z126))/2)*(A127-A126))/27+S16+T16>0,ROUNDDOWN(((((DataInput!Q127-Z126)+(DataInput!Q126-Z126))/2)*(A127-A126))/27+S16+T16,0),0)),0),0)*$X$5),1) -> 0 | AC126: 0 | AD126: =ROUNDDOWN((IF(AC127>0,IFERROR(IF(((((DataInput!Q126-AC126)+(DataInput!Q127-AC127))/2)*(A127-A126))/27+S16+T16>0,ROUNDDOWN(((((DataInput!Q126-AC126)+(DataInput!Q127-AC127))/2)*(A127-A126))/27+S16+T16,0),0),0),0)*$X$5),1) -> 0 | AE126: =DataInput!U126 -> 25 | AF126: =DataInput!S126 -> 49 | AG126: 68.6 | AH126: -43.6
A127: =IF(DataInput!A127<>"",DataInput!A127,"") -> 74350 | B127: =SUM(DataInput!C127,DataInput!Y127)+(DataInput!U127-DataInput!E127) -> 65 | C127: =SUM(DataInput!D127,DataInput!Z127) -> 48 | D127: =DataInput!U127 -> 17 | E127: =SUM(DataInput!F127,DataInput!AB127) -> 0 | F127: =SUM(DataInput!G127,DataInput!AC127) -> 0 | G127: =SUM(DataInput!H127,DataInput!AD127) -> 0 | H127: =DataInput!I127 -> 0 | I127: =SUM(DataInput!J127,DataInput!AF127) -> 0 | J127: =SUM(DataInput!K127,DataInput!AG127) -> 0 | K127: =SUM(DataInput!L127,DataInput!AH127) -> 0 | L127: =SUM(DataInput!M127,DataInput!AI127) -> 0 | M127: =SUM(DataInput!N127,DataInput!AJ127) -> 0 | N127: =SUM(DataInput!O127,DataInput!AK127) -> 0 | O127: =DataInput!P127 -> 0 | Q127: 48 | R127: =DataInput!R127 -> 17 | S127: =DataInput!Y127 -> 0 | T127: =IF(DataInput!U127-DataInput!E127>0,DataInput!U127-DataInput!E127,"") -> 17 | U127: =IF(DataInput!W127-DataInput!I127>0,DataInput!W127-DataInput!I127,"") ->  | W127: 34 | X127: 44.2 | Y127: 3.8 | Z127: 0 | AA127: 0 | AB127: =ROUNDDOWN((IF(AA128>0,IFERROR(IF(AVERAGE(DataInput!Q127:Q128)>AVERAGE(AA128,AA127),ROUNDDOWN(((((AA127-Z127)+(AA128-Z128))/2)*(A128-A127))/27+S17+T17,0),IF(((((DataInput!Q128-Z128)+(DataInput!Q127-Z127))/2)*(A128-A127))/27+S17+T17>0,ROUNDDOWN(((((DataInput!Q128-Z127)+(DataInput!Q127-Z127))/2)*(A128-A127))/27+S17+T17,0),0)),0),0)*$X$5),1) -> 0 | AC127: 0 | AD127: =ROUNDDOWN((IF(AC128>0,IFERROR(IF(((((DataInput!Q127-AC127)+(DataInput!Q128-AC128))/2)*(A128-A127))/27+S17+T17>0,ROUNDDOWN(((((DataInput!Q127-AC127)+(DataInput!Q128-AC128))/2)*(A128-A127))/27+S17+T17,0),0),0),0)*$X$5),1) -> 0 | AE127: =DataInput!U127 -> 17 | AF127: =DataInput!S127 -> 34 | AG127: 47.6 | AH127: -30.6
A128: =IF(DataInput!A128<>"",DataInput!A128,"") -> 74375 | B128: =SUM(DataInput!C128,DataInput!Y128)+(DataInput!U128-DataInput!E128) -> 40 | C128: =SUM(DataInput!D128,DataInput!Z128) -> 29 | D128: =DataInput!U128 -> 11 | E128: =SUM(DataInput!F128,DataInput!AB128) -> 0 | F128: =SUM(DataInput!G128,DataInput!AC128) -> 0 | G128: =SUM(DataInput!H128,DataInput!AD128) -> 0 | H128: =DataInput!I128 -> 0 | I128: =SUM(DataInput!J128,DataInput!AF128) -> 0 | J128: =SUM(DataInput!K128,DataInput!AG128) -> 0 | K128: =SUM(DataInput!L128,DataInput!AH128) -> 0 | L128: =SUM(DataInput!M128,DataInput!AI128) -> 0 | M128: =SUM(DataInput!N128,DataInput!AJ128) -> 0 | N128: =SUM(DataInput!O128,DataInput!AK128) -> 0 | O128: =DataInput!P128 -> 0 | Q128: 29 | R128: =DataInput!R128 -> 6 | S128: =DataInput!Y128 -> 0 | T128: =IF(DataInput!U128-DataInput!E128>0,DataInput!U128-DataInput!E128,"") -> 11 | U128: =IF(DataInput!W128-DataInput!I128>0,DataInput!W128-DataInput!I128,"") ->  | W128: 17 | X128: 22.1 | Y128: 6.9 | Z128: 0 | AA128: 0 | AB128: =ROUNDDOWN((IF(AA129>0,IFERROR(IF(AVERAGE(DataInput!Q128:Q129)>AVERAGE(AA129,AA128),ROUNDDOWN(((((AA128-Z128)+(AA129-Z129))/2)*(A129-A128))/27+S18+T18,0),IF(((((DataInput!Q129-Z129)+(DataInput!Q128-Z128))/2)*(A129-A128))/27+S18+T18>0,ROUNDDOWN(((((DataInput!Q129-Z128)+(DataInput!Q128-Z128))/2)*(A129-A128))/27+S18+T18,0),0)),0),0)*$X$5),1) -> 0 | AC128: 0 | AD128: =ROUNDDOWN((IF(AC129>0,IFERROR(IF(((((DataInput!Q128-AC128)+(DataInput!Q129-AC129))/2)*(A129-A128))/27+S18+T18>0,ROUNDDOWN(((((DataInput!Q128-AC128)+(DataInput!Q129-AC129))/2)*(A129-A128))/27+S18+T18,0),0),0),0)*$X$5),1) -> 0 | AE128: =DataInput!U128 -> 11 | AF128: =DataInput!S128 -> 22 | AG128: 30.8 | AH128: -19.8
A129: =IF(DataInput!A129<>"",DataInput!A129,"") -> 74400 | B129: =SUM(DataInput!C129,DataInput!Y129)+(DataInput!U129-DataInput!E129) -> 21 | C129: =SUM(DataInput!D129,DataInput!Z129) -> 15 | D129: =DataInput!U129 -> 6 | E129: =SUM(DataInput!F129,DataInput!AB129) -> 0 | F129: =SUM(DataInput!G129,DataInput!AC129) -> 0 | G129: =SUM(DataInput!H129,DataInput!AD129) -> 0 | H129: =DataInput!I129 -> 0 | I129: =SUM(DataInput!J129,DataInput!AF129) -> 0 | J129: =SUM(DataInput!K129,DataInput!AG129) -> 0 | K129: =SUM(DataInput!L129,DataInput!AH129) -> 0 | L129: =SUM(DataInput!M129,DataInput!AI129) -> 0 | M129: =SUM(DataInput!N129,DataInput!AJ129) -> 0 | N129: =SUM(DataInput!O129,DataInput!AK129) -> 0 | O129: =DataInput!P129 -> 0 | Q129: 15 | R129: =DataInput!R129 -> 0 | S129: =DataInput!Y129 -> 0 | T129: =IF(DataInput!U129-DataInput!E129>0,DataInput!U129-DataInput!E129,"") -> 6 | U129: =IF(DataInput!W129-DataInput!I129>0,DataInput!W129-DataInput!I129,"") ->  | W129: 6 | X129: 7.8 | Y129: 7.2 | Z129: 0 | AA129: 0 | AB129: =ROUNDDOWN((IF(AA130>0,IFERROR(IF(AVERAGE(DataInput!Q129:Q130)>AVERAGE(AA130,AA129),ROUNDDOWN(((((AA129-Z129)+(AA130-Z130))/2)*(A130-A129))/27+S19+T19,0),IF(((((DataInput!Q130-Z130)+(DataInput!Q129-Z129))/2)*(A130-A129))/27+S19+T19>0,ROUNDDOWN(((((DataInput!Q130-Z129)+(DataInput!Q129-Z129))/2)*(A130-A129))/27+S19+T19,0),0)),0),0)*$X$5),1) -> 0 | AC129: 0 | AD129: =ROUNDDOWN((IF(AC130>0,IFERROR(IF(((((DataInput!Q129-AC129)+(DataInput!Q130-AC130))/2)*(A130-A129))/27+S19+T19>0,ROUNDDOWN(((((DataInput!Q129-AC129)+(DataInput!Q130-AC130))/2)*(A130-A129))/27+S19+T19,0),0),0),0)*$X$5),1) -> 0 | AE129: =DataInput!U129 -> 6 | AF129: =DataInput!S129 -> 11 | AG129: 15.4 | AH129: -9.4
A130: =IF(DataInput!A130<>"",DataInput!A130,"") -> 74425
A132: =IF(DataInput!A132<>"",DataInput!A132,"") -> Sta. 766+09
A133: =IF(DataInput!A133<>"",DataInput!A133,"") -> 76525 | B133: =SUM(DataInput!C133,DataInput!Y133)+(DataInput!U133-DataInput!E133) -> 52 | C133: =SUM(DataInput!D133,DataInput!Z133) -> 37 | D133: =DataInput!U133 -> 15 | E133: =SUM(DataInput!F133,DataInput!AB133) -> 0 | F133: =SUM(DataInput!G133,DataInput!AC133) -> 0 | G133: =SUM(DataInput!H133,DataInput!AD133) -> 0 | H133: =DataInput!I133 -> 0 | I133: =SUM(DataInput!J133,DataInput!AF133) -> 0 | J133: =SUM(DataInput!K133,DataInput!AG133) -> 0 | K133: =SUM(DataInput!L133,DataInput!AH133) -> 0 | L133: =SUM(DataInput!M133,DataInput!AI133) -> 0 | M133: =SUM(DataInput!N133,DataInput!AJ133) -> 0 | N133: =SUM(DataInput!O133,DataInput!AK133) -> 0 | O133: =DataInput!P133 -> 0 | Q133: =SUM(C133,E133:G133,I133:L133,N133:P133) -> 37 | R133: =DataInput!R133 -> 29 | S133: =DataInput!Y133 -> 0 | T133: =IF(DataInput!U133-DataInput!E133>0,DataInput!U133-DataInput!E133,"") -> 15 | U133: =IF(DataInput!W133-DataInput!I133>0,DataInput!W133-DataInput!I133,"") ->  | W133: =SUM(R133:V133) -> 44 | X133: =ROUNDUP(($W133*$X$5),1) -> 57.2 | Y133: =ROUNDUP(SUM(Q133-X133),1) -> -20.2 | AB133: =ROUNDDOWN((IF(AA134>0,IFERROR(IF(AVERAGE(DataInput!Q133:Q134)>AVERAGE(AA134,AA133),ROUNDDOWN(((((AA133-Z133)+(AA134-Z134))/2)*(A134-A133))/27+S12+T12,0),IF(((((DataInput!Q134-Z134)+(DataInput!Q133-Z133))/2)*(A134-A133))/27+S12+T12>0,ROUNDDOWN(((((DataInput!Q134-Z133)+(DataInput!Q133-Z133))/2)*(A134-A133))/27+S12+T12,0),0)),0),0)*$X$5),1) -> 0 | AD133: =ROUNDDOWN((IF(AC134>0,IFERROR(IF(((((DataInput!Q133-AC133)+(DataInput!Q134-AC134))/2)*(A134-A133))/27+S12+T12>0,ROUNDDOWN(((((DataInput!Q133-AC133)+(DataInput!Q134-AC134))/2)*(A134-A133))/27+S12+T12,0),0),0),0)*$X$5),1) -> 0 | AE133: =DataInput!U133 -> 15 | AF133: =DataInput!S133 -> 28 | AG133: =ROUNDUP((AF133*$AG$5),1) -> 39.2 | AH133: =ROUNDUP((AE133-AG133),1) -> -24.2
A134: =IF(DataInput!A134<>"",DataInput!A134,"") -> 76550 | B134: =SUM(DataInput!C134,DataInput!Y134)+(DataInput!U134-DataInput!E134) -> 144 | C134: =SUM(DataInput!D134,DataInput!Z134) -> 120 | D134: =DataInput!U134 -> 24 | E134: =SUM(DataInput!F134,DataInput!AB134) -> 0 | F134: =SUM(DataInput!G134,DataInput!AC134) -> 0 | G134: =SUM(DataInput!H134,DataInput!AD134) -> 0 | H134: =DataInput!I134 -> 0 | I134: =SUM(DataInput!J134,DataInput!AF134) -> 0 | J134: =SUM(DataInput!K134,DataInput!AG134) -> 0 | K134: =SUM(DataInput!L134,DataInput!AH134) -> 0 | L134: =SUM(DataInput!M134,DataInput!AI134) -> 0 | M134: =SUM(DataInput!N134,DataInput!AJ134) -> 0 | N134: =SUM(DataInput!O134,DataInput!AK134) -> 0 | O134: =DataInput!P134 -> 0 | Q134: =SUM(C134,E134:G134,I134:L134,N134:P134) -> 120 | R134: =DataInput!R134 -> 73 | S134: =DataInput!Y134 -> 0 | T134: =IF(DataInput!U134-DataInput!E134>0,DataInput!U134-DataInput!E134,"") -> 24 | U134: =IF(DataInput!W134-DataInput!I134>0,DataInput!W134-DataInput!I134,"") ->  | W134: =SUM(R134:V134) -> 97 | X134: =ROUNDUP(($W134*$X$5),1) -> 126.1 | Y134: =ROUNDUP(SUM(Q134-X134),1) -> -6.1 | Z134: =Z133 -> 0 | AA134: =AA133 -> 0 | AB134: =ROUNDDOWN((IF(AA135>0,IFERROR(IF(AVERAGE(DataInput!Q134:Q135)>AVERAGE(AA135,AA134),ROUNDDOWN(((((AA134-Z134)+(AA135-Z135))/2)*(A135-A134))/27+S13+T13,0),IF(((((DataInput!Q135-Z135)+(DataInput!Q134-Z134))/2)*(A135-A134))/27+S13+T13>0,ROUNDDOWN(((((DataInput!Q135-Z134)+(DataInput!Q134-Z134))/2)*(A135-A134))/27+S13+T13,0),0)),0),0)*$X$5),1) -> 0 | AC134: =AC133 -> 0 | AD134: =ROUNDDOWN((IF(AC135>0,IFERROR(IF(((((DataInput!Q134-AC134)+(DataInput!Q135-AC135))/2)*(A135-A134))/27+S13+T13>0,ROUNDDOWN(((((DataInput!Q134-AC134)+(DataInput!Q135-AC135))/2)*(A135-A134))/27+S13+T13,0),0),0),0)*$X$5),1) -> 0 | AE134: =DataInput!U134 -> 24 | AF134: =DataInput!S134 -> 48 | AG134: =ROUNDUP((AF134*$AG$5),1) -> 67.2 | AH134: =ROUNDUP((AE134-AG134),1) -> -43.2
A135: =IF(DataInput!A135<>"",DataInput!A135,"") -> 76575 | B135: =SUM(DataInput!C135,DataInput!Y135)+(DataInput!U135-DataInput!E135) -> 216 | C135: =SUM(DataInput!D135,DataInput!Z135) -> 186 | D135: =DataInput!U135 -> 30 | E135: =SUM(DataInput!F135,DataInput!AB135) -> 0 | F135: =SUM(DataInput!G135,DataInput!AC135) -> 0 | G135: =SUM(DataInput!H135,DataInput!AD135) -> 0 | H135: =DataInput!I135 -> 0 | I135: =SUM(DataInput!J135,DataInput!AF135) -> 0 | J135: =SUM(DataInput!K135,DataInput!AG135) -> 0 | K135: =SUM(DataInput!L135,DataInput!AH135) -> 0 | L135: =SUM(DataInput!M135,DataInput!AI135) -> 0 | M135: =SUM(DataInput!N135,DataInput!AJ135) -> 0 | N135: =SUM(DataInput!O135,DataInput!AK135) -> 0 | O135: =DataInput!P135 -> 0 | Q135: 186 | R135: =DataInput!R135 -> 108 | S135: =DataInput!Y135 -> 0 | T135: =IF(DataInput!U135-DataInput!E135>0,DataInput!U135-DataInput!E135,"") -> 30 | U135: =IF(DataInput!W135-DataInput!I135>0,DataInput!W135-DataInput!I135,"") ->  | W135: 138 | X135: 179.4 | Y135: 6.6 | Z135: =Z134 -> 0 | AA135: =AA134 -> 0 | AB135: =ROUNDDOWN((IF(AA136>0,IFERROR(IF(AVERAGE(DataInput!Q135:Q136)>AVERAGE(AA136,AA135),ROUNDDOWN(((((AA135-Z135)+(AA136-Z136))/2)*(A136-A135))/27+S14+T14,0),IF(((((DataInput!Q136-Z136)+(DataInput!Q135-Z135))/2)*(A136-A135))/27+S14+T14>0,ROUNDDOWN(((((DataInput!Q136-Z135)+(DataInput!Q135-Z135))/2)*(A136-A135))/27+S14+T14,0),0)),0),0)*$X$5),1) -> 0 | AC135: =AC134 -> 0 | AD135: =ROUNDDOWN((IF(AC136>0,IFERROR(IF(((((DataInput!Q135-AC135)+(DataInput!Q136-AC136))/2)*(A136-A135))/27+S14+T14>0,ROUNDDOWN(((((DataInput!Q135-AC135)+(DataInput!Q136-AC136))/2)*(A136-A135))/27+S14+T14,0),0),0),0)*$X$5),1) -> 0 | AE135: =DataInput!U135 -> 30 | AF135: =DataInput!S135 -> 58 | AG135: 81.2 | AH135: -51.2
A136: =IF(DataInput!A136<>"",DataInput!A136,"") -> 76600 | B136: =SUM(DataInput!C136,DataInput!Y136)+(DataInput!U136-DataInput!E136) -> 88 | C136: =SUM(DataInput!D136,DataInput!Z136) -> 77 | D136: =DataInput!U136 -> 11 | E136: =SUM(DataInput!F136,DataInput!AB136) -> 0 | F136: =SUM(DataInput!G136,DataInput!AC136) -> 0 | G136: =SUM(DataInput!H136,DataInput!AD136) -> 0 | H136: =DataInput!I136 -> 0 | I136: =SUM(DataInput!J136,DataInput!AF136) -> 0 | J136: =SUM(DataInput!K136,DataInput!AG136) -> 0 | K136: =SUM(DataInput!L136,DataInput!AH136) -> 0 | L136: =SUM(DataInput!M136,DataInput!AI136) -> 0 | M136: =SUM(DataInput!N136,DataInput!AJ136) -> 0 | N136: =SUM(DataInput!O136,DataInput!AK136) -> 0 | O136: =DataInput!P136 -> 0 | Q136: 77 | R136: =DataInput!R136 -> 46 | S136: =DataInput!Y136 -> 0 | T136: =IF(DataInput!U136-DataInput!E136>0,DataInput!U136-DataInput!E136,"") -> 11 | U136: =IF(DataInput!W136-DataInput!I136>0,DataInput!W136-DataInput!I136,"") ->  | W136: 57 | X136: 74.1 | Y136: 3 | Z136: 0 | AA136: 0 | AB136: =ROUNDDOWN((IF(AA137>0,IFERROR(IF(AVERAGE(DataInput!Q136:Q137)>AVERAGE(AA137,AA136),ROUNDDOWN(((((AA136-Z136)+(AA137-Z137))/2)*(A137-A136))/27+S15+T15,0),IF(((((DataInput!Q137-Z137)+(DataInput!Q136-Z136))/2)*(A137-A136))/27+S15+T15>0,ROUNDDOWN(((((DataInput!Q137-Z136)+(DataInput!Q136-Z136))/2)*(A137-A136))/27+S15+T15,0),0)),0),0)*$X$5),1) -> 0 | AC136: 0 | AD136: =ROUNDDOWN((IF(AC137>0,IFERROR(IF(((((DataInput!Q136-AC136)+(DataInput!Q137-AC137))/2)*(A137-A136))/27+S15+T15>0,ROUNDDOWN(((((DataInput!Q136-AC136)+(DataInput!Q137-AC137))/2)*(A137-A136))/27+S15+T15,0),0),0),0)*$X$5),1) -> 0 | AE136: =DataInput!U136 -> 11 | AF136: =DataInput!S136 -> 22 | AG136: 30.8 | AH136: -19.8
A137: =IF(DataInput!A137<>"",DataInput!A137,"") -> 76609 | B137: =SUM(DataInput!C137,DataInput!Y137)+(DataInput!U137-DataInput!E137) -> 142 | C137: =SUM(DataInput!D137,DataInput!Z137) -> 122 | D137: =DataInput!U137 -> 20 | E137: =SUM(DataInput!F137,DataInput!AB137) -> 0 | F137: =SUM(DataInput!G137,DataInput!AC137) -> 0 | G137: =SUM(DataInput!H137,DataInput!AD137) -> 0 | H137: =DataInput!I137 -> 0 | I137: =SUM(DataInput!J137,DataInput!AF137) -> 0 | J137: =SUM(DataInput!K137,DataInput!AG137) -> 0 | K137: =SUM(DataInput!L137,DataInput!AH137) -> 0 | L137: =SUM(DataInput!M137,DataInput!AI137) -> 0 | M137: =SUM(DataInput!N137,DataInput!AJ137) -> 0 | N137: =SUM(DataInput!O137,DataInput!AK137) -> 0 | O137: =DataInput!P137 -> 0 | Q137: 122 | R137: =DataInput!R137 -> 90 | S137: =DataInput!Y137 -> 0 | T137: =IF(DataInput!U137-DataInput!E137>0,DataInput!U137-DataInput!E137,"") -> 20 | U137: =IF(DataInput!W137-DataInput!I137>0,DataInput!W137-DataInput!I137,"") ->  | W137: 110 | X137: 143 | Y137: -21 | Z137: 0 | AA137: 0 | AB137: =ROUNDDOWN((IF(AA138>0,IFERROR(IF(AVERAGE(DataInput!Q137:Q138)>AVERAGE(AA138,AA137),ROUNDDOWN(((((AA137-Z137)+(AA138-Z138))/2)*(A138-A137))/27+S16+T16,0),IF(((((DataInput!Q138-Z138)+(DataInput!Q137-Z137))/2)*(A138-A137))/27+S16+T16>0,ROUNDDOWN(((((DataInput!Q138-Z137)+(DataInput!Q137-Z137))/2)*(A138-A137))/27+S16+T16,0),0)),0),0)*$X$5),1) -> 0 | AC137: 0 | AD137: =ROUNDDOWN((IF(AC138>0,IFERROR(IF(((((DataInput!Q137-AC137)+(DataInput!Q138-AC138))/2)*(A138-A137))/27+S16+T16>0,ROUNDDOWN(((((DataInput!Q137-AC137)+(DataInput!Q138-AC138))/2)*(A138-A137))/27+S16+T16,0),0),0),0)*$X$5),1) -> 0 | AE137: =DataInput!U137 -> 20 | AF137: =DataInput!S137 -> 39 | AG137: 54.6 | AH137: -34.6
A138: =IF(DataInput!A138<>"",DataInput!A138,"") -> 76625 | B138: =SUM(DataInput!C138,DataInput!Y138)+(DataInput!U138-DataInput!E138) -> 163 | C138: =SUM(DataInput!D138,DataInput!Z138) -> 134 | D138: =DataInput!U138 -> 29 | E138: =SUM(DataInput!F138,DataInput!AB138) -> 0 | F138: =SUM(DataInput!G138,DataInput!AC138) -> 0 | G138: =SUM(DataInput!H138,DataInput!AD138) -> 0 | H138: =DataInput!I138 -> 0 | I138: =SUM(DataInput!J138,DataInput!AF138) -> 0 | J138: =SUM(DataInput!K138,DataInput!AG138) -> 0 | K138: =SUM(DataInput!L138,DataInput!AH138) -> 0 | L138: =SUM(DataInput!M138,DataInput!AI138) -> 0 | M138: =SUM(DataInput!N138,DataInput!AJ138) -> 0 | N138: =SUM(DataInput!O138,DataInput!AK138) -> 0 | O138: =DataInput!P138 -> 0 | Q138: 134 | R138: =DataInput!R138 -> 117 | S138: =DataInput!Y138 -> 0 | T138: =IF(DataInput!U138-DataInput!E138>0,DataInput!U138-DataInput!E138,"") -> 29 | U138: =IF(DataInput!W138-DataInput!I138>0,DataInput!W138-DataInput!I138,"") ->  | W138: 146 | X138: 189.8 | Y138: -55.8 | Z138: 0 | AA138: 0 | AB138: =ROUNDDOWN((IF(AA139>0,IFERROR(IF(AVERAGE(DataInput!Q138:Q139)>AVERAGE(AA139,AA138),ROUNDDOWN(((((AA138-Z138)+(AA139-Z139))/2)*(A139-A138))/27+S17+T17,0),IF(((((DataInput!Q139-Z139)+(DataInput!Q138-Z138))/2)*(A139-A138))/27+S17+T17>0,ROUNDDOWN(((((DataInput!Q139-Z138)+(DataInput!Q138-Z138))/2)*(A139-A138))/27+S17+T17,0),0)),0),0)*$X$5),1) -> 0 | AC138: 0 | AD138: =ROUNDDOWN((IF(AC139>0,IFERROR(IF(((((DataInput!Q138-AC138)+(DataInput!Q139-AC139))/2)*(A139-A138))/27+S17+T17>0,ROUNDDOWN(((((DataInput!Q138-AC138)+(DataInput!Q139-AC139))/2)*(A139-A138))/27+S17+T17,0),0),0),0)*$X$5),1) -> 0 | AE138: =DataInput!U138 -> 29 | AF138: =DataInput!S138 -> 56 | AG138: 78.4 | AH138: -49.4
A139: =IF(DataInput!A139<>"",DataInput!A139,"") -> 76650 | B139: =SUM(DataInput!C139,DataInput!Y139)+(DataInput!U139-DataInput!E139) -> 80 | C139: =SUM(DataInput!D139,DataInput!Z139) -> 58 | D139: =DataInput!U139 -> 22 | E139: =SUM(DataInput!F139,DataInput!AB139) -> 0 | F139: =SUM(DataInput!G139,DataInput!AC139) -> 0 | G139: =SUM(DataInput!H139,DataInput!AD139) -> 0 | H139: =DataInput!I139 -> 0 | I139: =SUM(DataInput!J139,DataInput!AF139) -> 0 | J139: =SUM(DataInput!K139,DataInput!AG139) -> 0 | K139: =SUM(DataInput!L139,DataInput!AH139) -> 0 | L139: =SUM(DataInput!M139,DataInput!AI139) -> 0 | M139: =SUM(DataInput!N139,DataInput!AJ139) -> 0 | N139: =SUM(DataInput!O139,DataInput!AK139) -> 0 | O139: =DataInput!P139 -> 0 | Q139: 58 | R139: =DataInput!R139 -> 57 | S139: =DataInput!Y139 -> 0 | T139: =IF(DataInput!U139-DataInput!E139>0,DataInput!U139-DataInput!E139,"") -> 22 | U139: =IF(DataInput!W139-DataInput!I139>0,DataInput!W139-DataInput!I139,"") ->  | W139: 79 | X139: 102.7 | Y139: -44.7 | Z139: 0 | AA139: 0 | AB139: =ROUNDDOWN((IF(AA140>0,IFERROR(IF(AVERAGE(DataInput!Q139:Q140)>AVERAGE(AA140,AA139),ROUNDDOWN(((((AA139-Z139)+(AA140-Z140))/2)*(A140-A139))/27+S18+T18,0),IF(((((DataInput!Q140-Z140)+(DataInput!Q139-Z139))/2)*(A140-A139))/27+S18+T18>0,ROUNDDOWN(((((DataInput!Q140-Z139)+(DataInput!Q139-Z139))/2)*(A140-A139))/27+S18+T18,0),0)),0),0)*$X$5),1) -> 0 | AC139: 0 | AD139: =ROUNDDOWN((IF(AC140>0,IFERROR(IF(((((DataInput!Q139-AC139)+(DataInput!Q140-AC140))/2)*(A140-A139))/27+S18+T18>0,ROUNDDOWN(((((DataInput!Q139-AC139)+(DataInput!Q140-AC140))/2)*(A140-A139))/27+S18+T18,0),0),0),0)*$X$5),1) -> 0 | AE139: =DataInput!U139 -> 22 | AF139: =DataInput!S139 -> 43 | AG139: 60.2 | AH139: -38.2
A140: =IF(DataInput!A140<>"",DataInput!A140,"") -> 76675
A142: =IF(DataInput!A142<>"",DataInput!A142,"") -> Sta. 788+20
A143: =IF(DataInput!A143<>"",DataInput!A143,"") -> 78725 | B143: =SUM(DataInput!C143,DataInput!Y143)+(DataInput!U143-DataInput!E143) -> 64 | C143: =SUM(DataInput!D143,DataInput!Z143) -> 54 | D143: =DataInput!U143 -> 10 | E143: =SUM(DataInput!F143,DataInput!AB143) -> 0 | F143: =SUM(DataInput!G143,DataInput!AC143) -> 0 | G143: =SUM(DataInput!H143,DataInput!AD143) -> 0 | H143: =DataInput!I143 -> 0 | I143: =SUM(DataInput!J143,DataInput!AF143) -> 0 | J143: =SUM(DataInput!K143,DataInput!AG143) -> 0 | K143: =SUM(DataInput!L143,DataInput!AH143) -> 0 | L143: =SUM(DataInput!M143,DataInput!AI143) -> 0 | M143: =SUM(DataInput!N143,DataInput!AJ143) -> 0 | N143: =SUM(DataInput!O143,DataInput!AK143) -> 0 | O143: =DataInput!P143 -> 0 | Q143: =SUM(C143,E143:G143,I143:L143,N143:P143) -> 54 | R143: =DataInput!R143 -> 0 | S143: =DataInput!Y143 -> 0 | T143: =IF(DataInput!U143-DataInput!E143>0,DataInput!U143-DataInput!E143,"") -> 10 | U143: =IF(DataInput!W143-DataInput!I143>0,DataInput!W143-DataInput!I143,"") ->  | W143: =SUM(R143:V143) -> 10 | X143: =ROUNDUP(($W143*$X$5),1) -> 13 | Y143: =ROUNDUP(SUM(Q143-X143),1) -> 41 | AB143: =ROUNDDOWN((IF(AA144>0,IFERROR(IF(AVERAGE(DataInput!Q143:Q144)>AVERAGE(AA144,AA143),ROUNDDOWN(((((AA143-Z143)+(AA144-Z144))/2)*(A144-A143))/27+S12+T12,0),IF(((((DataInput!Q144-Z144)+(DataInput!Q143-Z143))/2)*(A144-A143))/27+S12+T12>0,ROUNDDOWN(((((DataInput!Q144-Z143)+(DataInput!Q143-Z143))/2)*(A144-A143))/27+S12+T12,0),0)),0),0)*$X$5),1) -> 0 | AD143: =ROUNDDOWN((IF(AC144>0,IFERROR(IF(((((DataInput!Q143-AC143)+(DataInput!Q144-AC144))/2)*(A144-A143))/27+S12+T12>0,ROUNDDOWN(((((DataInput!Q143-AC143)+(DataInput!Q144-AC144))/2)*(A144-A143))/27+S12+T12,0),0),0),0)*$X$5),1) -> 0 | AE143: =DataInput!U143 -> 10 | AF143: =DataInput!S143 -> 19 | AG143: =ROUNDUP((AF143*$AG$5),1) -> 26.6 | AH143: =ROUNDUP((AE143-AG143),1) -> -16.6
A144: =IF(DataInput!A144<>"",DataInput!A144,"") -> 78750 | B144: =SUM(DataInput!C144,DataInput!Y144)+(DataInput!U144-DataInput!E144) -> 104 | C144: =SUM(DataInput!D144,DataInput!Z144) -> 89 | D144: =DataInput!U144 -> 15 | E144: =SUM(DataInput!F144,DataInput!AB144) -> 0 | F144: =SUM(DataInput!G144,DataInput!AC144) -> 0 | G144: =SUM(DataInput!H144,DataInput!AD144) -> 0 | H144: =DataInput!I144 -> 0 | I144: =SUM(DataInput!J144,DataInput!AF144) -> 0 | J144: =SUM(DataInput!K144,DataInput!AG144) -> 0 | K144: =SUM(DataInput!L144,DataInput!AH144) -> 0 | L144: =SUM(DataInput!M144,DataInput!AI144) -> 0 | M144: =SUM(DataInput!N144,DataInput!AJ144) -> 0 | N144: =SUM(DataInput!O144,DataInput!AK144) -> 0 | O144: =DataInput!P144 -> 0 | Q144: =SUM(C144,E144:G144,I144:L144,N144:P144) -> 89 | R144: =DataInput!R144 -> 2 | S144: =DataInput!Y144 -> 0 | T144: =IF(DataInput!U144-DataInput!E144>0,DataInput!U144-DataInput!E144,"") -> 15 | U144: =IF(DataInput!W144-DataInput!I144>0,DataInput!W144-DataInput!I144,"") ->  | W144: =SUM(R144:V144) -> 17 | X144: =ROUNDUP(($W144*$X$5),1) -> 22.1 | Y144: =ROUNDUP(SUM(Q144-X144),1) -> 66.9 | Z144: =Z143 -> 0 | AA144: =AA143 -> 0 | AB144: =ROUNDDOWN((IF(AA145>0,IFERROR(IF(AVERAGE(DataInput!Q144:Q145)>AVERAGE(AA145,AA144),ROUNDDOWN(((((AA144-Z144)+(AA145-Z145))/2)*(A145-A144))/27+S13+T13,0),IF(((((DataInput!Q145-Z145)+(DataInput!Q144-Z144))/2)*(A145-A144))/27+S13+T13>0,ROUNDDOWN(((((DataInput!Q145-Z144)+(DataInput!Q144-Z144))/2)*(A145-A144))/27+S13+T13,0),0)),0),0)*$X$5),1) -> 0 | AC144: =AC143 -> 0 | AD144: =ROUNDDOWN((IF(AC145>0,IFERROR(IF(((((DataInput!Q144-AC144)+(DataInput!Q145-AC145))/2)*(A145-A144))/27+S13+T13>0,ROUNDDOWN(((((DataInput!Q144-AC144)+(DataInput!Q145-AC145))/2)*(A145-A144))/27+S13+T13,0),0),0),0)*$X$5),1) -> 0 | AE144: =DataInput!U144 -> 15 | AF144: =DataInput!S144 -> 29 | AG144: =ROUNDUP((AF144*$AG$5),1) -> 40.6 | AH144: =ROUNDUP((AE144-AG144),1) -> -25.6
A145: =IF(DataInput!A145<>"",DataInput!A145,"") -> 78775 | B145: =SUM(DataInput!C145,DataInput!Y145)+(DataInput!U145-DataInput!E145) -> 139 | C145: =SUM(DataInput!D145,DataInput!Z145) -> 121 | D145: =DataInput!U145 -> 18 | E145: =SUM(DataInput!F145,DataInput!AB145) -> 0 | F145: =SUM(DataInput!G145,DataInput!AC145) -> 0 | G145: =SUM(DataInput!H145,DataInput!AD145) -> 0 | H145: =DataInput!I145 -> 0 | I145: =SUM(DataInput!J145,DataInput!AF145) -> 0 | J145: =SUM(DataInput!K145,DataInput!AG145) -> 0 | K145: =SUM(DataInput!L145,DataInput!AH145) -> 0 | L145: =SUM(DataInput!M145,DataInput!AI145) -> 0 | M145: =SUM(DataInput!N145,DataInput!AJ145) -> 0 | N145: =SUM(DataInput!O145,DataInput!AK145) -> 0 | O145: =DataInput!P145 -> 0 | Q145: 121 | R145: =DataInput!R145 -> 5 | S145: =DataInput!Y145 -> 0 | T145: =IF(DataInput!U145-DataInput!E145>0,DataInput!U145-DataInput!E145,"") -> 18 | U145: =IF(DataInput!W145-DataInput!I145>0,DataInput!W145-DataInput!I145,"") ->  | W145: 23 | X145: 29.9 | Y145: 91.1 | Z145: =Z144 -> 0 | AA145: =AA144 -> 0 | AB145: =ROUNDDOWN((IF(AA146>0,IFERROR(IF(AVERAGE(DataInput!Q145:Q146)>AVERAGE(AA146,AA145),ROUNDDOWN(((((AA145-Z145)+(AA146-Z146))/2)*(A146-A145))/27+S14+T14,0),IF(((((DataInput!Q146-Z146)+(DataInput!Q145-Z145))/2)*(A146-A145))/27+S14+T14>0,ROUNDDOWN(((((DataInput!Q146-Z145)+(DataInput!Q145-Z145))/2)*(A146-A145))/27+S14+T14,0),0)),0),0)*$X$5),1) -> 0 | AC145: =AC144 -> 0 | AD145: =ROUNDDOWN((IF(AC146>0,IFERROR(IF(((((DataInput!Q145-AC145)+(DataInput!Q146-AC146))/2)*(A146-A145))/27+S14+T14>0,ROUNDDOWN(((((DataInput!Q145-AC145)+(DataInput!Q146-AC146))/2)*(A146-A145))/27+S14+T14,0),0),0),0)*$X$5),1) -> 0 | AE145: =DataInput!U145 -> 18 | AF145: =DataInput!S145 -> 36 | AG145: 50.4 | AH145: -32.4
A146: =IF(DataInput!A146<>"",DataInput!A146,"") -> 78800 | B146: =SUM(DataInput!C146,DataInput!Y146)+(DataInput!U146-DataInput!E146) -> 172 | C146: =SUM(DataInput!D146,DataInput!Z146) -> 149 | D146: =DataInput!U146 -> 23 | E146: =SUM(DataInput!F146,DataInput!AB146) -> 0 | F146: =SUM(DataInput!G146,DataInput!AC146) -> 0 | G146: =SUM(DataInput!H146,DataInput!AD146) -> 0 | H146: =DataInput!I146 -> 0 | I146: =SUM(DataInput!J146,DataInput!AF146) -> 0 | J146: =SUM(DataInput!K146,DataInput!AG146) -> 0 | K146: =SUM(DataInput!L146,DataInput!AH146) -> 0 | L146: =SUM(DataInput!M146,DataInput!AI146) -> 0 | M146: =SUM(DataInput!N146,DataInput!AJ146) -> 0 | N146: =SUM(DataInput!O146,DataInput!AK146) -> 0 | O146: =DataInput!P146 -> 0 | Q146: 149 | R146: =DataInput!R146 -> 27 | S146: =DataInput!Y146 -> 0 | T146: =IF(DataInput!U146-DataInput!E146>0,DataInput!U146-DataInput!E146,"") -> 23 | U146: =IF(DataInput!W146-DataInput!I146>0,DataInput!W146-DataInput!I146,"") ->  | W146: 50 | X146: 65 | Y146: 84 | Z146: 0 | AA146: 0 | AB146: =ROUNDDOWN((IF(AA147>0,IFERROR(IF(AVERAGE(DataInput!Q146:Q147)>AVERAGE(AA147,AA146),ROUNDDOWN(((((AA146-Z146)+(AA147-Z147))/2)*(A147-A146))/27+S15+T15,0),IF(((((DataInput!Q147-Z147)+(DataInput!Q146-Z146))/2)*(A147-A146))/27+S15+T15>0,ROUNDDOWN(((((DataInput!Q147-Z146)+(DataInput!Q146-Z146))/2)*(A147-A146))/27+S15+T15,0),0)),0),0)*$X$5),1) -> 0 | AC146: 0 | AD146: =ROUNDDOWN((IF(AC147>0,IFERROR(IF(((((DataInput!Q146-AC146)+(DataInput!Q147-AC147))/2)*(A147-A146))/27+S15+T15>0,ROUNDDOWN(((((DataInput!Q146-AC146)+(DataInput!Q147-AC147))/2)*(A147-A146))/27+S15+T15,0),0),0),0)*$X$5),1) -> 0 | AE146: =DataInput!U146 -> 23 | AF146: =DataInput!S146 -> 45 | AG146: 63 | AH146: -40
A147: =IF(DataInput!A147<>"",DataInput!A147,"") -> 78825 | B147: =SUM(DataInput!C147,DataInput!Y147)+(DataInput!U147-DataInput!E147) -> 155 | C147: =SUM(DataInput!D147,DataInput!Z147) -> 133 | D147: =DataInput!U147 -> 22 | E147: =SUM(DataInput!F147,DataInput!AB147) -> 0 | F147: =SUM(DataInput!G147,DataInput!AC147) -> 0 | G147: =SUM(DataInput!H147,DataInput!AD147) -> 0 | H147: =DataInput!I147 -> 0 | I147: =SUM(DataInput!J147,DataInput!AF147) -> 0 | J147: =SUM(DataInput!K147,DataInput!AG147) -> 0 | K147: =SUM(DataInput!L147,DataInput!AH147) -> 0 | L147: =SUM(DataInput!M147,DataInput!AI147) -> 0 | M147: =SUM(DataInput!N147,DataInput!AJ147) -> 0 | N147: =SUM(DataInput!O147,DataInput!AK147) -> 0 | O147: =DataInput!P147 -> 0 | P147: 33 | Q147: 166 | R147: =DataInput!R147 -> 27 | S147: =DataInput!Y147 -> 0 | T147: =IF(DataInput!U147-DataInput!E147>0,DataInput!U147-DataInput!E147,"") -> 22 | U147: =IF(DataInput!W147-DataInput!I147>0,DataInput!W147-DataInput!I147,"") ->  | W147: 49 | X147: 63.7 | Y147: 102.3 | Z147: 0 | AA147: 0 | AB147: =ROUNDDOWN((IF(AA148>0,IFERROR(IF(AVERAGE(DataInput!Q147:Q148)>AVERAGE(AA148,AA147),ROUNDDOWN(((((AA147-Z147)+(AA148-Z148))/2)*(A148-A147))/27+S16+T16,0),IF(((((DataInput!Q148-Z148)+(DataInput!Q147-Z147))/2)*(A148-A147))/27+S16+T16>0,ROUNDDOWN(((((DataInput!Q148-Z147)+(DataInput!Q147-Z147))/2)*(A148-A147))/27+S16+T16,0),0)),0),0)*$X$5),1) -> 0 | AC147: 0 | AD147: =ROUNDDOWN((IF(AC148>0,IFERROR(IF(((((DataInput!Q147-AC147)+(DataInput!Q148-AC148))/2)*(A148-A147))/27+S16+T16>0,ROUNDDOWN(((((DataInput!Q147-AC147)+(DataInput!Q148-AC148))/2)*(A148-A147))/27+S16+T16,0),0),0),0)*$X$5),1) -> 0 | AE147: =DataInput!U147 -> 22 | AF147: =DataInput!S147 -> 43 | AG147: 60.2 | AH147: -38.2
A148: =IF(DataInput!A148<>"",DataInput!A148,"") -> 78850 | B148: =SUM(DataInput!C148,DataInput!Y148)+(DataInput!U148-DataInput!E148) -> 72 | C148: =SUM(DataInput!D148,DataInput!Z148) -> 60 | D148: =DataInput!U148 -> 12 | E148: =SUM(DataInput!F148,DataInput!AB148) -> 0 | F148: =SUM(DataInput!G148,DataInput!AC148) -> 0 | G148: =SUM(DataInput!H148,DataInput!AD148) -> 0 | H148: =DataInput!I148 -> 0 | I148: =SUM(DataInput!J148,DataInput!AF148) -> 0 | J148: =SUM(DataInput!K148,DataInput!AG148) -> 0 | K148: =SUM(DataInput!L148,DataInput!AH148) -> 0 | L148: =SUM(DataInput!M148,DataInput!AI148) -> 0 | M148: =SUM(DataInput!N148,DataInput!AJ148) -> 0 | N148: =SUM(DataInput!O148,DataInput!AK148) -> 0 | O148: =DataInput!P148 -> 0 | Q148: 60 | R148: =DataInput!R148 -> 4 | S148: =DataInput!Y148 -> 0 | T148: =IF(DataInput!U148-DataInput!E148>0,DataInput!U148-DataInput!E148,"") -> 12 | U148: =IF(DataInput!W148-DataInput!I148>0,DataInput!W148-DataInput!I148,"") ->  | W148: 16 | X148: 20.8 | Y148: 39.2 | Z148: 0 | AA148: 0 | AB148: =ROUNDDOWN((IF(AA149>0,IFERROR(IF(AVERAGE(DataInput!Q148:Q149)>AVERAGE(AA149,AA148),ROUNDDOWN(((((AA148-Z148)+(AA149-Z149))/2)*(A149-A148))/27+S17+T17,0),IF(((((DataInput!Q149-Z149)+(DataInput!Q148-Z148))/2)*(A149-A148))/27+S17+T17>0,ROUNDDOWN(((((DataInput!Q149-Z148)+(DataInput!Q148-Z148))/2)*(A149-A148))/27+S17+T17,0),0)),0),0)*$X$5),1) -> 0 | AC148: 0 | AD148: =ROUNDDOWN((IF(AC149>0,IFERROR(IF(((((DataInput!Q148-AC148)+(DataInput!Q149-AC149))/2)*(A149-A148))/27+S17+T17>0,ROUNDDOWN(((((DataInput!Q148-AC148)+(DataInput!Q149-AC149))/2)*(A149-A148))/27+S17+T17,0),0),0),0)*$X$5),1) -> 0 | AE148: =DataInput!U148 -> 12 | AF148: =DataInput!S148 -> 24 | AG148: 33.6 | AH148: -21.6
A149: =IF(DataInput!A149<>"",DataInput!A149,"") -> 78875 | B149: =SUM(DataInput!C149,DataInput!Y149)+(DataInput!U149-DataInput!E149) -> 18 | C149: =SUM(DataInput!D149,DataInput!Z149) -> 9 | D149: =DataInput!U149 -> 9 | E149: =SUM(DataInput!F149,DataInput!AB149) -> 0 | F149: =SUM(DataInput!G149,DataInput!AC149) -> 0 | G149: =SUM(DataInput!H149,DataInput!AD149) -> 0 | H149: =DataInput!I149 -> 0 | I149: =SUM(DataInput!J149,DataInput!AF149) -> 0 | J149: =SUM(DataInput!K149,DataInput!AG149) -> 0 | K149: =SUM(DataInput!L149,DataInput!AH149) -> 0 | L149: =SUM(DataInput!M149,DataInput!AI149) -> 0 | M149: =SUM(DataInput!N149,DataInput!AJ149) -> 0 | N149: =SUM(DataInput!O149,DataInput!AK149) -> 0 | O149: =DataInput!P149 -> 0 | Q149: 9 | R149: =DataInput!R149 -> 0 | S149: =DataInput!Y149 -> 0 | T149: =IF(DataInput!U149-DataInput!E149>0,DataInput!U149-DataInput!E149,"") -> 9 | U149: =IF(DataInput!W149-DataInput!I149>0,DataInput!W149-DataInput!I149,"") ->  | W149: 9 | X149: 11.7 | Y149: -2.7 | Z149: 0 | AA149: 0 | AB149: =ROUNDDOWN((IF(AA150>0,IFERROR(IF(AVERAGE(DataInput!Q149:Q150)>AVERAGE(AA150,AA149),ROUNDDOWN(((((AA149-Z149)+(AA150-Z150))/2)*(A150-A149))/27+S18+T18,0),IF(((((DataInput!Q150-Z150)+(DataInput!Q149-Z149))/2)*(A150-A149))/27+S18+T18>0,ROUNDDOWN(((((DataInput!Q150-Z149)+(DataInput!Q149-Z149))/2)*(A150-A149))/27+S18+T18,0),0)),0),0)*$X$5),1) -> 0 | AC149: 0 | AD149: =ROUNDDOWN((IF(AC150>0,IFERROR(IF(((((DataInput!Q149-AC149)+(DataInput!Q150-AC150))/2)*(A150-A149))/27+S18+T18>0,ROUNDDOWN(((((DataInput!Q149-AC149)+(DataInput!Q150-AC150))/2)*(A150-A149))/27+S18+T18,0),0),0),0)*$X$5),1) -> 0 | AE149: =DataInput!U149 -> 9 | AF149: =DataInput!S149 -> 6 | AG149: 8.4 | AH149: 0.6
A150: =IF(DataInput!A150<>"",DataInput!A150,"") -> 78900 | B150: =SUM(DataInput!C150,DataInput!Y150)+(DataInput!U150-DataInput!E150) -> 4 | C150: =SUM(DataInput!D150,DataInput!Z150) -> 4 | D150: =DataInput!U150 -> 0 | E150: =SUM(DataInput!F150,DataInput!AB150) -> 0 | F150: =SUM(DataInput!G150,DataInput!AC150) -> 0 | G150: =SUM(DataInput!H150,DataInput!AD150) -> 0 | H150: =DataInput!I150 -> 0 | I150: =SUM(DataInput!J150,DataInput!AF150) -> 0 | J150: =SUM(DataInput!K150,DataInput!AG150) -> 0 | K150: =SUM(DataInput!L150,DataInput!AH150) -> 0 | L150: =SUM(DataInput!M150,DataInput!AI150) -> 0 | M150: =SUM(DataInput!N150,DataInput!AJ150) -> 0 | N150: =SUM(DataInput!O150,DataInput!AK150) -> 0 | O150: =DataInput!P150 -> 0 | Q150: 4 | R150: =DataInput!R150 -> 0 | S150: =DataInput!Y150 -> 0 | T150: =IF(DataInput!U150-DataInput!E150>0,DataInput!U150-DataInput!E150,"") ->  | U150: =IF(DataInput!W150-DataInput!I150>0,DataInput!W150-DataInput!I150,"") ->  | W150: 0 | X150: 0 | Y150: 4 | Z150: 0 | AA150: 0 | AB150: =ROUNDDOWN((IF(AA151>0,IFERROR(IF(AVERAGE(DataInput!Q150:Q151)>AVERAGE(AA151,AA150),ROUNDDOWN(((((AA150-Z150)+(AA151-Z151))/2)*(A151-A150))/27+S19+T19,0),IF(((((DataInput!Q151-Z151)+(DataInput!Q150-Z150))/2)*(A151-A150))/27+S19+T19>0,ROUNDDOWN(((((DataInput!Q151-Z150)+(DataInput!Q150-Z150))/2)*(A151-A150))/27+S19+T19,0),0)),0),0)*$X$5),1) -> 0 | AC150: 0 | AD150: =ROUNDDOWN((IF(AC151>0,IFERROR(IF(((((DataInput!Q150-AC150)+(DataInput!Q151-AC151))/2)*(A151-A150))/27+S19+T19>0,ROUNDDOWN(((((DataInput!Q150-AC150)+(DataInput!Q151-AC151))/2)*(A151-A150))/27+S19+T19,0),0),0),0)*$X$5),1) -> 0 | AE150: =DataInput!U150 -> 0 | AF150: =DataInput!S150 -> 3 | AG150: 4.2 | AH150: -4.2
A151: =IF(DataInput!A151<>"",DataInput!A151,"") -> 78925
A153: =IF(DataInput!A153<>"",DataInput!A153,"") -> Sta. 800+82
A154: =IF(DataInput!A154<>"",DataInput!A154,"") -> 80025 | B154: =SUM(DataInput!C154,DataInput!Y154)+(DataInput!U154-DataInput!E154) -> 102 | C154: =SUM(DataInput!D154,DataInput!Z154) -> 88 | D154: =DataInput!U154 -> 14 | E154: =SUM(DataInput!F154,DataInput!AB154) -> 0 | F154: =SUM(DataInput!G154,DataInput!AC154) -> 0 | G154: =SUM(DataInput!H154,DataInput!AD154) -> 0 | H154: =DataInput!I154 -> 0 | I154: =SUM(DataInput!J154,DataInput!AF154) -> 0 | J154: =SUM(DataInput!K154,DataInput!AG154) -> 0 | K154: =SUM(DataInput!L154,DataInput!AH154) -> 0 | L154: =SUM(DataInput!M154,DataInput!AI154) -> 0 | M154: =SUM(DataInput!N154,DataInput!AJ154) -> 0 | N154: =SUM(DataInput!O154,DataInput!AK154) -> 0 | O154: =DataInput!P154 -> 0 | Q154: =SUM(C154,E154:G154,I154:L154,N154:P154) -> 88 | R154: =DataInput!R154 -> 8 | S154: =DataInput!Y154 -> 0 | T154: =IF(DataInput!U154-DataInput!E154>0,DataInput!U154-DataInput!E154,"") -> 14 | U154: =IF(DataInput!W154-DataInput!I154>0,DataInput!W154-DataInput!I154,"") ->  | W154: =SUM(R154:V154) -> 22 | X154: =ROUNDUP(($W154*$X$5),1) -> 28.6 | Y154: =ROUNDUP(SUM(Q154-X154),1) -> 59.4 | AB154: =ROUNDDOWN((IF(AA155>0,IFERROR(IF(AVERAGE(DataInput!Q154:Q155)>AVERAGE(AA155,AA154),ROUNDDOWN(((((AA154-Z154)+(AA155-Z155))/2)*(A155-A154))/27+S12+T12,0),IF(((((DataInput!Q155-Z155)+(DataInput!Q154-Z154))/2)*(A155-A154))/27+S12+T12>0,ROUNDDOWN(((((DataInput!Q155-Z154)+(DataInput!Q154-Z154))/2)*(A155-A154))/27+S12+T12,0),0)),0),0)*$X$5),1) -> 0 | AD154: =ROUNDDOWN((IF(AC155>0,IFERROR(IF(((((DataInput!Q154-AC154)+(DataInput!Q155-AC155))/2)*(A155-A154))/27+S12+T12>0,ROUNDDOWN(((((DataInput!Q154-AC154)+(DataInput!Q155-AC155))/2)*(A155-A154))/27+S12+T12,0),0),0),0)*$X$5),1) -> 0 | AE154: =DataInput!U154 -> 14 | AF154: =DataInput!S154 -> 28 | AG154: =ROUNDUP((AF154*$AG$5),1) -> 39.2 | AH154: =ROUNDUP((AE154-AG154),1) -> -25.2
A155: =IF(DataInput!A155<>"",DataInput!A155,"") -> 80050 | B155: =SUM(DataInput!C155,DataInput!Y155)+(DataInput!U155-DataInput!E155) -> 169 | C155: =SUM(DataInput!D155,DataInput!Z155) -> 149 | D155: =DataInput!U155 -> 20 | E155: =SUM(DataInput!F155,DataInput!AB155) -> 0 | F155: =SUM(DataInput!G155,DataInput!AC155) -> 0 | G155: =SUM(DataInput!H155,DataInput!AD155) -> 0 | H155: =DataInput!I155 -> 0 | I155: =SUM(DataInput!J155,DataInput!AF155) -> 0 | J155: =SUM(DataInput!K155,DataInput!AG155) -> 0 | K155: =SUM(DataInput!L155,DataInput!AH155) -> 0 | L155: =SUM(DataInput!M155,DataInput!AI155) -> 0 | M155: =SUM(DataInput!N155,DataInput!AJ155) -> 0 | N155: =SUM(DataInput!O155,DataInput!AK155) -> 0 | O155: =DataInput!P155 -> 0 | Q155: =SUM(C155,E155:G155,I155:L155,N155:P155) -> 149 | R155: =DataInput!R155 -> 19 | S155: =DataInput!Y155 -> 0 | T155: =IF(DataInput!U155-DataInput!E155>0,DataInput!U155-DataInput!E155,"") -> 20 | U155: =IF(DataInput!W155-DataInput!I155>0,DataInput!W155-DataInput!I155,"") ->  | W155: =SUM(R155:V155) -> 39 | X155: =ROUNDUP(($W155*$X$5),1) -> 50.7 | Y155: =ROUNDUP(SUM(Q155-X155),1) -> 98.3 | Z155: =Z154 -> 0 | AA155: =AA154 -> 0 | AB155: =ROUNDDOWN((IF(AA156>0,IFERROR(IF(AVERAGE(DataInput!Q155:Q156)>AVERAGE(AA156,AA155),ROUNDDOWN(((((AA155-Z155)+(AA156-Z156))/2)*(A156-A155))/27+S13+T13,0),IF(((((DataInput!Q156-Z156)+(DataInput!Q155-Z155))/2)*(A156-A155))/27+S13+T13>0,ROUNDDOWN(((((DataInput!Q156-Z155)+(DataInput!Q155-Z155))/2)*(A156-A155))/27+S13+T13,0),0)),0),0)*$X$5),1) -> 0 | AC155: =AC154 -> 0 | AD155: =ROUNDDOWN((IF(AC156>0,IFERROR(IF(((((DataInput!Q155-AC155)+(DataInput!Q156-AC156))/2)*(A156-A155))/27+S13+T13>0,ROUNDDOWN(((((DataInput!Q155-AC155)+(DataInput!Q156-AC156))/2)*(A156-A155))/27+S13+T13,0),0),0),0)*$X$5),1) -> 0 | AE155: =DataInput!U155 -> 20 | AF155: =DataInput!S155 -> 40 | AG155: =ROUNDUP((AF155*$AG$5),1) -> 56 | AH155: =ROUNDUP((AE155-AG155),1) -> -36
A156: =IF(DataInput!A156<>"",DataInput!A156,"") -> 80075 | B156: =SUM(DataInput!C156,DataInput!Y156)+(DataInput!U156-DataInput!E156) -> 60 | C156: =SUM(DataInput!D156,DataInput!Z156) -> 54 | D156: =DataInput!U156 -> 6 | E156: =SUM(DataInput!F156,DataInput!AB156) -> 0 | F156: =SUM(DataInput!G156,DataInput!AC156) -> 0 | G156: =SUM(DataInput!H156,DataInput!AD156) -> 0 | H156: =DataInput!I156 -> 0 | I156: =SUM(DataInput!J156,DataInput!AF156) -> 0 | J156: =SUM(DataInput!K156,DataInput!AG156) -> 0 | K156: =SUM(DataInput!L156,DataInput!AH156) -> 0 | L156: =SUM(DataInput!M156,DataInput!AI156) -> 0 | M156: =SUM(DataInput!N156,DataInput!AJ156) -> 0 | N156: =SUM(DataInput!O156,DataInput!AK156) -> 0 | O156: =DataInput!P156 -> 0 | Q156: 54 | R156: =DataInput!R156 -> 8 | S156: =DataInput!Y156 -> 0 | T156: =IF(DataInput!U156-DataInput!E156>0,DataInput!U156-DataInput!E156,"") -> 6 | U156: =IF(DataInput!W156-DataInput!I156>0,DataInput!W156-DataInput!I156,"") ->  | W156: 14 | X156: 18.2 | Y156: 35.8 | Z156: =Z155 -> 0 | AA156: =AA155 -> 0 | AB156: =ROUNDDOWN((IF(AA157>0,IFERROR(IF(AVERAGE(DataInput!Q156:Q157)>AVERAGE(AA157,AA156),ROUNDDOWN(((((AA156-Z156)+(AA157-Z157))/2)*(A157-A156))/27+S14+T14,0),IF(((((DataInput!Q157-Z157)+(DataInput!Q156-Z156))/2)*(A157-A156))/27+S14+T14>0,ROUNDDOWN(((((DataInput!Q157-Z156)+(DataInput!Q156-Z156))/2)*(A157-A156))/27+S14+T14,0),0)),0),0)*$X$5),1) -> 0 | AC156: =AC155 -> 0 | AD156: =ROUNDDOWN((IF(AC157>0,IFERROR(IF(((((DataInput!Q156-AC156)+(DataInput!Q157-AC157))/2)*(A157-A156))/27+S14+T14>0,ROUNDDOWN(((((DataInput!Q156-AC156)+(DataInput!Q157-AC157))/2)*(A157-A156))/27+S14+T14,0),0),0),0)*$X$5),1) -> 0 | AE156: =DataInput!U156 -> 6 | AF156: =DataInput!S156 -> 13 | AG156: 18.2 | AH156: -12.2
A157: =IF(DataInput!A157<>"",DataInput!A157,"") -> 80082 | B157: =SUM(DataInput!C157,DataInput!Y157)+(DataInput!U157-DataInput!E157) -> 152 | C157: =SUM(DataInput!D157,DataInput!Z157) -> 136 | D157: =DataInput!U157 -> 16 | E157: =SUM(DataInput!F157,DataInput!AB157) -> 0 | F157: =SUM(DataInput!G157,DataInput!AC157) -> 0 | G157: =SUM(DataInput!H157,DataInput!AD157) -> 0 | H157: =DataInput!I157 -> 0 | I157: =SUM(DataInput!J157,DataInput!AF157) -> 0 | J157: =SUM(DataInput!K157,DataInput!AG157) -> 0 | K157: =SUM(DataInput!L157,DataInput!AH157) -> 0 | L157: =SUM(DataInput!M157,DataInput!AI157) -> 0 | M157: =SUM(DataInput!N157,DataInput!AJ157) -> 0 | N157: =SUM(DataInput!O157,DataInput!AK157) -> 0 | O157: =DataInput!P157 -> 0 | P157: 83 | Q157: 219 | R157: =DataInput!R157 -> 18 | S157: =DataInput!Y157 -> 0 | T157: =IF(DataInput!U157-DataInput!E157>0,DataInput!U157-DataInput!E157,"") -> 16 | U157: =IF(DataInput!W157-DataInput!I157>0,DataInput!W157-DataInput!I157,"") ->  | W157: 34 | X157: 44.2 | Y157: 174.8 | Z157: 0 | AA157: 0 | AB157: =ROUNDDOWN((IF(AA158>0,IFERROR(IF(AVERAGE(DataInput!Q157:Q158)>AVERAGE(AA158,AA157),ROUNDDOWN(((((AA157-Z157)+(AA158-Z158))/2)*(A158-A157))/27+S15+T15,0),IF(((((DataInput!Q158-Z158)+(DataInput!Q157-Z157))/2)*(A158-A157))/27+S15+T15>0,ROUNDDOWN(((((DataInput!Q158-Z157)+(DataInput!Q157-Z157))/2)*(A158-A157))/27+S15+T15,0),0)),0),0)*$X$5),1) -> 0 | AC157: 0 | AD157: =ROUNDDOWN((IF(AC158>0,IFERROR(IF(((((DataInput!Q157-AC157)+(DataInput!Q158-AC158))/2)*(A158-A157))/27+S15+T15>0,ROUNDDOWN(((((DataInput!Q157-AC157)+(DataInput!Q158-AC158))/2)*(A158-A157))/27+S15+T15,0),0),0),0)*$X$5),1) -> 0 | AE157: =DataInput!U157 -> 16 | AF157: =DataInput!S157 -> 32 | AG157: 44.8 | AH157: -28.8
A158: =IF(DataInput!A158<>"",DataInput!A158,"") -> 80100 | B158: =SUM(DataInput!C158,DataInput!Y158)+(DataInput!U158-DataInput!E158) -> 106 | C158: =SUM(DataInput!D158,DataInput!Z158) -> 87 | D158: =DataInput!U158 -> 19 | E158: =SUM(DataInput!F158,DataInput!AB158) -> 0 | F158: =SUM(DataInput!G158,DataInput!AC158) -> 0 | G158: =SUM(DataInput!H158,DataInput!AD158) -> 0 | H158: =DataInput!I158 -> 0 | I158: =SUM(DataInput!J158,DataInput!AF158) -> 0 | J158: =SUM(DataInput!K158,DataInput!AG158) -> 0 | K158: =SUM(DataInput!L158,DataInput!AH158) -> 0 | L158: =SUM(DataInput!M158,DataInput!AI158) -> 0 | M158: =SUM(DataInput!N158,DataInput!AJ158) -> 0 | N158: =SUM(DataInput!O158,DataInput!AK158) -> 0 | O158: =DataInput!P158 -> 0 | Q158: 87 | R158: =DataInput!R158 -> 30 | S158: =DataInput!Y158 -> 0 | T158: =IF(DataInput!U158-DataInput!E158>0,DataInput!U158-DataInput!E158,"") -> 19 | U158: =IF(DataInput!W158-DataInput!I158>0,DataInput!W158-DataInput!I158,"") ->  | W158: 49 | X158: 63.7 | Y158: 23.3 | Z158: 0 | AA158: 0 | AB158: =ROUNDDOWN((IF(AA159>0,IFERROR(IF(AVERAGE(DataInput!Q158:Q159)>AVERAGE(AA159,AA158),ROUNDDOWN(((((AA158-Z158)+(AA159-Z159))/2)*(A159-A158))/27+S16+T16,0),IF(((((DataInput!Q159-Z159)+(DataInput!Q158-Z158))/2)*(A159-A158))/27+S16+T16>0,ROUNDDOWN(((((DataInput!Q159-Z158)+(DataInput!Q158-Z158))/2)*(A159-A158))/27+S16+T16,0),0)),0),0)*$X$5),1) -> 0 | AC158: 0 | AD158: =ROUNDDOWN((IF(AC159>0,IFERROR(IF(((((DataInput!Q158-AC158)+(DataInput!Q159-AC159))/2)*(A159-A158))/27+S16+T16>0,ROUNDDOWN(((((DataInput!Q158-AC158)+(DataInput!Q159-AC159))/2)*(A159-A158))/27+S16+T16,0),0),0),0)*$X$5),1) -> 0 | AE158: =DataInput!U158 -> 19 | AF158: =DataInput!S158 -> 37 | AG158: 51.8 | AH158: -32.8
A159: =IF(DataInput!A159<>"",DataInput!A159,"") -> 80125 | B159: =SUM(DataInput!C159,DataInput!Y159)+(DataInput!U159-DataInput!E159) -> 34 | C159: =SUM(DataInput!D159,DataInput!Z159) -> 21 | D159: =DataInput!U159 -> 13 | E159: =SUM(DataInput!F159,DataInput!AB159) -> 0 | F159: =SUM(DataInput!G159,DataInput!AC159) -> 0 | G159: =SUM(DataInput!H159,DataInput!AD159) -> 0 | H159: =DataInput!I159 -> 0 | I159: =SUM(DataInput!J159,DataInput!AF159) -> 0 | J159: =SUM(DataInput!K159,DataInput!AG159) -> 0 | K159: =SUM(DataInput!L159,DataInput!AH159) -> 0 | L159: =SUM(DataInput!M159,DataInput!AI159) -> 0 | M159: =SUM(DataInput!N159,DataInput!AJ159) -> 0 | N159: =SUM(DataInput!O159,DataInput!AK159) -> 0 | O159: =DataInput!P159 -> 0 | Q159: 21 | R159: =DataInput!R159 -> 28 | S159: =DataInput!Y159 -> 0 | T159: =IF(DataInput!U159-DataInput!E159>0,DataInput!U159-DataInput!E159,"") -> 13 | U159: =IF(DataInput!W159-DataInput!I159>0,DataInput!W159-DataInput!I159,"") ->  | W159: 41 | X159: 53.3 | Y159: -32.3 | Z159: 0 | AA159: 0 | AB159: =ROUNDDOWN((IF(AA160>0,IFERROR(IF(AVERAGE(DataInput!Q159:Q160)>AVERAGE(AA160,AA159),ROUNDDOWN(((((AA159-Z159)+(AA160-Z160))/2)*(A160-A159))/27+S17+T17,0),IF(((((DataInput!Q160-Z160)+(DataInput!Q159-Z159))/2)*(A160-A159))/27+S17+T17>0,ROUNDDOWN(((((DataInput!Q160-Z159)+(DataInput!Q159-Z159))/2)*(A160-A159))/27+S17+T17,0),0)),0),0)*$X$5),1) -> 0 | AC159: 0 | AD159: =ROUNDDOWN((IF(AC160>0,IFERROR(IF(((((DataInput!Q159-AC159)+(DataInput!Q160-AC160))/2)*(A160-A159))/27+S17+T17>0,ROUNDDOWN(((((DataInput!Q159-AC159)+(DataInput!Q160-AC160))/2)*(A160-A159))/27+S17+T17,0),0),0),0)*$X$5),1) -> 0 | AE159: =DataInput!U159 -> 13 | AF159: =DataInput!S159 -> 26 | AG159: 36.4 | AH159: -23.4
A160: =IF(DataInput!A160<>"",DataInput!A160,"") -> 80150 | B160: =SUM(DataInput!C160,DataInput!Y160)+(DataInput!U160-DataInput!E160) -> 10 | C160: =SUM(DataInput!D160,DataInput!Z160) -> 3 | D160: =DataInput!U160 -> 7 | E160: =SUM(DataInput!F160,DataInput!AB160) -> 0 | F160: =SUM(DataInput!G160,DataInput!AC160) -> 0 | G160: =SUM(DataInput!H160,DataInput!AD160) -> 0 | H160: =DataInput!I160 -> 0 | I160: =SUM(DataInput!J160,DataInput!AF160) -> 0 | J160: =SUM(DataInput!K160,DataInput!AG160) -> 0 | K160: =SUM(DataInput!L160,DataInput!AH160) -> 0 | L160: =SUM(DataInput!M160,DataInput!AI160) -> 0 | M160: =SUM(DataInput!N160,DataInput!AJ160) -> 0 | N160: =SUM(DataInput!O160,DataInput!AK160) -> 0 | O160: =DataInput!P160 -> 0 | Q160: 3 | R160: =DataInput!R160 -> 6 | S160: =DataInput!Y160 -> 0 | T160: =IF(DataInput!U160-DataInput!E160>0,DataInput!U160-DataInput!E160,"") -> 7 | U160: =IF(DataInput!W160-DataInput!I160>0,DataInput!W160-DataInput!I160,"") ->  | W160: 13 | X160: 16.9 | Y160: -13.9 | Z160: 0 | AA160: 0 | AB160: =ROUNDDOWN((IF(AA161>0,IFERROR(IF(AVERAGE(DataInput!Q160:Q161)>AVERAGE(AA161,AA160),ROUNDDOWN(((((AA160-Z160)+(AA161-Z161))/2)*(A161-A160))/27+S18+T18,0),IF(((((DataInput!Q161-Z161)+(DataInput!Q160-Z160))/2)*(A161-A160))/27+S18+T18>0,ROUNDDOWN(((((DataInput!Q161-Z160)+(DataInput!Q160-Z160))/2)*(A161-A160))/27+S18+T18,0),0)),0),0)*$X$5),1) -> 0 | AC160: 0 | AD160: =ROUNDDOWN((IF(AC161>0,IFERROR(IF(((((DataInput!Q160-AC160)+(DataInput!Q161-AC161))/2)*(A161-A160))/27+S18+T18>0,ROUNDDOWN(((((DataInput!Q160-AC160)+(DataInput!Q161-AC161))/2)*(A161-A160))/27+S18+T18,0),0),0),0)*$X$5),1) -> 0 | AE160: =DataInput!U160 -> 7 | AF160: =DataInput!S160 -> 13 | AG160: 18.2 | AH160: -11.2
A161: =IF(DataInput!A161<>"",DataInput!A161,"") -> 80175
A163: =IF(DataInput!A163<>"",DataInput!A163,"") -> Sta. 808+67
A164: =IF(DataInput!A164<>"",DataInput!A164,"") -> 80775 | B164: =SUM(DataInput!C164,DataInput!Y164)+(DataInput!U164-DataInput!E164) -> 47 | C164: =SUM(DataInput!D164,DataInput!Z164) -> 10 | D164: =DataInput!U164 -> 37 | E164: =SUM(DataInput!F164,DataInput!AB164) -> 0 | F164: =SUM(DataInput!G164,DataInput!AC164) -> 0 | G164: =SUM(DataInput!H164,DataInput!AD164) -> 0 | H164: =DataInput!I164 -> 0 | I164: =SUM(DataInput!J164,DataInput!AF164) -> 0 | J164: =SUM(DataInput!K164,DataInput!AG164) -> 0 | K164: =SUM(DataInput!L164,DataInput!AH164) -> 0 | L164: =SUM(DataInput!M164,DataInput!AI164) -> 0 | M164: =SUM(DataInput!N164,DataInput!AJ164) -> 0 | N164: =SUM(DataInput!O164,DataInput!AK164) -> 0 | O164: =DataInput!P164 -> 0 | Q164: =SUM(C164,E164:G164,I164:L164,N164:P164) -> 10 | R164: =DataInput!R164 -> 6 | S164: =DataInput!Y164 -> 0 | T164: =IF(DataInput!U164-DataInput!E164>0,DataInput!U164-DataInput!E164,"") -> 37 | U164: =IF(DataInput!W164-DataInput!I164>0,DataInput!W164-DataInput!I164,"") ->  | W164: =SUM(R164:V164) -> 43 | X164: =ROUNDUP(($W164*$X$5),1) -> 55.9 | Y164: =ROUNDUP(SUM(Q164-X164),1) -> -45.9 | AB164: =ROUNDDOWN((IF(AA165>0,IFERROR(IF(AVERAGE(DataInput!Q164:Q165)>AVERAGE(AA165,AA164),ROUNDDOWN(((((AA164-Z164)+(AA165-Z165))/2)*(A165-A164))/27+S12+T12,0),IF(((((DataInput!Q165-Z165)+(DataInput!Q164-Z164))/2)*(A165-A164))/27+S12+T12>0,ROUNDDOWN(((((DataInput!Q165-Z164)+(DataInput!Q164-Z164))/2)*(A165-A164))/27+S12+T12,0),0)),0),0)*$X$5),1) -> 0 | AD164: =ROUNDDOWN((IF(AC165>0,IFERROR(IF(((((DataInput!Q164-AC164)+(DataInput!Q165-AC165))/2)*(A165-A164))/27+S12+T12>0,ROUNDDOWN(((((DataInput!Q164-AC164)+(DataInput!Q165-AC165))/2)*(A165-A164))/27+S12+T12,0),0),0),0)*$X$5),1) -> 0 | AE164: =DataInput!U164 -> 37 | AF164: =DataInput!S164 -> 15 | AG164: =ROUNDUP((AF164*$AG$5),1) -> 21 | AH164: =ROUNDUP((AE164-AG164),1) -> 16
A165: =IF(DataInput!A165<>"",DataInput!A165,"") -> 80800 | B165: =SUM(DataInput!C165,DataInput!Y165)+(DataInput!U165-DataInput!E165) -> 48 | C165: =SUM(DataInput!D165,DataInput!Z165) -> 48 | D165: =DataInput!U165 -> 0 | E165: =SUM(DataInput!F165,DataInput!AB165) -> 0 | F165: =SUM(DataInput!G165,DataInput!AC165) -> 0 | G165: =SUM(DataInput!H165,DataInput!AD165) -> 0 | H165: =DataInput!I165 -> 0 | I165: =SUM(DataInput!J165,DataInput!AF165) -> 0 | J165: =SUM(DataInput!K165,DataInput!AG165) -> 0 | K165: =SUM(DataInput!L165,DataInput!AH165) -> 0 | L165: =SUM(DataInput!M165,DataInput!AI165) -> 0 | M165: =SUM(DataInput!N165,DataInput!AJ165) -> 0 | N165: =SUM(DataInput!O165,DataInput!AK165) -> 0 | O165: =DataInput!P165 -> 0 | Q165: =SUM(C165,E165:G165,I165:L165,N165:P165) -> 48 | R165: =DataInput!R165 -> 22 | S165: =DataInput!Y165 -> 0 | T165: =IF(DataInput!U165-DataInput!E165>0,DataInput!U165-DataInput!E165,"") ->  | U165: =IF(DataInput!W165-DataInput!I165>0,DataInput!W165-DataInput!I165,"") ->  | W165: =SUM(R165:V165) -> 22 | X165: =ROUNDUP(($W165*$X$5),1) -> 28.6 | Y165: =ROUNDUP(SUM(Q165-X165),1) -> 19.4 | Z165: =Z164 -> 0 | AA165: =AA164 -> 0 | AB165: =ROUNDDOWN((IF(AA166>0,IFERROR(IF(AVERAGE(DataInput!Q165:Q166)>AVERAGE(AA166,AA165),ROUNDDOWN(((((AA165-Z165)+(AA166-Z166))/2)*(A166-A165))/27+S13+T13,0),IF(((((DataInput!Q166-Z166)+(DataInput!Q165-Z165))/2)*(A166-A165))/27+S13+T13>0,ROUNDDOWN(((((DataInput!Q166-Z165)+(DataInput!Q165-Z165))/2)*(A166-A165))/27+S13+T13,0),0)),0),0)*$X$5),1) -> 0 | AC165: =AC164 -> 0 | AD165: =ROUNDDOWN((IF(AC166>0,IFERROR(IF(((((DataInput!Q165-AC165)+(DataInput!Q166-AC166))/2)*(A166-A165))/27+S13+T13>0,ROUNDDOWN(((((DataInput!Q165-AC165)+(DataInput!Q166-AC166))/2)*(A166-A165))/27+S13+T13,0),0),0),0)*$X$5),1) -> 0 | AE165: =DataInput!U165 -> 0 | AF165: =DataInput!S165 -> 35 | AG165: =ROUNDUP((AF165*$AG$5),1) -> 49 | AH165: =ROUNDUP((AE165-AG165),1) -> -49
A166: =IF(DataInput!A166<>"",DataInput!A166,"") -> 80825 | B166: =SUM(DataInput!C166,DataInput!Y166)+(DataInput!U166-DataInput!E166) -> 146 | C166: =SUM(DataInput!D166,DataInput!Z166) -> 115 | D166: =DataInput!U166 -> 31 | E166: =SUM(DataInput!F166,DataInput!AB166) -> 0 | F166: =SUM(DataInput!G166,DataInput!AC166) -> 0 | G166: =SUM(DataInput!H166,DataInput!AD166) -> 0 | H166: =DataInput!I166 -> 0 | I166: =SUM(DataInput!J166,DataInput!AF166) -> 0 | J166: =SUM(DataInput!K166,DataInput!AG166) -> 0 | K166: =SUM(DataInput!L166,DataInput!AH166) -> 0 | L166: =SUM(DataInput!M166,DataInput!AI166) -> 0 | M166: =SUM(DataInput!N166,DataInput!AJ166) -> 0 | N166: =SUM(DataInput!O166,DataInput!AK166) -> 0 | O166: =DataInput!P166 -> 0 | Q166: 115 | R166: =DataInput!R166 -> 70 | S166: =DataInput!Y166 -> 0 | T166: =IF(DataInput!U166-DataInput!E166>0,DataInput!U166-DataInput!E166,"") -> 31 | U166: =IF(DataInput!W166-DataInput!I166>0,DataInput!W166-DataInput!I166,"") ->  | W166: 101 | X166: 131.3 | Y166: -16.3 | Z166: =Z165 -> 0 | AA166: =AA165 -> 0 | AB166: =ROUNDDOWN((IF(AA167>0,IFERROR(IF(AVERAGE(DataInput!Q166:Q167)>AVERAGE(AA167,AA166),ROUNDDOWN(((((AA166-Z166)+(AA167-Z167))/2)*(A167-A166))/27+S14+T14,0),IF(((((DataInput!Q167-Z167)+(DataInput!Q166-Z166))/2)*(A167-A166))/27+S14+T14>0,ROUNDDOWN(((((DataInput!Q167-Z166)+(DataInput!Q166-Z166))/2)*(A167-A166))/27+S14+T14,0),0)),0),0)*$X$5),1) -> 0 | AC166: =AC165 -> 0 | AD166: =ROUNDDOWN((IF(AC167>0,IFERROR(IF(((((DataInput!Q166-AC166)+(DataInput!Q167-AC167))/2)*(A167-A166))/27+S14+T14>0,ROUNDDOWN(((((DataInput!Q166-AC166)+(DataInput!Q167-AC167))/2)*(A167-A166))/27+S14+T14,0),0),0),0)*$X$5),1) -> 0 | AE166: =DataInput!U166 -> 31 | AF166: =DataInput!S166 -> 50 | AG166: 70 | AH166: -39
A167: =IF(DataInput!A167<>"",DataInput!A167,"") -> 80850 | B167: =SUM(DataInput!C167,DataInput!Y167)+(DataInput!U167-DataInput!E167) -> 116 | C167: =SUM(DataInput!D167,DataInput!Z167) -> 95 | D167: =DataInput!U167 -> 21 | E167: =SUM(DataInput!F167,DataInput!AB167) -> 0 | F167: =SUM(DataInput!G167,DataInput!AC167) -> 0 | G167: =SUM(DataInput!H167,DataInput!AD167) -> 0 | H167: =DataInput!I167 -> 0 | I167: =SUM(DataInput!J167,DataInput!AF167) -> 0 | J167: =SUM(DataInput!K167,DataInput!AG167) -> 0 | K167: =SUM(DataInput!L167,DataInput!AH167) -> 0 | L167: =SUM(DataInput!M167,DataInput!AI167) -> 0 | M167: =SUM(DataInput!N167,DataInput!AJ167) -> 0 | N167: =SUM(DataInput!O167,DataInput!AK167) -> 0 | O167: =DataInput!P167 -> 0 | Q167: 95 | R167: =DataInput!R167 -> 102 | S167: =DataInput!Y167 -> 0 | T167: =IF(DataInput!U167-DataInput!E167>0,DataInput!U167-DataInput!E167,"") -> 21 | U167: =IF(DataInput!W167-DataInput!I167>0,DataInput!W167-DataInput!I167,"") ->  | W167: 123 | X167: 159.9 | Y167: -64.9 | Z167: 0 | AA167: 0 | AB167: =ROUNDDOWN((IF(AA168>0,IFERROR(IF(AVERAGE(DataInput!Q167:Q168)>AVERAGE(AA168,AA167),ROUNDDOWN(((((AA167-Z167)+(AA168-Z168))/2)*(A168-A167))/27+S15+T15,0),IF(((((DataInput!Q168-Z168)+(DataInput!Q167-Z167))/2)*(A168-A167))/27+S15+T15>0,ROUNDDOWN(((((DataInput!Q168-Z167)+(DataInput!Q167-Z167))/2)*(A168-A167))/27+S15+T15,0),0)),0),0)*$X$5),1) -> 0 | AC167: 0 | AD167: =ROUNDDOWN((IF(AC168>0,IFERROR(IF(((((DataInput!Q167-AC167)+(DataInput!Q168-AC168))/2)*(A168-A167))/27+S15+T15>0,ROUNDDOWN(((((DataInput!Q167-AC167)+(DataInput!Q168-AC168))/2)*(A168-A167))/27+S15+T15,0),0),0),0)*$X$5),1) -> 0 | AE167: =DataInput!U167 -> 21 | AF167: =DataInput!S167 -> 43 | AG167: 60.2 | AH167: -39.2
A168: =IF(DataInput!A168<>"",DataInput!A168,"") -> 80867.85 | B168: =SUM(DataInput!C168,DataInput!Y168)+(DataInput!U168-DataInput!E168) -> 32 | C168: =SUM(DataInput!D168,DataInput!Z168) -> 24 | D168: =DataInput!U168 -> 8 | E168: =SUM(DataInput!F168,DataInput!AB168) -> 0 | F168: =SUM(DataInput!G168,DataInput!AC168) -> 0 | G168: =SUM(DataInput!H168,DataInput!AD168) -> 0 | H168: =DataInput!I168 -> 0 | I168: =SUM(DataInput!J168,DataInput!AF168) -> 0 | J168: =SUM(DataInput!K168,DataInput!AG168) -> 0 | K168: =SUM(DataInput!L168,DataInput!AH168) -> 0 | L168: =SUM(DataInput!M168,DataInput!AI168) -> 0 | M168: =SUM(DataInput!N168,DataInput!AJ168) -> 0 | N168: =SUM(DataInput!O168,DataInput!AK168) -> 0 | O168: =DataInput!P168 -> 0 | P168: 83 | Q168: 107 | R168: =DataInput!R168 -> 57 | S168: =DataInput!Y168 -> 0 | T168: =IF(DataInput!U168-DataInput!E168>0,DataInput!U168-DataInput!E168,"") -> 8 | U168: =IF(DataInput!W168-DataInput!I168>0,DataInput!W168-DataInput!I168,"") ->  | W168: 65 | X168: 84.5 | Y168: 22.5 | Z168: 0 | AA168: 0 | AB168: =ROUNDDOWN((IF(AA169>0,IFERROR(IF(AVERAGE(DataInput!Q168:Q169)>AVERAGE(AA169,AA168),ROUNDDOWN(((((AA168-Z168)+(AA169-Z169))/2)*(A169-A168))/27+S16+T16,0),IF(((((DataInput!Q169-Z169)+(DataInput!Q168-Z168))/2)*(A169-A168))/27+S16+T16>0,ROUNDDOWN(((((DataInput!Q169-Z168)+(DataInput!Q168-Z168))/2)*(A169-A168))/27+S16+T16,0),0)),0),0)*$X$5),1) -> 0 | AC168: 0 | AD168: =ROUNDDOWN((IF(AC169>0,IFERROR(IF(((((DataInput!Q168-AC168)+(DataInput!Q169-AC169))/2)*(A169-A168))/27+S16+T16>0,ROUNDDOWN(((((DataInput!Q168-AC168)+(DataInput!Q169-AC169))/2)*(A169-A168))/27+S16+T16,0),0),0),0)*$X$5),1) -> 0 | AE168: =DataInput!U168 -> 8 | AF168: =DataInput!S168 -> 15 | AG168: 21 | AH168: -13
A169: =IF(DataInput!A169<>"",DataInput!A169,"") -> 80875 | B169: =SUM(DataInput!C169,DataInput!Y169)+(DataInput!U169-DataInput!E169) -> 43 | C169: =SUM(DataInput!D169,DataInput!Z169) -> 24 | D169: =DataInput!U169 -> 19 | E169: =SUM(DataInput!F169,DataInput!AB169) -> 0 | F169: =SUM(DataInput!G169,DataInput!AC169) -> 0 | G169: =SUM(DataInput!H169,DataInput!AD169) -> 0 | H169: =DataInput!I169 -> 0 | I169: =SUM(DataInput!J169,DataInput!AF169) -> 0 | J169: =SUM(DataInput!K169,DataInput!AG169) -> 0 | K169: =SUM(DataInput!L169,DataInput!AH169) -> 0 | L169: =SUM(DataInput!M169,DataInput!AI169) -> 0 | M169: =SUM(DataInput!N169,DataInput!AJ169) -> 0 | N169: =SUM(DataInput!O169,DataInput!AK169) -> 0 | O169: =DataInput!P169 -> 0 | Q169: 24 | R169: =DataInput!R169 -> 179 | S169: =DataInput!Y169 -> 0 | T169: =IF(DataInput!U169-DataInput!E169>0,DataInput!U169-DataInput!E169,"") -> 19 | U169: =IF(DataInput!W169-DataInput!I169>0,DataInput!W169-DataInput!I169,"") ->  | W169: 198 | X169: 257.4 | Y169: -233.4 | Z169: 0 | AA169: 0 | AB169: =ROUNDDOWN((IF(AA170>0,IFERROR(IF(AVERAGE(DataInput!Q169:Q170)>AVERAGE(AA170,AA169),ROUNDDOWN(((((AA169-Z169)+(AA170-Z170))/2)*(A170-A169))/27+S17+T17,0),IF(((((DataInput!Q170-Z170)+(DataInput!Q169-Z169))/2)*(A170-A169))/27+S17+T17>0,ROUNDDOWN(((((DataInput!Q170-Z169)+(DataInput!Q169-Z169))/2)*(A170-A169))/27+S17+T17,0),0)),0),0)*$X$5),1) -> 0 | AC169: 0 | AD169: =ROUNDDOWN((IF(AC170>0,IFERROR(IF(((((DataInput!Q169-AC169)+(DataInput!Q170-AC170))/2)*(A170-A169))/27+S17+T17>0,ROUNDDOWN(((((DataInput!Q169-AC169)+(DataInput!Q170-AC170))/2)*(A170-A169))/27+S17+T17,0),0),0),0)*$X$5),1) -> 0 | AE169: =DataInput!U169 -> 19 | AF169: =DataInput!S169 -> 39 | AG169: 54.6 | AH169: -35.6
A170: =IF(DataInput!A170<>"",DataInput!A170,"") -> 80900 | B170: =SUM(DataInput!C170,DataInput!Y170)+(DataInput!U170-DataInput!E170) -> 18 | C170: =SUM(DataInput!D170,DataInput!Z170) -> 5 | D170: =DataInput!U170 -> 13 | E170: =SUM(DataInput!F170,DataInput!AB170) -> 0 | F170: =SUM(DataInput!G170,DataInput!AC170) -> 0 | G170: =SUM(DataInput!H170,DataInput!AD170) -> 0 | H170: =DataInput!I170 -> 0 | I170: =SUM(DataInput!J170,DataInput!AF170) -> 0 | J170: =SUM(DataInput!K170,DataInput!AG170) -> 0 | K170: =SUM(DataInput!L170,DataInput!AH170) -> 0 | L170: =SUM(DataInput!M170,DataInput!AI170) -> 0 | M170: =SUM(DataInput!N170,DataInput!AJ170) -> 0 | N170: =SUM(DataInput!O170,DataInput!AK170) -> 0 | O170: =DataInput!P170 -> 0 | Q170: 5 | R170: =DataInput!R170 -> 69 | S170: =DataInput!Y170 -> 0 | T170: =IF(DataInput!U170-DataInput!E170>0,DataInput!U170-DataInput!E170,"") -> 13 | U170: =IF(DataInput!W170-DataInput!I170>0,DataInput!W170-DataInput!I170,"") ->  | W170: 82 | X170: 106.6 | Y170: -101.6 | Z170: 0 | AA170: 0 | AB170: =ROUNDDOWN((IF(AA171>0,IFERROR(IF(AVERAGE(DataInput!Q170:Q171)>AVERAGE(AA171,AA170),ROUNDDOWN(((((AA170-Z170)+(AA171-Z171))/2)*(A171-A170))/27+S18+T18,0),IF(((((DataInput!Q171-Z171)+(DataInput!Q170-Z170))/2)*(A171-A170))/27+S18+T18>0,ROUNDDOWN(((((DataInput!Q171-Z170)+(DataInput!Q170-Z170))/2)*(A171-A170))/27+S18+T18,0),0)),0),0)*$X$5),1) -> 0 | AC170: 0 | AD170: =ROUNDDOWN((IF(AC171>0,IFERROR(IF(((((DataInput!Q170-AC170)+(DataInput!Q171-AC171))/2)*(A171-A170))/27+S18+T18>0,ROUNDDOWN(((((DataInput!Q170-AC170)+(DataInput!Q171-AC171))/2)*(A171-A170))/27+S18+T18,0),0),0),0)*$X$5),1) -> 0 | AE170: =DataInput!U170 -> 13 | AF170: =DataInput!S170 -> 25 | AG170: 35 | AH170: -22
A171: =IF(DataInput!A171<>"",DataInput!A171,"") -> 80925 | B171: =SUM(DataInput!C171,DataInput!Y171)+(DataInput!U171-DataInput!E171) -> 22 | C171: =SUM(DataInput!D171,DataInput!Z171) -> 15 | D171: =DataInput!U171 -> 7 | E171: =SUM(DataInput!F171,DataInput!AB171) -> 0 | F171: =SUM(DataInput!G171,DataInput!AC171) -> 0 | G171: =SUM(DataInput!H171,DataInput!AD171) -> 0 | H171: =DataInput!I171 -> 0 | I171: =SUM(DataInput!J171,DataInput!AF171) -> 0 | J171: =SUM(DataInput!K171,DataInput!AG171) -> 0 | K171: =SUM(DataInput!L171,DataInput!AH171) -> 0 | L171: =SUM(DataInput!M171,DataInput!AI171) -> 0 | M171: =SUM(DataInput!N171,DataInput!AJ171) -> 0 | N171: =SUM(DataInput!O171,DataInput!AK171) -> 0 | O171: =DataInput!P171 -> 0 | Q171: 15 | R171: =DataInput!R171 -> 0 | S171: =DataInput!Y171 -> 0 | T171: =IF(DataInput!U171-DataInput!E171>0,DataInput!U171-DataInput!E171,"") -> 7 | U171: =IF(DataInput!W171-DataInput!I171>0,DataInput!W171-DataInput!I171,"") ->  | W171: 7 | X171: 9.1 | Y171: 5.9 | Z171: 0 | AA171: 0 | AB171: =ROUNDDOWN((IF(AA172>0,IFERROR(IF(AVERAGE(DataInput!Q171:Q172)>AVERAGE(AA172,AA171),ROUNDDOWN(((((AA171-Z171)+(AA172-Z172))/2)*(A172-A171))/27+S19+T19,0),IF(((((DataInput!Q172-Z172)+(DataInput!Q171-Z171))/2)*(A172-A171))/27+S19+T19>0,ROUNDDOWN(((((DataInput!Q172-Z171)+(DataInput!Q171-Z171))/2)*(A172-A171))/27+S19+T19,0),0)),0),0)*$X$5),1) -> 0 | AC171: 0 | AD171: =ROUNDDOWN((IF(AC172>0,IFERROR(IF(((((DataInput!Q171-AC171)+(DataInput!Q172-AC172))/2)*(A172-A171))/27+S19+T19>0,ROUNDDOWN(((((DataInput!Q171-AC171)+(DataInput!Q172-AC172))/2)*(A172-A171))/27+S19+T19,0),0),0),0)*$X$5),1) -> 0 | AE171: =DataInput!U171 -> 7 | AF171: =DataInput!S171 -> 13 | AG171: 18.2 | AH171: -11.2
A172: =IF(DataInput!A172<>"",DataInput!A172,"") -> 80950
A174: =IF(DataInput!A174<>"",DataInput!A174,"") -> Sta. 817+91
A175: =IF(DataInput!A175<>"",DataInput!A175,"") -> 81675 | B175: =SUM(DataInput!C175,DataInput!Y175)+(DataInput!U175-DataInput!E175) -> 9 | C175: =SUM(DataInput!D175,DataInput!Z175) -> 6 | D175: =DataInput!U175 -> 3 | E175: =SUM(DataInput!F175,DataInput!AB175) -> 0 | F175: =SUM(DataInput!G175,DataInput!AC175) -> 0 | G175: =SUM(DataInput!H175,DataInput!AD175) -> 0 | H175: =DataInput!I175 -> 0 | I175: =SUM(DataInput!J175,DataInput!AF175) -> 0 | J175: =SUM(DataInput!K175,DataInput!AG175) -> 0 | K175: =SUM(DataInput!L175,DataInput!AH175) -> 0 | L175: =SUM(DataInput!M175,DataInput!AI175) -> 0 | M175: =SUM(DataInput!N175,DataInput!AJ175) -> 0 | N175: =SUM(DataInput!O175,DataInput!AK175) -> 0 | O175: =DataInput!P175 -> 0 | Q175: =SUM(C175,E175:G175,I175:L175,N175:P175) -> 6 | R175: =DataInput!R175 -> 0 | S175: =DataInput!Y175 -> 0 | T175: =IF(DataInput!U175-DataInput!E175>0,DataInput!U175-DataInput!E175,"") -> 3 | U175: =IF(DataInput!W175-DataInput!I175>0,DataInput!W175-DataInput!I175,"") ->  | W175: =SUM(R175:V175) -> 3 | X175: =ROUNDUP(($W175*$X$5),1) -> 3.9 | Y175: =ROUNDUP(SUM(Q175-X175),1) -> 2.1 | AB175: =ROUNDDOWN((IF(AA176>0,IFERROR(IF(AVERAGE(DataInput!Q175:Q176)>AVERAGE(AA176,AA175),ROUNDDOWN(((((AA175-Z175)+(AA176-Z176))/2)*(A176-A175))/27+S12+T12,0),IF(((((DataInput!Q176-Z176)+(DataInput!Q175-Z175))/2)*(A176-A175))/27+S12+T12>0,ROUNDDOWN(((((DataInput!Q176-Z175)+(DataInput!Q175-Z175))/2)*(A176-A175))/27+S12+T12,0),0)),0),0)*$X$5),1) -> 0 | AD175: =ROUNDDOWN((IF(AC176>0,IFERROR(IF(((((DataInput!Q175-AC175)+(DataInput!Q176-AC176))/2)*(A176-A175))/27+S12+T12>0,ROUNDDOWN(((((DataInput!Q175-AC175)+(DataInput!Q176-AC176))/2)*(A176-A175))/27+S12+T12,0),0),0),0)*$X$5),1) -> 0 | AE175: =DataInput!U175 -> 3 | AF175: =DataInput!S175 -> 6 | AG175: =ROUNDUP((AF175*$AG$5),1) -> 8.4 | AH175: =ROUNDUP((AE175-AG175),1) -> -5.4
A176: =IF(DataInput!A176<>"",DataInput!A176,"") -> 81700 | B176: =SUM(DataInput!C176,DataInput!Y176)+(DataInput!U176-DataInput!E176) -> 20 | C176: =SUM(DataInput!D176,DataInput!Z176) -> 12 | D176: =DataInput!U176 -> 8 | E176: =SUM(DataInput!F176,DataInput!AB176) -> 0 | F176: =SUM(DataInput!G176,DataInput!AC176) -> 0 | G176: =SUM(DataInput!H176,DataInput!AD176) -> 0 | H176: =DataInput!I176 -> 0 | I176: =SUM(DataInput!J176,DataInput!AF176) -> 0 | J176: =SUM(DataInput!K176,DataInput!AG176) -> 0 | K176: =SUM(DataInput!L176,DataInput!AH176) -> 0 | L176: =SUM(DataInput!M176,DataInput!AI176) -> 0 | M176: =SUM(DataInput!N176,DataInput!AJ176) -> 0 | N176: =SUM(DataInput!O176,DataInput!AK176) -> 0 | O176: =DataInput!P176 -> 0 | Q176: =SUM(C176,E176:G176,I176:L176,N176:P176) -> 12 | R176: =DataInput!R176 -> 2 | S176: =DataInput!Y176 -> 0 | T176: =IF(DataInput!U176-DataInput!E176>0,DataInput!U176-DataInput!E176,"") -> 8 | U176: =IF(DataInput!W176-DataInput!I176>0,DataInput!W176-DataInput!I176,"") ->  | W176: =SUM(R176:V176) -> 10 | X176: =ROUNDUP(($W176*$X$5),1) -> 13 | Y176: =ROUNDUP(SUM(Q176-X176),1) -> -1 | Z176: =Z175 -> 0 | AA176: =AA175 -> 0 | AB176: =ROUNDDOWN((IF(AA177>0,IFERROR(IF(AVERAGE(DataInput!Q176:Q177)>AVERAGE(AA177,AA176),ROUNDDOWN(((((AA176-Z176)+(AA177-Z177))/2)*(A177-A176))/27+S13+T13,0),IF(((((DataInput!Q177-Z177)+(DataInput!Q176-Z176))/2)*(A177-A176))/27+S13+T13>0,ROUNDDOWN(((((DataInput!Q177-Z176)+(DataInput!Q176-Z176))/2)*(A177-A176))/27+S13+T13,0),0)),0),0)*$X$5),1) -> 0 | AC176: =AC175 -> 0 | AD176: =ROUNDDOWN((IF(AC177>0,IFERROR(IF(((((DataInput!Q176-AC176)+(DataInput!Q177-AC177))/2)*(A177-A176))/27+S13+T13>0,ROUNDDOWN(((((DataInput!Q176-AC176)+(DataInput!Q177-AC177))/2)*(A177-A176))/27+S13+T13,0),0),0),0)*$X$5),1) -> 0 | AE176: =DataInput!U176 -> 8 | AF176: =DataInput!S176 -> 17 | AG176: =ROUNDUP((AF176*$AG$5),1) -> 23.8 | AH176: =ROUNDUP((AE176-AG176),1) -> -15.8
A177: =IF(DataInput!A177<>"",DataInput!A177,"") -> 81725 | B177: =SUM(DataInput!C177,DataInput!Y177)+(DataInput!U177-DataInput!E177) -> 51 | C177: =SUM(DataInput!D177,DataInput!Z177) -> 36 | D177: =DataInput!U177 -> 15 | E177: =SUM(DataInput!F177,DataInput!AB177) -> 0 | F177: =SUM(DataInput!G177,DataInput!AC177) -> 0 | G177: =SUM(DataInput!H177,DataInput!AD177) -> 0 | H177: =DataInput!I177 -> 0 | I177: =SUM(DataInput!J177,DataInput!AF177) -> 0 | J177: =SUM(DataInput!K177,DataInput!AG177) -> 0 | K177: =SUM(DataInput!L177,DataInput!AH177) -> 0 | L177: =SUM(DataInput!M177,DataInput!AI177) -> 0 | M177: =SUM(DataInput!N177,DataInput!AJ177) -> 0 | N177: =SUM(DataInput!O177,DataInput!AK177) -> 0 | O177: =DataInput!P177 -> 0 | Q177: 36 | R177: =DataInput!R177 -> 17 | S177: =DataInput!Y177 -> 0 | T177: =IF(DataInput!U177-DataInput!E177>0,DataInput!U177-DataInput!E177,"") -> 15 | U177: =IF(DataInput!W177-DataInput!I177>0,DataInput!W177-DataInput!I177,"") ->  | W177: 32 | X177: 41.6 | Y177: -5.6 | Z177: =Z176 -> 0 | AA177: =AA176 -> 0 | AB177: =ROUNDDOWN((IF(AA178>0,IFERROR(IF(AVERAGE(DataInput!Q177:Q178)>AVERAGE(AA178,AA177),ROUNDDOWN(((((AA177-Z177)+(AA178-Z178))/2)*(A178-A177))/27+S14+T14,0),IF(((((DataInput!Q178-Z178)+(DataInput!Q177-Z177))/2)*(A178-A177))/27+S14+T14>0,ROUNDDOWN(((((DataInput!Q178-Z177)+(DataInput!Q177-Z177))/2)*(A178-A177))/27+S14+T14,0),0)),0),0)*$X$5),1) -> 0 | AC177: =AC176 -> 0 | AD177: =ROUNDDOWN((IF(AC178>0,IFERROR(IF(((((DataInput!Q177-AC177)+(DataInput!Q178-AC178))/2)*(A178-A177))/27+S14+T14>0,ROUNDDOWN(((((DataInput!Q177-AC177)+(DataInput!Q178-AC178))/2)*(A178-A177))/27+S14+T14,0),0),0),0)*$X$5),1) -> 0 | AE177: =DataInput!U177 -> 15 | AF177: =DataInput!S177 -> 29 | AG177: 40.6 | AH177: -25.6
A178: =IF(DataInput!A178<>"",DataInput!A178,"") -> 81750 | B178: =SUM(DataInput!C178,DataInput!Y178)+(DataInput!U178-DataInput!E178) -> 99 | C178: =SUM(DataInput!D178,DataInput!Z178) -> 84 | D178: =DataInput!U178 -> 15 | E178: =SUM(DataInput!F178,DataInput!AB178) -> 0 | F178: =SUM(DataInput!G178,DataInput!AC178) -> 0 | G178: =SUM(DataInput!H178,DataInput!AD178) -> 0 | H178: =DataInput!I178 -> 0 | I178: =SUM(DataInput!J178,DataInput!AF178) -> 0 | J178: =SUM(DataInput!K178,DataInput!AG178) -> 0 | K178: =SUM(DataInput!L178,DataInput!AH178) -> 0 | L178: =SUM(DataInput!M178,DataInput!AI178) -> 0 | M178: =SUM(DataInput!N178,DataInput!AJ178) -> 0 | N178: =SUM(DataInput!O178,DataInput!AK178) -> 0 | O178: =DataInput!P178 -> 0 | Q178: 84 | R178: =DataInput!R178 -> 73 | S178: =DataInput!Y178 -> 0 | T178: =IF(DataInput!U178-DataInput!E178>0,DataInput!U178-DataInput!E178,"") -> 15 | U178: =IF(DataInput!W178-DataInput!I178>0,DataInput!W178-DataInput!I178,"") ->  | W178: 88 | X178: 114.4 | Y178: -30.4 | Z178: 0 | AA178: 0 | AB178: =ROUNDDOWN((IF(AA179>0,IFERROR(IF(AVERAGE(DataInput!Q178:Q179)>AVERAGE(AA179,AA178),ROUNDDOWN(((((AA178-Z178)+(AA179-Z179))/2)*(A179-A178))/27+S15+T15,0),IF(((((DataInput!Q179-Z179)+(DataInput!Q178-Z178))/2)*(A179-A178))/27+S15+T15>0,ROUNDDOWN(((((DataInput!Q179-Z178)+(DataInput!Q178-Z178))/2)*(A179-A178))/27+S15+T15,0),0)),0),0)*$X$5),1) -> 0 | AC178: 0 | AD178: =ROUNDDOWN((IF(AC179>0,IFERROR(IF(((((DataInput!Q178-AC178)+(DataInput!Q179-AC179))/2)*(A179-A178))/27+S15+T15>0,ROUNDDOWN(((((DataInput!Q178-AC178)+(DataInput!Q179-AC179))/2)*(A179-A178))/27+S15+T15,0),0),0),0)*$X$5),1) -> 0 | AE178: =DataInput!U178 -> 15 | AF178: =DataInput!S178 -> 38 | AG178: 53.2 | AH178: -38.2
A179: =IF(DataInput!A179<>"",DataInput!A179,"") -> 81775 | B179: =SUM(DataInput!C179,DataInput!Y179)+(DataInput!U179-DataInput!E179) -> 76 | C179: =SUM(DataInput!D179,DataInput!Z179) -> 62 | D179: =DataInput!U179 -> 14 | E179: =SUM(DataInput!F179,DataInput!AB179) -> 0 | F179: =SUM(DataInput!G179,DataInput!AC179) -> 0 | G179: =SUM(DataInput!H179,DataInput!AD179) -> 0 | H179: =DataInput!I179 -> 0 | I179: =SUM(DataInput!J179,DataInput!AF179) -> 0 | J179: =SUM(DataInput!K179,DataInput!AG179) -> 0 | K179: =SUM(DataInput!L179,DataInput!AH179) -> 0 | L179: =SUM(DataInput!M179,DataInput!AI179) -> 0 | M179: =SUM(DataInput!N179,DataInput!AJ179) -> 0 | N179: =SUM(DataInput!O179,DataInput!AK179) -> 0 | O179: =DataInput!P179 -> 0 | Q179: 62 | R179: =DataInput!R179 -> 37 | S179: =DataInput!Y179 -> 0 | T179: =IF(DataInput!U179-DataInput!E179>0,DataInput!U179-DataInput!E179,"") -> 14 | U179: =IF(DataInput!W179-DataInput!I179>0,DataInput!W179-DataInput!I179,"") ->  | W179: 51 | X179: 66.3 | Y179: -4.3 | Z179: 0 | AA179: 0 | AB179: =ROUNDDOWN((IF(AA180>0,IFERROR(IF(AVERAGE(DataInput!Q179:Q180)>AVERAGE(AA180,AA179),ROUNDDOWN(((((AA179-Z179)+(AA180-Z180))/2)*(A180-A179))/27+S16+T16,0),IF(((((DataInput!Q180-Z180)+(DataInput!Q179-Z179))/2)*(A180-A179))/27+S16+T16>0,ROUNDDOWN(((((DataInput!Q180-Z179)+(DataInput!Q179-Z179))/2)*(A180-A179))/27+S16+T16,0),0)),0),0)*$X$5),1) -> 0 | AC179: 0 | AD179: =ROUNDDOWN((IF(AC180>0,IFERROR(IF(((((DataInput!Q179-AC179)+(DataInput!Q180-AC180))/2)*(A180-A179))/27+S16+T16>0,ROUNDDOWN(((((DataInput!Q179-AC179)+(DataInput!Q180-AC180))/2)*(A180-A179))/27+S16+T16,0),0),0),0)*$X$5),1) -> 0 | AE179: =DataInput!U179 -> 14 | AF179: =DataInput!S179 -> 31 | AG179: 43.4 | AH179: -29.4
A180: =IF(DataInput!A180<>"",DataInput!A180,"") -> 81791 | B180: =SUM(DataInput!C180,DataInput!Y180)+(DataInput!U180-DataInput!E180) -> 43 | C180: =SUM(DataInput!D180,DataInput!Z180) -> 34 | D180: =DataInput!U180 -> 9 | E180: =SUM(DataInput!F180,DataInput!AB180) -> 0 | F180: =SUM(DataInput!G180,DataInput!AC180) -> 0 | G180: =SUM(DataInput!H180,DataInput!AD180) -> 0 | H180: =DataInput!I180 -> 0 | I180: =SUM(DataInput!J180,DataInput!AF180) -> 0 | J180: =SUM(DataInput!K180,DataInput!AG180) -> 0 | K180: =SUM(DataInput!L180,DataInput!AH180) -> 0 | L180: =SUM(DataInput!M180,DataInput!AI180) -> 0 | M180: =SUM(DataInput!N180,DataInput!AJ180) -> 0 | N180: =SUM(DataInput!O180,DataInput!AK180) -> 0 | O180: =DataInput!P180 -> 0 | P180: 34 | Q180: 68 | R180: =DataInput!R180 -> 6 | S180: =DataInput!Y180 -> 0 | T180: =IF(DataInput!U180-DataInput!E180>0,DataInput!U180-DataInput!E180,"") -> 9 | U180: =IF(DataInput!W180-DataInput!I180>0,DataInput!W180-DataInput!I180,"") ->  | W180: 15 | X180: 19.5 | Y180: 48.5 | Z180: 0 | AA180: 0 | AB180: =ROUNDDOWN((IF(AA181>0,IFERROR(IF(AVERAGE(DataInput!Q180:Q181)>AVERAGE(AA181,AA180),ROUNDDOWN(((((AA180-Z180)+(AA181-Z181))/2)*(A181-A180))/27+S17+T17,0),IF(((((DataInput!Q181-Z181)+(DataInput!Q180-Z180))/2)*(A181-A180))/27+S17+T17>0,ROUNDDOWN(((((DataInput!Q181-Z180)+(DataInput!Q180-Z180))/2)*(A181-A180))/27+S17+T17,0),0)),0),0)*$X$5),1) -> 0 | AC180: 0 | AD180: =ROUNDDOWN((IF(AC181>0,IFERROR(IF(((((DataInput!Q180-AC180)+(DataInput!Q181-AC181))/2)*(A181-A180))/27+S17+T17>0,ROUNDDOWN(((((DataInput!Q180-AC180)+(DataInput!Q181-AC181))/2)*(A181-A180))/27+S17+T17,0),0),0),0)*$X$5),1) -> 0 | AE180: =DataInput!U180 -> 9 | AF180: =DataInput!S180 -> 17 | AG180: 23.8 | AH180: -14.8
A181: =IF(DataInput!A181<>"",DataInput!A181,"") -> 81800 | B181: =SUM(DataInput!C181,DataInput!Y181)+(DataInput!U181-DataInput!E181) -> 111 | C181: =SUM(DataInput!D181,DataInput!Z181) -> 93 | D181: =DataInput!U181 -> 18 | E181: =SUM(DataInput!F181,DataInput!AB181) -> 0 | F181: =SUM(DataInput!G181,DataInput!AC181) -> 0 | G181: =SUM(DataInput!H181,DataInput!AD181) -> 0 | H181: =DataInput!I181 -> 0 | I181: =SUM(DataInput!J181,DataInput!AF181) -> 0 | J181: =SUM(DataInput!K181,DataInput!AG181) -> 0 | K181: =SUM(DataInput!L181,DataInput!AH181) -> 0 | L181: =SUM(DataInput!M181,DataInput!AI181) -> 0 | M181: =SUM(DataInput!N181,DataInput!AJ181) -> 0 | N181: =SUM(DataInput!O181,DataInput!AK181) -> 0 | O181: =DataInput!P181 -> 0 | Q181: 93 | R181: =DataInput!R181 -> 20 | S181: =DataInput!Y181 -> 0 | T181: =IF(DataInput!U181-DataInput!E181>0,DataInput!U181-DataInput!E181,"") -> 18 | U181: =IF(DataInput!W181-DataInput!I181>0,DataInput!W181-DataInput!I181,"") ->  | W181: 38 | X181: 49.4 | Y181: 43.6 | Z181: 0 | AA181: 0 | AB181: =ROUNDDOWN((IF(AA182>0,IFERROR(IF(AVERAGE(DataInput!Q181:Q182)>AVERAGE(AA182,AA181),ROUNDDOWN(((((AA181-Z181)+(AA182-Z182))/2)*(A182-A181))/27+S18+T18,0),IF(((((DataInput!Q182-Z182)+(DataInput!Q181-Z181))/2)*(A182-A181))/27+S18+T18>0,ROUNDDOWN(((((DataInput!Q182-Z181)+(DataInput!Q181-Z181))/2)*(A182-A181))/27+S18+T18,0),0)),0),0)*$X$5),1) -> 0 | AC181: 0 | AD181: =ROUNDDOWN((IF(AC182>0,IFERROR(IF(((((DataInput!Q181-AC181)+(DataInput!Q182-AC182))/2)*(A182-A181))/27+S18+T18>0,ROUNDDOWN(((((DataInput!Q181-AC181)+(DataInput!Q182-AC182))/2)*(A182-A181))/27+S18+T18,0),0),0),0)*$X$5),1) -> 0 | AE181: =DataInput!U181 -> 18 | AF181: =DataInput!S181 -> 36 | AG181: 50.4 | AH181: -32.4
A182: =IF(DataInput!A182<>"",DataInput!A182,"") -> 81825 | B182: =SUM(DataInput!C182,DataInput!Y182)+(DataInput!U182-DataInput!E182) -> 78 | C182: =SUM(DataInput!D182,DataInput!Z182) -> 63 | D182: =DataInput!U182 -> 15 | E182: =SUM(DataInput!F182,DataInput!AB182) -> 0 | F182: =SUM(DataInput!G182,DataInput!AC182) -> 0 | G182: =SUM(DataInput!H182,DataInput!AD182) -> 0 | H182: =DataInput!I182 -> 0 | I182: =SUM(DataInput!J182,DataInput!AF182) -> 0 | J182: =SUM(DataInput!K182,DataInput!AG182) -> 0 | K182: =SUM(DataInput!L182,DataInput!AH182) -> 0 | L182: =SUM(DataInput!M182,DataInput!AI182) -> 0 | M182: =SUM(DataInput!N182,DataInput!AJ182) -> 0 | N182: =SUM(DataInput!O182,DataInput!AK182) -> 0 | O182: =DataInput!P182 -> 0 | Q182: 63 | R182: =DataInput!R182 -> 6 | S182: =DataInput!Y182 -> 0 | T182: =IF(DataInput!U182-DataInput!E182>0,DataInput!U182-DataInput!E182,"") -> 15 | U182: =IF(DataInput!W182-DataInput!I182>0,DataInput!W182-DataInput!I182,"") ->  | W182: 21 | X182: 27.3 | Y182: 35.7 | Z182: 0 | AA182: 0 | AB182: =ROUNDDOWN((IF(AA183>0,IFERROR(IF(AVERAGE(DataInput!Q182:Q183)>AVERAGE(AA183,AA182),ROUNDDOWN(((((AA182-Z182)+(AA183-Z183))/2)*(A183-A182))/27+S19+T19,0),IF(((((DataInput!Q183-Z183)+(DataInput!Q182-Z182))/2)*(A183-A182))/27+S19+T19>0,ROUNDDOWN(((((DataInput!Q183-Z182)+(DataInput!Q182-Z182))/2)*(A183-A182))/27+S19+T19,0),0)),0),0)*$X$5),1) -> 0 | AC182: 0 | AD182: =ROUNDDOWN((IF(AC183>0,IFERROR(IF(((((DataInput!Q182-AC182)+(DataInput!Q183-AC183))/2)*(A183-A182))/27+S19+T19>0,ROUNDDOWN(((((DataInput!Q182-AC182)+(DataInput!Q183-AC183))/2)*(A183-A182))/27+S19+T19,0),0),0),0)*$X$5),1) -> 0 | AE182: =DataInput!U182 -> 15 | AF182: =DataInput!S182 -> 30 | AG182: 42 | AH182: -27
A183: =IF(DataInput!A183<>"",DataInput!A183,"") -> 81850 | B183: =SUM(DataInput!C183,DataInput!Y183)+(DataInput!U183-DataInput!E183) -> 40 | C183: =SUM(DataInput!D183,DataInput!Z183) -> 31 | D183: =DataInput!U183 -> 9 | E183: =SUM(DataInput!F183,DataInput!AB183) -> 0 | F183: =SUM(DataInput!G183,DataInput!AC183) -> 0 | G183: =SUM(DataInput!H183,DataInput!AD183) -> 0 | H183: =DataInput!I183 -> 0 | I183: =SUM(DataInput!J183,DataInput!AF183) -> 0 | J183: =SUM(DataInput!K183,DataInput!AG183) -> 0 | K183: =SUM(DataInput!L183,DataInput!AH183) -> 0 | L183: =SUM(DataInput!M183,DataInput!AI183) -> 0 | M183: =SUM(DataInput!N183,DataInput!AJ183) -> 0 | N183: =SUM(DataInput!O183,DataInput!AK183) -> 0 | O183: =DataInput!P183 -> 0 | Q183: 31 | R183: =DataInput!R183 -> 1 | S183: =DataInput!Y183 -> 0 | T183: =IF(DataInput!U183-DataInput!E183>0,DataInput!U183-DataInput!E183,"") -> 9 | U183: =IF(DataInput!W183-DataInput!I183>0,DataInput!W183-DataInput!I183,"") ->  | W183: 10 | X183: 13 | Y183: 18 | Z183: 0 | AA183: 0 | AB183: =ROUNDDOWN((IF(AA184>0,IFERROR(IF(AVERAGE(DataInput!Q183:Q184)>AVERAGE(AA184,AA183),ROUNDDOWN(((((AA183-Z183)+(AA184-Z184))/2)*(A184-A183))/27+S20+T20,0),IF(((((DataInput!Q184-Z184)+(DataInput!Q183-Z183))/2)*(A184-A183))/27+S20+T20>0,ROUNDDOWN(((((DataInput!Q184-Z183)+(DataInput!Q183-Z183))/2)*(A184-A183))/27+S20+T20,0),0)),0),0)*$X$5),1) -> 0 | AC183: 0 | AD183: =ROUNDDOWN((IF(AC184>0,IFERROR(IF(((((DataInput!Q183-AC183)+(DataInput!Q184-AC184))/2)*(A184-A183))/27+S20+T20>0,ROUNDDOWN(((((DataInput!Q183-AC183)+(DataInput!Q184-AC184))/2)*(A184-A183))/27+S20+T20,0),0),0),0)*$X$5),1) -> 0 | AE183: =DataInput!U183 -> 9 | AF183: =DataInput!S183 -> 18 | AG183: 25.2 | AH183: -16.2
A184: =IF(DataInput!A184<>"",DataInput!A184,"") -> 81875
A186: =IF(DataInput!A186<>"",DataInput!A186,"") -> Sta. 830+53
A187: =IF(DataInput!A187<>"",DataInput!A187,"") -> 82975 | B187: =SUM(DataInput!C187,DataInput!Y187)+(DataInput!U187-DataInput!E187) -> 55 | C187: =SUM(DataInput!D187,DataInput!Z187) -> 45 | D187: =DataInput!U187 -> 10 | E187: =SUM(DataInput!F187,DataInput!AB187) -> 0 | F187: =SUM(DataInput!G187,DataInput!AC187) -> 0 | G187: =SUM(DataInput!H187,DataInput!AD187) -> 0 | H187: =DataInput!I187 -> 0 | I187: =SUM(DataInput!J187,DataInput!AF187) -> 0 | J187: =SUM(DataInput!K187,DataInput!AG187) -> 0 | K187: =SUM(DataInput!L187,DataInput!AH187) -> 0 | L187: =SUM(DataInput!M187,DataInput!AI187) -> 0 | M187: =SUM(DataInput!N187,DataInput!AJ187) -> 0 | N187: =SUM(DataInput!O187,DataInput!AK187) -> 0 | O187: =DataInput!P187 -> 0 | Q187: =SUM(C187,E187:G187,I187:L187,N187:P187) -> 45 | R187: =DataInput!R187 -> 4 | S187: =DataInput!Y187 -> 0 | T187: =IF(DataInput!U187-DataInput!E187>0,DataInput!U187-DataInput!E187,"") -> 10 | U187: =IF(DataInput!W187-DataInput!I187>0,DataInput!W187-DataInput!I187,"") ->  | W187: =SUM(R187:V187) -> 14 | X187: =ROUNDUP(($W187*$X$5),1) -> 18.2 | Y187: =ROUNDUP(SUM(Q187-X187),1) -> 26.8 | AB187: =ROUNDDOWN((IF(AA188>0,IFERROR(IF(AVERAGE(DataInput!Q187:Q188)>AVERAGE(AA188,AA187),ROUNDDOWN(((((AA187-Z187)+(AA188-Z188))/2)*(A188-A187))/27+S12+T12,0),IF(((((DataInput!Q188-Z188)+(DataInput!Q187-Z187))/2)*(A188-A187))/27+S12+T12>0,ROUNDDOWN(((((DataInput!Q188-Z187)+(DataInput!Q187-Z187))/2)*(A188-A187))/27+S12+T12,0),0)),0),0)*$X$5),1) -> 0 | AD187: =ROUNDDOWN((IF(AC188>0,IFERROR(IF(((((DataInput!Q187-AC187)+(DataInput!Q188-AC188))/2)*(A188-A187))/27+S12+T12>0,ROUNDDOWN(((((DataInput!Q187-AC187)+(DataInput!Q188-AC188))/2)*(A188-A187))/27+S12+T12,0),0),0),0)*$X$5),1) -> 0 | AE187: =DataInput!U187 -> 10 | AF187: =DataInput!S187 -> 20 | AG187: =ROUNDUP((AF187*$AG$5),1) -> 28 | AH187: =ROUNDUP((AE187-AG187),1) -> -18
A188: =IF(DataInput!A188<>"",DataInput!A188,"") -> 83000 | B188: =SUM(DataInput!C188,DataInput!Y188)+(DataInput!U188-DataInput!E188) -> 79 | C188: =SUM(DataInput!D188,DataInput!Z188) -> 62 | D188: =DataInput!U188 -> 17 | E188: =SUM(DataInput!F188,DataInput!AB188) -> 0 | F188: =SUM(DataInput!G188,DataInput!AC188) -> 0 | G188: =SUM(DataInput!H188,DataInput!AD188) -> 0 | H188: =DataInput!I188 -> 0 | I188: =SUM(DataInput!J188,DataInput!AF188) -> 0 | J188: =SUM(DataInput!K188,DataInput!AG188) -> 0 | K188: =SUM(DataInput!L188,DataInput!AH188) -> 0 | L188: =SUM(DataInput!M188,DataInput!AI188) -> 0 | M188: =SUM(DataInput!N188,DataInput!AJ188) -> 0 | N188: =SUM(DataInput!O188,DataInput!AK188) -> 0 | O188: =DataInput!P188 -> 0 | Q188: =SUM(C188,E188:G188,I188:L188,N188:P188) -> 62 | R188: =DataInput!R188 -> 28 | S188: =DataInput!Y188 -> 0 | T188: =IF(DataInput!U188-DataInput!E188>0,DataInput!U188-DataInput!E188,"") -> 17 | U188: =IF(DataInput!W188-DataInput!I188>0,DataInput!W188-DataInput!I188,"") ->  | W188: =SUM(R188:V188) -> 45 | X188: =ROUNDUP(($W188*$X$5),1) -> 58.5 | Y188: =ROUNDUP(SUM(Q188-X188),1) -> 3.5 | Z188: =Z187 -> 0 | AA188: =AA187 -> 0 | AB188: =ROUNDDOWN((IF(AA189>0,IFERROR(IF(AVERAGE(DataInput!Q188:Q189)>AVERAGE(AA189,AA188),ROUNDDOWN(((((AA188-Z188)+(AA189-Z189))/2)*(A189-A188))/27+S13+T13,0),IF(((((DataInput!Q189-Z189)+(DataInput!Q188-Z188))/2)*(A189-A188))/27+S13+T13>0,ROUNDDOWN(((((DataInput!Q189-Z188)+(DataInput!Q188-Z188))/2)*(A189-A188))/27+S13+T13,0),0)),0),0)*$X$5),1) -> 0 | AC188: =AC187 -> 0 | AD188: =ROUNDDOWN((IF(AC189>0,IFERROR(IF(((((DataInput!Q188-AC188)+(DataInput!Q189-AC189))/2)*(A189-A188))/27+S13+T13>0,ROUNDDOWN(((((DataInput!Q188-AC188)+(DataInput!Q189-AC189))/2)*(A189-A188))/27+S13+T13,0),0),0),0)*$X$5),1) -> 0 | AE188: =DataInput!U188 -> 17 | AF188: =DataInput!S188 -> 34 | AG188: =ROUNDUP((AF188*$AG$5),1) -> 47.6 | AH188: =ROUNDUP((AE188-AG188),1) -> -30.6
A189: =IF(DataInput!A189<>"",DataInput!A189,"") -> 83025 | B189: =SUM(DataInput!C189,DataInput!Y189)+(DataInput!U189-DataInput!E189) -> 86 | C189: =SUM(DataInput!D189,DataInput!Z189) -> 64 | D189: =DataInput!U189 -> 22 | E189: =SUM(DataInput!F189,DataInput!AB189) -> 0 | F189: =SUM(DataInput!G189,DataInput!AC189) -> 0 | G189: =SUM(DataInput!H189,DataInput!AD189) -> 0 | H189: =DataInput!I189 -> 0 | I189: =SUM(DataInput!J189,DataInput!AF189) -> 0 | J189: =SUM(DataInput!K189,DataInput!AG189) -> 0 | K189: =SUM(DataInput!L189,DataInput!AH189) -> 0 | L189: =SUM(DataInput!M189,DataInput!AI189) -> 0 | M189: =SUM(DataInput!N189,DataInput!AJ189) -> 0 | N189: =SUM(DataInput!O189,DataInput!AK189) -> 0 | O189: =DataInput!P189 -> 0 | Q189: 64 | R189: =DataInput!R189 -> 63 | S189: =DataInput!Y189 -> 0 | T189: =IF(DataInput!U189-DataInput!E189>0,DataInput!U189-DataInput!E189,"") -> 22 | U189: =IF(DataInput!W189-DataInput!I189>0,DataInput!W189-DataInput!I189,"") ->  | W189: 85 | X189: 110.5 | Y189: -46.5 | Z189: =Z188 -> 0 | AA189: =AA188 -> 0 | AB189: =ROUNDDOWN((IF(AA190>0,IFERROR(IF(AVERAGE(DataInput!Q189:Q190)>AVERAGE(AA190,AA189),ROUNDDOWN(((((AA189-Z189)+(AA190-Z190))/2)*(A190-A189))/27+S14+T14,0),IF(((((DataInput!Q190-Z190)+(DataInput!Q189-Z189))/2)*(A190-A189))/27+S14+T14>0,ROUNDDOWN(((((DataInput!Q190-Z189)+(DataInput!Q189-Z189))/2)*(A190-A189))/27+S14+T14,0),0)),0),0)*$X$5),1) -> 0 | AC189: =AC188 -> 0 | AD189: =ROUNDDOWN((IF(AC190>0,IFERROR(IF(((((DataInput!Q189-AC189)+(DataInput!Q190-AC190))/2)*(A190-A189))/27+S14+T14>0,ROUNDDOWN(((((DataInput!Q189-AC189)+(DataInput!Q190-AC190))/2)*(A190-A189))/27+S14+T14,0),0),0),0)*$X$5),1) -> 0 | AE189: =DataInput!U189 -> 22 | AF189: =DataInput!S189 -> 43 | AG189: 60.2 | AH189: -38.2
A190: =IF(DataInput!A190<>"",DataInput!A190,"") -> 83050 | B190: =SUM(DataInput!C190,DataInput!Y190)+(DataInput!U190-DataInput!E190) -> 11 | C190: =SUM(DataInput!D190,DataInput!Z190) -> 8 | D190: =DataInput!U190 -> 3 | E190: =SUM(DataInput!F190,DataInput!AB190) -> 0 | F190: =SUM(DataInput!G190,DataInput!AC190) -> 0 | G190: =SUM(DataInput!H190,DataInput!AD190) -> 0 | H190: =DataInput!I190 -> 0 | I190: =SUM(DataInput!J190,DataInput!AF190) -> 0 | J190: =SUM(DataInput!K190,DataInput!AG190) -> 0 | K190: =SUM(DataInput!L190,DataInput!AH190) -> 0 | L190: =SUM(DataInput!M190,DataInput!AI190) -> 0 | M190: =SUM(DataInput!N190,DataInput!AJ190) -> 0 | N190: =SUM(DataInput!O190,DataInput!AK190) -> 0 | O190: =DataInput!P190 -> 0 | Q190: 8 | R190: =DataInput!R190 -> 13 | S190: =DataInput!Y190 -> 0 | T190: =IF(DataInput!U190-DataInput!E190>0,DataInput!U190-DataInput!E190,"") -> 3 | U190: =IF(DataInput!W190-DataInput!I190>0,DataInput!W190-DataInput!I190,"") ->  | W190: 16 | X190: 20.8 | Y190: -12.8 | Z190: 0 | AA190: 0 | AB190: =ROUNDDOWN((IF(AA191>0,IFERROR(IF(AVERAGE(DataInput!Q190:Q191)>AVERAGE(AA191,AA190),ROUNDDOWN(((((AA190-Z190)+(AA191-Z191))/2)*(A191-A190))/27+S15+T15,0),IF(((((DataInput!Q191-Z191)+(DataInput!Q190-Z190))/2)*(A191-A190))/27+S15+T15>0,ROUNDDOWN(((((DataInput!Q191-Z190)+(DataInput!Q190-Z190))/2)*(A191-A190))/27+S15+T15,0),0)),0),0)*$X$5),1) -> 0 | AC190: 0 | AD190: =ROUNDDOWN((IF(AC191>0,IFERROR(IF(((((DataInput!Q190-AC190)+(DataInput!Q191-AC191))/2)*(A191-A190))/27+S15+T15>0,ROUNDDOWN(((((DataInput!Q190-AC190)+(DataInput!Q191-AC191))/2)*(A191-A190))/27+S15+T15,0),0),0),0)*$X$5),1) -> 0 | AE190: =DataInput!U190 -> 3 | AF190: =DataInput!S190 -> 6 | AG190: 8.4 | AH190: -5.4
A191: =IF(DataInput!A191<>"",DataInput!A191,"") -> 83053.29 | B191: =SUM(DataInput!C191,DataInput!Y191)+(DataInput!U191-DataInput!E191) -> 69 | C191: =SUM(DataInput!D191,DataInput!Z191) -> 49 | D191: =DataInput!U191 -> 20 | E191: =SUM(DataInput!F191,DataInput!AB191) -> 0 | F191: =SUM(DataInput!G191,DataInput!AC191) -> 0 | G191: =SUM(DataInput!H191,DataInput!AD191) -> 0 | H191: =DataInput!I191 -> 0 | I191: =SUM(DataInput!J191,DataInput!AF191) -> 0 | J191: =SUM(DataInput!K191,DataInput!AG191) -> 0 | K191: =SUM(DataInput!L191,DataInput!AH191) -> 0 | L191: =SUM(DataInput!M191,DataInput!AI191) -> 0 | M191: =SUM(DataInput!N191,DataInput!AJ191) -> 0 | N191: =SUM(DataInput!O191,DataInput!AK191) -> 0 | O191: =DataInput!P191 -> 0 | Q191: 49 | R191: =DataInput!R191 -> 85 | S191: =DataInput!Y191 -> 0 | T191: =IF(DataInput!U191-DataInput!E191>0,DataInput!U191-DataInput!E191,"") -> 20 | U191: =IF(DataInput!W191-DataInput!I191>0,DataInput!W191-DataInput!I191,"") ->  | W191: 105 | X191: 136.5 | Y191: -87.5 | Z191: 0 | AA191: 0 | AB191: =ROUNDDOWN((IF(AA192>0,IFERROR(IF(AVERAGE(DataInput!Q191:Q192)>AVERAGE(AA192,AA191),ROUNDDOWN(((((AA191-Z191)+(AA192-Z192))/2)*(A192-A191))/27+S16+T16,0),IF(((((DataInput!Q192-Z192)+(DataInput!Q191-Z191))/2)*(A192-A191))/27+S16+T16>0,ROUNDDOWN(((((DataInput!Q192-Z191)+(DataInput!Q191-Z191))/2)*(A192-A191))/27+S16+T16,0),0)),0),0)*$X$5),1) -> 0 | AC191: 0 | AD191: =ROUNDDOWN((IF(AC192>0,IFERROR(IF(((((DataInput!Q191-AC191)+(DataInput!Q192-AC192))/2)*(A192-A191))/27+S16+T16>0,ROUNDDOWN(((((DataInput!Q191-AC191)+(DataInput!Q192-AC192))/2)*(A192-A191))/27+S16+T16,0),0),0),0)*$X$5),1) -> 0 | AE191: =DataInput!U191 -> 20 | AF191: =DataInput!S191 -> 39 | AG191: 54.6 | AH191: -34.6
A192: =IF(DataInput!A192<>"",DataInput!A192,"") -> 83075 | B192: =SUM(DataInput!C192,DataInput!Y192)+(DataInput!U192-DataInput!E192) -> 56 | C192: =SUM(DataInput!D192,DataInput!Z192) -> 37 | D192: =DataInput!U192 -> 19 | E192: =SUM(DataInput!F192,DataInput!AB192) -> 0 | F192: =SUM(DataInput!G192,DataInput!AC192) -> 0 | G192: =SUM(DataInput!H192,DataInput!AD192) -> 0 | H192: =DataInput!I192 -> 0 | I192: =SUM(DataInput!J192,DataInput!AF192) -> 0 | J192: =SUM(DataInput!K192,DataInput!AG192) -> 0 | K192: =SUM(DataInput!L192,DataInput!AH192) -> 0 | L192: =SUM(DataInput!M192,DataInput!AI192) -> 0 | M192: =SUM(DataInput!N192,DataInput!AJ192) -> 0 | N192: =SUM(DataInput!O192,DataInput!AK192) -> 0 | O192: =DataInput!P192 -> 0 | Q192: 37 | R192: =DataInput!R192 -> 66 | S192: =DataInput!Y192 -> 0 | T192: =IF(DataInput!U192-DataInput!E192>0,DataInput!U192-DataInput!E192,"") -> 19 | U192: =IF(DataInput!W192-DataInput!I192>0,DataInput!W192-DataInput!I192,"") ->  | W192: 85 | X192: 110.5 | Y192: -73.5 | Z192: 0 | AA192: 0 | AB192: =ROUNDDOWN((IF(AA193>0,IFERROR(IF(AVERAGE(DataInput!Q192:Q193)>AVERAGE(AA193,AA192),ROUNDDOWN(((((AA192-Z192)+(AA193-Z193))/2)*(A193-A192))/27+S17+T17,0),IF(((((DataInput!Q193-Z193)+(DataInput!Q192-Z192))/2)*(A193-A192))/27+S17+T17>0,ROUNDDOWN(((((DataInput!Q193-Z192)+(DataInput!Q192-Z192))/2)*(A193-A192))/27+S17+T17,0),0)),0),0)*$X$5),1) -> 0 | AC192: 0 | AD192: =ROUNDDOWN((IF(AC193>0,IFERROR(IF(((((DataInput!Q192-AC192)+(DataInput!Q193-AC193))/2)*(A193-A192))/27+S17+T17>0,ROUNDDOWN(((((DataInput!Q192-AC192)+(DataInput!Q193-AC193))/2)*(A193-A192))/27+S17+T17,0),0),0),0)*$X$5),1) -> 0 | AE192: =DataInput!U192 -> 19 | AF192: =DataInput!S192 -> 38 | AG192: 53.2 | AH192: -34.2
A193: =IF(DataInput!A193<>"",DataInput!A193,"") -> 83100 | B193: =SUM(DataInput!C193,DataInput!Y193)+(DataInput!U193-DataInput!E193) -> 29 | C193: =SUM(DataInput!D193,DataInput!Z193) -> 16 | D193: =DataInput!U193 -> 13 | E193: =SUM(DataInput!F193,DataInput!AB193) -> 0 | F193: =SUM(DataInput!G193,DataInput!AC193) -> 0 | G193: =SUM(DataInput!H193,DataInput!AD193) -> 0 | H193: =DataInput!I193 -> 0 | I193: =SUM(DataInput!J193,DataInput!AF193) -> 0 | J193: =SUM(DataInput!K193,DataInput!AG193) -> 0 | K193: =SUM(DataInput!L193,DataInput!AH193) -> 0 | L193: =SUM(DataInput!M193,DataInput!AI193) -> 0 | M193: =SUM(DataInput!N193,DataInput!AJ193) -> 0 | N193: =SUM(DataInput!O193,DataInput!AK193) -> 0 | O193: =DataInput!P193 -> 0 | Q193: 16 | R193: =DataInput!R193 -> 30 | S193: =DataInput!Y193 -> 0 | T193: =IF(DataInput!U193-DataInput!E193>0,DataInput!U193-DataInput!E193,"") -> 13 | U193: =IF(DataInput!W193-DataInput!I193>0,DataInput!W193-DataInput!I193,"") ->  | W193: 43 | X193: 55.9 | Y193: -39.9 | Z193: 0 | AA193: 0 | AB193: =ROUNDDOWN((IF(AA194>0,IFERROR(IF(AVERAGE(DataInput!Q193:Q194)>AVERAGE(AA194,AA193),ROUNDDOWN(((((AA193-Z193)+(AA194-Z194))/2)*(A194-A193))/27+S18+T18,0),IF(((((DataInput!Q194-Z194)+(DataInput!Q193-Z193))/2)*(A194-A193))/27+S18+T18>0,ROUNDDOWN(((((DataInput!Q194-Z193)+(DataInput!Q193-Z193))/2)*(A194-A193))/27+S18+T18,0),0)),0),0)*$X$5),1) -> 0 | AC193: 0 | AD193: =ROUNDDOWN((IF(AC194>0,IFERROR(IF(((((DataInput!Q193-AC193)+(DataInput!Q194-AC194))/2)*(A194-A193))/27+S18+T18>0,ROUNDDOWN(((((DataInput!Q193-AC193)+(DataInput!Q194-AC194))/2)*(A194-A193))/27+S18+T18,0),0),0),0)*$X$5),1) -> 0 | AE193: =DataInput!U193 -> 13 | AF193: =DataInput!S193 -> 26 | AG193: 36.4 | AH193: -23.4
A194: =IF(DataInput!A194<>"",DataInput!A194,"") -> 83125
A196: =IF(DataInput!A196<>"",DataInput!A196,"") -> Sta. 838+23
A197: =IF(DataInput!A197<>"",DataInput!A197,"") -> 83750 | B197: =SUM(DataInput!C197,DataInput!Y197)+(DataInput!U197-DataInput!E197) -> 111 | C197: =SUM(DataInput!D197,DataInput!Z197) -> 96 | D197: =DataInput!U197 -> 15 | E197: =SUM(DataInput!F197,DataInput!AB197) -> 0 | F197: =SUM(DataInput!G197,DataInput!AC197) -> 0 | G197: =SUM(DataInput!H197,DataInput!AD197) -> 0 | H197: =DataInput!I197 -> 0 | I197: =SUM(DataInput!J197,DataInput!AF197) -> 0 | J197: =SUM(DataInput!K197,DataInput!AG197) -> 0 | K197: =SUM(DataInput!L197,DataInput!AH197) -> 0 | L197: =SUM(DataInput!M197,DataInput!AI197) -> 0 | M197: =SUM(DataInput!N197,DataInput!AJ197) -> 0 | N197: =SUM(DataInput!O197,DataInput!AK197) -> 0 | O197: =DataInput!P197 -> 0 | Q197: =SUM(C197,E197:G197,I197:L197,N197:P197) -> 96 | R197: =DataInput!R197 -> 1 | S197: =DataInput!Y197 -> 0 | T197: =IF(DataInput!U197-DataInput!E197>0,DataInput!U197-DataInput!E197,"") -> 15 | U197: =IF(DataInput!W197-DataInput!I197>0,DataInput!W197-DataInput!I197,"") ->  | W197: =SUM(R197:V197) -> 16 | X197: =ROUNDUP(($W197*$X$5),1) -> 20.8 | Y197: =ROUNDUP(SUM(Q197-X197),1) -> 75.2 | AB197: =ROUNDDOWN((IF(AA198>0,IFERROR(IF(AVERAGE(DataInput!Q197:Q198)>AVERAGE(AA198,AA197),ROUNDDOWN(((((AA197-Z197)+(AA198-Z198))/2)*(A198-A197))/27+S12+T12,0),IF(((((DataInput!Q198-Z198)+(DataInput!Q197-Z197))/2)*(A198-A197))/27+S12+T12>0,ROUNDDOWN(((((DataInput!Q198-Z197)+(DataInput!Q197-Z197))/2)*(A198-A197))/27+S12+T12,0),0)),0),0)*$X$5),1) -> 0 | AD197: =ROUNDDOWN((IF(AC198>0,IFERROR(IF(((((DataInput!Q197-AC197)+(DataInput!Q198-AC198))/2)*(A198-A197))/27+S12+T12>0,ROUNDDOWN(((((DataInput!Q197-AC197)+(DataInput!Q198-AC198))/2)*(A198-A197))/27+S12+T12,0),0),0),0)*$X$5),1) -> 0 | AE197: =DataInput!U197 -> 15 | AF197: =DataInput!S197 -> 30 | AG197: =ROUNDUP((AF197*$AG$5),1) -> 42 | AH197: =ROUNDUP((AE197-AG197),1) -> -27
A198: =IF(DataInput!A198<>"",DataInput!A198,"") -> 83775 | B198: =SUM(DataInput!C198,DataInput!Y198)+(DataInput!U198-DataInput!E198) -> 118 | C198: =SUM(DataInput!D198,DataInput!Z198) -> 97 | D198: =DataInput!U198 -> 21 | E198: =SUM(DataInput!F198,DataInput!AB198) -> 0 | F198: =SUM(DataInput!G198,DataInput!AC198) -> 0 | G198: =SUM(DataInput!H198,DataInput!AD198) -> 0 | H198: =DataInput!I198 -> 0 | I198: =SUM(DataInput!J198,DataInput!AF198) -> 0 | J198: =SUM(DataInput!K198,DataInput!AG198) -> 0 | K198: =SUM(DataInput!L198,DataInput!AH198) -> 0 | L198: =SUM(DataInput!M198,DataInput!AI198) -> 0 | M198: =SUM(DataInput!N198,DataInput!AJ198) -> 0 | N198: =SUM(DataInput!O198,DataInput!AK198) -> 0 | O198: =DataInput!P198 -> 0 | Q198: =SUM(C198,E198:G198,I198:L198,N198:P198) -> 97 | R198: =DataInput!R198 -> 6 | S198: =DataInput!Y198 -> 0 | T198: =IF(DataInput!U198-DataInput!E198>0,DataInput!U198-DataInput!E198,"") -> 21 | U198: =IF(DataInput!W198-DataInput!I198>0,DataInput!W198-DataInput!I198,"") ->  | W198: =SUM(R198:V198) -> 27 | X198: =ROUNDUP(($W198*$X$5),1) -> 35.1 | Y198: =ROUNDUP(SUM(Q198-X198),1) -> 61.9 | Z198: =Z197 -> 0 | AA198: =AA197 -> 0 | AB198: =ROUNDDOWN((IF(AA199>0,IFERROR(IF(AVERAGE(DataInput!Q198:Q199)>AVERAGE(AA199,AA198),ROUNDDOWN(((((AA198-Z198)+(AA199-Z199))/2)*(A199-A198))/27+S13+T13,0),IF(((((DataInput!Q199-Z199)+(DataInput!Q198-Z198))/2)*(A199-A198))/27+S13+T13>0,ROUNDDOWN(((((DataInput!Q199-Z198)+(DataInput!Q198-Z198))/2)*(A199-A198))/27+S13+T13,0),0)),0),0)*$X$5),1) -> 0 | AC198: =AC197 -> 0 | AD198: =ROUNDDOWN((IF(AC199>0,IFERROR(IF(((((DataInput!Q198-AC198)+(DataInput!Q199-AC199))/2)*(A199-A198))/27+S13+T13>0,ROUNDDOWN(((((DataInput!Q198-AC198)+(DataInput!Q199-AC199))/2)*(A199-A198))/27+S13+T13,0),0),0),0)*$X$5),1) -> 0 | AE198: =DataInput!U198 -> 21 | AF198: =DataInput!S198 -> 42 | AG198: =ROUNDUP((AF198*$AG$5),1) -> 58.8 | AH198: =ROUNDUP((AE198-AG198),1) -> -37.8
A199: =IF(DataInput!A199<>"",DataInput!A199,"") -> 83800 | B199: =SUM(DataInput!C199,DataInput!Y199)+(DataInput!U199-DataInput!E199) -> 97 | C199: =SUM(DataInput!D199,DataInput!Z199) -> 75 | D199: =DataInput!U199 -> 22 | E199: =SUM(DataInput!F199,DataInput!AB199) -> 0 | F199: =SUM(DataInput!G199,DataInput!AC199) -> 0 | G199: =SUM(DataInput!H199,DataInput!AD199) -> 0 | H199: =DataInput!I199 -> 0 | I199: =SUM(DataInput!J199,DataInput!AF199) -> 0 | J199: =SUM(DataInput!K199,DataInput!AG199) -> 0 | K199: =SUM(DataInput!L199,DataInput!AH199) -> 0 | L199: =SUM(DataInput!M199,DataInput!AI199) -> 0 | M199: =SUM(DataInput!N199,DataInput!AJ199) -> 0 | N199: =SUM(DataInput!O199,DataInput!AK199) -> 0 | O199: =DataInput!P199 -> 0 | Q199: 75 | R199: =DataInput!R199 -> 26 | S199: =DataInput!Y199 -> 0 | T199: =IF(DataInput!U199-DataInput!E199>0,DataInput!U199-DataInput!E199,"") -> 22 | U199: =IF(DataInput!W199-DataInput!I199>0,DataInput!W199-DataInput!I199,"") ->  | W199: 48 | X199: 62.4 | Y199: 12.6 | Z199: =Z198 -> 0 | AA199: =AA198 -> 0 | AB199: =ROUNDDOWN((IF(AA200>0,IFERROR(IF(AVERAGE(DataInput!Q199:Q200)>AVERAGE(AA200,AA199),ROUNDDOWN(((((AA199-Z199)+(AA200-Z200))/2)*(A200-A199))/27+S14+T14,0),IF(((((DataInput!Q200-Z200)+(DataInput!Q199-Z199))/2)*(A200-A199))/27+S14+T14>0,ROUNDDOWN(((((DataInput!Q200-Z199)+(DataInput!Q199-Z199))/2)*(A200-A199))/27+S14+T14,0),0)),0),0)*$X$5),1) -> 0 | AC199: =AC198 -> 0 | AD199: =ROUNDDOWN((IF(AC200>0,IFERROR(IF(((((DataInput!Q199-AC199)+(DataInput!Q200-AC200))/2)*(A200-A199))/27+S14+T14>0,ROUNDDOWN(((((DataInput!Q199-AC199)+(DataInput!Q200-AC200))/2)*(A200-A199))/27+S14+T14,0),0),0),0)*$X$5),1) -> 0 | AE199: =DataInput!U199 -> 22 | AF199: =DataInput!S199 -> 53 | AG199: 74.2 | AH199: -52.2
A200: =IF(DataInput!A200<>"",DataInput!A200,"") -> 83823 | B200: =SUM(DataInput!C200,DataInput!Y200)+(DataInput!U200-DataInput!E200) -> 7 | C200: =SUM(DataInput!D200,DataInput!Z200) -> 5 | D200: =DataInput!U200 -> 2 | E200: =SUM(DataInput!F200,DataInput!AB200) -> 0 | F200: =SUM(DataInput!G200,DataInput!AC200) -> 0 | G200: =SUM(DataInput!H200,DataInput!AD200) -> 0 | H200: =DataInput!I200 -> 0 | I200: =SUM(DataInput!J200,DataInput!AF200) -> 0 | J200: =SUM(DataInput!K200,DataInput!AG200) -> 0 | K200: =SUM(DataInput!L200,DataInput!AH200) -> 0 | L200: =SUM(DataInput!M200,DataInput!AI200) -> 0 | M200: =SUM(DataInput!N200,DataInput!AJ200) -> 0 | N200: =SUM(DataInput!O200,DataInput!AK200) -> 0 | O200: =DataInput!P200 -> 0 | P200: 21 | Q200: 26 | R200: =DataInput!R200 -> 7 | S200: =DataInput!Y200 -> 0 | T200: =IF(DataInput!U200-DataInput!E200>0,DataInput!U200-DataInput!E200,"") -> 2 | U200: =IF(DataInput!W200-DataInput!I200>0,DataInput!W200-DataInput!I200,"") ->  | W200: 9 | X200: 11.7 | Y200: 14.3 | Z200: 0 | AA200: 0 | AB200: =ROUNDDOWN((IF(AA201>0,IFERROR(IF(AVERAGE(DataInput!Q200:Q201)>AVERAGE(AA201,AA200),ROUNDDOWN(((((AA200-Z200)+(AA201-Z201))/2)*(A201-A200))/27+S15+T15,0),IF(((((DataInput!Q201-Z201)+(DataInput!Q200-Z200))/2)*(A201-A200))/27+S15+T15>0,ROUNDDOWN(((((DataInput!Q201-Z200)+(DataInput!Q200-Z200))/2)*(A201-A200))/27+S15+T15,0),0)),0),0)*$X$5),1) -> 0 | AC200: 0 | AD200: =ROUNDDOWN((IF(AC201>0,IFERROR(IF(((((DataInput!Q200-AC200)+(DataInput!Q201-AC201))/2)*(A201-A200))/27+S15+T15>0,ROUNDDOWN(((((DataInput!Q200-AC200)+(DataInput!Q201-AC201))/2)*(A201-A200))/27+S15+T15,0),0),0),0)*$X$5),1) -> 0 | AE200: =DataInput!U200 -> 2 | AF200: =DataInput!S200 -> 5 | AG200: 7 | AH200: -5
A201: =IF(DataInput!A201<>"",DataInput!A201,"") -> 83825 | B201: =SUM(DataInput!C201,DataInput!Y201)+(DataInput!U201-DataInput!E201) -> 97 | C201: =SUM(DataInput!D201,DataInput!Z201) -> 72 | D201: =DataInput!U201 -> 25 | E201: =SUM(DataInput!F201,DataInput!AB201) -> 0 | F201: =SUM(DataInput!G201,DataInput!AC201) -> 0 | G201: =SUM(DataInput!H201,DataInput!AD201) -> 0 | H201: =DataInput!I201 -> 0 | I201: =SUM(DataInput!J201,DataInput!AF201) -> 0 | J201: =SUM(DataInput!K201,DataInput!AG201) -> 0 | K201: =SUM(DataInput!L201,DataInput!AH201) -> 0 | L201: =SUM(DataInput!M201,DataInput!AI201) -> 0 | M201: =SUM(DataInput!N201,DataInput!AJ201) -> 0 | N201: =SUM(DataInput!O201,DataInput!AK201) -> 0 | O201: =DataInput!P201 -> 0 | Q201: 72 | R201: =DataInput!R201 -> 88 | S201: =DataInput!Y201 -> 0 | T201: =IF(DataInput!U201-DataInput!E201>0,DataInput!U201-DataInput!E201,"") -> 25 | U201: =IF(DataInput!W201-DataInput!I201>0,DataInput!W201-DataInput!I201,"") ->  | W201: 113 | X201: 146.9 | Y201: -74.9 | Z201: 0 | AA201: 0 | AB201: =ROUNDDOWN((IF(AA202>0,IFERROR(IF(AVERAGE(DataInput!Q201:Q202)>AVERAGE(AA202,AA201),ROUNDDOWN(((((AA201-Z201)+(AA202-Z202))/2)*(A202-A201))/27+S16+T16,0),IF(((((DataInput!Q202-Z202)+(DataInput!Q201-Z201))/2)*(A202-A201))/27+S16+T16>0,ROUNDDOWN(((((DataInput!Q202-Z201)+(DataInput!Q201-Z201))/2)*(A202-A201))/27+S16+T16,0),0)),0),0)*$X$5),1) -> 0 | AC201: 0 | AD201: =ROUNDDOWN((IF(AC202>0,IFERROR(IF(((((DataInput!Q201-AC201)+(DataInput!Q202-AC202))/2)*(A202-A201))/27+S16+T16>0,ROUNDDOWN(((((DataInput!Q201-AC201)+(DataInput!Q202-AC202))/2)*(A202-A201))/27+S16+T16,0),0),0),0)*$X$5),1) -> 0 | AE201: =DataInput!U201 -> 25 | AF201: =DataInput!S201 -> 51 | AG201: 71.4 | AH201: -46.4
A202: =IF(DataInput!A202<>"",DataInput!A202,"") -> 83850 | B202: =SUM(DataInput!C202,DataInput!Y202)+(DataInput!U202-DataInput!E202) -> 90 | C202: =SUM(DataInput!D202,DataInput!Z202) -> 69 | D202: =DataInput!U202 -> 21 | E202: =SUM(DataInput!F202,DataInput!AB202) -> 0 | F202: =SUM(DataInput!G202,DataInput!AC202) -> 0 | G202: =SUM(DataInput!H202,DataInput!AD202) -> 0 | H202: =DataInput!I202 -> 0 | I202: =SUM(DataInput!J202,DataInput!AF202) -> 0 | J202: =SUM(DataInput!K202,DataInput!AG202) -> 0 | K202: =SUM(DataInput!L202,DataInput!AH202) -> 0 | L202: =SUM(DataInput!M202,DataInput!AI202) -> 0 | M202: =SUM(DataInput!N202,DataInput!AJ202) -> 0 | N202: =SUM(DataInput!O202,DataInput!AK202) -> 0 | O202: =DataInput!P202 -> 0 | Q202: 69 | R202: =DataInput!R202 -> 19 | S202: =DataInput!Y202 -> 0 | T202: =IF(DataInput!U202-DataInput!E202>0,DataInput!U202-DataInput!E202,"") -> 21 | U202: =IF(DataInput!W202-DataInput!I202>0,DataInput!W202-DataInput!I202,"") ->  | W202: 40 | X202: 52 | Y202: 17 | Z202: 0 | AA202: 0 | AB202: =ROUNDDOWN((IF(AA203>0,IFERROR(IF(AVERAGE(DataInput!Q202:Q203)>AVERAGE(AA203,AA202),ROUNDDOWN(((((AA202-Z202)+(AA203-Z203))/2)*(A203-A202))/27+S17+T17,0),IF(((((DataInput!Q203-Z203)+(DataInput!Q202-Z202))/2)*(A203-A202))/27+S17+T17>0,ROUNDDOWN(((((DataInput!Q203-Z202)+(DataInput!Q202-Z202))/2)*(A203-A202))/27+S17+T17,0),0)),0),0)*$X$5),1) -> 0 | AC202: 0 | AD202: =ROUNDDOWN((IF(AC203>0,IFERROR(IF(((((DataInput!Q202-AC202)+(DataInput!Q203-AC203))/2)*(A203-A202))/27+S17+T17>0,ROUNDDOWN(((((DataInput!Q202-AC202)+(DataInput!Q203-AC203))/2)*(A203-A202))/27+S17+T17,0),0),0),0)*$X$5),1) -> 0 | AE202: =DataInput!U202 -> 21 | AF202: =DataInput!S202 -> 42 | AG202: 58.8 | AH202: -37.8
A203: =IF(DataInput!A203<>"",DataInput!A203,"") -> 83875 | B203: =SUM(DataInput!C203,DataInput!Y203)+(DataInput!U203-DataInput!E203) -> 30 | C203: =SUM(DataInput!D203,DataInput!Z203) -> 19 | D203: =DataInput!U203 -> 11 | E203: =SUM(DataInput!F203,DataInput!AB203) -> 0 | F203: =SUM(DataInput!G203,DataInput!AC203) -> 0 | G203: =SUM(DataInput!H203,DataInput!AD203) -> 0 | H203: =DataInput!I203 -> 0 | I203: =SUM(DataInput!J203,DataInput!AF203) -> 0 | J203: =SUM(DataInput!K203,DataInput!AG203) -> 0 | K203: =SUM(DataInput!L203,DataInput!AH203) -> 0 | L203: =SUM(DataInput!M203,DataInput!AI203) -> 0 | M203: =SUM(DataInput!N203,DataInput!AJ203) -> 0 | N203: =SUM(DataInput!O203,DataInput!AK203) -> 0 | O203: =DataInput!P203 -> 0 | Q203: 19 | R203: =DataInput!R203 -> 1 | S203: =DataInput!Y203 -> 0 | T203: =IF(DataInput!U203-DataInput!E203>0,DataInput!U203-DataInput!E203,"") -> 11 | U203: =IF(DataInput!W203-DataInput!I203>0,DataInput!W203-DataInput!I203,"") ->  | W203: 12 | X203: 15.6 | Y203: 3.4 | Z203: 0 | AA203: 0 | AB203: =ROUNDDOWN((IF(AA204>0,IFERROR(IF(AVERAGE(DataInput!Q203:Q204)>AVERAGE(AA204,AA203),ROUNDDOWN(((((AA203-Z203)+(AA204-Z204))/2)*(A204-A203))/27+S18+T18,0),IF(((((DataInput!Q204-Z204)+(DataInput!Q203-Z203))/2)*(A204-A203))/27+S18+T18>0,ROUNDDOWN(((((DataInput!Q204-Z203)+(DataInput!Q203-Z203))/2)*(A204-A203))/27+S18+T18,0),0)),0),0)*$X$5),1) -> 0 | AC203: 0 | AD203: =ROUNDDOWN((IF(AC204>0,IFERROR(IF(((((DataInput!Q203-AC203)+(DataInput!Q204-AC204))/2)*(A204-A203))/27+S18+T18>0,ROUNDDOWN(((((DataInput!Q203-AC203)+(DataInput!Q204-AC204))/2)*(A204-A203))/27+S18+T18,0),0),0),0)*$X$5),1) -> 0 | AE203: =DataInput!U203 -> 11 | AF203: =DataInput!S203 -> 22 | AG203: 30.8 | AH203: -19.8
A204: =IF(DataInput!A204<>"",DataInput!A204,"") -> 83900 | B204: =SUM(DataInput!C204,DataInput!Y204)+(DataInput!U204-DataInput!E204) -> 11 | C204: =SUM(DataInput!D204,DataInput!Z204) -> 6 | D204: =DataInput!U204 -> 5 | E204: =SUM(DataInput!F204,DataInput!AB204) -> 0 | F204: =SUM(DataInput!G204,DataInput!AC204) -> 0 | G204: =SUM(DataInput!H204,DataInput!AD204) -> 0 | H204: =DataInput!I204 -> 0 | I204: =SUM(DataInput!J204,DataInput!AF204) -> 0 | J204: =SUM(DataInput!K204,DataInput!AG204) -> 0 | K204: =SUM(DataInput!L204,DataInput!AH204) -> 0 | L204: =SUM(DataInput!M204,DataInput!AI204) -> 0 | M204: =SUM(DataInput!N204,DataInput!AJ204) -> 0 | N204: =SUM(DataInput!O204,DataInput!AK204) -> 0 | O204: =DataInput!P204 -> 0 | Q204: 6 | R204: =DataInput!R204 -> 0 | S204: =DataInput!Y204 -> 0 | T204: =IF(DataInput!U204-DataInput!E204>0,DataInput!U204-DataInput!E204,"") -> 5 | U204: =IF(DataInput!W204-DataInput!I204>0,DataInput!W204-DataInput!I204,"") ->  | W204: 5 | X204: 6.5 | Y204: -0.5 | Z204: 0 | AA204: 0 | AB204: =ROUNDDOWN((IF(AA205>0,IFERROR(IF(AVERAGE(DataInput!Q204:Q205)>AVERAGE(AA205,AA204),ROUNDDOWN(((((AA204-Z204)+(AA205-Z205))/2)*(A205-A204))/27+S19+T19,0),IF(((((DataInput!Q205-Z205)+(DataInput!Q204-Z204))/2)*(A205-A204))/27+S19+T19>0,ROUNDDOWN(((((DataInput!Q205-Z204)+(DataInput!Q204-Z204))/2)*(A205-A204))/27+S19+T19,0),0)),0),0)*$X$5),1) -> 0 | AC204: 0 | AD204: =ROUNDDOWN((IF(AC205>0,IFERROR(IF(((((DataInput!Q204-AC204)+(DataInput!Q205-AC205))/2)*(A205-A204))/27+S19+T19>0,ROUNDDOWN(((((DataInput!Q204-AC204)+(DataInput!Q205-AC205))/2)*(A205-A204))/27+S19+T19,0),0),0),0)*$X$5),1) -> 0 | AE204: =DataInput!U204 -> 5 | AF204: =DataInput!S204 -> 9 | AG204: 12.6 | AH204: -7.6
A205: =IF(DataInput!A205<>"",DataInput!A205,"") -> 83925
A207: =IF(DataInput!A207<>"",DataInput!A207,"") -> Sta. 844+27
A208: =IF(DataInput!A208<>"",DataInput!A208,"") -> 84325 | B208: =SUM(DataInput!C208,DataInput!Y208)+(DataInput!U208-DataInput!E208) -> 47 | C208: =SUM(DataInput!D208,DataInput!Z208) -> 35 | D208: =DataInput!U208 -> 12 | E208: =SUM(DataInput!F208,DataInput!AB208) -> 0 | F208: =SUM(DataInput!G208,DataInput!AC208) -> 0 | G208: =SUM(DataInput!H208,DataInput!AD208) -> 0 | H208: =DataInput!I208 -> 0 | I208: =SUM(DataInput!J208,DataInput!AF208) -> 0 | J208: =SUM(DataInput!K208,DataInput!AG208) -> 0 | K208: =SUM(DataInput!L208,DataInput!AH208) -> 0 | L208: =SUM(DataInput!M208,DataInput!AI208) -> 0 | M208: =SUM(DataInput!N208,DataInput!AJ208) -> 0 | N208: =SUM(DataInput!O208,DataInput!AK208) -> 0 | O208: =DataInput!P208 -> 0 | Q208: =SUM(C208,E208:G208,I208:L208,N208:P208) -> 35 | R208: =DataInput!R208 -> 15 | S208: =DataInput!Y208 -> 0 | T208: =IF(DataInput!U208-DataInput!E208>0,DataInput!U208-DataInput!E208,"") -> 12 | U208: =IF(DataInput!W208-DataInput!I208>0,DataInput!W208-DataInput!I208,"") ->  | W208: =SUM(R208:V208) -> 27 | X208: =ROUNDUP(($W208*$X$5),1) -> 35.1 | Y208: =ROUNDUP(SUM(Q208-X208),1) -> -0.2 | AB208: =ROUNDDOWN((IF(AA209>0,IFERROR(IF(AVERAGE(DataInput!Q208:Q209)>AVERAGE(AA209,AA208),ROUNDDOWN(((((AA208-Z208)+(AA209-Z209))/2)*(A209-A208))/27+S12+T12,0),IF(((((DataInput!Q209-Z209)+(DataInput!Q208-Z208))/2)*(A209-A208))/27+S12+T12>0,ROUNDDOWN(((((DataInput!Q209-Z208)+(DataInput!Q208-Z208))/2)*(A209-A208))/27+S12+T12,0),0)),0),0)*$X$5),1) -> 0 | AD208: =ROUNDDOWN((IF(AC209>0,IFERROR(IF(((((DataInput!Q208-AC208)+(DataInput!Q209-AC209))/2)*(A209-A208))/27+S12+T12>0,ROUNDDOWN(((((DataInput!Q208-AC208)+(DataInput!Q209-AC209))/2)*(A209-A208))/27+S12+T12,0),0),0),0)*$X$5),1) -> 0 | AE208: =DataInput!U208 -> 12 | AF208: =DataInput!S208 -> 24 | AG208: =ROUNDUP((AF208*$AG$5),1) -> 33.6 | AH208: =ROUNDUP((AE208-AG208),1) -> -21.6
A209: =IF(DataInput!A209<>"",DataInput!A209,"") -> 84350 | B209: =SUM(DataInput!C209,DataInput!Y209)+(DataInput!U209-DataInput!E209) -> 112 | C209: =SUM(DataInput!D209,DataInput!Z209) -> 97 | D209: =DataInput!U209 -> 15 | E209: =SUM(DataInput!F209,DataInput!AB209) -> 0 | F209: =SUM(DataInput!G209,DataInput!AC209) -> 0 | G209: =SUM(DataInput!H209,DataInput!AD209) -> 0 | H209: =DataInput!I209 -> 0 | I209: =SUM(DataInput!J209,DataInput!AF209) -> 0 | J209: =SUM(DataInput!K209,DataInput!AG209) -> 0 | K209: =SUM(DataInput!L209,DataInput!AH209) -> 0 | L209: =SUM(DataInput!M209,DataInput!AI209) -> 0 | M209: =SUM(DataInput!N209,DataInput!AJ209) -> 0 | N209: =SUM(DataInput!O209,DataInput!AK209) -> 0 | O209: =DataInput!P209 -> 0 | Q209: =SUM(C209,E209:G209,I209:L209,N209:P209) -> 97 | R209: =DataInput!R209 -> 34 | S209: =DataInput!Y209 -> 0 | T209: =IF(DataInput!U209-DataInput!E209>0,DataInput!U209-DataInput!E209,"") -> 15 | U209: =IF(DataInput!W209-DataInput!I209>0,DataInput!W209-DataInput!I209,"") ->  | W209: =SUM(R209:V209) -> 49 | X209: =ROUNDUP(($W209*$X$5),1) -> 63.7 | Y209: =ROUNDUP(SUM(Q209-X209),1) -> 33.3 | Z209: =Z208 -> 0 | AA209: =AA208 -> 0 | AB209: =ROUNDDOWN((IF(AA210>0,IFERROR(IF(AVERAGE(DataInput!Q209:Q210)>AVERAGE(AA210,AA209),ROUNDDOWN(((((AA209-Z209)+(AA210-Z210))/2)*(A210-A209))/27+S13+T13,0),IF(((((DataInput!Q210-Z210)+(DataInput!Q209-Z209))/2)*(A210-A209))/27+S13+T13>0,ROUNDDOWN(((((DataInput!Q210-Z209)+(DataInput!Q209-Z209))/2)*(A210-A209))/27+S13+T13,0),0)),0),0)*$X$5),1) -> 0 | AC209: =AC208 -> 0 | AD209: =ROUNDDOWN((IF(AC210>0,IFERROR(IF(((((DataInput!Q209-AC209)+(DataInput!Q210-AC210))/2)*(A210-A209))/27+S13+T13>0,ROUNDDOWN(((((DataInput!Q209-AC209)+(DataInput!Q210-AC210))/2)*(A210-A209))/27+S13+T13,0),0),0),0)*$X$5),1) -> 0 | AE209: =DataInput!U209 -> 15 | AF209: =DataInput!S209 -> 30 | AG209: =ROUNDUP((AF209*$AG$5),1) -> 42 | AH209: =ROUNDUP((AE209-AG209),1) -> -27
A210: =IF(DataInput!A210<>"",DataInput!A210,"") -> 84375 | B210: =SUM(DataInput!C210,DataInput!Y210)+(DataInput!U210-DataInput!E210) -> 181 | C210: =SUM(DataInput!D210,DataInput!Z210) -> 163 | D210: =DataInput!U210 -> 18 | E210: =SUM(DataInput!F210,DataInput!AB210) -> 0 | F210: =SUM(DataInput!G210,DataInput!AC210) -> 0 | G210: =SUM(DataInput!H210,DataInput!AD210) -> 0 | H210: =DataInput!I210 -> 0 | I210: =SUM(DataInput!J210,DataInput!AF210) -> 0 | J210: =SUM(DataInput!K210,DataInput!AG210) -> 0 | K210: =SUM(DataInput!L210,DataInput!AH210) -> 0 | L210: =SUM(DataInput!M210,DataInput!AI210) -> 0 | M210: =SUM(DataInput!N210,DataInput!AJ210) -> 0 | N210: =SUM(DataInput!O210,DataInput!AK210) -> 0 | O210: =DataInput!P210 -> 0 | Q210: 163 | R210: =DataInput!R210 -> 38 | S210: =DataInput!Y210 -> 0 | T210: =IF(DataInput!U210-DataInput!E210>0,DataInput!U210-DataInput!E210,"") -> 18 | U210: =IF(DataInput!W210-DataInput!I210>0,DataInput!W210-DataInput!I210,"") ->  | W210: 56 | X210: 72.8 | Y210: 90.2 | Z210: =Z209 -> 0 | AA210: =AA209 -> 0 | AB210: =ROUNDDOWN((IF(AA211>0,IFERROR(IF(AVERAGE(DataInput!Q210:Q211)>AVERAGE(AA211,AA210),ROUNDDOWN(((((AA210-Z210)+(AA211-Z211))/2)*(A211-A210))/27+S14+T14,0),IF(((((DataInput!Q211-Z211)+(DataInput!Q210-Z210))/2)*(A211-A210))/27+S14+T14>0,ROUNDDOWN(((((DataInput!Q211-Z210)+(DataInput!Q210-Z210))/2)*(A211-A210))/27+S14+T14,0),0)),0),0)*$X$5),1) -> 0 | AC210: =AC209 -> 0 | AD210: =ROUNDDOWN((IF(AC211>0,IFERROR(IF(((((DataInput!Q210-AC210)+(DataInput!Q211-AC211))/2)*(A211-A210))/27+S14+T14>0,ROUNDDOWN(((((DataInput!Q210-AC210)+(DataInput!Q211-AC211))/2)*(A211-A210))/27+S14+T14,0),0),0),0)*$X$5),1) -> 0 | AE210: =DataInput!U210 -> 18 | AF210: =DataInput!S210 -> 36 | AG210: 50.4 | AH210: -32.4
A211: =IF(DataInput!A211<>"",DataInput!A211,"") -> 84400 | B211: =SUM(DataInput!C211,DataInput!Y211)+(DataInput!U211-DataInput!E211) -> 184 | C211: =SUM(DataInput!D211,DataInput!Z211) -> 166 | D211: =DataInput!U211 -> 18 | E211: =SUM(DataInput!F211,DataInput!AB211) -> 0 | F211: =SUM(DataInput!G211,DataInput!AC211) -> 0 | G211: =SUM(DataInput!H211,DataInput!AD211) -> 0 | H211: =DataInput!I211 -> 0 | I211: =SUM(DataInput!J211,DataInput!AF211) -> 0 | J211: =SUM(DataInput!K211,DataInput!AG211) -> 0 | K211: =SUM(DataInput!L211,DataInput!AH211) -> 0 | L211: =SUM(DataInput!M211,DataInput!AI211) -> 0 | M211: =SUM(DataInput!N211,DataInput!AJ211) -> 0 | N211: =SUM(DataInput!O211,DataInput!AK211) -> 0 | O211: =DataInput!P211 -> 0 | Q211: 166 | R211: =DataInput!R211 -> 48 | S211: =DataInput!Y211 -> 0 | T211: =IF(DataInput!U211-DataInput!E211>0,DataInput!U211-DataInput!E211,"") -> 18 | U211: =IF(DataInput!W211-DataInput!I211>0,DataInput!W211-DataInput!I211,"") ->  | W211: 66 | X211: 85.8 | Y211: 80.2 | Z211: 0 | AA211: 0 | AB211: =ROUNDDOWN((IF(AA212>0,IFERROR(IF(AVERAGE(DataInput!Q211:Q212)>AVERAGE(AA212,AA211),ROUNDDOWN(((((AA211-Z211)+(AA212-Z212))/2)*(A212-A211))/27+S15+T15,0),IF(((((DataInput!Q212-Z212)+(DataInput!Q211-Z211))/2)*(A212-A211))/27+S15+T15>0,ROUNDDOWN(((((DataInput!Q212-Z211)+(DataInput!Q211-Z211))/2)*(A212-A211))/27+S15+T15,0),0)),0),0)*$X$5),1) -> 0 | AC211: 0 | AD211: =ROUNDDOWN((IF(AC212>0,IFERROR(IF(((((DataInput!Q211-AC211)+(DataInput!Q212-AC212))/2)*(A212-A211))/27+S15+T15>0,ROUNDDOWN(((((DataInput!Q211-AC211)+(DataInput!Q212-AC212))/2)*(A212-A211))/27+S15+T15,0),0),0),0)*$X$5),1) -> 0 | AE211: =DataInput!U211 -> 18 | AF211: =DataInput!S211 -> 37 | AG211: 51.8 | AH211: -33.8
